Workbook

Sheet Read me - LAs (hidden)
C8: JBA Strategic Flood Risk Assessment Site Screening Tool - v1.0
C10: This spreadsheet has been designed to assist local authorities with the selection of development sites for inclusion within their local plan.
C12: Note on calculations:
C13: Site boundaries have been screened against flood risk information to determine the proportion of the site at risk. The following flood risk information has been used in the assessment: ● Flood Zones - from the Environment Agency's Flood Map for Planning (hereafter named the 'Flood Map for Planning Flood Zones') and detailed hydraulic modelling (hereafter named 'SFRA Flood Zones'). ● Fluvial (river) flood risk plus climate change - detailed fluvial modelling with the appropriate climate change allowances (Central, Higher Central and Upper End) applied. ● Surface Water (present day) - from the Environment Agency's Risk of Flooding from Surface Water dataset. ● Surface Water (climate change) - climate change uplifts applied to the Environment Agency's Risk of Flooding from Surface Water dataset. ● Historic Flooding - from the Environment Agency's Historic Flood Map and Kent County Council's Flood Incident Database. ● Reservoirs - from the Environment Agency's Reservoir Flood Extents for a 'Dry Day' and 'Wet Day.' ● JBA Groundwater Flood Risk Dataset - Where groundwater levels are either at or very near (within 0.025m of) the ground surface or between 0.025m and 0.5m below the ground surface. ● Groundwater Pathways - derived from the JBA Groundwater and Risk of Flooding from Surface Water flow paths. ● Historic Flooding - from the Environment Agency's Historic Flood Map, and flooding incidents within 50m of recorded incidents in Kent County Council's Flood Incident Database. Further details about the datasets used for this assessment can be found within the main SFRA report.
C15: Note on SFRA Flood Zone percentages:
C16: The values quoted in the Level 1 Screening tab show the percentage of the site at flood risk from that particular SFRA Flood Zone, excluding the percentage of the site at flood risk at a higher zone. For example 60% of a site is within the SFRA Flood Zones. Taking each Flood Zone individually, 60% is in Flood Zone 2 but only 30% is in Flood Zone 3a and only 10% is in Flood Zone 3b. In the Level 1 Screening tab this will be displayed as 10% in Flood Zone 3b, 20% in Flood Zone 3a (as this excludes the 10% in Flood Zone 3b), 30% in Flood Zone 2 (as this excludes the 10% in Flood Zone 3b and 20% in Flood Zone 3a) and 40% in Flood Zone 1.

Sheet Level 1 Screening
A1: Site Reference | B1: Site Name | C1: Area (ha) | D1: Proportion of site shown to be at risk (%)
D2: Flood Map for Planning Flood Zones | G2: SFRA Flood Zones | K2: Fluvial Flood Risk plus climate change | N2: Environment Agency Risk of Flooding from Surface Water | Q2: Environment Agency Risk of Flooding from Surface Water plus climate change | S2: Environment Agency Reservoir Flood Extent | U2: JBA Groundwater Flood Risk Dataset | W2: Groundwater Pathways | X2: Historic Flooding | Y2: Sandwell Metropolitan Borough Council Comment
D3: FZ1 | E3: FZ2 | F3: FZ3 | G3: FZ1 | H3: FZ2 | I3: FZ3a | J3: FZ3b | K3: FZ3a plus Central | L3: FZ3a plus Higher Central | M3: FZ3b plus Upper End | N3: 3.3% AEP | O3: 1% AEP | P3: 0.1% AEP | Q3: 3.3%AEP+35 | R3: 1%AEP +45% | S3: Dry Day | T3: Wet day | U3: Groundwater levels are either at or very near (within 0.025m of) the ground surface | V3: Groundwater levels between 0.025m and 0.5m below the ground surface | W3: JBA Groundwater with Surface Water flow paths | X3: EA Historic Flood Map
A4: SEC3-86 | C4: 4.103 | D4: ='Flood map for planning'!O2 -> 1 | E4: ='Flood map for planning'!P2 -> 0 | F4: ='Flood map for planning'!Q2 -> 0 | G4: ='Present Day Fluvial'!P2 -> 1 | H4: ='Present Day Fluvial'!S2 -> 0 | I4: ='Present Day Fluvial'!R2 -> 0 | J4: ='Present Day Fluvial'!Q2 -> 0 | K4: ='Fluvial + CC'!J2 -> 0 | L4: ='Fluvial + CC'!K2 -> 0 | M4: ='Fluvial + CC'!L2 -> 0 | N4: ='Surface Water'!S2 -> 0.004994559934 | O4: ='Surface Water'!T2 -> 0.01091629383 | P4: ='Surface Water'!U2 -> 0.1479690049 | Q4: ='Surface Water +CC'!I2 -> 0.03708728694 | R4: ='Surface Water +CC'!J2 -> 0.1628065576 | S4: ='Reservoir extents'!P2 -> 0 | T4: ='Reservoir extents'!Q2 -> 0 | U4: 0 | V4: 0 | X4: 0
A5: SCE4-9 | C5: 0.359 | D5: ='Flood map for planning'!O3 -> 1 | E5: ='Flood map for planning'!P3 -> 0 | F5: ='Flood map for planning'!Q3 -> 0 | G5: ='Present Day Fluvial'!P3 -> 1 | H5: ='Present Day Fluvial'!S3 -> 0 | I5: ='Present Day Fluvial'!R3 -> 0 | J5: ='Present Day Fluvial'!Q3 -> 0 | K5: ='Fluvial + CC'!J3 -> 0 | L5: ='Fluvial + CC'!K3 -> 0 | M5: ='Fluvial + CC'!L3 -> 0 | N5: ='Surface Water'!S3 -> 0 | O5: ='Surface Water'!T3 -> 0 | P5: ='Surface Water'!U3 -> 0.0003708342323 | Q5: ='Surface Water +CC'!I3 -> 8.122716534e-05 | R5: ='Surface Water +CC'!J3 -> 0.0003708338815 | S5: ='Reservoir extents'!P3 -> 0 | T5: ='Reservoir extents'!Q3 -> 0 | U5: 0 | V5: 0 | X5: 0
A6: SEC4-2 | B6: 10-60 Dudley Rd East, Oldbury (3224) | C6: 2.059 | D6: ='Flood map for planning'!O4 -> 1 | E6: ='Flood map for planning'!P4 -> 0 | F6: ='Flood map for planning'!Q4 -> 0 | G6: ='Present Day Fluvial'!P4 -> 1 | H6: ='Present Day Fluvial'!S4 -> 0 | I6: ='Present Day Fluvial'!R4 -> 0 | J6: ='Present Day Fluvial'!Q4 -> 0 | K6: ='Fluvial + CC'!J4 -> 0 | L6: ='Fluvial + CC'!K4 -> 0 | M6: ='Fluvial + CC'!L4 -> 0 | N6: ='Surface Water'!S4 -> 1.634865701e-05 | O6: ='Surface Water'!T4 -> 0.02452277076 | P6: ='Surface Water'!U4 -> 0.0653155911 | Q6: ='Surface Water +CC'!I4 -> 0.04910182362 | R6: ='Surface Water +CC'!J4 -> 0.09235556651 | S6: ='Reservoir extents'!P4 -> 0 | T6: ='Reservoir extents'!Q4 -> 0 | U6: 0 | V6: 0 | X6: 0
A7: SEC3-165 | B7: 230 Oldbury Rd (3016) | C7: 1.527 | D7: ='Flood map for planning'!O5 -> 1 | E7: ='Flood map for planning'!P5 -> 0 | F7: ='Flood map for planning'!Q5 -> 0 | G7: ='Present Day Fluvial'!P5 -> 1 | H7: ='Present Day Fluvial'!S5 -> 0 | I7: ='Present Day Fluvial'!R5 -> 0 | J7: ='Present Day Fluvial'!Q5 -> 0 | K7: ='Fluvial + CC'!J5 -> 0 | L7: ='Fluvial + CC'!K5 -> 0 | M7: ='Fluvial + CC'!L5 -> 0 | N7: ='Surface Water'!S5 -> 0 | O7: ='Surface Water'!T5 -> 0.01337012741 | P7: ='Surface Water'!U5 -> 0.04021561731 | Q7: ='Surface Water +CC'!I5 -> 0.04303881532 | R7: ='Surface Water +CC'!J5 -> 0.05463438222 | S7: ='Reservoir extents'!P5 -> 0 | T7: ='Reservoir extents'!Q5 -> 0 | U7: 0 | V7: 0 | X7: 0
A8: SEC4-3 | B8: 70-74 Crankhall Lane | C8: 1.759 | D8: ='Flood map for planning'!O6 -> 1 | E8: ='Flood map for planning'!P6 -> 0 | F8: ='Flood map for planning'!Q6 -> 0 | G8: ='Present Day Fluvial'!P6 -> 1 | H8: ='Present Day Fluvial'!S6 -> 0 | I8: ='Present Day Fluvial'!R6 -> 0 | J8: ='Present Day Fluvial'!Q6 -> 0 | K8: ='Fluvial + CC'!J6 -> 0 | L8: ='Fluvial + CC'!K6 -> 0 | M8: ='Fluvial + CC'!L6 -> 0 | N8: ='Surface Water'!S6 -> 0 | O8: ='Surface Water'!T6 -> 0.01359871317 | P8: ='Surface Water'!U6 -> 0.01911760803 | Q8: ='Surface Water +CC'!I6 -> 0.02270233603 | R8: ='Surface Water +CC'!J6 -> 0.03272452908 | S8: ='Reservoir extents'!P6 -> 0 | T8: ='Reservoir extents'!Q6 -> 0 | U8: 0 | V8: 0 | X8: 0
A9: SEC3-106 | B9: Aeroplas and Olympus Distribution, Great Western Way, Great Bridge | C9: 4.784 | D9: ='Flood map for planning'!O7 -> 0.7449702506 | E9: ='Flood map for planning'!P7 -> 0.2512377446 | F9: ='Flood map for planning'!Q7 -> 0.003792004892 | G9: ='Present Day Fluvial'!P7 -> 0.7449742951 | H9: ='Present Day Fluvial'!S7 -> 0.2512333797 | I9: ='Present Day Fluvial'!R7 -> 0.0007329663666 | J9: ='Present Day Fluvial'!Q7 -> 0.003059358785 | K9: ='Fluvial + CC'!J7 -> 0.007249498013 | L9: ='Fluvial + CC'!K7 -> 0.2550297494 | M9: ='Fluvial + CC'!L7 -> 0.003792325151 | N9: ='Surface Water'!S7 -> 0.002343063616 | O9: ='Surface Water'!T7 -> 0.02753099769 | P9: ='Surface Water'!U7 -> 0.06353631368 | Q9: ='Surface Water +CC'!I7 -> 0.05810459739 | R9: ='Surface Water +CC'!J7 -> 0.09222985348 | S9: ='Reservoir extents'!P7 -> 0.1363741415 | T9: ='Reservoir extents'!Q7 -> 0 | U9: 0 | V9: 0 | X9: 0
A10: SEC3-41 | B10: Albion Industrial Estate | C10: 9.05 | D10: ='Flood map for planning'!O8 -> 0.5886636757 | E10: ='Flood map for planning'!P8 -> 0.4113363243 | F10: ='Flood map for planning'!Q8 -> 0 | G10: ='Present Day Fluvial'!P8 -> 0.9430381411 | H10: ='Present Day Fluvial'!S8 -> 0.0569618589 | I10: ='Present Day Fluvial'!R8 -> 0 | J10: ='Present Day Fluvial'!Q8 -> 0 | K10: ='Fluvial + CC'!J8 -> 0.0001740569918 | L10: ='Fluvial + CC'!K8 -> 0.4113363244 | M10: ='Fluvial + CC'!L8 -> 0 | N10: ='Surface Water'!S8 -> 0.003229138974 | O10: ='Surface Water'!T8 -> 0.01429333352 | P10: ='Surface Water'!U8 -> 0.06153105678 | Q10: ='Surface Water +CC'!I8 -> 0.04713389339 | R10: ='Surface Water +CC'!J8 -> 0.08195867031 | S10: ='Reservoir extents'!P8 -> 0 | T10: ='Reservoir extents'!Q8 -> 0 | U10: 0 | V10: 0 | X10: 0
A11: SEC3-182 | B11: Albion Road | C11: 0.913 | D11: ='Flood map for planning'!O9 -> 1 | E11: ='Flood map for planning'!P9 -> 0 | F11: ='Flood map for planning'!Q9 -> 0 | G11: ='Present Day Fluvial'!P9 -> 1 | H11: ='Present Day Fluvial'!S9 -> 0 | I11: ='Present Day Fluvial'!R9 -> 0 | J11: ='Present Day Fluvial'!Q9 -> 0 | K11: ='Fluvial + CC'!J9 -> 0 | L11: ='Fluvial + CC'!K9 -> 0 | M11: ='Fluvial + CC'!L9 -> 0 | N11: ='Surface Water'!S9 -> 0 | O11: ='Surface Water'!T9 -> 0.05684325178 | P11: ='Surface Water'!U9 -> 0.2485981502 | Q11: ='Surface Water +CC'!I9 -> 0.1534114859 | R11: ='Surface Water +CC'!J9 -> 0.3050030208 | S11: ='Reservoir extents'!P9 -> 0 | T11: ='Reservoir extents'!Q9 -> 0 | U11: 0 | V11: 0 | X11: 0
A12: SEC3-9 | B12: Alexandra Ind Est, Locarno Rd/ Alexandra Rd, Tipto | C12: 1.875 | D12: ='Flood map for planning'!O10 -> 1 | E12: ='Flood map for planning'!P10 -> 0 | F12: ='Flood map for planning'!Q10 -> 0 | G12: ='Present Day Fluvial'!P10 -> 1 | H12: ='Present Day Fluvial'!S10 -> 0 | I12: ='Present Day Fluvial'!R10 -> 0 | J12: ='Present Day Fluvial'!Q10 -> 0 | K12: ='Fluvial + CC'!J10 -> 0 | L12: ='Fluvial + CC'!K10 -> 0 | M12: ='Fluvial + CC'!L10 -> 0 | N12: ='Surface Water'!S10 -> 0 | O12: ='Surface Water'!T10 -> 0.01942380153 | P12: ='Surface Water'!U10 -> 0.05948374313 | Q12: ='Surface Water +CC'!I10 -> 0.043425271 | R12: ='Surface Water +CC'!J10 -> 0.08542653197 | S12: ='Reservoir extents'!P10 -> 0 | T12: ='Reservoir extents'!Q10 -> 0 | U12: 0 | V12: 0 | X12: 0
A13: SEC3-64 | B13: Alexandra Ind Est/Locarno Road, Tipton | C13: 2.568 | D13: ='Flood map for planning'!O11 -> 1 | E13: ='Flood map for planning'!P11 -> 0 | F13: ='Flood map for planning'!Q11 -> 0 | G13: ='Present Day Fluvial'!P11 -> 1 | H13: ='Present Day Fluvial'!S11 -> 0 | I13: ='Present Day Fluvial'!R11 -> 0 | J13: ='Present Day Fluvial'!Q11 -> 0 | K13: ='Fluvial + CC'!J11 -> 0 | L13: ='Fluvial + CC'!K11 -> 0 | M13: ='Fluvial + CC'!L11 -> 0 | N13: ='Surface Water'!S11 -> 0.002545709381 | O13: ='Surface Water'!T11 -> 0.006757816412 | P13: ='Surface Water'!U11 -> 0.07593419986 | Q13: ='Surface Water +CC'!I11 -> 0.0386813607 | R13: ='Surface Water +CC'!J11 -> 0.0849079949 | S13: ='Reservoir extents'!P11 -> 0 | T13: ='Reservoir extents'!Q11 -> 0 | U13: 0 | V13: 0 | X13: 0
A14: SEC3-93 | B14: Alma Street, Smethwick | C14: 4.726 | D14: ='Flood map for planning'!O12 -> 1 | E14: ='Flood map for planning'!P12 -> 0 | F14: ='Flood map for planning'!Q12 -> 0 | G14: ='Present Day Fluvial'!P12 -> 1 | H14: ='Present Day Fluvial'!S12 -> 0 | I14: ='Present Day Fluvial'!R12 -> 0 | J14: ='Present Day Fluvial'!Q12 -> 0 | K14: ='Fluvial + CC'!J12 -> 0 | L14: ='Fluvial + CC'!K12 -> 0 | M14: ='Fluvial + CC'!L12 -> 0 | N14: ='Surface Water'!S12 -> 0 | O14: ='Surface Water'!T12 -> 0.003534306681 | P14: ='Surface Water'!U12 -> 0.09591759266 | Q14: ='Surface Water +CC'!I12 -> 0.04344360764 | R14: ='Surface Water +CC'!J12 -> 0.105895035 | S14: ='Reservoir extents'!P12 -> 0.002497719373 | T14: ='Reservoir extents'!Q12 -> 0 | U14: 0.3063427501 | V14: 0.4490261372 | X14: 0
A15: SEC3-137 | B15: Alutrade, Tat Bank Road | C15: 2.705 | D15: ='Flood map for planning'!O13 -> 1 | E15: ='Flood map for planning'!P13 -> 0 | F15: ='Flood map for planning'!Q13 -> 0 | G15: ='Present Day Fluvial'!P13 -> 1 | H15: ='Present Day Fluvial'!S13 -> 0 | I15: ='Present Day Fluvial'!R13 -> 0 | J15: ='Present Day Fluvial'!Q13 -> 0 | K15: ='Fluvial + CC'!J13 -> 0 | L15: ='Fluvial + CC'!K13 -> 0 | M15: ='Fluvial + CC'!L13 -> 0 | N15: ='Surface Water'!S13 -> 0 | O15: ='Surface Water'!T13 -> 1.364256451e-05 | P15: ='Surface Water'!U13 -> 0.004296884732 | Q15: ='Surface Water +CC'!I13 -> 0.003568673524 | R15: ='Surface Water +CC'!J13 -> 0.004524586621 | S15: ='Reservoir extents'!P13 -> 0 | T15: ='Reservoir extents'!Q13 -> 0 | U15: 0 | V15: 0 | X15: 0
A16: SEC3-30 | B16: Arnold Laver, Dudley Rd East, Oldbury (2944 | C16: 1.005 | D16: ='Flood map for planning'!O14 -> 1 | E16: ='Flood map for planning'!P14 -> 0 | F16: ='Flood map for planning'!Q14 -> 0 | G16: ='Present Day Fluvial'!P14 -> 1 | H16: ='Present Day Fluvial'!S14 -> 0 | I16: ='Present Day Fluvial'!R14 -> 0 | J16: ='Present Day Fluvial'!Q14 -> 0 | K16: ='Fluvial + CC'!J14 -> 0 | L16: ='Fluvial + CC'!K14 -> 0 | M16: ='Fluvial + CC'!L14 -> 0 | N16: ='Surface Water'!S14 -> 0 | O16: ='Surface Water'!T14 -> 0.004151119197 | P16: ='Surface Water'!U14 -> 0.009380985499 | Q16: ='Surface Water +CC'!I14 -> 0.005294813938 | R16: ='Surface Water +CC'!J14 -> 0.02331440588 | S16: ='Reservoir extents'!P14 -> 0 | T16: ='Reservoir extents'!Q14 -> 0 | U16: 0 | V16: 0 | X16: 0
A17: SEC3-62 | B17: Autobase, Dudley Road, Oldbury | C17: 16.605 | D17: ='Flood map for planning'!O15 -> 1 | E17: ='Flood map for planning'!P15 -> 0 | F17: ='Flood map for planning'!Q15 -> 0 | G17: ='Present Day Fluvial'!P15 -> 1 | H17: ='Present Day Fluvial'!S15 -> 0 | I17: ='Present Day Fluvial'!R15 -> 0 | J17: ='Present Day Fluvial'!Q15 -> 0 | K17: ='Fluvial + CC'!J15 -> 0 | L17: ='Fluvial + CC'!K15 -> 0 | M17: ='Fluvial + CC'!L15 -> 0 | N17: ='Surface Water'!S15 -> 0.006747209613 | O17: ='Surface Water'!T15 -> 0.03376869128 | P17: ='Surface Water'!U15 -> 0.1958862543 | Q17: ='Surface Water +CC'!I15 -> 0.125542512 | R17: ='Surface Water +CC'!J15 -> 0.2341601391 | S17: ='Reservoir extents'!P15 -> 0 | T17: ='Reservoir extents'!Q15 -> 0 | U17: 0 | V17: 0 | X17: 0
A18: SEC3-128 | B18: Barnfield Trading Est Tipton (5450) | C18: 2.269 | D18: ='Flood map for planning'!O16 -> 0.1960415908 | E18: ='Flood map for planning'!P16 -> 0.8039584092 | F18: ='Flood map for planning'!Q16 -> 0 | G18: ='Present Day Fluvial'!P16 -> 0.1961733029 | H18: ='Present Day Fluvial'!S16 -> 0.8038266971 | I18: ='Present Day Fluvial'!R16 -> 0 | J18: ='Present Day Fluvial'!Q16 -> 0 | K18: ='Fluvial + CC'!J16 -> 0.2403079867 | L18: ='Fluvial + CC'!K16 -> 0.8039584092 | M18: ='Fluvial + CC'!L16 -> 0 | N18: ='Surface Water'!S16 -> 0.01451868966 | O18: ='Surface Water'!T16 -> 0.020651105 | P18: ='Surface Water'!U16 -> 0.303796961 | Q18: ='Surface Water +CC'!I16 -> 0.2021135084 | R18: ='Surface Water +CC'!J16 -> 0.3989829879 | S18: ='Reservoir extents'!P16 -> 0 | T18: ='Reservoir extents'!Q16 -> 0 | U18: 0 | V18: 0 | X18: 0
A19: SEC3-151 | B19: Beakes Road, Bearwood (825) | C19: 0.697 | D19: ='Flood map for planning'!O17 -> 1 | E19: ='Flood map for planning'!P17 -> 0 | F19: ='Flood map for planning'!Q17 -> 0 | G19: ='Present Day Fluvial'!P17 -> 1 | H19: ='Present Day Fluvial'!S17 -> 0 | I19: ='Present Day Fluvial'!R17 -> 0 | J19: ='Present Day Fluvial'!Q17 -> 0 | K19: ='Fluvial + CC'!J17 -> 0 | L19: ='Fluvial + CC'!K17 -> 0 | M19: ='Fluvial + CC'!L17 -> 0 | N19: ='Surface Water'!S17 -> 0 | O19: ='Surface Water'!T17 -> 2.580449567e-05 | P19: ='Surface Water'!U17 -> 0.001485198986 | Q19: ='Surface Water +CC'!I17 -> 0.0004921801035 | R19: ='Surface Water +CC'!J17 -> 0.002172921417 | S19: ='Reservoir extents'!P17 -> 0 | T19: ='Reservoir extents'!Q17 -> 0 | U19: 0 | V19: 1 | X19: 0
A20: SEC3-152 | B20: Beakes Road, Bearwood (826) | C20: 0.926 | D20: ='Flood map for planning'!O18 -> 1 | E20: ='Flood map for planning'!P18 -> 0 | F20: ='Flood map for planning'!Q18 -> 0 | G20: ='Present Day Fluvial'!P18 -> 1 | H20: ='Present Day Fluvial'!S18 -> 0 | I20: ='Present Day Fluvial'!R18 -> 0 | J20: ='Present Day Fluvial'!Q18 -> 0 | K20: ='Fluvial + CC'!J18 -> 0 | L20: ='Fluvial + CC'!K18 -> 0 | M20: ='Fluvial + CC'!L18 -> 0 | N20: ='Surface Water'!S18 -> 0 | O20: ='Surface Water'!T18 -> 0 | P20: ='Surface Water'!U18 -> 0.2251305517 | Q20: ='Surface Water +CC'!I18 -> 0.03454480606 | R20: ='Surface Water +CC'!J18 -> 0.255617526 | S20: ='Reservoir extents'!P18 -> 0 | T20: ='Reservoir extents'!Q18 -> 0 | U20: 0 | V20: 1 | X20: 0
A21: SEC3-16 | B21: Bescot Industrial Estate, Wednesbury | C21: 7.922 | D21: ='Flood map for planning'!O19 -> 1 | E21: ='Flood map for planning'!P19 -> 0 | F21: ='Flood map for planning'!Q19 -> 0 | G21: ='Present Day Fluvial'!P19 -> 1 | H21: ='Present Day Fluvial'!S19 -> 0 | I21: ='Present Day Fluvial'!R19 -> 0 | J21: ='Present Day Fluvial'!Q19 -> 0 | K21: ='Fluvial + CC'!J19 -> 0 | L21: ='Fluvial + CC'!K19 -> 0 | M21: ='Fluvial + CC'!L19 -> 0 | N21: ='Surface Water'!S19 -> 0.006330487632 | O21: ='Surface Water'!T19 -> 0.007272863191 | P21: ='Surface Water'!U19 -> 0.09375129904 | Q21: ='Surface Water +CC'!I19 -> 0.03168848947 | R21: ='Surface Water +CC'!J19 -> 0.1064450192 | S21: ='Reservoir extents'!P19 -> 0 | T21: ='Reservoir extents'!Q19 -> 0 | U21: 0 | V21: 0 | X21: 0
A22: SEC3-138 | B22: Bevan Motor Bodies, Blakeley Hall Road | C22: 0.912 | D22: ='Flood map for planning'!O20 -> 1 | E22: ='Flood map for planning'!P20 -> 0 | F22: ='Flood map for planning'!Q20 -> 0 | G22: ='Present Day Fluvial'!P20 -> 1 | H22: ='Present Day Fluvial'!S20 -> 0 | I22: ='Present Day Fluvial'!R20 -> 0 | J22: ='Present Day Fluvial'!Q20 -> 0 | K22: ='Fluvial + CC'!J20 -> 0 | L22: ='Fluvial + CC'!K20 -> 0 | M22: ='Fluvial + CC'!L20 -> 0 | N22: ='Surface Water'!S20 -> 0 | O22: ='Surface Water'!T20 -> 0 | P22: ='Surface Water'!U20 -> 0.006518087151 | Q22: ='Surface Water +CC'!I20 -> 0.002200816823 | R22: ='Surface Water +CC'!J20 -> 0.03609971221 | S22: ='Reservoir extents'!P20 -> 0 | T22: ='Reservoir extents'!Q20 -> 0 | U22: 0 | V22: 0 | X22: 0
A23: SEC3-90 | B23: Birchley, Oldbury | C23: 7.03 | D23: ='Flood map for planning'!O21 -> 0.4686156158 | E23: ='Flood map for planning'!P21 -> 0.2023227968 | F23: ='Flood map for planning'!Q21 -> 0.3290615874 | G23: ='Present Day Fluvial'!P21 -> 0.4866203015 | H23: ='Present Day Fluvial'!S21 -> 0.2013268471 | I23: ='Present Day Fluvial'!R21 -> 0.07566108981 | J23: ='Present Day Fluvial'!Q21 -> 0.2363917616 | K23: ='Fluvial + CC'!J21 -> 0.3615343674 | L23: ='Fluvial + CC'!K21 -> 0.5313959139 | M23: ='Fluvial + CC'!L21 -> 0.3288283561 | N23: ='Surface Water'!S21 -> 0.04470139356 | O23: ='Surface Water'!T21 -> 0.07344362733 | P23: ='Surface Water'!U21 -> 0.2292085247 | Q23: ='Surface Water +CC'!I21 -> 0.2246239487 | R23: ='Surface Water +CC'!J21 -> 0.3587176785 | S23: ='Reservoir extents'!P21 -> 0 | T23: ='Reservoir extents'!Q21 -> 0 | U23: 0 | V23: 0 | X23: 0
A24: EMP2-9 | B24: Black Country New Road, Wednesbury (Hallens Drive) | C24: 44.043 | D24: ='Flood map for planning'!O22 -> 0.7958705014 | E24: ='Flood map for planning'!P22 -> 0.1674404624 | F24: ='Flood map for planning'!Q22 -> 0.0366890362 | G24: ='Present Day Fluvial'!P22 -> 1 | H24: ='Present Day Fluvial'!S22 -> 0 | I24: ='Present Day Fluvial'!R22 -> 0 | J24: ='Present Day Fluvial'!Q22 -> 0 | K24: ='Fluvial + CC'!J22 -> 0 | L24: ='Fluvial + CC'!K22 -> 0.2041294986 | M24: ='Fluvial + CC'!L22 -> 0 | N24: ='Surface Water'!S22 -> 0.006873652311 | O24: ='Surface Water'!T22 -> 0.02378382352 | P24: ='Surface Water'!U22 -> 0.1204200957 | Q24: ='Surface Water +CC'!I22 -> 0.08256038797 | R24: ='Surface Water +CC'!J22 -> 0.1514328818 | S24: ='Reservoir extents'!P22 -> 0 | T24: ='Reservoir extents'!Q22 -> 0 | U24: 0.09077357953 | V24: 0 | X24: 0
A25: EMP2-10 | B25: Black Country New Road/ Pacific Avenue | C25: 23.118 | D25: ='Flood map for planning'!O23 -> 0.5756058717 | E25: ='Flood map for planning'!P23 -> 0.1517721388 | F25: ='Flood map for planning'!Q23 -> 0.2726219895 | G25: ='Present Day Fluvial'!P23 -> 0.898084358 | H25: ='Present Day Fluvial'!S23 -> 0.09781904789 | I25: ='Present Day Fluvial'!R23 -> 0.00108493886 | J25: ='Present Day Fluvial'!Q23 -> 0.003011655276 | K25: ='Fluvial + CC'!J23 -> 0.009888182037 | L25: ='Fluvial + CC'!K23 -> 0.4228735618 | M25: ='Fluvial + CC'!L23 -> 0.004096594136 | N25: ='Surface Water'!S23 -> 0.01039831064 | O25: ='Surface Water'!T23 -> 0.01646596506 | P25: ='Surface Water'!U23 -> 0.1377052618 | Q25: ='Surface Water +CC'!I23 -> 0.06353930172 | R25: ='Surface Water +CC'!J23 -> 0.1523509869 | S25: ='Reservoir extents'!P23 -> 0.0006345991876 | T25: ='Reservoir extents'!Q23 -> 0 | U25: 0 | V25: 0 | X25: 0
A26: EMP2-13 | B26: Black Country New Road/Golds Hill, Tipton | C26: 15.133 | D26: ='Flood map for planning'!O24 -> 0.7692244153 | E26: ='Flood map for planning'!P24 -> 0.1685579372 | F26: ='Flood map for planning'!Q24 -> 0.06221764748 | G26: ='Present Day Fluvial'!P24 -> 0.7699036593 | H26: ='Present Day Fluvial'!S24 -> 0.1678742985 | I26: ='Present Day Fluvial'!R24 -> 0.006121439043 | J26: ='Present Day Fluvial'!Q24 -> 0.05610060306 | K26: ='Fluvial + CC'!J24 -> 0.07802934499 | L26: ='Fluvial + CC'!K24 -> 0.230194581 | M26: ='Fluvial + CC'!L24 -> 0.06222204211 | N26: ='Surface Water'!S24 -> 0.0172668429 | O26: ='Surface Water'!T24 -> 0.02411744508 | P26: ='Surface Water'!U24 -> 0.08164003874 | Q26: ='Surface Water +CC'!I24 -> 0.08358915626 | R26: ='Surface Water +CC'!J24 -> 0.1224685765 | S26: ='Reservoir extents'!P24 -> 0.113421984 | T26: ='Reservoir extents'!Q24 -> 0 | U26: 0 | V26: 0 | X26: 0
A27: SEC3-130 | B27: Bloomfield Park | C27: 5.147 | D27: ='Flood map for planning'!O25 -> 0.9984483876 | E27: ='Flood map for planning'!P25 -> 0.001551612352 | F27: ='Flood map for planning'!Q25 -> 0 | G27: ='Present Day Fluvial'!P25 -> 0.9984527477 | H27: ='Present Day Fluvial'!S25 -> 0.001547252326 | I27: ='Present Day Fluvial'!R25 -> 0 | J27: ='Present Day Fluvial'!Q25 -> 0 | K27: ='Fluvial + CC'!J25 -> 0 | L27: ='Fluvial + CC'!K25 -> 0.001551612352 | M27: ='Fluvial + CC'!L25 -> 0 | N27: ='Surface Water'!S25 -> 0.02220987901 | O27: ='Surface Water'!T25 -> 0.004217903316 | P27: ='Surface Water'!U25 -> 0.04514967824 | Q27: ='Surface Water +CC'!I25 -> 0.05207539375 | R27: ='Surface Water +CC'!J25 -> 0.07688051775 | S27: ='Reservoir extents'!P25 -> 0.00295346791 | T27: ='Reservoir extents'!Q25 -> 0 | U27: 0 | V27: 0 | X27: 0
A28: SEC3-19 | B28: Brades Road, Oldbury (Pearsall Drive) | C28: 7.03 | D28: ='Flood map for planning'!O26 -> 1 | E28: ='Flood map for planning'!P26 -> 0 | F28: ='Flood map for planning'!Q26 -> 0 | G28: ='Present Day Fluvial'!P26 -> 1 | H28: ='Present Day Fluvial'!S26 -> 0 | I28: ='Present Day Fluvial'!R26 -> 0 | J28: ='Present Day Fluvial'!Q26 -> 0 | K28: ='Fluvial + CC'!J26 -> 0 | L28: ='Fluvial + CC'!K26 -> 0 | M28: ='Fluvial + CC'!L26 -> 0 | N28: ='Surface Water'!S26 -> 0.02825734518 | O28: ='Surface Water'!T26 -> 0.09418277275 | P28: ='Surface Water'!U26 -> 0.1301538741 | Q28: ='Surface Water +CC'!I26 -> 0.1894045455 | R28: ='Surface Water +CC'!J26 -> 0.2900011556 | S28: ='Reservoir extents'!P26 -> 0 | T28: ='Reservoir extents'!Q26 -> 0 | U28: 0 | V28: 0 | X28: 0
A29: SEC3-113 | B29: Brandon Way (east side) | C29: 0.47 | D29: ='Flood map for planning'!O27 -> 1 | E29: ='Flood map for planning'!P27 -> 0 | F29: ='Flood map for planning'!Q27 -> 0 | G29: ='Present Day Fluvial'!P27 -> 1 | H29: ='Present Day Fluvial'!S27 -> 0 | I29: ='Present Day Fluvial'!R27 -> 0 | J29: ='Present Day Fluvial'!Q27 -> 0 | K29: ='Fluvial + CC'!J27 -> 0 | L29: ='Fluvial + CC'!K27 -> 0 | M29: ='Fluvial + CC'!L27 -> 0 | N29: ='Surface Water'!S27 -> 0 | O29: ='Surface Water'!T27 -> 0 | P29: ='Surface Water'!U27 -> 0.2034819567 | Q29: ='Surface Water +CC'!I27 -> 0.04778474797 | R29: ='Surface Water +CC'!J27 -> 0.1972235295 | S29: ='Reservoir extents'!P27 -> 0 | T29: ='Reservoir extents'!Q27 -> 0 | U29: 0 | V29: 0 | X29: 0
A30: SEC3-154 | B30: Brandon Way / Albion Rd, WB (2385 / WBPr32) | C30: 6.225 | D30: ='Flood map for planning'!O28 -> 1 | E30: ='Flood map for planning'!P28 -> 0 | F30: ='Flood map for planning'!Q28 -> 0 | G30: ='Present Day Fluvial'!P28 -> 1 | H30: ='Present Day Fluvial'!S28 -> 0 | I30: ='Present Day Fluvial'!R28 -> 0 | J30: ='Present Day Fluvial'!Q28 -> 0 | K30: ='Fluvial + CC'!J28 -> 0 | L30: ='Fluvial + CC'!K28 -> 0 | M30: ='Fluvial + CC'!L28 -> 0 | N30: ='Surface Water'!S28 -> 0.002314926748 | O30: ='Surface Water'!T28 -> 0.01298931127 | P30: ='Surface Water'!U28 -> 0.04967412184 | Q30: ='Surface Water +CC'!I28 -> 0.03553115252 | R30: ='Surface Water +CC'!J28 -> 0.06430344156 | S30: ='Reservoir extents'!P28 -> 0 | T30: ='Reservoir extents'!Q28 -> 0 | U30: 0 | V30: 0 | X30: 0
A31: SEC1-6 | B31: Brandon Way/ Albion Road, West Bromwich | C31: 3.086 | D31: ='Flood map for planning'!O29 -> 1 | E31: ='Flood map for planning'!P29 -> 0 | F31: ='Flood map for planning'!Q29 -> 0 | G31: ='Present Day Fluvial'!P29 -> 1 | H31: ='Present Day Fluvial'!S29 -> 0 | I31: ='Present Day Fluvial'!R29 -> 0 | J31: ='Present Day Fluvial'!Q29 -> 0 | K31: ='Fluvial + CC'!J29 -> 0 | L31: ='Fluvial + CC'!K29 -> 0 | M31: ='Fluvial + CC'!L29 -> 0 | N31: ='Surface Water'!S29 -> 0.08994013393 | O31: ='Surface Water'!T29 -> 0.08877584424 | P31: ='Surface Water'!U29 -> 0.2117475319 | Q31: ='Surface Water +CC'!I29 -> 0.2456020701 | R31: ='Surface Water +CC'!J29 -> 0.376610777 | S31: ='Reservoir extents'!P29 -> 0 | T31: ='Reservoir extents'!Q29 -> 0 | U31: 0 | V31: 0 | X31: 0
A32: SEC3-71 | B32: Brickhouse Lane | C32: 3.883 | D32: ='Flood map for planning'!O30 -> 1 | E32: ='Flood map for planning'!P30 -> 0 | F32: ='Flood map for planning'!Q30 -> 0 | G32: ='Present Day Fluvial'!P30 -> 1 | H32: ='Present Day Fluvial'!S30 -> 0 | I32: ='Present Day Fluvial'!R30 -> 0 | J32: ='Present Day Fluvial'!Q30 -> 0 | K32: ='Fluvial + CC'!J30 -> 0 | L32: ='Fluvial + CC'!K30 -> 0 | M32: ='Fluvial + CC'!L30 -> 0 | N32: ='Surface Water'!S30 -> 0 | O32: ='Surface Water'!T30 -> 0.01422823913 | P32: ='Surface Water'!U30 -> 0.1641364211 | Q32: ='Surface Water +CC'!I30 -> 0.06969775109 | R32: ='Surface Water +CC'!J30 -> 0.1759751666 | S32: ='Reservoir extents'!P30 -> 0 | T32: ='Reservoir extents'!Q30 -> 0 | U32: 0 | V32: 0 | X32: 0
A33: SEC3-116 | B33: Bridge Street/ Potters Lane | C33: 3.695 | D33: ='Flood map for planning'!O31 -> 1 | E33: ='Flood map for planning'!P31 -> 0 | F33: ='Flood map for planning'!Q31 -> 0 | G33: ='Present Day Fluvial'!P31 -> 1 | H33: ='Present Day Fluvial'!S31 -> 0 | I33: ='Present Day Fluvial'!R31 -> 0 | J33: ='Present Day Fluvial'!Q31 -> 0 | K33: ='Fluvial + CC'!J31 -> 0 | L33: ='Fluvial + CC'!K31 -> 0 | M33: ='Fluvial + CC'!L31 -> 0 | N33: ='Surface Water'!S31 -> 0 | O33: ='Surface Water'!T31 -> 0.001374798457 | P33: ='Surface Water'!U31 -> 0.04978489421 | Q33: ='Surface Water +CC'!I31 -> 0.01932076034 | R33: ='Surface Water +CC'!J31 -> 0.04975137676 | S33: ='Reservoir extents'!P31 -> 0 | T33: ='Reservoir extents'!Q31 -> 0 | U33: 0 | V33: 0 | X33: 0
A34: SEC1-2 | B34: British Gas, Land off Dudley Rd, Oldbury (2949) | C34: 1.056 | D34: ='Flood map for planning'!O32 -> 1 | E34: ='Flood map for planning'!P32 -> 0 | F34: ='Flood map for planning'!Q32 -> 0 | G34: ='Present Day Fluvial'!P32 -> 1 | H34: ='Present Day Fluvial'!S32 -> 0 | I34: ='Present Day Fluvial'!R32 -> 0 | J34: ='Present Day Fluvial'!Q32 -> 0 | K34: ='Fluvial + CC'!J32 -> 0 | L34: ='Fluvial + CC'!K32 -> 0 | M34: ='Fluvial + CC'!L32 -> 0 | N34: ='Surface Water'!S32 -> 0 | O34: ='Surface Water'!T32 -> 0.0166723528 | P34: ='Surface Water'!U32 -> 0.1442655798 | Q34: ='Surface Water +CC'!I32 -> 0.1341366562 | R34: ='Surface Water +CC'!J32 -> 0.1632068033 | S34: ='Reservoir extents'!P32 -> 0 | T34: ='Reservoir extents'!Q32 -> 0 | U34: 0 | V34: 0 | X34: 0
A35: SEC3-177 | B35: Broadcott Industrial Estate, Cradley Heath | C35: 1.361 | D35: ='Flood map for planning'!O33 -> 1 | E35: ='Flood map for planning'!P33 -> 0 | F35: ='Flood map for planning'!Q33 -> 0 | G35: ='Present Day Fluvial'!P33 -> 1 | H35: ='Present Day Fluvial'!S33 -> 0 | I35: ='Present Day Fluvial'!R33 -> 0 | J35: ='Present Day Fluvial'!Q33 -> 0 | K35: ='Fluvial + CC'!J33 -> 0 | L35: ='Fluvial + CC'!K33 -> 0 | M35: ='Fluvial + CC'!L33 -> 0 | N35: ='Surface Water'!S33 -> 0 | O35: ='Surface Water'!T33 -> 0 | P35: ='Surface Water'!U33 -> 0.03801189317 | Q35: ='Surface Water +CC'!I33 -> 0.02120039451 | R35: ='Surface Water +CC'!J33 -> 0.05134956869 | S35: ='Reservoir extents'!P33 -> 0 | T35: ='Reservoir extents'!Q33 -> 0 | U35: 0 | V35: 0 | X35: 0
A36: EMP2-12 | B36: Broadwell Road, Oldbury | C36: 23.771 | D36: ='Flood map for planning'!O34 -> 0.5931324429 | E36: ='Flood map for planning'!P34 -> 0.4063995535 | F36: ='Flood map for planning'!Q34 -> 0.0004680036007 | G36: ='Present Day Fluvial'!P34 -> 0.5968306278 | H36: ='Present Day Fluvial'!S34 -> 0.4027682661 | I36: ='Present Day Fluvial'!R34 -> 0.0002706056202 | J36: ='Present Day Fluvial'!Q34 -> 0.0001305004824 | K36: ='Fluvial + CC'!J34 -> 0.006020704552 | L36: ='Fluvial + CC'!K34 -> 0.4068633469 | M36: ='Fluvial + CC'!L34 -> 0.0004011061026 | N36: ='Surface Water'!S34 -> 0.01233442691 | O36: ='Surface Water'!T34 -> 0.0255141919 | P36: ='Surface Water'!U34 -> 0.2312176359 | Q36: ='Surface Water +CC'!I34 -> 0.1045520593 | R36: ='Surface Water +CC'!J34 -> 0.3427238759 | S36: ='Reservoir extents'!P34 -> 0 | T36: ='Reservoir extents'!Q34 -> 0 | U36: 0 | V36: 0 | X36: 0
A37: SEC3-100 | B37: Bromford Road Industrial Estate | C37: 7.881 | D37: ='Flood map for planning'!O35 -> 0.7215984168 | E37: ='Flood map for planning'!P35 -> 0.2193682876 | F37: ='Flood map for planning'!Q35 -> 0.05903329564 | G37: ='Present Day Fluvial'!P35 -> 0.8620898393 | H37: ='Present Day Fluvial'!S35 -> 0.08022493949 | I37: ='Present Day Fluvial'!R35 -> 0.05708828215 | J37: ='Present Day Fluvial'!Q35 -> 0.0005969390864 | K37: ='Fluvial + CC'!J35 -> 0.06949709761 | L37: ='Fluvial + CC'!K35 -> 0.2784015833 | M37: ='Fluvial + CC'!L35 -> 0.05768522123 | N37: ='Surface Water'!S35 -> 4.453183059e-05 | O37: ='Surface Water'!T35 -> 0.007464208162 | P37: ='Surface Water'!U35 -> 0.1595789498 | Q37: ='Surface Water +CC'!I35 -> 0.1339240374 | R37: ='Surface Water +CC'!J35 -> 0.1899165096 | S37: ='Reservoir extents'!P35 -> 0 | T37: ='Reservoir extents'!Q35 -> 0 | U37: 0 | V37: 0 | X37: 0
A38: SEC3-129 | B38: Brook St Bus Centre, Brook St Comm Centre, Tipton | C38: 1.538 | D38: ='Flood map for planning'!O36 -> 0.001278282944 | E38: ='Flood map for planning'!P36 -> 0.9987217171 | F38: ='Flood map for planning'!Q36 -> 0 | G38: ='Present Day Fluvial'!P36 -> 0.001293568022 | H38: ='Present Day Fluvial'!S36 -> 0.998706432 | I38: ='Present Day Fluvial'!R36 -> 0 | J38: ='Present Day Fluvial'!Q36 -> 0 | K38: ='Fluvial + CC'!J36 -> 0.6643687233 | L38: ='Fluvial + CC'!K36 -> 0.9987217171 | M38: ='Fluvial + CC'!L36 -> 0 | N38: ='Surface Water'!S36 -> 0.08543695481 | O38: ='Surface Water'!T36 -> 0.04892520701 | P38: ='Surface Water'!U36 -> 0.7259494931 | Q38: ='Surface Water +CC'!I36 -> 0.6204511199 | R38: ='Surface Water +CC'!J36 -> 0.9323671294 | S38: ='Reservoir extents'!P36 -> 0 | T38: ='Reservoir extents'!Q36 -> 0 | U38: 0 | V38: 0 | X38: 0
A39: SEC3-133 | B39: Brymill Industrial Estate, Brown Lion St, Tipton | C39: 1.783 | D39: ='Flood map for planning'!O37 -> 1 | E39: ='Flood map for planning'!P37 -> 0 | F39: ='Flood map for planning'!Q37 -> 0 | G39: ='Present Day Fluvial'!P37 -> 1 | H39: ='Present Day Fluvial'!S37 -> 0 | I39: ='Present Day Fluvial'!R37 -> 0 | J39: ='Present Day Fluvial'!Q37 -> 0 | K39: ='Fluvial + CC'!J37 -> 0 | L39: ='Fluvial + CC'!K37 -> 0 | M39: ='Fluvial + CC'!L37 -> 0 | N39: ='Surface Water'!S37 -> 0 | O39: ='Surface Water'!T37 -> 0 | P39: ='Surface Water'!U37 -> 0.07800767544 | Q39: ='Surface Water +CC'!I37 -> 0.0475928624 | R39: ='Surface Water +CC'!J37 -> 0.08793290088 | S39: ='Reservoir extents'!P37 -> 0 | T39: ='Reservoir extents'!Q37 -> 0 | U39: 0 | V39: 0 | X39: 0
A40: SEC3-123 | B40: Burnt Tree Industrial Estate | C40: 1.57 | D40: ='Flood map for planning'!O38 -> 1 | E40: ='Flood map for planning'!P38 -> 0 | F40: ='Flood map for planning'!Q38 -> 0 | G40: ='Present Day Fluvial'!P38 -> 1 | H40: ='Present Day Fluvial'!S38 -> 0 | I40: ='Present Day Fluvial'!R38 -> 0 | J40: ='Present Day Fluvial'!Q38 -> 0 | K40: ='Fluvial + CC'!J38 -> 0 | L40: ='Fluvial + CC'!K38 -> 0 | M40: ='Fluvial + CC'!L38 -> 0 | N40: ='Surface Water'!S38 -> 0 | O40: ='Surface Water'!T38 -> 0.00739428908 | P40: ='Surface Water'!U38 -> 0.0241969352 | Q40: ='Surface Water +CC'!I38 -> 0.01669966775 | R40: ='Surface Water +CC'!J38 -> 0.03363074949 | S40: ='Reservoir extents'!P38 -> 0 | T40: ='Reservoir extents'!Q38 -> 0 | U40: 0 | V40: 0 | X40: 0
A41: SEC3-25 | B41: Cakemore Road, Rowley Regis | C41: 7.509 | D41: ='Flood map for planning'!O39 -> 1 | E41: ='Flood map for planning'!P39 -> 0 | F41: ='Flood map for planning'!Q39 -> 0 | G41: ='Present Day Fluvial'!P39 -> 1 | H41: ='Present Day Fluvial'!S39 -> 0 | I41: ='Present Day Fluvial'!R39 -> 0 | J41: ='Present Day Fluvial'!Q39 -> 0 | K41: ='Fluvial + CC'!J39 -> 0 | L41: ='Fluvial + CC'!K39 -> 0 | M41: ='Fluvial + CC'!L39 -> 0 | N41: ='Surface Water'!S39 -> 0.09848958521 | O41: ='Surface Water'!T39 -> 0.1123678788 | P41: ='Surface Water'!U39 -> 0.2527375986 | Q41: ='Surface Water +CC'!I39 -> 0.4078273935 | R41: ='Surface Water +CC'!J39 -> 0.4746475743 | S41: ='Reservoir extents'!P39 -> 0 | T41: ='Reservoir extents'!Q39 -> 0 | U41: 0 | V41: 0.6064244345 | X41: 0
A42: SEC3-50 | B42: Cakemore Road, Rowley Regis | C42: 0.603 | D42: ='Flood map for planning'!O40 -> 1 | E42: ='Flood map for planning'!P40 -> 0 | F42: ='Flood map for planning'!Q40 -> 0 | G42: ='Present Day Fluvial'!P40 -> 1 | H42: ='Present Day Fluvial'!S40 -> 0 | I42: ='Present Day Fluvial'!R40 -> 0 | J42: ='Present Day Fluvial'!Q40 -> 0 | K42: ='Fluvial + CC'!J40 -> 0 | L42: ='Fluvial + CC'!K40 -> 0 | M42: ='Fluvial + CC'!L40 -> 0 | N42: ='Surface Water'!S40 -> 0.002717750224 | O42: ='Surface Water'!T40 -> 0.004805948072 | P42: ='Surface Water'!U40 -> 0.005710036359 | Q42: ='Surface Water +CC'!I40 -> 0.01226660711 | R42: ='Surface Water +CC'!J40 -> 0.01383416766 | S42: ='Reservoir extents'!P40 -> 0 | T42: ='Reservoir extents'!Q40 -> 0 | U42: 0 | V42: 0 | X42: 0
A43: EMP2-4 | B43: Car Craft, Darlaston Rd/ Old Park Rd, Kings Hill | C43: 5.186 | D43: ='Flood map for planning'!O41 -> 1 | E43: ='Flood map for planning'!P41 -> 0 | F43: ='Flood map for planning'!Q41 -> 0 | G43: ='Present Day Fluvial'!P41 -> 1 | H43: ='Present Day Fluvial'!S41 -> 0 | I43: ='Present Day Fluvial'!R41 -> 0 | J43: ='Present Day Fluvial'!Q41 -> 0 | K43: ='Fluvial + CC'!J41 -> 0 | L43: ='Fluvial + CC'!K41 -> 0 | M43: ='Fluvial + CC'!L41 -> 0 | N43: ='Surface Water'!S41 -> 0.02564752148 | O43: ='Surface Water'!T41 -> 0.01035109533 | P43: ='Surface Water'!U41 -> 0.01500417731 | Q43: ='Surface Water +CC'!I41 -> 0.0446675558 | R43: ='Surface Water +CC'!J41 -> 0.05092449919 | S43: ='Reservoir extents'!P41 -> 0 | T43: ='Reservoir extents'!Q41 -> 0 | U43: 0 | V43: 0 | X43: 0
A44: SEC3-115 | B44: Carlyle Bus and Coach, Carlyle Business Park | C44: 0.387 | D44: ='Flood map for planning'!O42 -> 1 | E44: ='Flood map for planning'!P42 -> 0 | F44: ='Flood map for planning'!Q42 -> 0 | G44: ='Present Day Fluvial'!P42 -> 1 | H44: ='Present Day Fluvial'!S42 -> 0 | I44: ='Present Day Fluvial'!R42 -> 0 | J44: ='Present Day Fluvial'!Q42 -> 0 | K44: ='Fluvial + CC'!J42 -> 0 | L44: ='Fluvial + CC'!K42 -> 0 | M44: ='Fluvial + CC'!L42 -> 0 | N44: ='Surface Water'!S42 -> 4.787667594e-06 | O44: ='Surface Water'!T42 -> 0.01309803335 | P44: ='Surface Water'!U42 -> 0.01784764319 | Q44: ='Surface Water +CC'!I42 -> 0.02118487939 | R44: ='Surface Water +CC'!J42 -> 0.03095046551 | S44: ='Reservoir extents'!P42 -> 0 | T44: ='Reservoir extents'!Q42 -> 0 | U44: 0 | V44: 0 | X44: 0
A45: SEC4-7 | B45: Castle St, High St Tipton (2942) | C45: 0.705 | D45: ='Flood map for planning'!O43 -> 1 | E45: ='Flood map for planning'!P43 -> 0 | F45: ='Flood map for planning'!Q43 -> 0 | G45: ='Present Day Fluvial'!P43 -> 1 | H45: ='Present Day Fluvial'!S43 -> 0 | I45: ='Present Day Fluvial'!R43 -> 0 | J45: ='Present Day Fluvial'!Q43 -> 0 | K45: ='Fluvial + CC'!J43 -> 0 | L45: ='Fluvial + CC'!K43 -> 0 | M45: ='Fluvial + CC'!L43 -> 0 | N45: ='Surface Water'!S43 -> 0.01312300361 | O45: ='Surface Water'!T43 -> 0.03839178736 | P45: ='Surface Water'!U43 -> 0.1147467697 | Q45: ='Surface Water +CC'!I43 -> 0.1166905539 | R45: ='Surface Water +CC'!J43 -> 0.1662615629 | S45: ='Reservoir extents'!P43 -> 0 | T45: ='Reservoir extents'!Q43 -> 0 | U45: 0 | V45: 0 | X45: 0
A46: SEC3-148 | B46: Castle St, Tipton (2938) | C46: 1.494 | D46: ='Flood map for planning'!O44 -> 1 | E46: ='Flood map for planning'!P44 -> 0 | F46: ='Flood map for planning'!Q44 -> 0 | G46: ='Present Day Fluvial'!P44 -> 1 | H46: ='Present Day Fluvial'!S44 -> 0 | I46: ='Present Day Fluvial'!R44 -> 0 | J46: ='Present Day Fluvial'!Q44 -> 0 | K46: ='Fluvial + CC'!J44 -> 0 | L46: ='Fluvial + CC'!K44 -> 0 | M46: ='Fluvial + CC'!L44 -> 0 | N46: ='Surface Water'!S44 -> 0.01531318877 | O46: ='Surface Water'!T44 -> 0.05151234329 | P46: ='Surface Water'!U44 -> 0.08603021294 | Q46: ='Surface Water +CC'!I44 -> 0.1148994127 | R46: ='Surface Water +CC'!J44 -> 0.1580203365 | S46: ='Reservoir extents'!P44 -> 0 | T46: ='Reservoir extents'!Q44 -> 0 | U46: 0 | V46: 0 | X46: 0
A47: SEC3-51 | B47: Causeway Green Rd / Wolverhampton Road | C47: 0.848 | D47: ='Flood map for planning'!O45 -> 1 | E47: ='Flood map for planning'!P45 -> 0 | F47: ='Flood map for planning'!Q45 -> 0 | G47: ='Present Day Fluvial'!P45 -> 1 | H47: ='Present Day Fluvial'!S45 -> 0 | I47: ='Present Day Fluvial'!R45 -> 0 | J47: ='Present Day Fluvial'!Q45 -> 0 | K47: ='Fluvial + CC'!J45 -> 0 | L47: ='Fluvial + CC'!K45 -> 0 | M47: ='Fluvial + CC'!L45 -> 0 | N47: ='Surface Water'!S45 -> 0.1013957926 | O47: ='Surface Water'!T45 -> 0.04543858352 | P47: ='Surface Water'!U45 -> 0.275950547 | Q47: ='Surface Water +CC'!I45 -> 0.3228954926 | R47: ='Surface Water +CC'!J45 -> 0.4634989548 | S47: ='Reservoir extents'!P45 -> 0 | T47: ='Reservoir extents'!Q45 -> 0 | U47: 0 | V47: 0 | X47: 0
A48: SEC3-170 | B48: Charles Street, West Bromwich | C48: 9.056 | D48: ='Flood map for planning'!O46 -> 1 | E48: ='Flood map for planning'!P46 -> 0 | F48: ='Flood map for planning'!Q46 -> 0 | G48: ='Present Day Fluvial'!P46 -> 1 | H48: ='Present Day Fluvial'!S46 -> 0 | I48: ='Present Day Fluvial'!R46 -> 0 | J48: ='Present Day Fluvial'!Q46 -> 0 | K48: ='Fluvial + CC'!J46 -> 0 | L48: ='Fluvial + CC'!K46 -> 0 | M48: ='Fluvial + CC'!L46 -> 0 | N48: ='Surface Water'!S46 -> 0 | O48: ='Surface Water'!T46 -> 0.003539140369 | P48: ='Surface Water'!U46 -> 0.06752224128 | Q48: ='Surface Water +CC'!I46 -> 0.0318997212 | R48: ='Surface Water +CC'!J46 -> 0.07036924626 | S48: ='Reservoir extents'!P46 -> 0 | T48: ='Reservoir extents'!Q46 -> 0 | U48: 0 | V48: 0 | X48: 0
A49: SEC3-109 | B49: Chaters Close, Tipton | C49: 0.578 | D49: ='Flood map for planning'!O47 -> 1 | E49: ='Flood map for planning'!P47 -> 0 | F49: ='Flood map for planning'!Q47 -> 0 | G49: ='Present Day Fluvial'!P47 -> 1 | H49: ='Present Day Fluvial'!S47 -> 0 | I49: ='Present Day Fluvial'!R47 -> 0 | J49: ='Present Day Fluvial'!Q47 -> 0 | K49: ='Fluvial + CC'!J47 -> 0 | L49: ='Fluvial + CC'!K47 -> 0 | M49: ='Fluvial + CC'!L47 -> 0 | N49: ='Surface Water'!S47 -> 0.0004226105125 | O49: ='Surface Water'!T47 -> 0.002578099376 | P49: ='Surface Water'!U47 -> 0.01211142548 | Q49: ='Surface Water +CC'!I47 -> 0.008650308742 | R49: ='Surface Water +CC'!J47 -> 0.0151121341 | S49: ='Reservoir extents'!P47 -> 0 | T49: ='Reservoir extents'!Q47 -> 0 | U49: 0 | V49: 0 | X49: 0
A50: SEC3-38 | B50: Church Lane / Gladstone Street, WB (2389 / WBPr38) | C50: 2.205 | D50: ='Flood map for planning'!O48 -> 0.8082134068 | E50: ='Flood map for planning'!P48 -> 0.1917865932 | F50: ='Flood map for planning'!Q48 -> 0 | G50: ='Present Day Fluvial'!P48 -> 0.8086079949 | H50: ='Present Day Fluvial'!S48 -> 0.1913920051 | I50: ='Present Day Fluvial'!R48 -> 0 | J50: ='Present Day Fluvial'!Q48 -> 0 | K50: ='Fluvial + CC'!J48 -> 0.006193204003 | L50: ='Fluvial + CC'!K48 -> 0.1917873895 | M50: ='Fluvial + CC'!L48 -> 0 | N50: ='Surface Water'!S48 -> 0.01035057617 | O50: ='Surface Water'!T48 -> 0.06478445632 | P50: ='Surface Water'!U48 -> 0.1996031196 | Q50: ='Surface Water +CC'!I48 -> 0.191599885 | R50: ='Surface Water +CC'!J48 -> 0.2844014613 | S50: ='Reservoir extents'!P48 -> 0 | T50: ='Reservoir extents'!Q48 -> 0 | U50: 0 | V50: 0 | X50: 0
A51: EMP2-18 | B51: Churchbridge, Oldbury | C51: 14.035 | D51: ='Flood map for planning'!O49 -> 0.7879318532 | E51: ='Flood map for planning'!P49 -> 0.1003732958 | F51: ='Flood map for planning'!Q49 -> 0.1116948509 | G51: ='Present Day Fluvial'!P49 -> 0.7946432374 | H51: ='Present Day Fluvial'!S49 -> 0.09668917278 | I51: ='Present Day Fluvial'!R49 -> 0.01633015481 | J51: ='Present Day Fluvial'!Q49 -> 0.09233743499 | K51: ='Fluvial + CC'!J49 -> 0.1179923375 | L51: ='Fluvial + CC'!K49 -> 0.2120696727 | M51: ='Fluvial + CC'!L49 -> 0.111649034 | N51: ='Surface Water'!S49 -> 0.003169947677 | O51: ='Surface Water'!T49 -> 0.04328134143 | P51: ='Surface Water'!U49 -> 0.3284385148 | Q51: ='Surface Water +CC'!I49 -> 0.2494475391 | R51: ='Surface Water +CC'!J49 -> 0.3921231666 | S51: ='Reservoir extents'!P49 -> 0 | T51: ='Reservoir extents'!Q49 -> 0 | U51: 0 | V51: 0.09320564308 | X51: 0
A52: SEC3-89 | B52: Churchbridge, Oldbury (opposite Thurston Avenue) | C52: 0.757 | D52: ='Flood map for planning'!O50 -> 0.2618695258 | E52: ='Flood map for planning'!P50 -> 0.1072807598 | F52: ='Flood map for planning'!Q50 -> 0.6308497144 | G52: ='Present Day Fluvial'!P50 -> 0.2641133877 | H52: ='Present Day Fluvial'!S50 -> 0.1081117814 | I52: ='Present Day Fluvial'!R50 -> 0.05588497885 | J52: ='Present Day Fluvial'!Q50 -> 0.5718898521 | K52: ='Fluvial + CC'!J50 -> 0.6532960465 | L52: ='Fluvial + CC'!K50 -> 0.7381438975 | M52: ='Fluvial + CC'!L50 -> 0.6305937185 | N52: ='Surface Water'!S50 -> 0 | O52: ='Surface Water'!T50 -> 0.06672190393 | P52: ='Surface Water'!U50 -> 0.4537007905 | Q52: ='Surface Water +CC'!I50 -> 0.2845779702 | R52: ='Surface Water +CC'!J50 -> 0.8458632644 | S52: ='Reservoir extents'!P50 -> 0 | T52: ='Reservoir extents'!Q50 -> 0 | U52: 0 | V52: 0 | X52: 0
A53: SEC4-10 | B53: Clay Lane, Oldbury | C53: 0.227 | D53: ='Flood map for planning'!O51 -> 1 | E53: ='Flood map for planning'!P51 -> 0 | F53: ='Flood map for planning'!Q51 -> 0 | G53: ='Present Day Fluvial'!P51 -> 1 | H53: ='Present Day Fluvial'!S51 -> 0 | I53: ='Present Day Fluvial'!R51 -> 0 | J53: ='Present Day Fluvial'!Q51 -> 0 | K53: ='Fluvial + CC'!J51 -> 0 | L53: ='Fluvial + CC'!K51 -> 0 | M53: ='Fluvial + CC'!L51 -> 0 | N53: ='Surface Water'!S51 -> 0 | O53: ='Surface Water'!T51 -> 0.001519807247 | P53: ='Surface Water'!U51 -> 0.007627857413 | Q53: ='Surface Water +CC'!I51 -> 0.003811741992 | R53: ='Surface Water +CC'!J51 -> 0.0109150459 | S53: ='Reservoir extents'!P51 -> 0 | T53: ='Reservoir extents'!Q51 -> 0 | U53: 0 | V53: 0 | X53: 0
A54: SEC3-23 | B54: Cleton Street Business Park, Oldbury | C54: 2.013 | D54: ='Flood map for planning'!O52 -> 1 | E54: ='Flood map for planning'!P52 -> 0 | F54: ='Flood map for planning'!Q52 -> 0 | G54: ='Present Day Fluvial'!P52 -> 1 | H54: ='Present Day Fluvial'!S52 -> 0 | I54: ='Present Day Fluvial'!R52 -> 0 | J54: ='Present Day Fluvial'!Q52 -> 0 | K54: ='Fluvial + CC'!J52 -> 0 | L54: ='Fluvial + CC'!K52 -> 0 | M54: ='Fluvial + CC'!L52 -> 0 | N54: ='Surface Water'!S52 -> 0 | O54: ='Surface Water'!T52 -> 0.008251342636 | P54: ='Surface Water'!U52 -> 0.06723150842 | Q54: ='Surface Water +CC'!I52 -> 0.02438069455 | R54: ='Surface Water +CC'!J52 -> 0.08144325789 | S54: ='Reservoir extents'!P52 -> 0 | T54: ='Reservoir extents'!Q52 -> 0 | U54: 0 | V54: 0 | X54: 0
A55: SEC1-5 | B55: Coneygre Business Park (open land) | C55: 7.234 | D55: ='Flood map for planning'!O53 -> 1 | E55: ='Flood map for planning'!P53 -> 0 | F55: ='Flood map for planning'!Q53 -> 0 | G55: ='Present Day Fluvial'!P53 -> 1 | H55: ='Present Day Fluvial'!S53 -> 0 | I55: ='Present Day Fluvial'!R53 -> 0 | J55: ='Present Day Fluvial'!Q53 -> 0 | K55: ='Fluvial + CC'!J53 -> 0 | L55: ='Fluvial + CC'!K53 -> 0 | M55: ='Fluvial + CC'!L53 -> 0 | N55: ='Surface Water'!S53 -> 0.01284051932 | O55: ='Surface Water'!T53 -> 0.011138335 | P55: ='Surface Water'!U53 -> 0.0471713098 | Q55: ='Surface Water +CC'!I53 -> 0.03890948303 | R55: ='Surface Water +CC'!J53 -> 0.06465606482 | S55: ='Reservoir extents'!P53 -> 0 | T55: ='Reservoir extents'!Q53 -> 0 | U55: 0 | V55: 0 | X55: 0
A56: SEC3-20 | B56: Coneygre Business Park, Tipton | C56: 17.755 | D56: ='Flood map for planning'!O54 -> 1 | E56: ='Flood map for planning'!P54 -> 0 | F56: ='Flood map for planning'!Q54 -> 0 | G56: ='Present Day Fluvial'!P54 -> 1 | H56: ='Present Day Fluvial'!S54 -> 0 | I56: ='Present Day Fluvial'!R54 -> 0 | J56: ='Present Day Fluvial'!Q54 -> 0 | K56: ='Fluvial + CC'!J54 -> 0 | L56: ='Fluvial + CC'!K54 -> 0 | M56: ='Fluvial + CC'!L54 -> 0 | N56: ='Surface Water'!S54 -> 0.01732819512 | O56: ='Surface Water'!T54 -> 0.03874651174 | P56: ='Surface Water'!U54 -> 0.2361453784 | Q56: ='Surface Water +CC'!I54 -> 0.1578279121 | R56: ='Surface Water +CC'!J54 -> 0.2885047163 | S56: ='Reservoir extents'!P54 -> 0 | T56: ='Reservoir extents'!Q54 -> 0 | U56: 0 | V56: 0 | X56: 0
A57: SEC3-175 | B57: Coneygre Rd, Burnt Tree, Tipton | C57: 1.02 | D57: ='Flood map for planning'!O55 -> 1 | E57: ='Flood map for planning'!P55 -> 0 | F57: ='Flood map for planning'!Q55 -> 0 | G57: ='Present Day Fluvial'!P55 -> 1 | H57: ='Present Day Fluvial'!S55 -> 0 | I57: ='Present Day Fluvial'!R55 -> 0 | J57: ='Present Day Fluvial'!Q55 -> 0 | K57: ='Fluvial + CC'!J55 -> 0 | L57: ='Fluvial + CC'!K55 -> 0 | M57: ='Fluvial + CC'!L55 -> 0 | N57: ='Surface Water'!S55 -> 0 | O57: ='Surface Water'!T55 -> 0 | P57: ='Surface Water'!U55 -> 0.01711807733 | Q57: ='Surface Water +CC'!I55 -> 0 | R57: ='Surface Water +CC'!J55 -> 0.01711807723 | S57: ='Reservoir extents'!P55 -> 0 | T57: ='Reservoir extents'!Q55 -> 0 | U57: 0 | V57: 0 | X57: 0
A58: SEC3-174 | B58: Corner of Bromford Lane / Brandon Way | C58: 3.953 | D58: ='Flood map for planning'!O56 -> 1 | E58: ='Flood map for planning'!P56 -> 0 | F58: ='Flood map for planning'!Q56 -> 0 | G58: ='Present Day Fluvial'!P56 -> 1 | H58: ='Present Day Fluvial'!S56 -> 0 | I58: ='Present Day Fluvial'!R56 -> 0 | J58: ='Present Day Fluvial'!Q56 -> 0 | K58: ='Fluvial + CC'!J56 -> 0 | L58: ='Fluvial + CC'!K56 -> 0 | M58: ='Fluvial + CC'!L56 -> 0 | N58: ='Surface Water'!S56 -> 0.005469107011 | O58: ='Surface Water'!T56 -> 0.04803321102 | P58: ='Surface Water'!U56 -> 0.1236710524 | Q58: ='Surface Water +CC'!I56 -> 0.1226694811 | R58: ='Surface Water +CC'!J56 -> 0.1760234188 | S58: ='Reservoir extents'!P56 -> 0 | T58: ='Reservoir extents'!Q56 -> 0 | U58: 0 | V58: 0 | X58: 0
A59: SEC3-85 | B59: Corngreaves Rd (City Estate Hillcrest Ind Est) Pal | C59: 2.808 | D59: ='Flood map for planning'!O57 -> 1 | E59: ='Flood map for planning'!P57 -> 0 | F59: ='Flood map for planning'!Q57 -> 0 | G59: ='Present Day Fluvial'!P57 -> 1 | H59: ='Present Day Fluvial'!S57 -> 0 | I59: ='Present Day Fluvial'!R57 -> 0 | J59: ='Present Day Fluvial'!Q57 -> 0 | K59: ='Fluvial + CC'!J57 -> 0 | L59: ='Fluvial + CC'!K57 -> 0 | M59: ='Fluvial + CC'!L57 -> 0 | N59: ='Surface Water'!S57 -> 0.002833842406 | O59: ='Surface Water'!T57 -> 0.004395492835 | P59: ='Surface Water'!U57 -> 0.03192053922 | Q59: ='Surface Water +CC'!I57 -> 0.02482451891 | R59: ='Surface Water +CC'!J57 -> 0.04746548163 | S59: ='Reservoir extents'!P57 -> 0 | T59: ='Reservoir extents'!Q57 -> 0 | U59: 0 | V59: 0 | X59: 0
A60: SEC3-24 | B60: Corngreaves Road, Cradley Heath | C60: 19.74 | D60: ='Flood map for planning'!O58 -> 0.9931648465 | E60: ='Flood map for planning'!P58 -> 0.006480230097 | F60: ='Flood map for planning'!Q58 -> 0.0003549234366 | G60: ='Present Day Fluvial'!P58 -> 0.9931640208 | H60: ='Present Day Fluvial'!S58 -> 0.006487486435 | I60: ='Present Day Fluvial'!R58 -> 0.0001142532135 | J60: ='Present Day Fluvial'!Q58 -> 0.0002342395837 | K60: ='Fluvial + CC'!J58 -> 0.006835153567 | L60: ='Fluvial + CC'!K58 -> 0.006835153567 | M60: ='Fluvial + CC'!L58 -> 0.0003484927972 | N60: ='Surface Water'!S58 -> 0.009267742538 | O60: ='Surface Water'!T58 -> 0.01978469598 | P60: ='Surface Water'!U58 -> 0.1385479335 | Q60: ='Surface Water +CC'!I58 -> 0.1129523132 | R60: ='Surface Water +CC'!J58 -> 0.1996137187 | S60: ='Reservoir extents'!P58 -> 0 | T60: ='Reservoir extents'!Q58 -> 0.04856730039 | U60: 0 | V60: 0 | X60: 0
A61: SEC3-80 | B61: Corngreaves Road, Cradley Heath | C61: 3.651 | D61: ='Flood map for planning'!O59 -> 1 | E61: ='Flood map for planning'!P59 -> 0 | F61: ='Flood map for planning'!Q59 -> 0 | G61: ='Present Day Fluvial'!P59 -> 1 | H61: ='Present Day Fluvial'!S59 -> 0 | I61: ='Present Day Fluvial'!R59 -> 0 | J61: ='Present Day Fluvial'!Q59 -> 0 | K61: ='Fluvial + CC'!J59 -> 0 | L61: ='Fluvial + CC'!K59 -> 0 | M61: ='Fluvial + CC'!L59 -> 0 | N61: ='Surface Water'!S59 -> 0 | O61: ='Surface Water'!T59 -> 0.01414408091 | P61: ='Surface Water'!U59 -> 0.06761996596 | Q61: ='Surface Water +CC'!I59 -> 0.03422976519 | R61: ='Surface Water +CC'!J59 -> 0.09117948497 | S61: ='Reservoir extents'!P59 -> 0 | T61: ='Reservoir extents'!Q59 -> 0 | U61: 0 | V61: 0 | X61: 0
A62: SEC3-96 | B62: Cornwall Road | C62: 4.025 | D62: ='Flood map for planning'!O60 -> 1 | E62: ='Flood map for planning'!P60 -> 0 | F62: ='Flood map for planning'!Q60 -> 0 | G62: ='Present Day Fluvial'!P60 -> 1 | H62: ='Present Day Fluvial'!S60 -> 0 | I62: ='Present Day Fluvial'!R60 -> 0 | J62: ='Present Day Fluvial'!Q60 -> 0 | K62: ='Fluvial + CC'!J60 -> 0 | L62: ='Fluvial + CC'!K60 -> 0 | M62: ='Fluvial + CC'!L60 -> 0 | N62: ='Surface Water'!S60 -> 0.01068041678 | O62: ='Surface Water'!T60 -> 0.07588582285 | P62: ='Surface Water'!U60 -> 0.3099430196 | Q62: ='Surface Water +CC'!I60 -> 0.245908602 | R62: ='Surface Water +CC'!J60 -> 0.3977347948 | S62: ='Reservoir extents'!P60 -> 0.02114930119 | T62: ='Reservoir extents'!Q60 -> 0 | U62: 0 | V62: 0 | X62: 0
A63: SEC3-11 | B63: Cornwall Road/Foundary Lane, Smethwick | C63: 0.355 | D63: ='Flood map for planning'!O61 -> 0.9626715172 | E63: ='Flood map for planning'!P61 -> 0.005863216783 | F63: ='Flood map for planning'!Q61 -> 0.03146526606 | G63: ='Present Day Fluvial'!P61 -> 1 | H63: ='Present Day Fluvial'!S61 -> 0 | I63: ='Present Day Fluvial'!R61 -> 0 | J63: ='Present Day Fluvial'!Q61 -> 0 | K63: ='Fluvial + CC'!J61 -> 0 | L63: ='Fluvial + CC'!K61 -> 0.03732848285 | M63: ='Fluvial + CC'!L61 -> 0 | N63: ='Surface Water'!S61 -> 0 | O63: ='Surface Water'!T61 -> 0 | P63: ='Surface Water'!U61 -> 0.001335036688 | Q63: ='Surface Water +CC'!I61 -> 0.0001727758132 | R63: ='Surface Water +CC'!J61 -> 0.001546596126 | S63: ='Reservoir extents'!P61 -> 0 | T63: ='Reservoir extents'!Q61 -> 0.005633897565 | U63: 0.1767670533 | V63: 0 | X63: 0
A64: SEC3-97 | B64: Cornwall Road/Foundary Lane, Smethwick | C64: 2.884 | D64: ='Flood map for planning'!O62 -> 1 | E64: ='Flood map for planning'!P62 -> 0 | F64: ='Flood map for planning'!Q62 -> 0 | G64: ='Present Day Fluvial'!P62 -> 1 | H64: ='Present Day Fluvial'!S62 -> 0 | I64: ='Present Day Fluvial'!R62 -> 0 | J64: ='Present Day Fluvial'!Q62 -> 0 | K64: ='Fluvial + CC'!J62 -> 0 | L64: ='Fluvial + CC'!K62 -> 0 | M64: ='Fluvial + CC'!L62 -> 0 | N64: ='Surface Water'!S62 -> 0 | O64: ='Surface Water'!T62 -> 0 | P64: ='Surface Water'!U62 -> 0.01677388091 | Q64: ='Surface Water +CC'!I62 -> 0.002286554705 | R64: ='Surface Water +CC'!J62 -> 0.0179105122 | S64: ='Reservoir extents'!P62 -> 0 | T64: ='Reservoir extents'!Q62 -> 0 | U64: 0 | V64: 0.7842009073 | X64: 0
A65: SEC3-28 | B65: Cornwall Road/Foundary Lane, Smethwick (north of Anne Road) | C65: 2.332 | D65: ='Flood map for planning'!O63 -> 0.9991863166 | E65: ='Flood map for planning'!P63 -> 0.0008136834394 | F65: ='Flood map for planning'!Q63 -> 0 | G65: ='Present Day Fluvial'!P63 -> 1 | H65: ='Present Day Fluvial'!S63 -> 0 | I65: ='Present Day Fluvial'!R63 -> 0 | J65: ='Present Day Fluvial'!Q63 -> 0 | K65: ='Fluvial + CC'!J63 -> 0 | L65: ='Fluvial + CC'!K63 -> 0.0008136834394 | M65: ='Fluvial + CC'!L63 -> 0 | N65: ='Surface Water'!S63 -> 0.005971626649 | O65: ='Surface Water'!T63 -> 0.004030547554 | P65: ='Surface Water'!U63 -> 0.007732232422 | Q65: ='Surface Water +CC'!I63 -> 0.01308390367 | R65: ='Surface Water +CC'!J63 -> 0.01825004984 | S65: ='Reservoir extents'!P63 -> 0.000203417733 | T65: ='Reservoir extents'!Q63 -> 0.03298651964 | U65: 0.9275960308 | V65: 0.04075513594 | X65: 0
A66: SEC3-79 | B66: Cradley Business Patrk, Cradley Heath | C66: 3.706 | D66: ='Flood map for planning'!O64 -> 1 | E66: ='Flood map for planning'!P64 -> 0 | F66: ='Flood map for planning'!Q64 -> 0 | G66: ='Present Day Fluvial'!P64 -> 1 | H66: ='Present Day Fluvial'!S64 -> 0 | I66: ='Present Day Fluvial'!R64 -> 0 | J66: ='Present Day Fluvial'!Q64 -> 0 | K66: ='Fluvial + CC'!J64 -> 0 | L66: ='Fluvial + CC'!K64 -> 0 | M66: ='Fluvial + CC'!L64 -> 0 | N66: ='Surface Water'!S64 -> 0 | O66: ='Surface Water'!T64 -> 0.02092166625 | P66: ='Surface Water'!U64 -> 0.0453377355 | Q66: ='Surface Water +CC'!I64 -> 0.04877433256 | R66: ='Surface Water +CC'!J64 -> 0.07212646445 | S66: ='Reservoir extents'!P64 -> 0 | T66: ='Reservoir extents'!Q64 -> 0 | U66: 0 | V66: 0 | X66: 0
A67: SEC3-52 | B67: Crosswells Road / Hall Street, Oldbury | C67: 0.8 | D67: ='Flood map for planning'!O65 -> 1 | E67: ='Flood map for planning'!P65 -> 0 | F67: ='Flood map for planning'!Q65 -> 0 | G67: ='Present Day Fluvial'!P65 -> 1 | H67: ='Present Day Fluvial'!S65 -> 0 | I67: ='Present Day Fluvial'!R65 -> 0 | J67: ='Present Day Fluvial'!Q65 -> 0 | K67: ='Fluvial + CC'!J65 -> 0 | L67: ='Fluvial + CC'!K65 -> 0 | M67: ='Fluvial + CC'!L65 -> 0 | N67: ='Surface Water'!S65 -> 0.03003458784 | O67: ='Surface Water'!T65 -> 0.00329653421 | P67: ='Surface Water'!U65 -> 0.08329328934 | Q67: ='Surface Water +CC'!I65 -> 0.08133507404 | R67: ='Surface Water +CC'!J65 -> 0.1297770529 | S67: ='Reservoir extents'!P65 -> 0 | T67: ='Reservoir extents'!Q65 -> 0 | U67: 0 | V67: 0 | X67: 0
A68: SEC3-166 | B68: Crystal Drive, Smethwick | C68: 14.358 | D68: ='Flood map for planning'!O66 -> 1 | E68: ='Flood map for planning'!P66 -> 0 | F68: ='Flood map for planning'!Q66 -> 0 | G68: ='Present Day Fluvial'!P66 -> 1 | H68: ='Present Day Fluvial'!S66 -> 0 | I68: ='Present Day Fluvial'!R66 -> 0 | J68: ='Present Day Fluvial'!Q66 -> 0 | K68: ='Fluvial + CC'!J66 -> 0 | L68: ='Fluvial + CC'!K66 -> 0 | M68: ='Fluvial + CC'!L66 -> 0 | N68: ='Surface Water'!S66 -> 0.004042738555 | O68: ='Surface Water'!T66 -> 0.02336993648 | P68: ='Surface Water'!U66 -> 0.09543059711 | Q68: ='Surface Water +CC'!I66 -> 0.08476720869 | R68: ='Surface Water +CC'!J66 -> 0.1345758051 | S68: ='Reservoir extents'!P66 -> 0 | T68: ='Reservoir extents'!Q66 -> 0 | U68: 0 | V68: 0.244204812 | X68: 0
A69: SEC3-102 | B69: Cygnus Way, West Bromwich | C69: 12.579 | D69: ='Flood map for planning'!O67 -> 1 | E69: ='Flood map for planning'!P67 -> 0 | F69: ='Flood map for planning'!Q67 -> 0 | G69: ='Present Day Fluvial'!P67 -> 1 | H69: ='Present Day Fluvial'!S67 -> 0 | I69: ='Present Day Fluvial'!R67 -> 0 | J69: ='Present Day Fluvial'!Q67 -> 0 | K69: ='Fluvial + CC'!J67 -> 0 | L69: ='Fluvial + CC'!K67 -> 0 | M69: ='Fluvial + CC'!L67 -> 0 | N69: ='Surface Water'!S67 -> 0.005844333067 | O69: ='Surface Water'!T67 -> 0.02836181855 | P69: ='Surface Water'!U67 -> 0.1181244659 | Q69: ='Surface Water +CC'!I67 -> 0.09065742445 | R69: ='Surface Water +CC'!J67 -> 0.151080009 | S69: ='Reservoir extents'!P67 -> 0 | T69: ='Reservoir extents'!Q67 -> 0 | U69: 0 | V69: 0 | X69: 0
A70: EMP2-2 | B70: Danks Way, Hill Top, West Bromwich | C70: 7.626 | D70: ='Flood map for planning'!O68 -> 1 | E70: ='Flood map for planning'!P68 -> 0 | F70: ='Flood map for planning'!Q68 -> 0 | G70: ='Present Day Fluvial'!P68 -> 1 | H70: ='Present Day Fluvial'!S68 -> 0 | I70: ='Present Day Fluvial'!R68 -> 0 | J70: ='Present Day Fluvial'!Q68 -> 0 | K70: ='Fluvial + CC'!J68 -> 0 | L70: ='Fluvial + CC'!K68 -> 0 | M70: ='Fluvial + CC'!L68 -> 0 | N70: ='Surface Water'!S68 -> 0.004641864887 | O70: ='Surface Water'!T68 -> 0.03656219709 | P70: ='Surface Water'!U68 -> 0.1682527149 | Q70: ='Surface Water +CC'!I68 -> 0.1096036472 | R70: ='Surface Water +CC'!J68 -> 0.2050994475 | S70: ='Reservoir extents'!P68 -> 0 | T70: ='Reservoir extents'!Q68 -> 0 | U70: 0 | V70: 0 | X70: 0
A71: SEC3-178 | B71: Dart Products, Garratts Lane | C71: 7.85 | D71: ='Flood map for planning'!O69 -> 1 | E71: ='Flood map for planning'!P69 -> 0 | F71: ='Flood map for planning'!Q69 -> 0 | G71: ='Present Day Fluvial'!P69 -> 1 | H71: ='Present Day Fluvial'!S69 -> 0 | I71: ='Present Day Fluvial'!R69 -> 0 | J71: ='Present Day Fluvial'!Q69 -> 0 | K71: ='Fluvial + CC'!J69 -> 0 | L71: ='Fluvial + CC'!K69 -> 0 | M71: ='Fluvial + CC'!L69 -> 0 | N71: ='Surface Water'!S69 -> 0 | O71: ='Surface Water'!T69 -> 0.004640743095 | P71: ='Surface Water'!U69 -> 0.1146910321 | Q71: ='Surface Water +CC'!I69 -> 0.04407425305 | R71: ='Surface Water +CC'!J69 -> 0.1314264213 | S71: ='Reservoir extents'!P69 -> 0 | T71: ='Reservoir extents'!Q69 -> 0 | U71: 0 | V71: 0 | X71: 0
A72: SEC3-183 | B72: Dartmouth Road, Smethwick | C72: 23.758 | D72: ='Flood map for planning'!O70 -> 1 | E72: ='Flood map for planning'!P70 -> 0 | F72: ='Flood map for planning'!Q70 -> 0 | G72: ='Present Day Fluvial'!P70 -> 1 | H72: ='Present Day Fluvial'!S70 -> 0 | I72: ='Present Day Fluvial'!R70 -> 0 | J72: ='Present Day Fluvial'!Q70 -> 0 | K72: ='Fluvial + CC'!J70 -> 0 | L72: ='Fluvial + CC'!K70 -> 0 | M72: ='Fluvial + CC'!L70 -> 0 | N72: ='Surface Water'!S70 -> 0.00770006677 | O72: ='Surface Water'!T70 -> 0.01874647719 | P72: ='Surface Water'!U70 -> 0.1090386691 | Q72: ='Surface Water +CC'!I70 -> 0.0723001074 | R72: ='Surface Water +CC'!J70 -> 0.1420848812 | S72: ='Reservoir extents'!P70 -> 0 | T72: ='Reservoir extents'!Q70 -> 0 | U72: 0 | V72: 0.9745868768 | X72: 0
A73: EMP2-16 | B73: Dartmouth Road/ Piaro Way, Smethwick | C73: 6.96 | D73: ='Flood map for planning'!O71 -> 1 | E73: ='Flood map for planning'!P71 -> 0 | F73: ='Flood map for planning'!Q71 -> 0 | G73: ='Present Day Fluvial'!P71 -> 1 | H73: ='Present Day Fluvial'!S71 -> 0 | I73: ='Present Day Fluvial'!R71 -> 0 | J73: ='Present Day Fluvial'!Q71 -> 0 | K73: ='Fluvial + CC'!J71 -> 0 | L73: ='Fluvial + CC'!K71 -> 0 | M73: ='Fluvial + CC'!L71 -> 0 | N73: ='Surface Water'!S71 -> 0.009211768393 | O73: ='Surface Water'!T71 -> 0.007782406144 | P73: ='Surface Water'!U71 -> 0.02593389154 | Q73: ='Surface Water +CC'!I71 -> 0.02964103286 | R73: ='Surface Water +CC'!J71 -> 0.04333070345 | S73: ='Reservoir extents'!P71 -> 0 | T73: ='Reservoir extents'!Q71 -> 0 | U73: 0 | V73: 0.1682233404 | X73: 0
A74: SEC3-56 | B74: Delta Point, Greets Green Road | C74: 8.183 | D74: ='Flood map for planning'!O72 -> 1 | E74: ='Flood map for planning'!P72 -> 0 | F74: ='Flood map for planning'!Q72 -> 0 | G74: ='Present Day Fluvial'!P72 -> 1 | H74: ='Present Day Fluvial'!S72 -> 0 | I74: ='Present Day Fluvial'!R72 -> 0 | J74: ='Present Day Fluvial'!Q72 -> 0 | K74: ='Fluvial + CC'!J72 -> 0 | L74: ='Fluvial + CC'!K72 -> 0 | M74: ='Fluvial + CC'!L72 -> 0 | N74: ='Surface Water'!S72 -> 0.01282972311 | O74: ='Surface Water'!T72 -> 0.0117116029 | P74: ='Surface Water'!U72 -> 0.09512592013 | Q74: ='Surface Water +CC'!I72 -> 0.06275956632 | R74: ='Surface Water +CC'!J72 -> 0.1182974823 | S74: ='Reservoir extents'!P72 -> 0 | T74: ='Reservoir extents'!Q72 -> 0 | U74: 0 | V74: 0 | X74: 0
A75: EMP2-3 | B75: Direct 2, Roway Lane, Oldbury | C75: 8.181 | D75: ='Flood map for planning'!O73 -> 0.8260309381 | E75: ='Flood map for planning'!P73 -> 0.1739690619 | F75: ='Flood map for planning'!Q73 -> 0 | G75: ='Present Day Fluvial'!P73 -> 1 | H75: ='Present Day Fluvial'!S73 -> 0 | I75: ='Present Day Fluvial'!R73 -> 0 | J75: ='Present Day Fluvial'!Q73 -> 0 | K75: ='Fluvial + CC'!J73 -> 0 | L75: ='Fluvial + CC'!K73 -> 0.1716448888 | M75: ='Fluvial + CC'!L73 -> 0 | N75: ='Surface Water'!S73 -> 0.003880345512 | O75: ='Surface Water'!T73 -> 0.06136592384 | P75: ='Surface Water'!U73 -> 0.2890758206 | Q75: ='Surface Water +CC'!I73 -> 0.2140179915 | R75: ='Surface Water +CC'!J73 -> 0.4310470803 | S75: ='Reservoir extents'!P73 -> 0 | T75: ='Reservoir extents'!Q73 -> 0 | U75: 0 | V75: 0 | X75: 0
A76: EMP2-6 | B76: Doranda Way | C76: 13.967 | D76: ='Flood map for planning'!O74 -> 1 | E76: ='Flood map for planning'!P74 -> 0 | F76: ='Flood map for planning'!Q74 -> 0 | G76: ='Present Day Fluvial'!P74 -> 1 | H76: ='Present Day Fluvial'!S74 -> 0 | I76: ='Present Day Fluvial'!R74 -> 0 | J76: ='Present Day Fluvial'!Q74 -> 0 | K76: ='Fluvial + CC'!J74 -> 0 | L76: ='Fluvial + CC'!K74 -> 0 | M76: ='Fluvial + CC'!L74 -> 0 | N76: ='Surface Water'!S74 -> 0.0117227064 | O76: ='Surface Water'!T74 -> 0.02648357151 | P76: ='Surface Water'!U74 -> 0.08345575576 | Q76: ='Surface Water +CC'!I74 -> 0.07799539873 | R76: ='Surface Water +CC'!J74 -> 0.125624341 | S76: ='Reservoir extents'!P74 -> 0 | T76: ='Reservoir extents'!Q74 -> 0 | U76: 0 | V76: 0.8922342417 | X76: 0
A77: SEC3-160 | B77: Doulton Road, Rowley Regis (east of canal) | C77: 3.52 | D77: ='Flood map for planning'!O75 -> 1 | E77: ='Flood map for planning'!P75 -> 0 | F77: ='Flood map for planning'!Q75 -> 0 | G77: ='Present Day Fluvial'!P75 -> 1 | H77: ='Present Day Fluvial'!S75 -> 0 | I77: ='Present Day Fluvial'!R75 -> 0 | J77: ='Present Day Fluvial'!Q75 -> 0 | K77: ='Fluvial + CC'!J75 -> 0 | L77: ='Fluvial + CC'!K75 -> 0 | M77: ='Fluvial + CC'!L75 -> 0 | N77: ='Surface Water'!S75 -> 0.005691243944 | O77: ='Surface Water'!T75 -> 0.004817966062 | P77: ='Surface Water'!U75 -> 0.08968950664 | Q77: ='Surface Water +CC'!I75 -> 0.0502591848 | R77: ='Surface Water +CC'!J75 -> 0.1076004141 | S77: ='Reservoir extents'!P75 -> 0 | T77: ='Reservoir extents'!Q75 -> 0 | U77: 0 | V77: 0.2574974798 | X77: 0
A78: EMP2-11 | B78: DPD, Roebuck Lane | C78: 8.934 | D78: ='Flood map for planning'!O76 -> 1 | E78: ='Flood map for planning'!P76 -> 0 | F78: ='Flood map for planning'!Q76 -> 0 | G78: ='Present Day Fluvial'!P76 -> 1 | H78: ='Present Day Fluvial'!S76 -> 0 | I78: ='Present Day Fluvial'!R76 -> 0 | J78: ='Present Day Fluvial'!Q76 -> 0 | K78: ='Fluvial + CC'!J76 -> 0 | L78: ='Fluvial + CC'!K76 -> 0 | M78: ='Fluvial + CC'!L76 -> 0 | N78: ='Surface Water'!S76 -> 0.007572714806 | O78: ='Surface Water'!T76 -> 0.01306551808 | P78: ='Surface Water'!U76 -> 0.1060288431 | Q78: ='Surface Water +CC'!I76 -> 0.05865740721 | R78: ='Surface Water +CC'!J76 -> 0.1297588941 | S78: ='Reservoir extents'!P76 -> 0 | T78: ='Reservoir extents'!Q76 -> 0 | U78: 0 | V78: 0.9999559555 | X78: 0
A79: SEC3-46 | B79: Droicon Ind Est, Portway Road | C79: 0.872 | D79: ='Flood map for planning'!O77 -> 1 | E79: ='Flood map for planning'!P77 -> 0 | F79: ='Flood map for planning'!Q77 -> 0 | G79: ='Present Day Fluvial'!P77 -> 1 | H79: ='Present Day Fluvial'!S77 -> 0 | I79: ='Present Day Fluvial'!R77 -> 0 | J79: ='Present Day Fluvial'!Q77 -> 0 | K79: ='Fluvial + CC'!J77 -> 0 | L79: ='Fluvial + CC'!K77 -> 0 | M79: ='Fluvial + CC'!L77 -> 0 | N79: ='Surface Water'!S77 -> 0.01889068956 | O79: ='Surface Water'!T77 -> 0.02257643327 | P79: ='Surface Water'!U77 -> 0.06756545326 | Q79: ='Surface Water +CC'!I77 -> 0.07128207811 | R79: ='Surface Water +CC'!J77 -> 0.1170720896 | S79: ='Reservoir extents'!P77 -> 0 | T79: ='Reservoir extents'!Q77 -> 0 | U79: 0 | V79: 0 | X79: 0
A80: SEC3-124 | B80: Dudley Rd, 28 Dudley Rd West (2957) | C80: 1.786 | D80: ='Flood map for planning'!O78 -> 1 | E80: ='Flood map for planning'!P78 -> 0 | F80: ='Flood map for planning'!Q78 -> 0 | G80: ='Present Day Fluvial'!P78 -> 1 | H80: ='Present Day Fluvial'!S78 -> 0 | I80: ='Present Day Fluvial'!R78 -> 0 | J80: ='Present Day Fluvial'!Q78 -> 0 | K80: ='Fluvial + CC'!J78 -> 0 | L80: ='Fluvial + CC'!K78 -> 0 | M80: ='Fluvial + CC'!L78 -> 0 | N80: ='Surface Water'!S78 -> 0.04952835377 | O80: ='Surface Water'!T78 -> 0.07098377088 | P80: ='Surface Water'!U78 -> 0.09729583842 | Q80: ='Surface Water +CC'!I78 -> 0.1612994465 | R80: ='Surface Water +CC'!J78 -> 0.218256164 | S80: ='Reservoir extents'!P78 -> 0 | T80: ='Reservoir extents'!Q78 -> 0 | U80: 0 | V80: 0 | X80: 0
A81: SEC3-61 | B81: Dudley Road, Oldbury | C81: 4.915 | D81: ='Flood map for planning'!O79 -> 1 | E81: ='Flood map for planning'!P79 -> 0 | F81: ='Flood map for planning'!Q79 -> 0 | G81: ='Present Day Fluvial'!P79 -> 1 | H81: ='Present Day Fluvial'!S79 -> 0 | I81: ='Present Day Fluvial'!R79 -> 0 | J81: ='Present Day Fluvial'!Q79 -> 0 | K81: ='Fluvial + CC'!J79 -> 0 | L81: ='Fluvial + CC'!K79 -> 0 | M81: ='Fluvial + CC'!L79 -> 0 | N81: ='Surface Water'!S79 -> 0.003501993292 | O81: ='Surface Water'!T79 -> 0.009698951621 | P81: ='Surface Water'!U79 -> 0.0212423414 | Q81: ='Surface Water +CC'!I79 -> 0.02309301544 | R81: ='Surface Water +CC'!J79 -> 0.03746168734 | S81: ='Reservoir extents'!P79 -> 0 | T81: ='Reservoir extents'!Q79 -> 0 | U81: 0 | V81: 0 | X81: 0
A82: SEC3-185 | B82: Eel Street, Oldbury | C82: 3.168 | D82: ='Flood map for planning'!O80 -> 0.4682775871 | E82: ='Flood map for planning'!P80 -> 0.02853057841 | F82: ='Flood map for planning'!Q80 -> 0.5031918344 | G82: ='Present Day Fluvial'!P80 -> 0.4686595067 | H82: ='Present Day Fluvial'!S80 -> 0.02825931413 | I82: ='Present Day Fluvial'!R80 -> 0.007495179877 | J82: ='Present Day Fluvial'!Q80 -> 0.4955859993 | K82: ='Fluvial + CC'!J80 -> 0.5105122816 | L82: ='Fluvial + CC'!K80 -> 0.5317321915 | M82: ='Fluvial + CC'!L80 -> 0.5030811791 | N82: ='Surface Water'!S80 -> 3.547023012e-05 | O82: ='Surface Water'!T80 -> 0.2106433165 | P82: ='Surface Water'!U80 -> 0.3094923001 | Q82: ='Surface Water +CC'!I80 -> 0.3872116472 | R82: ='Surface Water +CC'!J80 -> 0.527982246 | S82: ='Reservoir extents'!P80 -> 0 | T82: ='Reservoir extents'!Q80 -> 0 | U82: 0 | V82: 0 | X82: 0
A83: SEC3-143 | B83: EMR Oldbury | C83: 7.558 | D83: ='Flood map for planning'!O81 -> 1 | E83: ='Flood map for planning'!P81 -> 0 | F83: ='Flood map for planning'!Q81 -> 0 | G83: ='Present Day Fluvial'!P81 -> 1 | H83: ='Present Day Fluvial'!S81 -> 0 | I83: ='Present Day Fluvial'!R81 -> 0 | J83: ='Present Day Fluvial'!Q81 -> 0 | K83: ='Fluvial + CC'!J81 -> 0 | L83: ='Fluvial + CC'!K81 -> 0 | M83: ='Fluvial + CC'!L81 -> 0 | N83: ='Surface Water'!S81 -> 0.002330491551 | O83: ='Surface Water'!T81 -> 0.01091093764 | P83: ='Surface Water'!U81 -> 0.0566700556 | Q83: ='Surface Water +CC'!I81 -> 0.01737275513 | R83: ='Surface Water +CC'!J81 -> 0.05402176978 | S83: ='Reservoir extents'!P81 -> 0 | T83: ='Reservoir extents'!Q81 -> 0 | U83: 0 | V83: 0 | X83: 0
A84: SEC3-14 | B84: Engine Street, Oldbury | C84: 1.643 | D84: ='Flood map for planning'!O82 -> 1 | E84: ='Flood map for planning'!P82 -> 0 | F84: ='Flood map for planning'!Q82 -> 0 | G84: ='Present Day Fluvial'!P82 -> 1 | H84: ='Present Day Fluvial'!S82 -> 0 | I84: ='Present Day Fluvial'!R82 -> 0 | J84: ='Present Day Fluvial'!Q82 -> 0 | K84: ='Fluvial + CC'!J82 -> 0 | L84: ='Fluvial + CC'!K82 -> 0 | M84: ='Fluvial + CC'!L82 -> 0 | N84: ='Surface Water'!S82 -> 0.003611945825 | O84: ='Surface Water'!T82 -> 0.003782374976 | P84: ='Surface Water'!U82 -> 0.04023558589 | Q84: ='Surface Water +CC'!I82 -> 0.02039837028 | R84: ='Surface Water +CC'!J82 -> 0.04793309374 | S84: ='Reservoir extents'!P82 -> 0 | T84: ='Reservoir extents'!Q82 -> 0 | U84: 0 | V84: 0 | X84: 0
A85: SEC3-163 | B85: Exchange Works, Kelvin Way, West Bromwich | C85: 1.498 | D85: ='Flood map for planning'!O83 -> 1 | E85: ='Flood map for planning'!P83 -> 0 | F85: ='Flood map for planning'!Q83 -> 0 | G85: ='Present Day Fluvial'!P83 -> 1 | H85: ='Present Day Fluvial'!S83 -> 0 | I85: ='Present Day Fluvial'!R83 -> 0 | J85: ='Present Day Fluvial'!Q83 -> 0 | K85: ='Fluvial + CC'!J83 -> 0 | L85: ='Fluvial + CC'!K83 -> 0 | M85: ='Fluvial + CC'!L83 -> 0 | N85: ='Surface Water'!S83 -> 0 | O85: ='Surface Water'!T83 -> 0 | P85: ='Surface Water'!U83 -> 0 | Q85: ='Surface Water +CC'!I83 -> 0 | R85: ='Surface Water +CC'!J83 -> 0.006678876473 | S85: ='Reservoir extents'!P83 -> 0 | T85: ='Reservoir extents'!Q83 -> 0 | U85: 0 | V85: 0 | X85: 0
A86: SEC3-155 | B86: Fisher St / Coneygre Rd, Tipton | C86: 1.744 | D86: ='Flood map for planning'!O84 -> 1 | E86: ='Flood map for planning'!P84 -> 0 | F86: ='Flood map for planning'!Q84 -> 0 | G86: ='Present Day Fluvial'!P84 -> 1 | H86: ='Present Day Fluvial'!S84 -> 0 | I86: ='Present Day Fluvial'!R84 -> 0 | J86: ='Present Day Fluvial'!Q84 -> 0 | K86: ='Fluvial + CC'!J84 -> 0 | L86: ='Fluvial + CC'!K84 -> 0 | M86: ='Fluvial + CC'!L84 -> 0 | N86: ='Surface Water'!S84 -> 0.03566407666 | O86: ='Surface Water'!T84 -> 0.05122169346 | P86: ='Surface Water'!U84 -> 0.09839385787 | Q86: ='Surface Water +CC'!I84 -> 0.1354568551 | R86: ='Surface Water +CC'!J84 -> 0.1852810522 | S86: ='Reservoir extents'!P84 -> 0 | T86: ='Reservoir extents'!Q84 -> 0 | U86: 0 | V86: 0 | X86: 0
A87: SEC3-149 | B87: Fitzgerald Lighting Ltd, Rood End Rd (2009) | C87: 1.393 | D87: ='Flood map for planning'!O85 -> 1 | E87: ='Flood map for planning'!P85 -> 0 | F87: ='Flood map for planning'!Q85 -> 0 | G87: ='Present Day Fluvial'!P85 -> 1 | H87: ='Present Day Fluvial'!S85 -> 0 | I87: ='Present Day Fluvial'!R85 -> 0 | J87: ='Present Day Fluvial'!Q85 -> 0 | K87: ='Fluvial + CC'!J85 -> 0 | L87: ='Fluvial + CC'!K85 -> 0 | M87: ='Fluvial + CC'!L85 -> 0 | N87: ='Surface Water'!S85 -> 0 | O87: ='Surface Water'!T85 -> 0 | P87: ='Surface Water'!U85 -> 0.005919943983 | Q87: ='Surface Water +CC'!I85 -> 0.0008407527828 | R87: ='Surface Water +CC'!J85 -> 0.008921757233 | S87: ='Reservoir extents'!P85 -> 0 | T87: ='Reservoir extents'!Q85 -> 0 | U87: 0 | V87: 0.6845289896 | X87: 0
A88: SEC3-132 | B88: Former Corus Premises, Bloomfield Rd, Tipton (5972 | C88: 0.576 | D88: ='Flood map for planning'!O86 -> 0.5695801654 | E88: ='Flood map for planning'!P86 -> 0.4304198346 | F88: ='Flood map for planning'!Q86 -> 0 | G88: ='Present Day Fluvial'!P86 -> 0.6053014301 | H88: ='Present Day Fluvial'!S86 -> 0.3946985699 | I88: ='Present Day Fluvial'!R86 -> 0 | J88: ='Present Day Fluvial'!Q86 -> 0 | K88: ='Fluvial + CC'!J86 -> 0 | L88: ='Fluvial + CC'!K86 -> 0.4304198363 | M88: ='Fluvial + CC'!L86 -> 0 | N88: ='Surface Water'!S86 -> 0 | O88: ='Surface Water'!T86 -> 0 | P88: ='Surface Water'!U86 -> 0.1350710759 | Q88: ='Surface Water +CC'!I86 -> 0.0002048300613 | R88: ='Surface Water +CC'!J86 -> 0.1348770245 | S88: ='Reservoir extents'!P86 -> 0 | T88: ='Reservoir extents'!Q86 -> 0 | U88: 0 | V88: 0 | X88: 0
A89: SEC3-66 | B89: Foundry Lane (south) | C89: 11.765 | D89: ='Flood map for planning'!O87 -> 0.9772856531 | E89: ='Flood map for planning'!P87 -> 0.02271434688 | F89: ='Flood map for planning'!Q87 -> 0 | G89: ='Present Day Fluvial'!P87 -> 1 | H89: ='Present Day Fluvial'!S87 -> 0 | I89: ='Present Day Fluvial'!R87 -> 0 | J89: ='Present Day Fluvial'!Q87 -> 0 | K89: ='Fluvial + CC'!J87 -> 0 | L89: ='Fluvial + CC'!K87 -> 0.0227143469 | M89: ='Fluvial + CC'!L87 -> 0 | N89: ='Surface Water'!S87 -> 0 | O89: ='Surface Water'!T87 -> 0.007995907464 | P89: ='Surface Water'!U87 -> 0.101565999 | Q89: ='Surface Water +CC'!I87 -> 0.03147926751 | R89: ='Surface Water +CC'!J87 -> 0.1188986188 | S89: ='Reservoir extents'!P87 -> 0.3806528602 | T89: ='Reservoir extents'!Q87 -> 0.01959676576 | U89: 0.9786376375 | V89: 0.02157501979 | X89: 0
A90: SEC3-73 | B90: Foundry Lane/ Anne Road | C90: 5.257 | D90: ='Flood map for planning'!O88 -> 0.6977025171 | E90: ='Flood map for planning'!P88 -> 0.2519128697 | F90: ='Flood map for planning'!Q88 -> 0.05038461311 | G90: ='Present Day Fluvial'!P88 -> 1 | H90: ='Present Day Fluvial'!S88 -> 0 | I90: ='Present Day Fluvial'!R88 -> 0 | J90: ='Present Day Fluvial'!Q88 -> 0 | K90: ='Fluvial + CC'!J88 -> 0 | L90: ='Fluvial + CC'!K88 -> 0.301362563 | M90: ='Fluvial + CC'!L88 -> 0 | N90: ='Surface Water'!S88 -> 0.03039465078 | O90: ='Surface Water'!T88 -> 0.0426939993 | P90: ='Surface Water'!U88 -> 0.2540562065 | Q90: ='Surface Water +CC'!I88 -> 0.1548045356 | R90: ='Surface Water +CC'!J88 -> 0.3416996887 | S90: ='Reservoir extents'!P88 -> 0.2988218995 | T90: ='Reservoir extents'!Q88 -> 0.1197697328 | U90: 0.2541420357 | V90: 0.001427912389 | X90: 0
A91: SEC3-159 | B91: Fountain Lane | C91: 1.316 | D91: ='Flood map for planning'!O89 -> 0.1664561073 | E91: ='Flood map for planning'!P89 -> 0.8203564978 | F91: ='Flood map for planning'!Q89 -> 0.01318739495 | G91: ='Present Day Fluvial'!P89 -> 0.1768355177 | H91: ='Present Day Fluvial'!S89 -> 0.813449761 | I91: ='Present Day Fluvial'!R89 -> 0.009714721261 | J91: ='Present Day Fluvial'!Q89 -> 0 | K91: ='Fluvial + CC'!J89 -> 0.0301287913 | L91: ='Fluvial + CC'!K89 -> 0.8335438927 | M91: ='Fluvial + CC'!L89 -> 0.009714721261 | N91: ='Surface Water'!S89 -> 0 | O91: ='Surface Water'!T89 -> 0.0002403880841 | P91: ='Surface Water'!U89 -> 0.087317216 | Q91: ='Surface Water +CC'!I89 -> 0.03825316909 | R91: ='Surface Water +CC'!J89 -> 0.1082065603 | S91: ='Reservoir extents'!P89 -> 0 | T91: ='Reservoir extents'!Q89 -> 0 | U91: 0 | V91: 0 | X91: 0
A92: SEC3-139 | B92: Garratts Lane/ Powke Lane | C92: 9.384 | D92: ='Flood map for planning'!O90 -> 1 | E92: ='Flood map for planning'!P90 -> 0 | F92: ='Flood map for planning'!Q90 -> 0 | G92: ='Present Day Fluvial'!P90 -> 1 | H92: ='Present Day Fluvial'!S90 -> 0 | I92: ='Present Day Fluvial'!R90 -> 0 | J92: ='Present Day Fluvial'!Q90 -> 0 | K92: ='Fluvial + CC'!J90 -> 0 | L92: ='Fluvial + CC'!K90 -> 0 | M92: ='Fluvial + CC'!L90 -> 0 | N92: ='Surface Water'!S90 -> 0.003284635595 | O92: ='Surface Water'!T90 -> 0.007761726141 | P92: ='Surface Water'!U90 -> 0.04855561826 | Q92: ='Surface Water +CC'!I90 -> 0.0341828552 | R92: ='Surface Water +CC'!J90 -> 0.06779594414 | S92: ='Reservoir extents'!P90 -> 0 | T92: ='Reservoir extents'!Q90 -> 0 | U92: 0 | V92: 0 | X92: 0
A93: SEC3-47 | B93: Garretts Lane, Cradley Heath | C93: 0.707 | D93: ='Flood map for planning'!O91 -> 1 | E93: ='Flood map for planning'!P91 -> 0 | F93: ='Flood map for planning'!Q91 -> 0 | G93: ='Present Day Fluvial'!P91 -> 1 | H93: ='Present Day Fluvial'!S91 -> 0 | I93: ='Present Day Fluvial'!R91 -> 0 | J93: ='Present Day Fluvial'!Q91 -> 0 | K93: ='Fluvial + CC'!J91 -> 0 | L93: ='Fluvial + CC'!K91 -> 0 | M93: ='Fluvial + CC'!L91 -> 0 | N93: ='Surface Water'!S91 -> 0 | O93: ='Surface Water'!T91 -> 0 | P93: ='Surface Water'!U91 -> 0.1041717414 | Q93: ='Surface Water +CC'!I91 -> 0.01534462675 | R93: ='Surface Water +CC'!J91 -> 0.1363158634 | S93: ='Reservoir extents'!P91 -> 0 | T93: ='Reservoir extents'!Q91 -> 0 | U93: 0 | V93: 0 | X93: 0
A94: SEC3-68 | B94: George Henry Road | C94: 19.87 | D94: ='Flood map for planning'!O92 -> 0.9999195481 | E94: ='Flood map for planning'!P92 -> 8.045191868e-05 | F94: ='Flood map for planning'!Q92 -> 0 | G94: ='Present Day Fluvial'!P92 -> 0.9999196316 | H94: ='Present Day Fluvial'!S92 -> 8.036837951e-05 | I94: ='Present Day Fluvial'!R92 -> 0 | J94: ='Present Day Fluvial'!Q92 -> 0 | K94: ='Fluvial + CC'!J92 -> 0 | L94: ='Fluvial + CC'!K92 -> 8.045194052e-05 | M94: ='Fluvial + CC'!L92 -> 0 | N94: ='Surface Water'!S92 -> 0.0176146582 | O94: ='Surface Water'!T92 -> 0.03956925743 | P94: ='Surface Water'!U92 -> 0.09183616153 | Q94: ='Surface Water +CC'!I92 -> 0.09999584471 | R94: ='Surface Water +CC'!J92 -> 0.1481608937 | S94: ='Reservoir extents'!P92 -> 0 | T94: ='Reservoir extents'!Q92 -> 0 | U94: 0 | V94: 0 | X94: 0
A95: SEC3-57 | B95: Great Bridge Ind Est / Harrold Street | C95: 4.592 | D95: ='Flood map for planning'!O93 -> 0.03631378151 | E95: ='Flood map for planning'!P93 -> 0.3477656226 | F95: ='Flood map for planning'!Q93 -> 0.6159205959 | G95: ='Present Day Fluvial'!P93 -> 0.04412955085 | H95: ='Present Day Fluvial'!S93 -> 0.3398671584 | I95: ='Present Day Fluvial'!R93 -> 0.6160032907 | J95: ='Present Day Fluvial'!Q93 -> 0 | K95: ='Fluvial + CC'!J93 -> 0.7917316073 | L95: ='Fluvial + CC'!K93 -> 0.963686975 | M95: ='Fluvial + CC'!L93 -> 0.6160032907 | N95: ='Surface Water'!S93 -> 0.01644973808 | O95: ='Surface Water'!T93 -> 0.04805689848 | P95: ='Surface Water'!U93 -> 0.2261289601 | Q95: ='Surface Water +CC'!I93 -> 0.1564749087 | R95: ='Surface Water +CC'!J93 -> 0.289299153 | S95: ='Reservoir extents'!P93 -> 0 | T95: ='Reservoir extents'!Q93 -> 0 | U95: 0 | V95: 0 | X95: 0
A96: SEC3-15 | B96: Great Western Street, Wednesbury | C96: 3.832 | D96: ='Flood map for planning'!O94 -> 0.5819454091 | E96: ='Flood map for planning'!P94 -> 0.4180495012 | F96: ='Flood map for planning'!Q94 -> 5.089667851e-06 | G96: ='Present Day Fluvial'!P94 -> 0.5847469389 | H96: ='Present Day Fluvial'!S94 -> 0.4152479706 | I96: ='Present Day Fluvial'!R94 -> 5.09047939e-06 | J96: ='Present Day Fluvial'!Q94 -> 0 | K96: ='Fluvial + CC'!J94 -> 0.01202524195 | L96: ='Fluvial + CC'!K94 -> 0.4180545911 | M96: ='Fluvial + CC'!L94 -> 5.09047939e-06 | N96: ='Surface Water'!S94 -> 0.0007687754193 | O96: ='Surface Water'!T94 -> 0.002485216871 | P96: ='Surface Water'!U94 -> 0.05623643722 | Q96: ='Surface Water +CC'!I94 -> 0.009846641829 | R96: ='Surface Water +CC'!J94 -> 0.05863945535 | S96: ='Reservoir extents'!P94 -> 0 | T96: ='Reservoir extents'!Q94 -> 0 | U96: 0.1175398036 | V96: 0 | X96: 0
A97: SEC3-60 | B97: Griffin Ind Est, Penncricket Lane | C97: 3.323 | D97: ='Flood map for planning'!O95 -> 0.9963317284 | E97: ='Flood map for planning'!P95 -> 0.001197866361 | F97: ='Flood map for planning'!Q95 -> 0.002470405246 | G97: ='Present Day Fluvial'!P95 -> 0.7162397371 | H97: ='Present Day Fluvial'!S95 -> 0.2807102368 | I97: ='Present Day Fluvial'!R95 -> 9.069941504e-10 | J97: ='Present Day Fluvial'!Q95 -> 0.003050025207 | K97: ='Fluvial + CC'!J95 -> 0.003035052091 | L97: ='Fluvial + CC'!K95 -> 0.003668271607 | M97: ='Fluvial + CC'!L95 -> 0.003050026114 | N97: ='Surface Water'!S95 -> 0.003734078009 | O97: ='Surface Water'!T95 -> 0.0320476731 | P97: ='Surface Water'!U95 -> 0.5956240969 | Q97: ='Surface Water +CC'!I95 -> 0.3494406264 | R97: ='Surface Water +CC'!J95 -> 0.6666452643 | S97: ='Reservoir extents'!P95 -> 0 | T97: ='Reservoir extents'!Q95 -> 0 | U97: 0 | V97: 0 | X97: 0
A98: SEC3-122 | B98: Groveland Rd (2963) | C98: 1.183 | D98: ='Flood map for planning'!O96 -> 1 | E98: ='Flood map for planning'!P96 -> 0 | F98: ='Flood map for planning'!Q96 -> 0 | G98: ='Present Day Fluvial'!P96 -> 1 | H98: ='Present Day Fluvial'!S96 -> 0 | I98: ='Present Day Fluvial'!R96 -> 0 | J98: ='Present Day Fluvial'!Q96 -> 0 | K98: ='Fluvial + CC'!J96 -> 0 | L98: ='Fluvial + CC'!K96 -> 0 | M98: ='Fluvial + CC'!L96 -> 0 | N98: ='Surface Water'!S96 -> 0 | O98: ='Surface Water'!T96 -> 0 | P98: ='Surface Water'!U96 -> 0.01899903515 | Q98: ='Surface Water +CC'!I96 -> 0.000762074907 | R98: ='Surface Water +CC'!J96 -> 0.01933742187 | S98: ='Reservoir extents'!P96 -> 0 | T98: ='Reservoir extents'!Q96 -> 0 | U98: 0 | V98: 0 | X98: 0
A99: SEC3-21 | B99: Hainge Road, Oldbury | C99: 14.332 | D99: ='Flood map for planning'!O97 -> 1 | E99: ='Flood map for planning'!P97 -> 0 | F99: ='Flood map for planning'!Q97 -> 0 | G99: ='Present Day Fluvial'!P97 -> 1 | H99: ='Present Day Fluvial'!S97 -> 0 | I99: ='Present Day Fluvial'!R97 -> 0 | J99: ='Present Day Fluvial'!Q97 -> 0 | K99: ='Fluvial + CC'!J97 -> 0 | L99: ='Fluvial + CC'!K97 -> 0 | M99: ='Fluvial + CC'!L97 -> 0 | N99: ='Surface Water'!S97 -> 0.01975325998 | O99: ='Surface Water'!T97 -> 0.02397804279 | P99: ='Surface Water'!U97 -> 0.1418377444 | Q99: ='Surface Water +CC'!I97 -> 0.1021971514 | R99: ='Surface Water +CC'!J97 -> 0.1924345138 | S99: ='Reservoir extents'!P97 -> 0 | T99: ='Reservoir extents'!Q97 -> 0 | U99: 0 | V99: 0 | X99: 0
A100: SEC3-22 | B100: Hale Trading Estate, Tipton | C100: 2.74 | D100: ='Flood map for planning'!O98 -> 1 | E100: ='Flood map for planning'!P98 -> 0 | F100: ='Flood map for planning'!Q98 -> 0 | G100: ='Present Day Fluvial'!P98 -> 1 | H100: ='Present Day Fluvial'!S98 -> 0 | I100: ='Present Day Fluvial'!R98 -> 0 | J100: ='Present Day Fluvial'!Q98 -> 0 | K100: ='Fluvial + CC'!J98 -> 0 | L100: ='Fluvial + CC'!K98 -> 0 | M100: ='Fluvial + CC'!L98 -> 0 | N100: ='Surface Water'!S98 -> 0 | O100: ='Surface Water'!T98 -> 0.01621896389 | P100: ='Surface Water'!U98 -> 0.03233522742 | Q100: ='Surface Water +CC'!I98 -> 0.03101519638 | R100: ='Surface Water +CC'!J98 -> 0.0481158411 | S100: ='Reservoir extents'!P98 -> 0 | T100: ='Reservoir extents'!Q98 -> 0 | U100: 0 | V100: 0 | X100: 0
A101: EMP2-8 | B101: Hales Way, Oldbury | C101: 1.517 | D101: ='Flood map for planning'!O99 -> 1 | E101: ='Flood map for planning'!P99 -> 0 | F101: ='Flood map for planning'!Q99 -> 0 | G101: ='Present Day Fluvial'!P99 -> 1 | H101: ='Present Day Fluvial'!S99 -> 0 | I101: ='Present Day Fluvial'!R99 -> 0 | J101: ='Present Day Fluvial'!Q99 -> 0 | K101: ='Fluvial + CC'!J99 -> 0 | L101: ='Fluvial + CC'!K99 -> 0 | M101: ='Fluvial + CC'!L99 -> 0 | N101: ='Surface Water'!S99 -> 0 | O101: ='Surface Water'!T99 -> 0.0001591954879 | P101: ='Surface Water'!U99 -> 0.04237622858 | Q101: ='Surface Water +CC'!I99 -> 0.0003303224781 | R101: ='Surface Water +CC'!J99 -> 0.06719613392 | S101: ='Reservoir extents'!P99 -> 0 | T101: ='Reservoir extents'!Q99 -> 0 | U101: 0 | V101: 0 | X101: 0
A102: SEC3-95 | B102: Halfords Lane | C102: 24.248 | D102: ='Flood map for planning'!O100 -> 0.9448546266 | E102: ='Flood map for planning'!P100 -> 0.0480877764 | F102: ='Flood map for planning'!Q100 -> 0.007057596974 | G102: ='Present Day Fluvial'!P100 -> 1 | H102: ='Present Day Fluvial'!S100 -> 0 | I102: ='Present Day Fluvial'!R100 -> 0 | J102: ='Present Day Fluvial'!Q100 -> 0 | K102: ='Fluvial + CC'!J100 -> 0 | L102: ='Fluvial + CC'!K100 -> 0.05450378939 | M102: ='Fluvial + CC'!L100 -> 0 | N102: ='Surface Water'!S100 -> 0.007204856073 | O102: ='Surface Water'!T100 -> 0.01158948326 | P102: ='Surface Water'!U100 -> 0.0838193739 | Q102: ='Surface Water +CC'!I100 -> 0.04403000677 | R102: ='Surface Water +CC'!J100 -> 0.1122463619 | S102: ='Reservoir extents'!P100 -> 0.0009752329061 | T102: ='Reservoir extents'!Q100 -> 0.0001576217547 | U102: 0.1484012802 | V102: 0.2866464134 | X102: 0
A103: SEC3-103 | B103: Hill Top, West Bromwich | C103: 15.187 | D103: ='Flood map for planning'!O101 -> 0.455171121 | E103: ='Flood map for planning'!P101 -> 0.2851825325 | F103: ='Flood map for planning'!Q101 -> 0.2596463465 | G103: ='Present Day Fluvial'!P101 -> 0.4554655524 | H103: ='Present Day Fluvial'!S101 -> 0.2849026162 | I103: ='Present Day Fluvial'!R101 -> 0.01740158665 | J103: ='Present Day Fluvial'!Q101 -> 0.2422302448 | K103: ='Fluvial + CC'!J101 -> 0.4038960409 | L103: ='Fluvial + CC'!K101 -> 0.5448288788 | M103: ='Fluvial + CC'!L101 -> 0.2596318315 | N103: ='Surface Water'!S101 -> 0.009886050414 | O103: ='Surface Water'!T101 -> 0.03243428468 | P103: ='Surface Water'!U101 -> 0.1714951307 | Q103: ='Surface Water +CC'!I101 -> 0.1245993963 | R103: ='Surface Water +CC'!J101 -> 0.2333575767 | S103: ='Reservoir extents'!P101 -> 0.1260526956 | T103: ='Reservoir extents'!Q101 -> 0 | U103: 0 | V103: 0.001460710945 | X103: 0
A104: SEC3-18 | B104: Holloway Bank | C104: 1.034 | D104: ='Flood map for planning'!O102 -> 1 | E104: ='Flood map for planning'!P102 -> 0 | F104: ='Flood map for planning'!Q102 -> 0 | G104: ='Present Day Fluvial'!P102 -> 1 | H104: ='Present Day Fluvial'!S102 -> 0 | I104: ='Present Day Fluvial'!R102 -> 0 | J104: ='Present Day Fluvial'!Q102 -> 0 | K104: ='Fluvial + CC'!J102 -> 0 | L104: ='Fluvial + CC'!K102 -> 0 | M104: ='Fluvial + CC'!L102 -> 0 | N104: ='Surface Water'!S102 -> 0.000382796879 | O104: ='Surface Water'!T102 -> 0.01794743371 | P104: ='Surface Water'!U102 -> 0.02195320303 | Q104: ='Surface Water +CC'!I102 -> 0.03307755435 | R104: ='Surface Water +CC'!J102 -> 0.03989635128 | S104: ='Reservoir extents'!P102 -> 0 | T104: ='Reservoir extents'!Q102 -> 0 | U104: 0.2087540863 | V104: 0.4569997973 | X104: 0
A105: SEC3-104 | B105: Holloway Bank, Wednesbury | C105: 5.308 | D105: ='Flood map for planning'!O103 -> 0.9459703176 | E105: ='Flood map for planning'!P103 -> 0.03651782218 | F105: ='Flood map for planning'!Q103 -> 0.01751186017 | G105: ='Present Day Fluvial'!P103 -> 0.9491051563 | H105: ='Present Day Fluvial'!S103 -> 0.03338457457 | I105: ='Present Day Fluvial'!R103 -> 0.001986715331 | J105: ='Present Day Fluvial'!Q103 -> 0.01552355376 | K105: ='Fluvial + CC'!J103 -> 0.01987827417 | L105: ='Fluvial + CC'!K103 -> 0.05402968246 | M105: ='Fluvial + CC'!L103 -> 0.01751026909 | N105: ='Surface Water'!S103 -> 0.008334204528 | O105: ='Surface Water'!T103 -> 0.01479728862 | P105: ='Surface Water'!U103 -> 0.07517497178 | Q105: ='Surface Water +CC'!I103 -> 0.04781488408 | R105: ='Surface Water +CC'!J103 -> 0.09870274738 | S105: ='Reservoir extents'!P103 -> 0.002775744026 | T105: ='Reservoir extents'!Q103 -> 0 | U105: 0.6256310815 | V105: 0.1778019559 | X105: 0
A106: SEC3-67 | B106: Holloway Bank/ Bilport Lane | C106: 1.776 | D106: ='Flood map for planning'!O104 -> 0.59838768 | E106: ='Flood map for planning'!P104 -> 0.1632167026 | F106: ='Flood map for planning'!Q104 -> 0.2383956174 | G106: ='Present Day Fluvial'!P104 -> 0.6060052185 | H106: ='Present Day Fluvial'!S104 -> 0.1555942018 | I106: ='Present Day Fluvial'!R104 -> 0.0659634098 | J106: ='Present Day Fluvial'!Q104 -> 0.1724371699 | K106: ='Fluvial + CC'!J104 -> 0.3047427267 | L106: ='Fluvial + CC'!K104 -> 0.3941179607 | M106: ='Fluvial + CC'!L104 -> 0.2384005797 | N106: ='Surface Water'!S104 -> 0.01960383065 | O106: ='Surface Water'!T104 -> 0.01708985005 | P106: ='Surface Water'!U104 -> 0.1779738762 | Q106: ='Surface Water +CC'!I104 -> 0.1092036794 | R106: ='Surface Water +CC'!J104 -> 0.2477439842 | S106: ='Reservoir extents'!P104 -> 0.01694250416 | T106: ='Reservoir extents'!Q104 -> 0 | U106: 0.9600430123 | V106: 0.01554207852 | X106: 0
A107: SEC3-88 | B107: Houghton Street, Oldbury | C107: 1.439 | D107: ='Flood map for planning'!O105 -> 0.9977091607 | E107: ='Flood map for planning'!P105 -> 0.002129441655 | F107: ='Flood map for planning'!Q105 -> 0.0001613976499 | G107: ='Present Day Fluvial'!P105 -> 0.9977366644 | H107: ='Present Day Fluvial'!S105 -> 0.002105730978 | I107: ='Present Day Fluvial'!R105 -> 0.0001576046338 | J107: ='Present Day Fluvial'!Q105 -> 0 | K107: ='Fluvial + CC'!J105 -> 0.0005691413688 | L107: ='Fluvial + CC'!K105 -> 0.002293673267 | M107: ='Fluvial + CC'!L105 -> 0.0001576046338 | N107: ='Surface Water'!S105 -> 0 | O107: ='Surface Water'!T105 -> 0.01514238894 | P107: ='Surface Water'!U105 -> 0.2033899676 | Q107: ='Surface Water +CC'!I105 -> 0.03702813203 | R107: ='Surface Water +CC'!J105 -> 0.2679801467 | S107: ='Reservoir extents'!P105 -> 0 | T107: ='Reservoir extents'!Q105 -> 0 | U107: 0 | V107: 0 | X107: 0
A108: SEC3-69 | B108: Howard Street | C108: 27.938 | D108: ='Flood map for planning'!O106 -> 1 | E108: ='Flood map for planning'!P106 -> 0 | F108: ='Flood map for planning'!Q106 -> 0 | G108: ='Present Day Fluvial'!P106 -> 1 | H108: ='Present Day Fluvial'!S106 -> 0 | I108: ='Present Day Fluvial'!R106 -> 0 | J108: ='Present Day Fluvial'!Q106 -> 0 | K108: ='Fluvial + CC'!J106 -> 0 | L108: ='Fluvial + CC'!K106 -> 0 | M108: ='Fluvial + CC'!L106 -> 0 | N108: ='Surface Water'!S106 -> 0.007379389982 | O108: ='Surface Water'!T106 -> 0.02696701351 | P108: ='Surface Water'!U106 -> 0.0740047208 | Q108: ='Surface Water +CC'!I106 -> 0.06889375847 | R108: ='Surface Water +CC'!J106 -> 0.1071904824 | S108: ='Reservoir extents'!P106 -> 0 | T108: ='Reservoir extents'!Q106 -> 0 | U108: 0 | V108: 0 | X108: 0
A109: SEC3-78 | B109: James Watt Industrial Park | C109: 3.639 | D109: ='Flood map for planning'!O107 -> 1 | E109: ='Flood map for planning'!P107 -> 0 | F109: ='Flood map for planning'!Q107 -> 0 | G109: ='Present Day Fluvial'!P107 -> 1 | H109: ='Present Day Fluvial'!S107 -> 0 | I109: ='Present Day Fluvial'!R107 -> 0 | J109: ='Present Day Fluvial'!Q107 -> 0 | K109: ='Fluvial + CC'!J107 -> 0 | L109: ='Fluvial + CC'!K107 -> 0 | M109: ='Fluvial + CC'!L107 -> 0 | N109: ='Surface Water'!S107 -> 0 | O109: ='Surface Water'!T107 -> 0 | P109: ='Surface Water'!U107 -> 0.0208551292 | Q109: ='Surface Water +CC'!I107 -> 3.945553038e-05 | R109: ='Surface Water +CC'!J107 -> 0.02615222498 | S109: ='Reservoir extents'!P107 -> 0.0008813239419 | T109: ='Reservoir extents'!Q107 -> 0 | U109: 0.183174993 | V109: 0.8223257144 | X109: 0
A110: SEC3-136 | B110: JAS Ind Park, Titford Lane, Oldbury (3013) | C110: 0.94 | D110: ='Flood map for planning'!O108 -> 1 | E110: ='Flood map for planning'!P108 -> 0 | F110: ='Flood map for planning'!Q108 -> 0 | G110: ='Present Day Fluvial'!P108 -> 0.9991106256 | H110: ='Present Day Fluvial'!S108 -> 0.0008893744013 | I110: ='Present Day Fluvial'!R108 -> 0 | J110: ='Present Day Fluvial'!Q108 -> 0 | K110: ='Fluvial + CC'!J108 -> 0 | L110: ='Fluvial + CC'!K108 -> 0 | M110: ='Fluvial + CC'!L108 -> 0 | N110: ='Surface Water'!S108 -> 0 | O110: ='Surface Water'!T108 -> 0.09230092017 | P110: ='Surface Water'!U108 -> 0.2479179733 | Q110: ='Surface Water +CC'!I108 -> 0.2355344573 | R110: ='Surface Water +CC'!J108 -> 0.3565215416 | S110: ='Reservoir extents'!P108 -> 0 | T110: ='Reservoir extents'!Q108 -> 0 | U110: 0 | V110: 0 | X110: 0
A111: SEC3-146 | B111: JerseyTex Ltd, Upper Church Lane, Princes End | C111: 1.582 | D111: ='Flood map for planning'!O109 -> 1 | E111: ='Flood map for planning'!P109 -> 0 | F111: ='Flood map for planning'!Q109 -> 0 | G111: ='Present Day Fluvial'!P109 -> 1 | H111: ='Present Day Fluvial'!S109 -> 0 | I111: ='Present Day Fluvial'!R109 -> 0 | J111: ='Present Day Fluvial'!Q109 -> 0 | K111: ='Fluvial + CC'!J109 -> 0 | L111: ='Fluvial + CC'!K109 -> 0 | M111: ='Fluvial + CC'!L109 -> 0 | N111: ='Surface Water'!S109 -> 0.0001422113471 | O111: ='Surface Water'!T109 -> 0.008400680874 | P111: ='Surface Water'!U109 -> 0.07430087986 | Q111: ='Surface Water +CC'!I109 -> 0.04240561153 | R111: ='Surface Water +CC'!J109 -> 0.08199399356 | S111: ='Reservoir extents'!P109 -> 0 | T111: ='Reservoir extents'!Q109 -> 0 | U111: 0 | V111: 0 | X111: 0
A112: SEC3-169 | B112: JH Lavender & Co, Crankhall Lane, West Bromwich | C112: 1.314 | D112: ='Flood map for planning'!O110 -> 1 | E112: ='Flood map for planning'!P110 -> 0 | F112: ='Flood map for planning'!Q110 -> 0 | G112: ='Present Day Fluvial'!P110 -> 1 | H112: ='Present Day Fluvial'!S110 -> 0 | I112: ='Present Day Fluvial'!R110 -> 0 | J112: ='Present Day Fluvial'!Q110 -> 0 | K112: ='Fluvial + CC'!J110 -> 0 | L112: ='Fluvial + CC'!K110 -> 0 | M112: ='Fluvial + CC'!L110 -> 0 | N112: ='Surface Water'!S110 -> 0 | O112: ='Surface Water'!T110 -> 0.04900938702 | P112: ='Surface Water'!U110 -> 0.03295787995 | Q112: ='Surface Water +CC'!I110 -> 0.05936592441 | R112: ='Surface Water +CC'!J110 -> 0.08196726698 | S112: ='Reservoir extents'!P110 -> 0 | T112: ='Reservoir extents'!Q110 -> 0 | U112: 0 | V112: 0 | X112: 0
A113: SEC3-91 | B113: Joseph Street, Oldbury | C113: 2.966 | D113: ='Flood map for planning'!O111 -> 0.5006717631 | E113: ='Flood map for planning'!P111 -> 0.05775428065 | F113: ='Flood map for planning'!Q111 -> 0.4415739562 | G113: ='Present Day Fluvial'!P111 -> 0.5083613983 | H113: ='Present Day Fluvial'!S111 -> 0.06424559604 | I113: ='Present Day Fluvial'!R111 -> 0.03221585049 | J113: ='Present Day Fluvial'!Q111 -> 0.3951771552 | K113: ='Fluvial + CC'!J111 -> 0.4486204863 | L113: ='Fluvial + CC'!K111 -> 0.4993315584 | M113: ='Fluvial + CC'!L111 -> 0.4414947905 | N113: ='Surface Water'!S111 -> 0.0455340894 | O113: ='Surface Water'!T111 -> 0.2122146105 | P113: ='Surface Water'!U111 -> 0.2420114497 | Q113: ='Surface Water +CC'!I111 -> 0.3941019851 | R113: ='Surface Water +CC'!J111 -> 0.5253705772 | S113: ='Reservoir extents'!P111 -> 0 | T113: ='Reservoir extents'!Q111 -> 0 | U113: 0 | V113: 0 | X113: 0
A114: EMP2-15 | B114: Junction 9 (Opus 9) | C114: 2.343 | D114: ='Flood map for planning'!O112 -> 0.327659709 | E114: ='Flood map for planning'!P112 -> 0.09132492468 | F114: ='Flood map for planning'!Q112 -> 0.5810153663 | G114: ='Present Day Fluvial'!P112 -> 0.3277197017 | H114: ='Present Day Fluvial'!S112 -> 0.09408277886 | I114: ='Present Day Fluvial'!R112 -> 0.03784397478 | J114: ='Present Day Fluvial'!Q112 -> 0.5403535446 | K114: ='Fluvial + CC'!J112 -> 0.6334940304 | L114: ='Fluvial + CC'!K112 -> 0.672340291 | M114: ='Fluvial + CC'!L112 -> 0.581015213 | N114: ='Surface Water'!S112 -> 0.004389018151 | O114: ='Surface Water'!T112 -> 0.05289129005 | P114: ='Surface Water'!U112 -> 0.2010392016 | Q114: ='Surface Water +CC'!I112 -> 0.1466678422 | R114: ='Surface Water +CC'!J112 -> 0.2758308592 | S114: ='Reservoir extents'!P112 -> 0.007511028898 | T114: ='Reservoir extents'!Q112 -> 0.674696268 | U114: 0 | V114: 0 | X114: 0
A115: SEC3-12 | B115: Junction One, Oldbury | C115: 4.717 | D115: ='Flood map for planning'!O113 -> 1 | E115: ='Flood map for planning'!P113 -> 0 | F115: ='Flood map for planning'!Q113 -> 0 | G115: ='Present Day Fluvial'!P113 -> 1 | H115: ='Present Day Fluvial'!S113 -> 0 | I115: ='Present Day Fluvial'!R113 -> 0 | J115: ='Present Day Fluvial'!Q113 -> 0 | K115: ='Fluvial + CC'!J113 -> 0 | L115: ='Fluvial + CC'!K113 -> 0 | M115: ='Fluvial + CC'!L113 -> 0 | N115: ='Surface Water'!S113 -> 0 | O115: ='Surface Water'!T113 -> 0 | P115: ='Surface Water'!U113 -> 0.02926433199 | Q115: ='Surface Water +CC'!I113 -> 0.01170400823 | R115: ='Surface Water +CC'!J113 -> 0.03613883117 | S115: ='Reservoir extents'!P113 -> 0 | T115: ='Reservoir extents'!Q113 -> 0 | U115: 0 | V115: 0 | X115: 0
A116: SEC1-3 | B116: Junction Two, Oldbury | C116: 1.128 | D116: ='Flood map for planning'!O114 -> 1 | E116: ='Flood map for planning'!P114 -> 0 | F116: ='Flood map for planning'!Q114 -> 0 | G116: ='Present Day Fluvial'!P114 -> 1 | H116: ='Present Day Fluvial'!S114 -> 0 | I116: ='Present Day Fluvial'!R114 -> 0 | J116: ='Present Day Fluvial'!Q114 -> 0 | K116: ='Fluvial + CC'!J114 -> 0 | L116: ='Fluvial + CC'!K114 -> 0 | M116: ='Fluvial + CC'!L114 -> 0 | N116: ='Surface Water'!S114 -> 0 | O116: ='Surface Water'!T114 -> 0.000538727466 | P116: ='Surface Water'!U114 -> 0.07242261626 | Q116: ='Surface Water +CC'!I114 -> 0.0009767783365 | R116: ='Surface Water +CC'!J114 -> 0.1122632852 | S116: ='Reservoir extents'!P114 -> 0 | T116: ='Reservoir extents'!Q114 -> 0 | U116: 0 | V116: 0.694356501 | X116: 0
A117: SEC3-98 | B117: Kelvin Way WBPr35 | C117: 33.9 | D117: ='Flood map for planning'!O115 -> 0.9912959473 | E117: ='Flood map for planning'!P115 -> 0.008704052673 | F117: ='Flood map for planning'!Q115 -> 0 | G117: ='Present Day Fluvial'!P115 -> 1 | H117: ='Present Day Fluvial'!S115 -> 0 | I117: ='Present Day Fluvial'!R115 -> 0 | J117: ='Present Day Fluvial'!Q115 -> 0 | K117: ='Fluvial + CC'!J115 -> 0 | L117: ='Fluvial + CC'!K115 -> 0.008704052688 | M117: ='Fluvial + CC'!L115 -> 0 | N117: ='Surface Water'!S115 -> 0.004784929523 | O117: ='Surface Water'!T115 -> 0.01452796415 | P117: ='Surface Water'!U115 -> 0.0689900293 | Q117: ='Surface Water +CC'!I115 -> 0.05295912702 | R117: ='Surface Water +CC'!J115 -> 0.0938353283 | S117: ='Reservoir extents'!P115 -> 0 | T117: ='Reservoir extents'!Q115 -> 0 | U117: 0 | V117: 0.1476516608 | X117: 0
A118: EMP2-5 | B118: Kings Hill Business Park | C118: 3.268 | D118: ='Flood map for planning'!O116 -> 1 | E118: ='Flood map for planning'!P116 -> 0 | F118: ='Flood map for planning'!Q116 -> 0 | G118: ='Present Day Fluvial'!P116 -> 1 | H118: ='Present Day Fluvial'!S116 -> 0 | I118: ='Present Day Fluvial'!R116 -> 0 | J118: ='Present Day Fluvial'!Q116 -> 0 | K118: ='Fluvial + CC'!J116 -> 0 | L118: ='Fluvial + CC'!K116 -> 0 | M118: ='Fluvial + CC'!L116 -> 0 | N118: ='Surface Water'!S116 -> 0.0058795886 | O118: ='Surface Water'!T116 -> 0.02777933055 | P118: ='Surface Water'!U116 -> 0.1188039862 | Q118: ='Surface Water +CC'!I116 -> 0.09276983177 | R118: ='Surface Water +CC'!J116 -> 0.1514829744 | S118: ='Reservoir extents'!P116 -> 0 | T118: ='Reservoir extents'!Q116 -> 0 | U118: 0 | V118: 0 | X118: 0
A119: SEC3-193 | B119: Kitchener Street, Smethwick | C119: 1.394 | D119: ='Flood map for planning'!O117 -> 1 | E119: ='Flood map for planning'!P117 -> 0 | F119: ='Flood map for planning'!Q117 -> 0 | G119: ='Present Day Fluvial'!P117 -> 1 | H119: ='Present Day Fluvial'!S117 -> 0 | I119: ='Present Day Fluvial'!R117 -> 0 | J119: ='Present Day Fluvial'!Q117 -> 0 | K119: ='Fluvial + CC'!J117 -> 0 | L119: ='Fluvial + CC'!K117 -> 0 | M119: ='Fluvial + CC'!L117 -> 0 | N119: ='Surface Water'!S117 -> 0.0001797662558 | O119: ='Surface Water'!T117 -> 0.0002281656801 | P119: ='Surface Water'!U117 -> 0.07281896986 | Q119: ='Surface Water +CC'!I117 -> 0.03610612912 | R119: ='Surface Water +CC'!J117 -> 0.07552416395 | S119: ='Reservoir extents'!P117 -> 0.01858026622 | T119: ='Reservoir extents'!Q117 -> 0.005828172672 | U119: 0.9881741628 | V119: 0.003899699351 | X119: 0
A120: SEC3-131 | B120: Land & premises Barnfield Rd, Brook St, Bloomfield | C120: 0.835 | D120: ='Flood map for planning'!O118 -> 0 | E120: ='Flood map for planning'!P118 -> 1 | F120: ='Flood map for planning'!Q118 -> 0 | G120: ='Present Day Fluvial'!P118 -> 0 | H120: ='Present Day Fluvial'!S118 -> 1 | I120: ='Present Day Fluvial'!R118 -> 0 | J120: ='Present Day Fluvial'!Q118 -> 0 | K120: ='Fluvial + CC'!J118 -> 0.1637232591 | L120: ='Fluvial + CC'!K118 -> 1 | M120: ='Fluvial + CC'!L118 -> 0 | N120: ='Surface Water'!S118 -> 0.001286657004 | O120: ='Surface Water'!T118 -> 0.00788108321 | P120: ='Surface Water'!U118 -> 0.1787588156 | Q120: ='Surface Water +CC'!I118 -> 0.05034044039 | R120: ='Surface Water +CC'!J118 -> 0.2906825336 | S120: ='Reservoir extents'!P118 -> 0 | T120: ='Reservoir extents'!Q118 -> 0 | U120: 0 | V120: 0 | X120: 0
A121: SEC3-43 | B121: Land at Birmingham Road / Roebuck Lane | C121: 6.806 | D121: ='Flood map for planning'!O119 -> 1 | E121: ='Flood map for planning'!P119 -> 0 | F121: ='Flood map for planning'!Q119 -> 0 | G121: ='Present Day Fluvial'!P119 -> 1 | H121: ='Present Day Fluvial'!S119 -> 0 | I121: ='Present Day Fluvial'!R119 -> 0 | J121: ='Present Day Fluvial'!Q119 -> 0 | K121: ='Fluvial + CC'!J119 -> 0 | L121: ='Fluvial + CC'!K119 -> 0 | M121: ='Fluvial + CC'!L119 -> 0 | N121: ='Surface Water'!S119 -> 0.005869186514 | O121: ='Surface Water'!T119 -> 0.003228012859 | P121: ='Surface Water'!U119 -> 0.06610974559 | Q121: ='Surface Water +CC'!I119 -> 0.0433518676 | R121: ='Surface Water +CC'!J119 -> 0.07735039026 | S121: ='Reservoir extents'!P119 -> 0 | T121: ='Reservoir extents'!Q119 -> 0 | U121: 0.003676188489 | V121: 0.4921431274 | X121: 0
A122: SEC3-156 | B122: Land at corner of Birmingham Road | C122: 0.48 | D122: ='Flood map for planning'!O120 -> 1 | E122: ='Flood map for planning'!P120 -> 0 | F122: ='Flood map for planning'!Q120 -> 0 | G122: ='Present Day Fluvial'!P120 -> 1 | H122: ='Present Day Fluvial'!S120 -> 0 | I122: ='Present Day Fluvial'!R120 -> 0 | J122: ='Present Day Fluvial'!Q120 -> 0 | K122: ='Fluvial + CC'!J120 -> 0 | L122: ='Fluvial + CC'!K120 -> 0 | M122: ='Fluvial + CC'!L120 -> 0 | N122: ='Surface Water'!S120 -> 0 | O122: ='Surface Water'!T120 -> 0.004869297527 | P122: ='Surface Water'!U120 -> 0.002747569908 | Q122: ='Surface Water +CC'!I120 -> 0.00653764222 | R122: ='Surface Water +CC'!J120 -> 0.02763700375 | S122: ='Reservoir extents'!P120 -> 0 | T122: ='Reservoir extents'!Q120 -> 0 | U122: 0 | V122: 0 | X122: 0
A123: SEC3-127 | B123: Land at Doulton Way, bt Factory Rd, Bloomfield Rd, Tipton | C123: 2.759 | D123: ='Flood map for planning'!O121 -> 0.9353003689 | E123: ='Flood map for planning'!P121 -> 0.06469963108 | F123: ='Flood map for planning'!Q121 -> 0 | G123: ='Present Day Fluvial'!P121 -> 0.9356602491 | H123: ='Present Day Fluvial'!S121 -> 0.06433975091 | I123: ='Present Day Fluvial'!R121 -> 0 | J123: ='Present Day Fluvial'!Q121 -> 0 | K123: ='Fluvial + CC'!J121 -> 0 | L123: ='Fluvial + CC'!K121 -> 0.06469963047 | M123: ='Fluvial + CC'!L121 -> 0 | N123: ='Surface Water'!S121 -> 0.0228760764 | O123: ='Surface Water'!T121 -> 0.03083252384 | P123: ='Surface Water'!U121 -> 0.2224571049 | Q123: ='Surface Water +CC'!I121 -> 0.1489035225 | R123: ='Surface Water +CC'!J121 -> 0.4062499513 | S123: ='Reservoir extents'!P121 -> 0 | T123: ='Reservoir extents'!Q121 -> 0 | U123: 0 | V123: 0 | X123: 0
A124: SEC3-42 | B124: Land at Junction 1 / Kenrick Way | C124: 4.146 | D124: ='Flood map for planning'!O122 -> 1 | E124: ='Flood map for planning'!P122 -> 0 | F124: ='Flood map for planning'!Q122 -> 0 | G124: ='Present Day Fluvial'!P122 -> 1 | H124: ='Present Day Fluvial'!S122 -> 0 | I124: ='Present Day Fluvial'!R122 -> 0 | J124: ='Present Day Fluvial'!Q122 -> 0 | K124: ='Fluvial + CC'!J122 -> 0 | L124: ='Fluvial + CC'!K122 -> 0 | M124: ='Fluvial + CC'!L122 -> 0 | N124: ='Surface Water'!S122 -> 0.002607285534 | O124: ='Surface Water'!T122 -> 0.01273382531 | P124: ='Surface Water'!U122 -> 0.06605106802 | Q124: ='Surface Water +CC'!I122 -> 0.04718451783 | R124: ='Surface Water +CC'!J122 -> 0.08537772589 | S124: ='Reservoir extents'!P122 -> 0 | T124: ='Reservoir extents'!Q122 -> 0 | U124: 0 | V124: 0.8636114064 | X124: 0
A125: SEC4-15 | B125: Land at Potters Lane & Stafford St, Weds (5642) | C125: 0.856 | D125: ='Flood map for planning'!O123 -> 1 | E125: ='Flood map for planning'!P123 -> 0 | F125: ='Flood map for planning'!Q123 -> 0 | G125: ='Present Day Fluvial'!P123 -> 1 | H125: ='Present Day Fluvial'!S123 -> 0 | I125: ='Present Day Fluvial'!R123 -> 0 | J125: ='Present Day Fluvial'!Q123 -> 0 | K125: ='Fluvial + CC'!J123 -> 0 | L125: ='Fluvial + CC'!K123 -> 0 | M125: ='Fluvial + CC'!L123 -> 0 | N125: ='Surface Water'!S123 -> 0 | O125: ='Surface Water'!T123 -> 0.0007702107556 | P125: ='Surface Water'!U123 -> 0.03057582293 | Q125: ='Surface Water +CC'!I123 -> 0.0009094988047 | R125: ='Surface Water +CC'!J123 -> 0.03087810161 | S125: ='Reservoir extents'!P123 -> 0 | T125: ='Reservoir extents'!Q123 -> 0 | U125: 0 | V125: 0 | X125: 0
A126: SEC3-118 | B126: Land bt Great Bridge St & William St, Tipton (2965 | C126: 1.081 | D126: ='Flood map for planning'!O124 -> 1 | E126: ='Flood map for planning'!P124 -> 0 | F126: ='Flood map for planning'!Q124 -> 0 | G126: ='Present Day Fluvial'!P124 -> 1 | H126: ='Present Day Fluvial'!S124 -> 0 | I126: ='Present Day Fluvial'!R124 -> 0 | J126: ='Present Day Fluvial'!Q124 -> 0 | K126: ='Fluvial + CC'!J124 -> 0 | L126: ='Fluvial + CC'!K124 -> 0 | M126: ='Fluvial + CC'!L124 -> 0 | N126: ='Surface Water'!S124 -> 0 | O126: ='Surface Water'!T124 -> 0 | P126: ='Surface Water'!U124 -> 0.01837295407 | Q126: ='Surface Water +CC'!I124 -> 0.01284850441 | R126: ='Surface Water +CC'!J124 -> 0.01828753392 | S126: ='Reservoir extents'!P124 -> 0 | T126: ='Reservoir extents'!Q124 -> 0 | U126: 0 | V126: 0 | X126: 0
A127: SEC3-117 | B127: Land by Whitehall Road and Walsall Canal | C127: 1.04 | D127: ='Flood map for planning'!O125 -> 1 | E127: ='Flood map for planning'!P125 -> 0 | F127: ='Flood map for planning'!Q125 -> 0 | G127: ='Present Day Fluvial'!P125 -> 1 | H127: ='Present Day Fluvial'!S125 -> 0 | I127: ='Present Day Fluvial'!R125 -> 0 | J127: ='Present Day Fluvial'!Q125 -> 0 | K127: ='Fluvial + CC'!J125 -> 0 | L127: ='Fluvial + CC'!K125 -> 0 | M127: ='Fluvial + CC'!L125 -> 0 | N127: ='Surface Water'!S125 -> 0 | O127: ='Surface Water'!T125 -> 0 | P127: ='Surface Water'!U125 -> 0.03598441761 | Q127: ='Surface Water +CC'!I125 -> 0.009239852103 | R127: ='Surface Water +CC'!J125 -> 0.03458265377 | S127: ='Reservoir extents'!P125 -> 0 | T127: ='Reservoir extents'!Q125 -> 0 | U127: 0 | V127: 0 | X127: 0
A128: SEC3-31 | B128: land off dudley rd, oldbury | C128: 0.981 | D128: ='Flood map for planning'!O126 -> 1 | E128: ='Flood map for planning'!P126 -> 0 | F128: ='Flood map for planning'!Q126 -> 0 | G128: ='Present Day Fluvial'!P126 -> 1 | H128: ='Present Day Fluvial'!S126 -> 0 | I128: ='Present Day Fluvial'!R126 -> 0 | J128: ='Present Day Fluvial'!Q126 -> 0 | K128: ='Fluvial + CC'!J126 -> 0 | L128: ='Fluvial + CC'!K126 -> 0 | M128: ='Fluvial + CC'!L126 -> 0 | N128: ='Surface Water'!S126 -> 0 | O128: ='Surface Water'!T126 -> 0.0001225327009 | P128: ='Surface Water'!U126 -> 0.004102027898 | Q128: ='Surface Water +CC'!I126 -> 0.0008704677335 | R128: ='Surface Water +CC'!J126 -> 0.03911882487 | S128: ='Reservoir extents'!P126 -> 0 | T128: ='Reservoir extents'!Q126 -> 0 | U128: 0 | V128: 0 | X128: 0
A129: SEC3-65 | B129: Land off Tipton Road, Oldbury | C129: 0.812 | D129: ='Flood map for planning'!O127 -> 1 | E129: ='Flood map for planning'!P127 -> 0 | F129: ='Flood map for planning'!Q127 -> 0 | G129: ='Present Day Fluvial'!P127 -> 1 | H129: ='Present Day Fluvial'!S127 -> 0 | I129: ='Present Day Fluvial'!R127 -> 0 | J129: ='Present Day Fluvial'!Q127 -> 0 | K129: ='Fluvial + CC'!J127 -> 0 | L129: ='Fluvial + CC'!K127 -> 0 | M129: ='Fluvial + CC'!L127 -> 0 | N129: ='Surface Water'!S127 -> 0 | O129: ='Surface Water'!T127 -> 0 | P129: ='Surface Water'!U127 -> 0.07895984738 | Q129: ='Surface Water +CC'!I127 -> 0.04069901028 | R129: ='Surface Water +CC'!J127 -> 0.07895984705 | S129: ='Reservoir extents'!P127 -> 0 | T129: ='Reservoir extents'!Q127 -> 0 | U129: 0 | V129: 0 | X129: 0
A130: SEC3-17 | B130: Leabrook Road, Tipton | C130: 7.479 | D130: ='Flood map for planning'!O128 -> 1 | E130: ='Flood map for planning'!P128 -> 0 | F130: ='Flood map for planning'!Q128 -> 0 | G130: ='Present Day Fluvial'!P128 -> 1 | H130: ='Present Day Fluvial'!S128 -> 0 | I130: ='Present Day Fluvial'!R128 -> 0 | J130: ='Present Day Fluvial'!Q128 -> 0 | K130: ='Fluvial + CC'!J128 -> 0 | L130: ='Fluvial + CC'!K128 -> 0 | M130: ='Fluvial + CC'!L128 -> 0 | N130: ='Surface Water'!S128 -> 0.001712715607 | O130: ='Surface Water'!T128 -> 0.008875330904 | P130: ='Surface Water'!U128 -> 0.05855036719 | Q130: ='Surface Water +CC'!I128 -> 0.03806747635 | R130: ='Surface Water +CC'!J128 -> 0.06779637096 | S130: ='Reservoir extents'!P128 -> 0 | T130: ='Reservoir extents'!Q128 -> 0 | U130: 0 | V130: 0 | X130: 0
A131: SEC1-8 | B131: Legacy 43, Ryder Street, West Bromwich | C131: 0.883 | D131: ='Flood map for planning'!O129 -> 1 | E131: ='Flood map for planning'!P129 -> 0 | F131: ='Flood map for planning'!Q129 -> 0 | G131: ='Present Day Fluvial'!P129 -> 1 | H131: ='Present Day Fluvial'!S129 -> 0 | I131: ='Present Day Fluvial'!R129 -> 0 | J131: ='Present Day Fluvial'!Q129 -> 0 | K131: ='Fluvial + CC'!J129 -> 0 | L131: ='Fluvial + CC'!K129 -> 0 | M131: ='Fluvial + CC'!L129 -> 0 | N131: ='Surface Water'!S129 -> 0 | O131: ='Surface Water'!T129 -> 0 | P131: ='Surface Water'!U129 -> 0.002577964794 | Q131: ='Surface Water +CC'!I129 -> 0 | R131: ='Surface Water +CC'!J129 -> 0.002423608361 | S131: ='Reservoir extents'!P129 -> 0 | T131: ='Reservoir extents'!Q129 -> 0 | U131: 0 | V131: 0 | X131: 0
A132: EMP2-14 | B132: Lidl, Junction 9 (Opus 9) | C132: 8.707 | D132: ='Flood map for planning'!O130 -> 0.3064798944 | E132: ='Flood map for planning'!P130 -> 0.1732192555 | F132: ='Flood map for planning'!Q130 -> 0.5203008502 | G132: ='Present Day Fluvial'!P130 -> 0.3172156142 | H132: ='Present Day Fluvial'!S130 -> 0.1718209132 | I132: ='Present Day Fluvial'!R130 -> 0.06080947595 | J132: ='Present Day Fluvial'!Q130 -> 0.4501539966 | K132: ='Fluvial + CC'!J130 -> 0.599784545 | L132: ='Fluvial + CC'!K130 -> 0.6869854379 | M132: ='Fluvial + CC'!L130 -> 0.5135153998 | N132: ='Surface Water'!S130 -> 0 | O132: ='Surface Water'!T130 -> 0.001517157019 | P132: ='Surface Water'!U130 -> 0.3509598325 | Q132: ='Surface Water +CC'!I130 -> 0.03689435296 | R132: ='Surface Water +CC'!J130 -> 0.4410527794 | S132: ='Reservoir extents'!P130 -> 0 | T132: ='Reservoir extents'!Q130 -> 0.5105374625 | U132: 0 | V132: 0 | X132: 0
A133: SEC3-40 | B133: Newlyn Road, Cradley Heath | C133: 3.411 | D133: ='Flood map for planning'!O131 -> 1 | E133: ='Flood map for planning'!P131 -> 0 | F133: ='Flood map for planning'!Q131 -> 0 | G133: ='Present Day Fluvial'!P131 -> 1 | H133: ='Present Day Fluvial'!S131 -> 0 | I133: ='Present Day Fluvial'!R131 -> 0 | J133: ='Present Day Fluvial'!Q131 -> 0 | K133: ='Fluvial + CC'!J131 -> 0 | L133: ='Fluvial + CC'!K131 -> 0 | M133: ='Fluvial + CC'!L131 -> 0 | N133: ='Surface Water'!S131 -> 0.004224408807 | O133: ='Surface Water'!T131 -> 0.00634535995 | P133: ='Surface Water'!U131 -> 0.02518606082 | Q133: ='Surface Water +CC'!I131 -> 0.01897225225 | R133: ='Surface Water +CC'!J131 -> 0.04103634121 | S133: ='Reservoir extents'!P131 -> 0 | T133: ='Reservoir extents'!Q131 -> 0 | U133: 0 | V133: 0 | X133: 0
A134: SEC3-84 | B134: Old Park Trading Estate, Old Park Rd (2922) | C134: 2.642 | D134: ='Flood map for planning'!O132 -> 1 | E134: ='Flood map for planning'!P132 -> 0 | F134: ='Flood map for planning'!Q132 -> 0 | G134: ='Present Day Fluvial'!P132 -> 1 | H134: ='Present Day Fluvial'!S132 -> 0 | I134: ='Present Day Fluvial'!R132 -> 0 | J134: ='Present Day Fluvial'!Q132 -> 0 | K134: ='Fluvial + CC'!J132 -> 0 | L134: ='Fluvial + CC'!K132 -> 0 | M134: ='Fluvial + CC'!L132 -> 0 | N134: ='Surface Water'!S132 -> 0.03241273337 | O134: ='Surface Water'!T132 -> 0.03416249971 | P134: ='Surface Water'!U132 -> 0.1182961685 | Q134: ='Surface Water +CC'!I132 -> 0.122562726 | R134: ='Surface Water +CC'!J132 -> 0.1836627703 | S134: ='Reservoir extents'!P132 -> 0 | T134: ='Reservoir extents'!Q132 -> 0 | U134: 0 | V134: 0 | X134: 0
A135: SEC3-53 | B135: Oldbury Point Ind Est, Rood End Road | C135: 3.232 | D135: ='Flood map for planning'!O133 -> 1 | E135: ='Flood map for planning'!P133 -> 0 | F135: ='Flood map for planning'!Q133 -> 0 | G135: ='Present Day Fluvial'!P133 -> 1 | H135: ='Present Day Fluvial'!S133 -> 0 | I135: ='Present Day Fluvial'!R133 -> 0 | J135: ='Present Day Fluvial'!Q133 -> 0 | K135: ='Fluvial + CC'!J133 -> 0 | L135: ='Fluvial + CC'!K133 -> 0 | M135: ='Fluvial + CC'!L133 -> 0 | N135: ='Surface Water'!S133 -> 0.01193936312 | O135: ='Surface Water'!T133 -> 0.05567234312 | P135: ='Surface Water'!U133 -> 0.1121443299 | Q135: ='Surface Water +CC'!I133 -> 0.1050190869 | R135: ='Surface Water +CC'!J133 -> 0.1869661653 | S135: ='Reservoir extents'!P133 -> 0 | T135: ='Reservoir extents'!Q133 -> 0 | U135: 0 | V135: 0 | X135: 0
A136: SEC3-150 | B136: Oldbury Rd Ind Est, Oldbury Rd (2994) | C136: 0.574 | D136: ='Flood map for planning'!O134 -> 1 | E136: ='Flood map for planning'!P134 -> 0 | F136: ='Flood map for planning'!Q134 -> 0 | G136: ='Present Day Fluvial'!P134 -> 1 | H136: ='Present Day Fluvial'!S134 -> 0 | I136: ='Present Day Fluvial'!R134 -> 0 | J136: ='Present Day Fluvial'!Q134 -> 0 | K136: ='Fluvial + CC'!J134 -> 0 | L136: ='Fluvial + CC'!K134 -> 0 | M136: ='Fluvial + CC'!L134 -> 0 | N136: ='Surface Water'!S134 -> 0 | O136: ='Surface Water'!T134 -> 0 | P136: ='Surface Water'!U134 -> 0 | Q136: ='Surface Water +CC'!I134 -> 0 | R136: ='Surface Water +CC'!J134 -> 0 | S136: ='Reservoir extents'!P134 -> 0 | T136: ='Reservoir extents'!Q134 -> 0 | U136: 0 | V136: 1 | X136: 0
A137: SEC3-168 | B137: Oldbury Rd, Oldbury (3014) | C137: 2.416 | D137: ='Flood map for planning'!O135 -> 1 | E137: ='Flood map for planning'!P135 -> 0 | F137: ='Flood map for planning'!Q135 -> 0 | G137: ='Present Day Fluvial'!P135 -> 1 | H137: ='Present Day Fluvial'!S135 -> 0 | I137: ='Present Day Fluvial'!R135 -> 0 | J137: ='Present Day Fluvial'!Q135 -> 0 | K137: ='Fluvial + CC'!J135 -> 0 | L137: ='Fluvial + CC'!K135 -> 0 | M137: ='Fluvial + CC'!L135 -> 0 | N137: ='Surface Water'!S135 -> 0 | O137: ='Surface Water'!T135 -> 0 | P137: ='Surface Water'!U135 -> 0.0121174062 | Q137: ='Surface Water +CC'!I135 -> 0.005208037228 | R137: ='Surface Water +CC'!J135 -> 0.01675608013 | S137: ='Reservoir extents'!P135 -> 0 | T137: ='Reservoir extents'!Q135 -> 0 | U137: 0 | V137: 0.3986704583 | X137: 0
A138: SEC3-153 | B138: Oldbury Rd, WB (2384 / WBPr31) | C138: 18.938 | D138: ='Flood map for planning'!O136 -> 1 | E138: ='Flood map for planning'!P136 -> 0 | F138: ='Flood map for planning'!Q136 -> 0 | G138: ='Present Day Fluvial'!P136 -> 1 | H138: ='Present Day Fluvial'!S136 -> 0 | I138: ='Present Day Fluvial'!R136 -> 0 | J138: ='Present Day Fluvial'!Q136 -> 0 | K138: ='Fluvial + CC'!J136 -> 0 | L138: ='Fluvial + CC'!K136 -> 0 | M138: ='Fluvial + CC'!L136 -> 0 | N138: ='Surface Water'!S136 -> 0.004470123982 | O138: ='Surface Water'!T136 -> 0.01438260116 | P138: ='Surface Water'!U136 -> 0.0733794143 | Q138: ='Surface Water +CC'!I136 -> 0.05126950418 | R138: ='Surface Water +CC'!J136 -> 0.09108695258 | S138: ='Reservoir extents'!P136 -> 0 | T138: ='Reservoir extents'!Q136 -> 0 | U138: 0 | V138: 0 | X138: 0
A139: SEC3-191 | B139: Oldfield Trading Estate, Cradley Heath | C139: 1.766 | D139: ='Flood map for planning'!O137 -> 1 | E139: ='Flood map for planning'!P137 -> 0 | F139: ='Flood map for planning'!Q137 -> 0 | G139: ='Present Day Fluvial'!P137 -> 1 | H139: ='Present Day Fluvial'!S137 -> 0 | I139: ='Present Day Fluvial'!R137 -> 0 | J139: ='Present Day Fluvial'!Q137 -> 0 | K139: ='Fluvial + CC'!J137 -> 0 | L139: ='Fluvial + CC'!K137 -> 0 | M139: ='Fluvial + CC'!L137 -> 0 | N139: ='Surface Water'!S137 -> 0.009296244552 | O139: ='Surface Water'!T137 -> 0.0113368836 | P139: ='Surface Water'!U137 -> 0.04229402746 | Q139: ='Surface Water +CC'!I137 -> 0.03788650964 | R139: ='Surface Water +CC'!J137 -> 0.06566509496 | S139: ='Reservoir extents'!P137 -> 0 | T139: ='Reservoir extents'!Q137 -> 0 | U139: 0 | V139: 0 | X139: 0
A140: SEC3-176 | B140: Palmers Timber Site, Station Rd, Old Hill (3043) | C140: 3.149 | D140: ='Flood map for planning'!O138 -> 1 | E140: ='Flood map for planning'!P138 -> 0 | F140: ='Flood map for planning'!Q138 -> 0 | G140: ='Present Day Fluvial'!P138 -> 1 | H140: ='Present Day Fluvial'!S138 -> 0 | I140: ='Present Day Fluvial'!R138 -> 0 | J140: ='Present Day Fluvial'!Q138 -> 0 | K140: ='Fluvial + CC'!J138 -> 0 | L140: ='Fluvial + CC'!K138 -> 0 | M140: ='Fluvial + CC'!L138 -> 0 | N140: ='Surface Water'!S138 -> 0.01024260805 | O140: ='Surface Water'!T138 -> 0.009383000213 | P140: ='Surface Water'!U138 -> 0.1946423715 | Q140: ='Surface Water +CC'!I138 -> 0.1354559796 | R140: ='Surface Water +CC'!J138 -> 0.2271155603 | S140: ='Reservoir extents'!P138 -> 0 | T140: ='Reservoir extents'!Q138 -> 0 | U140: 0 | V140: 0.05247339085 | X140: 0
A141: EMP2-7 | B141: Park Lane Trading Estate, Oldbury | C141: 2.182 | D141: ='Flood map for planning'!O139 -> 0.9971434142 | E141: ='Flood map for planning'!P139 -> 0.002758651931 | F141: ='Flood map for planning'!Q139 -> 9.793385008e-05 | G141: ='Present Day Fluvial'!P139 -> 0.9974578834 | H141: ='Present Day Fluvial'!S139 -> 0.002447706065 | I141: ='Present Day Fluvial'!R139 -> 8.207114671e-06 | J141: ='Present Day Fluvial'!Q139 -> 8.620338062e-05 | K141: ='Fluvial + CC'!J139 -> 0.000400061533 | L141: ='Fluvial + CC'!K139 -> 0.002859720863 | M141: ='Fluvial + CC'!L139 -> 9.441049529e-05 | N141: ='Surface Water'!S139 -> 0.004148395467 | O141: ='Surface Water'!T139 -> 0.03626595917 | P141: ='Surface Water'!U139 -> 0.1442376141 | Q141: ='Surface Water +CC'!I139 -> 0.08502254279 | R141: ='Surface Water +CC'!J139 -> 0.2022368643 | S141: ='Reservoir extents'!P139 -> 0 | T141: ='Reservoir extents'!Q139 -> 0 | U141: 0 | V141: 0 | X141: 0
A142: SEC4-5 | B142: Park Lane West | C142: 2.953 | D142: ='Flood map for planning'!O140 -> 1 | E142: ='Flood map for planning'!P140 -> 0 | F142: ='Flood map for planning'!Q140 -> 0 | G142: ='Present Day Fluvial'!P140 -> 1 | H142: ='Present Day Fluvial'!S140 -> 0 | I142: ='Present Day Fluvial'!R140 -> 0 | J142: ='Present Day Fluvial'!Q140 -> 0 | K142: ='Fluvial + CC'!J140 -> 0 | L142: ='Fluvial + CC'!K140 -> 0 | M142: ='Fluvial + CC'!L140 -> 0 | N142: ='Surface Water'!S140 -> 0 | O142: ='Surface Water'!T140 -> 0.00387398827 | P142: ='Surface Water'!U140 -> 0.07510713078 | Q142: ='Surface Water +CC'!I140 -> 0.03393880735 | R142: ='Surface Water +CC'!J140 -> 0.07911668512 | S142: ='Reservoir extents'!P140 -> 0 | T142: ='Reservoir extents'!Q140 -> 0 | U142: 0 | V142: 0 | X142: 0
A143: SEC3-186 | B143: Park Lane, West Bromwich | C143: 10.104 | D143: ='Flood map for planning'!O141 -> 1 | E143: ='Flood map for planning'!P141 -> 0 | F143: ='Flood map for planning'!Q141 -> 0 | G143: ='Present Day Fluvial'!P141 -> 1 | H143: ='Present Day Fluvial'!S141 -> 0 | I143: ='Present Day Fluvial'!R141 -> 0 | J143: ='Present Day Fluvial'!Q141 -> 0 | K143: ='Fluvial + CC'!J141 -> 0 | L143: ='Fluvial + CC'!K141 -> 0 | M143: ='Fluvial + CC'!L141 -> 0 | N143: ='Surface Water'!S141 -> 0.002971617861 | O143: ='Surface Water'!T141 -> 0.0114503606 | P143: ='Surface Water'!U141 -> 0.07097796389 | Q143: ='Surface Water +CC'!I141 -> 0.04706396181 | R143: ='Surface Water +CC'!J141 -> 0.08949645975 | S143: ='Reservoir extents'!P141 -> 0 | T143: ='Reservoir extents'!Q141 -> 0 | U143: 0 | V143: 0.9963102499 | X143: 0
A144: SEC3-187 | B144: Park Lane, West Bromwich | C144: 2.452 | D144: ='Flood map for planning'!O142 -> 1 | E144: ='Flood map for planning'!P142 -> 0 | F144: ='Flood map for planning'!Q142 -> 0 | G144: ='Present Day Fluvial'!P142 -> 1 | H144: ='Present Day Fluvial'!S142 -> 0 | I144: ='Present Day Fluvial'!R142 -> 0 | J144: ='Present Day Fluvial'!Q142 -> 0 | K144: ='Fluvial + CC'!J142 -> 0 | L144: ='Fluvial + CC'!K142 -> 0 | M144: ='Fluvial + CC'!L142 -> 0 | N144: ='Surface Water'!S142 -> 0 | O144: ='Surface Water'!T142 -> 0 | P144: ='Surface Water'!U142 -> 0.01730345305 | Q144: ='Surface Water +CC'!I142 -> 0.009957647508 | R144: ='Surface Water +CC'!J142 -> 0.01730345305 | S144: ='Reservoir extents'!P142 -> 0 | T144: ='Reservoir extents'!Q142 -> 0 | U144: 0 | V144: 1 | X144: 0
A145: SEC3-184 | B145: Parkroase Estate, Rounds Green Road, Oldbury | C145: 2.588 | D145: ='Flood map for planning'!O143 -> 1 | E145: ='Flood map for planning'!P143 -> 0 | F145: ='Flood map for planning'!Q143 -> 0 | G145: ='Present Day Fluvial'!P143 -> 1 | H145: ='Present Day Fluvial'!S143 -> 0 | I145: ='Present Day Fluvial'!R143 -> 0 | J145: ='Present Day Fluvial'!Q143 -> 0 | K145: ='Fluvial + CC'!J143 -> 0 | L145: ='Fluvial + CC'!K143 -> 0 | M145: ='Fluvial + CC'!L143 -> 0 | N145: ='Surface Water'!S143 -> 0 | O145: ='Surface Water'!T143 -> 0 | P145: ='Surface Water'!U143 -> 0.02277598456 | Q145: ='Surface Water +CC'!I143 -> 0.00950867687 | R145: ='Surface Water +CC'!J143 -> 0.03178520109 | S145: ='Reservoir extents'!P143 -> 0 | T145: ='Reservoir extents'!Q143 -> 0 | U145: 0 | V145: 0 | X145: 0
A146: SEC3-105 | B146: Parsonage Street, Oldbury | C146: 10.189 | D146: ='Flood map for planning'!O144 -> 1 | E146: ='Flood map for planning'!P144 -> 0 | F146: ='Flood map for planning'!Q144 -> 0 | G146: ='Present Day Fluvial'!P144 -> 1 | H146: ='Present Day Fluvial'!S144 -> 0 | I146: ='Present Day Fluvial'!R144 -> 0 | J146: ='Present Day Fluvial'!Q144 -> 0 | K146: ='Fluvial + CC'!J144 -> 0 | L146: ='Fluvial + CC'!K144 -> 0 | M146: ='Fluvial + CC'!L144 -> 0 | N146: ='Surface Water'!S144 -> 0.01257529607 | O146: ='Surface Water'!T144 -> 0.03117851436 | P146: ='Surface Water'!U144 -> 0.1172334317 | Q146: ='Surface Water +CC'!I144 -> 0.1170884906 | R146: ='Surface Water +CC'!J144 -> 0.1730186603 | S146: ='Reservoir extents'!P144 -> 0 | T146: ='Reservoir extents'!Q144 -> 0 | U146: 0 | V146: 0.2696352498 | X146: 0
A147: SEC3-173 | B147: Pennington Close | C147: 4.22 | D147: ='Flood map for planning'!O145 -> 1 | E147: ='Flood map for planning'!P145 -> 0 | F147: ='Flood map for planning'!Q145 -> 0 | G147: ='Present Day Fluvial'!P145 -> 1 | H147: ='Present Day Fluvial'!S145 -> 0 | I147: ='Present Day Fluvial'!R145 -> 0 | J147: ='Present Day Fluvial'!Q145 -> 0 | K147: ='Fluvial + CC'!J145 -> 0 | L147: ='Fluvial + CC'!K145 -> 0 | M147: ='Fluvial + CC'!L145 -> 0 | N147: ='Surface Water'!S145 -> 0.00347597255 | O147: ='Surface Water'!T145 -> 0.02400605106 | P147: ='Surface Water'!U145 -> 0.2187200093 | Q147: ='Surface Water +CC'!I145 -> 0.1171643026 | R147: ='Surface Water +CC'!J145 -> 0.2422190812 | S147: ='Reservoir extents'!P145 -> 0 | T147: ='Reservoir extents'!Q145 -> 0 | U147: 0 | V147: 0 | X147: 0
A148: SEC4-13 | B148: Ph 9, The Parkway, bt Stafford St/ Victoria st/ Po | C148: 0.942 | D148: ='Flood map for planning'!O146 -> 1 | E148: ='Flood map for planning'!P146 -> 0 | F148: ='Flood map for planning'!Q146 -> 0 | G148: ='Present Day Fluvial'!P146 -> 1 | H148: ='Present Day Fluvial'!S146 -> 0 | I148: ='Present Day Fluvial'!R146 -> 0 | J148: ='Present Day Fluvial'!Q146 -> 0 | K148: ='Fluvial + CC'!J146 -> 0 | L148: ='Fluvial + CC'!K146 -> 0 | M148: ='Fluvial + CC'!L146 -> 0 | N148: ='Surface Water'!S146 -> 0.06074181027 | O148: ='Surface Water'!T146 -> 0.1176607094 | P148: ='Surface Water'!U146 -> 0.2361708343 | Q148: ='Surface Water +CC'!I146 -> 0.3045585872 | R148: ='Surface Water +CC'!J146 -> 0.4141485854 | S148: ='Reservoir extents'!P146 -> 0 | T148: ='Reservoir extents'!Q146 -> 0 | U148: 0 | V148: 0 | X148: 0
A149: SEC3-171 | B149: Phoenix St / Belper Ind Est Greets Green Road, Wes | C149: 5.568 | D149: ='Flood map for planning'!O147 -> 1 | E149: ='Flood map for planning'!P147 -> 0 | F149: ='Flood map for planning'!Q147 -> 0 | G149: ='Present Day Fluvial'!P147 -> 1 | H149: ='Present Day Fluvial'!S147 -> 0 | I149: ='Present Day Fluvial'!R147 -> 0 | J149: ='Present Day Fluvial'!Q147 -> 0 | K149: ='Fluvial + CC'!J147 -> 0 | L149: ='Fluvial + CC'!K147 -> 0 | M149: ='Fluvial + CC'!L147 -> 0 | N149: ='Surface Water'!S147 -> 0.00171536577 | O149: ='Surface Water'!T147 -> 0.01249097229 | P149: ='Surface Water'!U147 -> 0.07021799708 | Q149: ='Surface Water +CC'!I147 -> 0.03422513512 | R149: ='Surface Water +CC'!J147 -> 0.0800515875 | S149: ='Reservoir extents'!P147 -> 0 | T149: ='Reservoir extents'!Q147 -> 0 | U149: 0 | V149: 0 | X149: 0
A150: SEC3-172 | B150: Phoenix Street (west), West Bromwich | C150: 3.451 | D150: ='Flood map for planning'!O148 -> 1 | E150: ='Flood map for planning'!P148 -> 0 | F150: ='Flood map for planning'!Q148 -> 0 | G150: ='Present Day Fluvial'!P148 -> 1 | H150: ='Present Day Fluvial'!S148 -> 0 | I150: ='Present Day Fluvial'!R148 -> 0 | J150: ='Present Day Fluvial'!Q148 -> 0 | K150: ='Fluvial + CC'!J148 -> 0 | L150: ='Fluvial + CC'!K148 -> 0 | M150: ='Fluvial + CC'!L148 -> 0 | N150: ='Surface Water'!S148 -> 0 | O150: ='Surface Water'!T148 -> 0.0001720886286 | P150: ='Surface Water'!U148 -> 0.04932183648 | Q150: ='Surface Water +CC'!I148 -> 0.0115807058 | R150: ='Surface Water +CC'!J148 -> 0.04763766824 | S150: ='Reservoir extents'!P148 -> 0 | T150: ='Reservoir extents'!Q148 -> 0 | U150: 0 | V150: 0 | X150: 0
A151: SEC3-70 | B151: Pikehelve Street, Hill Top, West Bromwich | C151: 5.93 | D151: ='Flood map for planning'!O149 -> 1 | E151: ='Flood map for planning'!P149 -> 0 | F151: ='Flood map for planning'!Q149 -> 0 | G151: ='Present Day Fluvial'!P149 -> 1 | H151: ='Present Day Fluvial'!S149 -> 0 | I151: ='Present Day Fluvial'!R149 -> 0 | J151: ='Present Day Fluvial'!Q149 -> 0 | K151: ='Fluvial + CC'!J149 -> 0 | L151: ='Fluvial + CC'!K149 -> 0 | M151: ='Fluvial + CC'!L149 -> 0 | N151: ='Surface Water'!S149 -> 0.002632882384 | O151: ='Surface Water'!T149 -> 0.002352320952 | P151: ='Surface Water'!U149 -> 0.04758567779 | Q151: ='Surface Water +CC'!I149 -> 0.0238425611 | R151: ='Surface Water +CC'!J149 -> 0.05216582291 | S151: ='Reservoir extents'!P149 -> 0 | T151: ='Reservoir extents'!Q149 -> 0 | U151: 0 | V151: 0 | X151: 0
A152: SEC3-74 | B152: Popes Lane, Oldbury | C152: 10.856 | D152: ='Flood map for planning'!O150 -> 1 | E152: ='Flood map for planning'!P150 -> 0 | F152: ='Flood map for planning'!Q150 -> 0 | G152: ='Present Day Fluvial'!P150 -> 1 | H152: ='Present Day Fluvial'!S150 -> 0 | I152: ='Present Day Fluvial'!R150 -> 0 | J152: ='Present Day Fluvial'!Q150 -> 0 | K152: ='Fluvial + CC'!J150 -> 0 | L152: ='Fluvial + CC'!K150 -> 0 | M152: ='Fluvial + CC'!L150 -> 0 | N152: ='Surface Water'!S150 -> 0.003233791031 | O152: ='Surface Water'!T150 -> 0.007149078772 | P152: ='Surface Water'!U150 -> 0.1490328142 | Q152: ='Surface Water +CC'!I150 -> 0.04460260676 | R152: ='Surface Water +CC'!J150 -> 0.1709087763 | S152: ='Reservoir extents'!P150 -> 0 | T152: ='Reservoir extents'!Q150 -> 0 | U152: 0 | V152: 0 | X152: 0
A153: SEC3-75 | B153: Popes Lane, Oldbury | C153: 2.919 | D153: ='Flood map for planning'!O151 -> 1 | E153: ='Flood map for planning'!P151 -> 0 | F153: ='Flood map for planning'!Q151 -> 0 | G153: ='Present Day Fluvial'!P151 -> 1 | H153: ='Present Day Fluvial'!S151 -> 0 | I153: ='Present Day Fluvial'!R151 -> 0 | J153: ='Present Day Fluvial'!Q151 -> 0 | K153: ='Fluvial + CC'!J151 -> 0 | L153: ='Fluvial + CC'!K151 -> 0 | M153: ='Fluvial + CC'!L151 -> 0 | N153: ='Surface Water'!S151 -> 0.003304729146 | O153: ='Surface Water'!T151 -> 0.004145801673 | P153: ='Surface Water'!U151 -> 0.07742915455 | Q153: ='Surface Water +CC'!I151 -> 0.04715969415 | R153: ='Surface Water +CC'!J151 -> 0.08948163762 | S153: ='Reservoir extents'!P151 -> 0 | T153: ='Reservoir extents'!Q151 -> 0 | U153: 0 | V153: 0.06945144839 | X153: 0
A154: SEC3-10 | B154: Portway Rd, Weds (5129) | C154: 3.782 | D154: ='Flood map for planning'!O152 -> 1 | E154: ='Flood map for planning'!P152 -> 0 | F154: ='Flood map for planning'!Q152 -> 0 | G154: ='Present Day Fluvial'!P152 -> 1 | H154: ='Present Day Fluvial'!S152 -> 0 | I154: ='Present Day Fluvial'!R152 -> 0 | J154: ='Present Day Fluvial'!Q152 -> 0 | K154: ='Fluvial + CC'!J152 -> 0 | L154: ='Fluvial + CC'!K152 -> 0 | M154: ='Fluvial + CC'!L152 -> 0 | N154: ='Surface Water'!S152 -> 0.02991466516 | O154: ='Surface Water'!T152 -> 0.02288912594 | P154: ='Surface Water'!U152 -> 0.1716256406 | Q154: ='Surface Water +CC'!I152 -> 0.111732937 | R154: ='Surface Water +CC'!J152 -> 0.2158481381 | S154: ='Reservoir extents'!P152 -> 0 | T154: ='Reservoir extents'!Q152 -> 0 | U154: 0 | V154: 0 | X154: 0
A155: SEC3-81 | B155: Portway Rd, Weds (5129) | C155: 4.526 | D155: ='Flood map for planning'!O153 -> 1 | E155: ='Flood map for planning'!P153 -> 0 | F155: ='Flood map for planning'!Q153 -> 0 | G155: ='Present Day Fluvial'!P153 -> 1 | H155: ='Present Day Fluvial'!S153 -> 0 | I155: ='Present Day Fluvial'!R153 -> 0 | J155: ='Present Day Fluvial'!Q153 -> 0 | K155: ='Fluvial + CC'!J153 -> 0 | L155: ='Fluvial + CC'!K153 -> 0 | M155: ='Fluvial + CC'!L153 -> 0 | N155: ='Surface Water'!S153 -> 0.006279961441 | O155: ='Surface Water'!T153 -> 0.01282473494 | P155: ='Surface Water'!U153 -> 0.1033022726 | Q155: ='Surface Water +CC'!I153 -> 0.06632642788 | R155: ='Surface Water +CC'!J153 -> 0.120046512 | S155: ='Reservoir extents'!P153 -> 0 | T155: ='Reservoir extents'!Q153 -> 0 | U155: 0 | V155: 0 | X155: 0
A156: SEC3-188 | B156: Portway Road | C156: 3.028 | D156: ='Flood map for planning'!O154 -> 0.999189943 | E156: ='Flood map for planning'!P154 -> 0.0005740747424 | F156: ='Flood map for planning'!Q154 -> 0.0002359822672 | G156: ='Present Day Fluvial'!P154 -> 0.9991956045 | H156: ='Present Day Fluvial'!S154 -> 0.0005711638702 | I156: ='Present Day Fluvial'!R154 -> 0.0001441004156 | J156: ='Present Day Fluvial'!Q154 -> 8.91311681e-05 | K156: ='Fluvial + CC'!J154 -> 0.0002482256223 | L156: ='Fluvial + CC'!K154 -> 0.0008108500448 | M156: ='Fluvial + CC'!L154 -> 0.0002332315837 | N156: ='Surface Water'!S154 -> 0 | O156: ='Surface Water'!T154 -> 0.0113686722 | P156: ='Surface Water'!U154 -> 0.1077033807 | Q156: ='Surface Water +CC'!I154 -> 0.05405783214 | R156: ='Surface Water +CC'!J154 -> 0.1352242981 | S156: ='Reservoir extents'!P154 -> 0 | T156: ='Reservoir extents'!Q154 -> 0 | U156: 0 | V156: 0 | X156: 0
A157: SEC3-158 | B157: Portway Road Industrial Estate | C157: 2.128 | D157: ='Flood map for planning'!O155 -> 1 | E157: ='Flood map for planning'!P155 -> 0 | F157: ='Flood map for planning'!Q155 -> 0 | G157: ='Present Day Fluvial'!P155 -> 1 | H157: ='Present Day Fluvial'!S155 -> 0 | I157: ='Present Day Fluvial'!R155 -> 0 | J157: ='Present Day Fluvial'!Q155 -> 0 | K157: ='Fluvial + CC'!J155 -> 0 | L157: ='Fluvial + CC'!K155 -> 0 | M157: ='Fluvial + CC'!L155 -> 0 | N157: ='Surface Water'!S155 -> 0 | O157: ='Surface Water'!T155 -> 0.02607933769 | P157: ='Surface Water'!U155 -> 0.1338712303 | Q157: ='Surface Water +CC'!I155 -> 0.1017294356 | R157: ='Surface Water +CC'!J155 -> 0.171226933 | S157: ='Reservoir extents'!P155 -> 0 | T157: ='Reservoir extents'!Q155 -> 0 | U157: 0 | V157: 0 | X157: 0
A158: SEC4-11 | B158: Potters Lane, Wednesbury (actually between Stafford St/ Albert St) | C158: 0.395 | D158: ='Flood map for planning'!O156 -> 1 | E158: ='Flood map for planning'!P156 -> 0 | F158: ='Flood map for planning'!Q156 -> 0 | G158: ='Present Day Fluvial'!P156 -> 1 | H158: ='Present Day Fluvial'!S156 -> 0 | I158: ='Present Day Fluvial'!R156 -> 0 | J158: ='Present Day Fluvial'!Q156 -> 0 | K158: ='Fluvial + CC'!J156 -> 0 | L158: ='Fluvial + CC'!K156 -> 0 | M158: ='Fluvial + CC'!L156 -> 0 | N158: ='Surface Water'!S156 -> 0 | O158: ='Surface Water'!T156 -> 0 | P158: ='Surface Water'!U156 -> 4.433221222e-05 | Q158: ='Surface Water +CC'!I156 -> 0 | R158: ='Surface Water +CC'!J156 -> 4.433047656e-05 | S158: ='Reservoir extents'!P156 -> 0 | T158: ='Reservoir extents'!Q156 -> 0 | U158: 0 | V158: 0 | X158: 0
A159: SEC3-141 | B159: Powke Lane (east side) | C159: 3.507 | D159: ='Flood map for planning'!O157 -> 1 | E159: ='Flood map for planning'!P157 -> 0 | F159: ='Flood map for planning'!Q157 -> 0 | G159: ='Present Day Fluvial'!P157 -> 1 | H159: ='Present Day Fluvial'!S157 -> 0 | I159: ='Present Day Fluvial'!R157 -> 0 | J159: ='Present Day Fluvial'!Q157 -> 0 | K159: ='Fluvial + CC'!J157 -> 0 | L159: ='Fluvial + CC'!K157 -> 0 | M159: ='Fluvial + CC'!L157 -> 0 | N159: ='Surface Water'!S157 -> 0 | O159: ='Surface Water'!T157 -> 0 | P159: ='Surface Water'!U157 -> 0.06148270847 | Q159: ='Surface Water +CC'!I157 -> 0.01416844942 | R159: ='Surface Water +CC'!J157 -> 0.07120882785 | S159: ='Reservoir extents'!P157 -> 0 | T159: ='Reservoir extents'!Q157 -> 0 | U159: 0 | V159: 0 | X159: 0
A160: SEC3-140 | B160: Powke Lane (west side) | C160: 6.382 | D160: ='Flood map for planning'!O158 -> 1 | E160: ='Flood map for planning'!P158 -> 0 | F160: ='Flood map for planning'!Q158 -> 0 | G160: ='Present Day Fluvial'!P158 -> 1 | H160: ='Present Day Fluvial'!S158 -> 0 | I160: ='Present Day Fluvial'!R158 -> 0 | J160: ='Present Day Fluvial'!Q158 -> 0 | K160: ='Fluvial + CC'!J158 -> 0 | L160: ='Fluvial + CC'!K158 -> 0 | M160: ='Fluvial + CC'!L158 -> 0 | N160: ='Surface Water'!S158 -> 0.00224009174 | O160: ='Surface Water'!T158 -> 0.02906157112 | P160: ='Surface Water'!U158 -> 0.1107990787 | Q160: ='Surface Water +CC'!I158 -> 0.08985090401 | R160: ='Surface Water +CC'!J158 -> 0.1540309799 | S160: ='Reservoir extents'!P158 -> 0 | T160: ='Reservoir extents'!Q158 -> 0 | U160: 0 | V160: 0 | X160: 0
A161: SEC3-179 | B161: Powke Lane Industrial Estate, Cradley Heath | C161: 2.181 | D161: ='Flood map for planning'!O159 -> 1 | E161: ='Flood map for planning'!P159 -> 0 | F161: ='Flood map for planning'!Q159 -> 0 | G161: ='Present Day Fluvial'!P159 -> 1 | H161: ='Present Day Fluvial'!S159 -> 0 | I161: ='Present Day Fluvial'!R159 -> 0 | J161: ='Present Day Fluvial'!Q159 -> 0 | K161: ='Fluvial + CC'!J159 -> 0 | L161: ='Fluvial + CC'!K159 -> 0 | M161: ='Fluvial + CC'!L159 -> 0 | N161: ='Surface Water'!S159 -> 0.1702886115 | O161: ='Surface Water'!T159 -> 0.1001384538 | P161: ='Surface Water'!U159 -> 0.2553060326 | Q161: ='Surface Water +CC'!I159 -> 0.4776544898 | R161: ='Surface Water +CC'!J159 -> 0.5341434529 | S161: ='Reservoir extents'!P159 -> 0 | T161: ='Reservoir extents'!Q159 -> 0 | U161: 0 | V161: 0 | X161: 0
A162: SEC3-142 | B162: Powke Lane/ Doulton Road | C162: 9.114 | D162: ='Flood map for planning'!O160 -> 1 | E162: ='Flood map for planning'!P160 -> 0 | F162: ='Flood map for planning'!Q160 -> 0 | G162: ='Present Day Fluvial'!P160 -> 1 | H162: ='Present Day Fluvial'!S160 -> 0 | I162: ='Present Day Fluvial'!R160 -> 0 | J162: ='Present Day Fluvial'!Q160 -> 0 | K162: ='Fluvial + CC'!J160 -> 0 | L162: ='Fluvial + CC'!K160 -> 0 | M162: ='Fluvial + CC'!L160 -> 0 | N162: ='Surface Water'!S160 -> 0.01746223264 | O162: ='Surface Water'!T160 -> 0.03170088878 | P162: ='Surface Water'!U160 -> 0.1302802712 | Q162: ='Surface Water +CC'!I160 -> 0.1033840921 | R162: ='Surface Water +CC'!J160 -> 0.1945349483 | S162: ='Reservoir extents'!P160 -> 0 | T162: ='Reservoir extents'!Q160 -> 0 | U162: 0 | V162: 0 | X162: 0
A163: SEC-145 | B163: Princes End Garage | C163: 0.191 | D163: ='Flood map for planning'!O161 -> 1 | E163: ='Flood map for planning'!P161 -> 0 | F163: ='Flood map for planning'!Q161 -> 0 | G163: ='Present Day Fluvial'!P161 -> 1 | H163: ='Present Day Fluvial'!S161 -> 0 | I163: ='Present Day Fluvial'!R161 -> 0 | J163: ='Present Day Fluvial'!Q161 -> 0 | K163: ='Fluvial + CC'!J161 -> 0 | L163: ='Fluvial + CC'!K161 -> 0 | M163: ='Fluvial + CC'!L161 -> 0 | N163: ='Surface Water'!S161 -> 0 | O163: ='Surface Water'!T161 -> 0.04801357659 | P163: ='Surface Water'!U161 -> 0.03654727244 | Q163: ='Surface Water +CC'!I161 -> 0.06681980713 | R163: ='Surface Water +CC'!J161 -> 0.08456085619 | S163: ='Reservoir extents'!P161 -> 0 | T163: ='Reservoir extents'!Q161 -> 0 | U163: 0 | V163: 0 | X163: 0
A164: SEC3-111 | B164: Purity Soft Drinks Limited, Mounts Road | C164: 0.347 | D164: ='Flood map for planning'!O162 -> 1 | E164: ='Flood map for planning'!P162 -> 0 | F164: ='Flood map for planning'!Q162 -> 0 | G164: ='Present Day Fluvial'!P162 -> 1 | H164: ='Present Day Fluvial'!S162 -> 0 | I164: ='Present Day Fluvial'!R162 -> 0 | J164: ='Present Day Fluvial'!Q162 -> 0 | K164: ='Fluvial + CC'!J162 -> 0 | L164: ='Fluvial + CC'!K162 -> 0 | M164: ='Fluvial + CC'!L162 -> 0 | N164: ='Surface Water'!S162 -> 0 | O164: ='Surface Water'!T162 -> 0 | P164: ='Surface Water'!U162 -> 0.005790770466 | Q164: ='Surface Water +CC'!I162 -> 0 | R164: ='Surface Water +CC'!J162 -> 0.005790774571 | S164: ='Reservoir extents'!P162 -> 0 | T164: ='Reservoir extents'!Q162 -> 0 | U164: 0 | V164: 0 | X164: 0
A165: SEC3-94 | B165: Rabone Lane, Smethwick (2372) | C165: 4.736 | D165: ='Flood map for planning'!O163 -> 1 | E165: ='Flood map for planning'!P163 -> 0 | F165: ='Flood map for planning'!Q163 -> 0 | G165: ='Present Day Fluvial'!P163 -> 1 | H165: ='Present Day Fluvial'!S163 -> 0 | I165: ='Present Day Fluvial'!R163 -> 0 | J165: ='Present Day Fluvial'!Q163 -> 0 | K165: ='Fluvial + CC'!J163 -> 0 | L165: ='Fluvial + CC'!K163 -> 0 | M165: ='Fluvial + CC'!L163 -> 0 | N165: ='Surface Water'!S163 -> 0.01306280511 | O165: ='Surface Water'!T163 -> 0.02263437235 | P165: ='Surface Water'!U163 -> 0.2642738356 | Q165: ='Surface Water +CC'!I163 -> 0.2849175511 | R165: ='Surface Water +CC'!J163 -> 0.3027850172 | S165: ='Reservoir extents'!P163 -> 0 | T165: ='Reservoir extents'!Q163 -> 0 | U165: 0.001068665774 | V165: 0.2849917067 | X165: 0
A166: SEC3-72 | B166: Rabone Park | C166: 3.948 | D166: ='Flood map for planning'!O164 -> 1 | E166: ='Flood map for planning'!P164 -> 0 | F166: ='Flood map for planning'!Q164 -> 0 | G166: ='Present Day Fluvial'!P164 -> 1 | H166: ='Present Day Fluvial'!S164 -> 0 | I166: ='Present Day Fluvial'!R164 -> 0 | J166: ='Present Day Fluvial'!Q164 -> 0 | K166: ='Fluvial + CC'!J164 -> 0 | L166: ='Fluvial + CC'!K164 -> 0 | M166: ='Fluvial + CC'!L164 -> 0 | N166: ='Surface Water'!S164 -> 0.003752080993 | O166: ='Surface Water'!T164 -> 0.002839412644 | P166: ='Surface Water'!U164 -> 0.05298878499 | Q166: ='Surface Water +CC'!I164 -> 0.03226756173 | R166: ='Surface Water +CC'!J164 -> 0.06321776603 | S166: ='Reservoir extents'!P164 -> 0 | T166: ='Reservoir extents'!Q164 -> 0 | U166: 0.01478721064 | V166: 0.8649269247 | X166: 0
A167: SEC3-48 | B167: Reddal Hill Rd/ Newtown St, Cradley Heath | C167: 4.452 | D167: ='Flood map for planning'!O165 -> 0.9915640773 | E167: ='Flood map for planning'!P165 -> 0.002886115141 | F167: ='Flood map for planning'!Q165 -> 0.005549807552 | G167: ='Present Day Fluvial'!P165 -> 0.968875687 | H167: ='Present Day Fluvial'!S165 -> 3.346004029e-13 | I167: ='Present Day Fluvial'!R165 -> 1.67397346e-13 | J167: ='Present Day Fluvial'!Q165 -> 0.03112431305 | K167: ='Fluvial + CC'!J165 -> 0.008435922778 | L167: ='Fluvial + CC'!K165 -> 0.008435922778 | M167: ='Fluvial + CC'!L165 -> 0.031230868 | N167: ='Surface Water'!S165 -> 0.002219973419 | O167: ='Surface Water'!T165 -> 0.01204998017 | P167: ='Surface Water'!U165 -> 0.013979572 | Q167: ='Surface Water +CC'!I165 -> 0.02253242827 | R167: ='Surface Water +CC'!J165 -> 0.02974742852 | S167: ='Reservoir extents'!P165 -> 0 | T167: ='Reservoir extents'!Q165 -> 0 | U167: 0.3812320659 | V167: 0 | X167: 0
A168: EMP2-1 | B168: Richmond Street, West Bromwich | C168: 10.239 | D168: ='Flood map for planning'!O166 -> 1 | E168: ='Flood map for planning'!P166 -> 0 | F168: ='Flood map for planning'!Q166 -> 0 | G168: ='Present Day Fluvial'!P166 -> 1 | H168: ='Present Day Fluvial'!S166 -> 0 | I168: ='Present Day Fluvial'!R166 -> 0 | J168: ='Present Day Fluvial'!Q166 -> 0 | K168: ='Fluvial + CC'!J166 -> 0 | L168: ='Fluvial + CC'!K166 -> 0 | M168: ='Fluvial + CC'!L166 -> 0 | N168: ='Surface Water'!S166 -> 0.01078968951 | O168: ='Surface Water'!T166 -> 0.0392222314 | P168: ='Surface Water'!U166 -> 0.09871053288 | Q168: ='Surface Water +CC'!I166 -> 0.09399273328 | R168: ='Surface Water +CC'!J166 -> 0.1479832322 | S168: ='Reservoir extents'!P166 -> 0 | T168: ='Reservoir extents'!Q166 -> 0 | U168: 0 | V168: 0 | X168: 0
A169: SEC3-2 | B169: Ridgacre Road (north) | C169: 0.802 | D169: ='Flood map for planning'!O167 -> 1 | E169: ='Flood map for planning'!P167 -> 0 | F169: ='Flood map for planning'!Q167 -> 0 | G169: ='Present Day Fluvial'!P167 -> 1 | H169: ='Present Day Fluvial'!S167 -> 0 | I169: ='Present Day Fluvial'!R167 -> 0 | J169: ='Present Day Fluvial'!Q167 -> 0 | K169: ='Fluvial + CC'!J167 -> 0 | L169: ='Fluvial + CC'!K167 -> 0 | M169: ='Fluvial + CC'!L167 -> 0 | N169: ='Surface Water'!S167 -> 0 | O169: ='Surface Water'!T167 -> 0 | P169: ='Surface Water'!U167 -> 0.003575825749 | Q169: ='Surface Water +CC'!I167 -> 0.0009311183774 | R169: ='Surface Water +CC'!J167 -> 0.003575828634 | S169: ='Reservoir extents'!P167 -> 0 | T169: ='Reservoir extents'!Q167 -> 0 | U169: 0 | V169: 0 | X169: 0
A170: SEC3-3 | B170: Ridgacre Road (south) | C170: 1.052 | D170: ='Flood map for planning'!O168 -> 1 | E170: ='Flood map for planning'!P168 -> 0 | F170: ='Flood map for planning'!Q168 -> 0 | G170: ='Present Day Fluvial'!P168 -> 1 | H170: ='Present Day Fluvial'!S168 -> 0 | I170: ='Present Day Fluvial'!R168 -> 0 | J170: ='Present Day Fluvial'!Q168 -> 0 | K170: ='Fluvial + CC'!J168 -> 0 | L170: ='Fluvial + CC'!K168 -> 0 | M170: ='Fluvial + CC'!L168 -> 0 | N170: ='Surface Water'!S168 -> 0 | O170: ='Surface Water'!T168 -> 0 | P170: ='Surface Water'!U168 -> 0.001557620168 | Q170: ='Surface Water +CC'!I168 -> 0 | R170: ='Surface Water +CC'!J168 -> 0.001557621069 | S170: ='Reservoir extents'!P168 -> 0 | T170: ='Reservoir extents'!Q168 -> 0 | U170: 0 | V170: 0 | X170: 0
A171: SEC3-107 | B171: Ridgacre Road Church Lane, West Bromwich (New build) (former Express and Star) | C171: 1.422 | D171: ='Flood map for planning'!O169 -> 1 | E171: ='Flood map for planning'!P169 -> 0 | F171: ='Flood map for planning'!Q169 -> 0 | G171: ='Present Day Fluvial'!P169 -> 1 | H171: ='Present Day Fluvial'!S169 -> 0 | I171: ='Present Day Fluvial'!R169 -> 0 | J171: ='Present Day Fluvial'!Q169 -> 0 | K171: ='Fluvial + CC'!J169 -> 0 | L171: ='Fluvial + CC'!K169 -> 0 | M171: ='Fluvial + CC'!L169 -> 0 | N171: ='Surface Water'!S169 -> 0.02139124987 | O171: ='Surface Water'!T169 -> 0.0309610195 | P171: ='Surface Water'!U169 -> 0.09570940824 | Q171: ='Surface Water +CC'!I169 -> 0.078286345 | R171: ='Surface Water +CC'!J169 -> 0.1480636195 | S171: ='Reservoir extents'!P169 -> 0 | T171: ='Reservoir extents'!Q169 -> 0 | U171: 0 | V171: 0 | X171: 0
A172: SEC3-108 | B172: Ridgacre Road Church Lane, West Bromwich (old part) | C172: 0.924 | D172: ='Flood map for planning'!O170 -> 1 | E172: ='Flood map for planning'!P170 -> 0 | F172: ='Flood map for planning'!Q170 -> 0 | G172: ='Present Day Fluvial'!P170 -> 1 | H172: ='Present Day Fluvial'!S170 -> 0 | I172: ='Present Day Fluvial'!R170 -> 0 | J172: ='Present Day Fluvial'!Q170 -> 0 | K172: ='Fluvial + CC'!J170 -> 0 | L172: ='Fluvial + CC'!K170 -> 0 | M172: ='Fluvial + CC'!L170 -> 0 | N172: ='Surface Water'!S170 -> 0 | O172: ='Surface Water'!T170 -> 0 | P172: ='Surface Water'!U170 -> 0.05127240398 | Q172: ='Surface Water +CC'!I170 -> 0 | R172: ='Surface Water +CC'!J170 -> 0.05083925622 | S172: ='Reservoir extents'!P170 -> 0 | T172: ='Reservoir extents'!Q170 -> 0 | U172: 0 | V172: 0 | X172: 0
A173: SEC3-32 | B173: Ridgarce Road, West Bromwich | C173: 1.139 | D173: ='Flood map for planning'!O171 -> 1 | E173: ='Flood map for planning'!P171 -> 0 | F173: ='Flood map for planning'!Q171 -> 0 | G173: ='Present Day Fluvial'!P171 -> 1 | H173: ='Present Day Fluvial'!S171 -> 0 | I173: ='Present Day Fluvial'!R171 -> 0 | J173: ='Present Day Fluvial'!Q171 -> 0 | K173: ='Fluvial + CC'!J171 -> 0 | L173: ='Fluvial + CC'!K171 -> 0 | M173: ='Fluvial + CC'!L171 -> 0 | N173: ='Surface Water'!S171 -> 0 | O173: ='Surface Water'!T171 -> 0.01018975334 | P173: ='Surface Water'!U171 -> 0.04984979812 | Q173: ='Surface Water +CC'!I171 -> 0.02740615339 | R173: ='Surface Water +CC'!J171 -> 0.06039090604 | S173: ='Reservoir extents'!P171 -> 0 | T173: ='Reservoir extents'!Q171 -> 0 | U173: 0 | V173: 0 | X173: 0
A174: SEC3-33 | B174: Ridgarce Road, West Bromwich | C174: 1.641 | D174: ='Flood map for planning'!O172 -> 1 | E174: ='Flood map for planning'!P172 -> 0 | F174: ='Flood map for planning'!Q172 -> 0 | G174: ='Present Day Fluvial'!P172 -> 1 | H174: ='Present Day Fluvial'!S172 -> 0 | I174: ='Present Day Fluvial'!R172 -> 0 | J174: ='Present Day Fluvial'!Q172 -> 0 | K174: ='Fluvial + CC'!J172 -> 0 | L174: ='Fluvial + CC'!K172 -> 0 | M174: ='Fluvial + CC'!L172 -> 0 | N174: ='Surface Water'!S172 -> 0 | O174: ='Surface Water'!T172 -> 0 | P174: ='Surface Water'!U172 -> 0.04121939123 | Q174: ='Surface Water +CC'!I172 -> 0.007073149969 | R174: ='Surface Water +CC'!J172 -> 0.0417071947 | S174: ='Reservoir extents'!P172 -> 0 | T174: ='Reservoir extents'!Q172 -> 0 | U174: 0 | V174: 0 | X174: 0
A175: SEC3-34 | B175: Ridgarce Road, West Bromwich | C175: 0.756 | D175: ='Flood map for planning'!O173 -> 1 | E175: ='Flood map for planning'!P173 -> 0 | F175: ='Flood map for planning'!Q173 -> 0 | G175: ='Present Day Fluvial'!P173 -> 1 | H175: ='Present Day Fluvial'!S173 -> 0 | I175: ='Present Day Fluvial'!R173 -> 0 | J175: ='Present Day Fluvial'!Q173 -> 0 | K175: ='Fluvial + CC'!J173 -> 0 | L175: ='Fluvial + CC'!K173 -> 0 | M175: ='Fluvial + CC'!L173 -> 0 | N175: ='Surface Water'!S173 -> 0.00212499011 | O175: ='Surface Water'!T173 -> 0.03277849587 | P175: ='Surface Water'!U173 -> 0.1461148019 | Q175: ='Surface Water +CC'!I173 -> 0.1173135831 | R175: ='Surface Water +CC'!J173 -> 0.1778430812 | S175: ='Reservoir extents'!P173 -> 0 | T175: ='Reservoir extents'!Q173 -> 0 | U175: 0 | V175: 0 | X175: 0
A176: EMP2-19 | B176: Rounds Green Road/Shidas Lane, Oldbury | C176: 2.788 | D176: ='Flood map for planning'!O174 -> 1 | E176: ='Flood map for planning'!P174 -> 0 | F176: ='Flood map for planning'!Q174 -> 0 | G176: ='Present Day Fluvial'!P174 -> 1 | H176: ='Present Day Fluvial'!S174 -> 0 | I176: ='Present Day Fluvial'!R174 -> 0 | J176: ='Present Day Fluvial'!Q174 -> 0 | K176: ='Fluvial + CC'!J174 -> 0 | L176: ='Fluvial + CC'!K174 -> 0 | M176: ='Fluvial + CC'!L174 -> 0 | N176: ='Surface Water'!S174 -> 0.003589042285 | O176: ='Surface Water'!T174 -> 0.002584110444 | P176: ='Surface Water'!U174 -> 0.05783726589 | Q176: ='Surface Water +CC'!I174 -> 0.02182137703 | R176: ='Surface Water +CC'!J174 -> 0.07955896032 | S176: ='Reservoir extents'!P174 -> 0 | T176: ='Reservoir extents'!Q174 -> 0 | U176: 0 | V176: 0 | X176: 0
A177: SEC3-161 | B177: Roway Lane, Oldbury | C177: 6.024 | D177: ='Flood map for planning'!O175 -> 0.9943561885 | E177: ='Flood map for planning'!P175 -> 0.005643811461 | F177: ='Flood map for planning'!Q175 -> 0 | G177: ='Present Day Fluvial'!P175 -> 1 | H177: ='Present Day Fluvial'!S175 -> 0 | I177: ='Present Day Fluvial'!R175 -> 0 | J177: ='Present Day Fluvial'!Q175 -> 0 | K177: ='Fluvial + CC'!J175 -> 0 | L177: ='Fluvial + CC'!K175 -> 0.005643811888 | M177: ='Fluvial + CC'!L175 -> 0 | N177: ='Surface Water'!S175 -> 9.51142948e-05 | O177: ='Surface Water'!T175 -> 0.004793459069 | P177: ='Surface Water'!U175 -> 0.02960826998 | Q177: ='Surface Water +CC'!I175 -> 0.01593885117 | R177: ='Surface Water +CC'!J175 -> 0.03623891426 | S177: ='Reservoir extents'!P175 -> 0 | T177: ='Reservoir extents'!Q175 -> 0 | U177: 0 | V177: 0 | X177: 0
A178: SEC1-4 | B178: Roway Lane, Oldbury (Call for Sites) | C178: 3.663 | D178: ='Flood map for planning'!O176 -> 1 | E178: ='Flood map for planning'!P176 -> 0 | F178: ='Flood map for planning'!Q176 -> 0 | G178: ='Present Day Fluvial'!P176 -> 1 | H178: ='Present Day Fluvial'!S176 -> 0 | I178: ='Present Day Fluvial'!R176 -> 0 | J178: ='Present Day Fluvial'!Q176 -> 0 | K178: ='Fluvial + CC'!J176 -> 0 | L178: ='Fluvial + CC'!K176 -> 0 | M178: ='Fluvial + CC'!L176 -> 0 | N178: ='Surface Water'!S176 -> 0.01042483872 | O178: ='Surface Water'!T176 -> 0.007799517948 | P178: ='Surface Water'!U176 -> 0.07129712438 | Q178: ='Surface Water +CC'!I176 -> 0.03267506699 | R178: ='Surface Water +CC'!J176 -> 0.08364684579 | S178: ='Reservoir extents'!P176 -> 0 | T178: ='Reservoir extents'!Q176 -> 0 | U178: 0 | V178: 0 | X178: 0
A179: SEC3-167 | B179: Ryder, Euroway Park | C179: 2.248 | D179: ='Flood map for planning'!O177 -> 1 | E179: ='Flood map for planning'!P177 -> 0 | F179: ='Flood map for planning'!Q177 -> 0 | G179: ='Present Day Fluvial'!P177 -> 1 | H179: ='Present Day Fluvial'!S177 -> 0 | I179: ='Present Day Fluvial'!R177 -> 0 | J179: ='Present Day Fluvial'!Q177 -> 0 | K179: ='Fluvial + CC'!J177 -> 0 | L179: ='Fluvial + CC'!K177 -> 0 | M179: ='Fluvial + CC'!L177 -> 0 | N179: ='Surface Water'!S177 -> 0 | O179: ='Surface Water'!T177 -> 0 | P179: ='Surface Water'!U177 -> 0.02902253124 | Q179: ='Surface Water +CC'!I177 -> 0.006824090296 | R179: ='Surface Water +CC'!J177 -> 0.03810314579 | S179: ='Reservoir extents'!P177 -> 0 | T179: ='Reservoir extents'!Q177 -> 0 | U179: 0 | V179: 0 | X179: 0
A180: SEC3-54 | B180: Ryders Green Rd, Greets Green Ind Est, Greets Green | C180: 2.957 | D180: ='Flood map for planning'!O178 -> 1 | E180: ='Flood map for planning'!P178 -> 0 | F180: ='Flood map for planning'!Q178 -> 0 | G180: ='Present Day Fluvial'!P178 -> 1 | H180: ='Present Day Fluvial'!S178 -> 0 | I180: ='Present Day Fluvial'!R178 -> 0 | J180: ='Present Day Fluvial'!Q178 -> 0 | K180: ='Fluvial + CC'!J178 -> 0 | L180: ='Fluvial + CC'!K178 -> 0 | M180: ='Fluvial + CC'!L178 -> 0 | N180: ='Surface Water'!S178 -> 0 | O180: ='Surface Water'!T178 -> 0.0002924601739 | P180: ='Surface Water'!U178 -> 0.1054750003 | Q180: ='Surface Water +CC'!I178 -> 0.02443643321 | R180: ='Surface Water +CC'!J178 -> 0.1024617044 | S180: ='Reservoir extents'!P178 -> 0 | T180: ='Reservoir extents'!Q178 -> 0 | U180: 0 | V180: 0 | X180: 0
A181: SEC3-164 | B181: Sandwell Business Dev Centre, Oldbury Road | C181: 0.672 | D181: ='Flood map for planning'!O179 -> 1 | E181: ='Flood map for planning'!P179 -> 0 | F181: ='Flood map for planning'!Q179 -> 0 | G181: ='Present Day Fluvial'!P179 -> 1 | H181: ='Present Day Fluvial'!S179 -> 0 | I181: ='Present Day Fluvial'!R179 -> 0 | J181: ='Present Day Fluvial'!Q179 -> 0 | K181: ='Fluvial + CC'!J179 -> 0 | L181: ='Fluvial + CC'!K179 -> 0 | M181: ='Fluvial + CC'!L179 -> 0 | N181: ='Surface Water'!S179 -> 0 | O181: ='Surface Water'!T179 -> 0 | P181: ='Surface Water'!U179 -> 0.09775589734 | Q181: ='Surface Water +CC'!I179 -> 0.03986456163 | R181: ='Surface Water +CC'!J179 -> 0.09982423966 | S181: ='Reservoir extents'!P179 -> 0 | T181: ='Reservoir extents'!Q179 -> 0 | U181: 0 | V181: 0 | X181: 0
A182: SEC3-126 | B182: Sedgley Road West/Hurst Lane, Tipton | C182: 3.073 | D182: ='Flood map for planning'!O180 -> 1 | E182: ='Flood map for planning'!P180 -> 0 | F182: ='Flood map for planning'!Q180 -> 0 | G182: ='Present Day Fluvial'!P180 -> 1 | H182: ='Present Day Fluvial'!S180 -> 0 | I182: ='Present Day Fluvial'!R180 -> 0 | J182: ='Present Day Fluvial'!Q180 -> 0 | K182: ='Fluvial + CC'!J180 -> 0 | L182: ='Fluvial + CC'!K180 -> 0 | M182: ='Fluvial + CC'!L180 -> 0 | N182: ='Surface Water'!S180 -> 0.01813896649 | O182: ='Surface Water'!T180 -> 0.04532846064 | P182: ='Surface Water'!U180 -> 0.1799851788 | Q182: ='Surface Water +CC'!I180 -> 0.1408910663 | R182: ='Surface Water +CC'!J180 -> 0.2694514934 | S182: ='Reservoir extents'!P180 -> 0 | T182: ='Reservoir extents'!Q180 -> 0 | U182: 0 | V182: 0 | X182: 0
A183: SEC3-83 | B183: Seven Stars Rd, Oldbury (586) | C183: 2.518 | D183: ='Flood map for planning'!O181 -> 1 | E183: ='Flood map for planning'!P181 -> 0 | F183: ='Flood map for planning'!Q181 -> 0 | G183: ='Present Day Fluvial'!P181 -> 1 | H183: ='Present Day Fluvial'!S181 -> 0 | I183: ='Present Day Fluvial'!R181 -> 0 | J183: ='Present Day Fluvial'!Q181 -> 0 | K183: ='Fluvial + CC'!J181 -> 0 | L183: ='Fluvial + CC'!K181 -> 0 | M183: ='Fluvial + CC'!L181 -> 0 | N183: ='Surface Water'!S181 -> 0 | O183: ='Surface Water'!T181 -> 0.004260389896 | P183: ='Surface Water'!U181 -> 0.2542420333 | Q183: ='Surface Water +CC'!I181 -> 0.03180114282 | R183: ='Surface Water +CC'!J181 -> 0.2884118267 | S183: ='Reservoir extents'!P181 -> 0 | T183: ='Reservoir extents'!Q181 -> 0 | U183: 0 | V183: 0 | X183: 0
A184: SEC3-45 | B184: Seven Stars Road, Oldbury | C184: 1.472 | D184: ='Flood map for planning'!O182 -> 0.9741589599 | E184: ='Flood map for planning'!P182 -> 0.02206139018 | F184: ='Flood map for planning'!Q182 -> 0.003779649875 | G184: ='Present Day Fluvial'!P182 -> 0.9741910542 | H184: ='Present Day Fluvial'!S182 -> 0.004718447781 | I184: ='Present Day Fluvial'!R182 -> 0.004109076485 | J184: ='Present Day Fluvial'!Q182 -> 0.01698142155 | K184: ='Fluvial + CC'!J182 -> 0.02202807632 | L184: ='Fluvial + CC'!K182 -> 0.02584381332 | M184: ='Fluvial + CC'!L182 -> 0.02109049804 | N184: ='Surface Water'!S182 -> 0.02332887656 | O184: ='Surface Water'!T182 -> 0.03714941451 | P184: ='Surface Water'!U182 -> 0.3180013122 | Q184: ='Surface Water +CC'!I182 -> 0.09374062767 | R184: ='Surface Water +CC'!J182 -> 0.4508416188 | S184: ='Reservoir extents'!P182 -> 0 | T184: ='Reservoir extents'!Q182 -> 0 | U184: 0 | V184: 0 | X184: 0
A185: SEC3-36 | B185: Silverthorne Lane | C185: 1.051 | D185: ='Flood map for planning'!O183 -> 1 | E185: ='Flood map for planning'!P183 -> 0 | F185: ='Flood map for planning'!Q183 -> 0 | G185: ='Present Day Fluvial'!P183 -> 1 | H185: ='Present Day Fluvial'!S183 -> 0 | I185: ='Present Day Fluvial'!R183 -> 0 | J185: ='Present Day Fluvial'!Q183 -> 0 | K185: ='Fluvial + CC'!J183 -> 0 | L185: ='Fluvial + CC'!K183 -> 0 | M185: ='Fluvial + CC'!L183 -> 0 | N185: ='Surface Water'!S183 -> 0 | O185: ='Surface Water'!T183 -> 0.01333729851 | P185: ='Surface Water'!U183 -> 0.1367452454 | Q185: ='Surface Water +CC'!I183 -> 0.09123176173 | R185: ='Surface Water +CC'!J183 -> 0.1547063456 | S185: ='Reservoir extents'!P183 -> 0 | T185: ='Reservoir extents'!Q183 -> 0 | U185: 0 | V185: 0 | X185: 0
A186: SEC3-135 | B186: Site at Bloomfield Rd, Fountaihn Lane & Bradleys Lane, Tipton | C186: 1.438 | D186: ='Flood map for planning'!O184 -> 1 | E186: ='Flood map for planning'!P184 -> 0 | F186: ='Flood map for planning'!Q184 -> 0 | G186: ='Present Day Fluvial'!P184 -> 1 | H186: ='Present Day Fluvial'!S184 -> 0 | I186: ='Present Day Fluvial'!R184 -> 0 | J186: ='Present Day Fluvial'!Q184 -> 0 | K186: ='Fluvial + CC'!J184 -> 0 | L186: ='Fluvial + CC'!K184 -> 0 | M186: ='Fluvial + CC'!L184 -> 0 | N186: ='Surface Water'!S184 -> 0 | O186: ='Surface Water'!T184 -> 0.04633063641 | P186: ='Surface Water'!U184 -> 0.08245746167 | Q186: ='Surface Water +CC'!I184 -> 0.1105008673 | R186: ='Surface Water +CC'!J184 -> 0.1264297285 | S186: ='Reservoir extents'!P184 -> 0 | T186: ='Reservoir extents'!Q184 -> 0 | U186: 0 | V186: 0 | X186: 0
A187: SEC4-14 | B187: Site at Great Wester St & Potters Lane, Weds (5641 | C187: 2.147 | D187: ='Flood map for planning'!O185 -> 1 | E187: ='Flood map for planning'!P185 -> 0 | F187: ='Flood map for planning'!Q185 -> 0 | G187: ='Present Day Fluvial'!P185 -> 1 | H187: ='Present Day Fluvial'!S185 -> 0 | I187: ='Present Day Fluvial'!R185 -> 0 | J187: ='Present Day Fluvial'!Q185 -> 0 | K187: ='Fluvial + CC'!J185 -> 0 | L187: ='Fluvial + CC'!K185 -> 0 | M187: ='Fluvial + CC'!L185 -> 0 | N187: ='Surface Water'!S185 -> 0.0001160669443 | O187: ='Surface Water'!T185 -> 0.01365645746 | P187: ='Surface Water'!U185 -> 0.05517495135 | Q187: ='Surface Water +CC'!I185 -> 0.03562767581 | R187: ='Surface Water +CC'!J185 -> 0.06932037333 | S187: ='Reservoir extents'!P185 -> 0 | T187: ='Reservoir extents'!Q185 -> 0 | U187: 0 | V187: 0 | X187: 0
A188: SEC3-82 | B188: Site bt Charles St & Walsall Canal Great Bridge (2 | C188: 2.183 | D188: ='Flood map for planning'!O186 -> 1 | E188: ='Flood map for planning'!P186 -> 0 | F188: ='Flood map for planning'!Q186 -> 0 | G188: ='Present Day Fluvial'!P186 -> 1 | H188: ='Present Day Fluvial'!S186 -> 0 | I188: ='Present Day Fluvial'!R186 -> 0 | J188: ='Present Day Fluvial'!Q186 -> 0 | K188: ='Fluvial + CC'!J186 -> 0 | L188: ='Fluvial + CC'!K186 -> 0 | M188: ='Fluvial + CC'!L186 -> 0 | N188: ='Surface Water'!S186 -> 0.00403994246 | O188: ='Surface Water'!T186 -> 0.03287769257 | P188: ='Surface Water'!U186 -> 0.1955016921 | Q188: ='Surface Water +CC'!I186 -> 0.1185681468 | R188: ='Surface Water +CC'!J186 -> 0.2305341558 | S188: ='Reservoir extents'!P186 -> 0 | T188: ='Reservoir extents'!Q186 -> 0 | U188: 0 | V188: 0 | X188: 0
A189: SEC1-7 | B189: Site off Bilport Lane, Wednesbury | C189: 5.31 | D189: ='Flood map for planning'!O187 -> 0.7468279682 | E189: ='Flood map for planning'!P187 -> 0.2401181256 | F189: ='Flood map for planning'!Q187 -> 0.01305390621 | G189: ='Present Day Fluvial'!P187 -> 0.7551653361 | H189: ='Present Day Fluvial'!S187 -> 0.2318583877 | I189: ='Present Day Fluvial'!R187 -> 0.002864585405 | J189: ='Present Day Fluvial'!Q187 -> 0.01011169075 | K189: ='Fluvial + CC'!J187 -> 0.1528037457 | L189: ='Fluvial + CC'!K187 -> 0.2481017911 | M189: ='Fluvial + CC'!L187 -> 0.01297627616 | N189: ='Surface Water'!S187 -> 0.005719006921 | O189: ='Surface Water'!T187 -> 0.02318897247 | P189: ='Surface Water'!U187 -> 0.1712946455 | Q189: ='Surface Water +CC'!I187 -> 0.09685278889 | R189: ='Surface Water +CC'!J187 -> 0.1956546305 | S189: ='Reservoir extents'!P187 -> 0.002184245676 | T189: ='Reservoir extents'!Q187 -> 0 | U189: 0 | V189: 3.926425032e-05 | X189: 0
A190: SEC3-29 | B190: Site off Richmond St, West Bromwich | C190: 1.109 | D190: ='Flood map for planning'!O188 -> 1 | E190: ='Flood map for planning'!P188 -> 0 | F190: ='Flood map for planning'!Q188 -> 0 | G190: ='Present Day Fluvial'!P188 -> 1 | H190: ='Present Day Fluvial'!S188 -> 0 | I190: ='Present Day Fluvial'!R188 -> 0 | J190: ='Present Day Fluvial'!Q188 -> 0 | K190: ='Fluvial + CC'!J188 -> 0 | L190: ='Fluvial + CC'!K188 -> 0 | M190: ='Fluvial + CC'!L188 -> 0 | N190: ='Surface Water'!S188 -> 0 | O190: ='Surface Water'!T188 -> 0.02199899822 | P190: ='Surface Water'!U188 -> 0.02597018475 | Q190: ='Surface Water +CC'!I188 -> 0.02885905834 | R190: ='Surface Water +CC'!J188 -> 0.04833023932 | S190: ='Reservoir extents'!P188 -> 0 | T190: ='Reservoir extents'!Q188 -> 0 | U190: 0 | V190: 0 | X190: 0
A191: EMP4-8 | B191: Site on Railway Street, Horseley Heath, Tipton | C191: 0.18 | D191: ='Flood map for planning'!O189 -> 1 | E191: ='Flood map for planning'!P189 -> 0 | F191: ='Flood map for planning'!Q189 -> 0 | G191: ='Present Day Fluvial'!P189 -> 1 | H191: ='Present Day Fluvial'!S189 -> 0 | I191: ='Present Day Fluvial'!R189 -> 0 | J191: ='Present Day Fluvial'!Q189 -> 0 | K191: ='Fluvial + CC'!J189 -> 0 | L191: ='Fluvial + CC'!K189 -> 0 | M191: ='Fluvial + CC'!L189 -> 0 | N191: ='Surface Water'!S189 -> 0 | O191: ='Surface Water'!T189 -> 0 | P191: ='Surface Water'!U189 -> 0 | Q191: ='Surface Water +CC'!I189 -> 0 | R191: ='Surface Water +CC'!J189 -> 0 | S191: ='Reservoir extents'!P189 -> 0 | T191: ='Reservoir extents'!Q189 -> 0 | U191: 0 | V191: 0 | X191: 0
A192: SEC3-6 | B192: Site on Stafford St, Weds (5646) | C192: 1.459 | D192: ='Flood map for planning'!O190 -> 1 | E192: ='Flood map for planning'!P190 -> 0 | F192: ='Flood map for planning'!Q190 -> 0 | G192: ='Present Day Fluvial'!P190 -> 1 | H192: ='Present Day Fluvial'!S190 -> 0 | I192: ='Present Day Fluvial'!R190 -> 0 | J192: ='Present Day Fluvial'!Q190 -> 0 | K192: ='Fluvial + CC'!J190 -> 0 | L192: ='Fluvial + CC'!K190 -> 0 | M192: ='Fluvial + CC'!L190 -> 0 | N192: ='Surface Water'!S190 -> 0 | O192: ='Surface Water'!T190 -> 0.08466394779 | P192: ='Surface Water'!U190 -> 0.1845515116 | Q192: ='Surface Water +CC'!I190 -> 0.1545715381 | R192: ='Surface Water +CC'!J190 -> 0.2678436206 | S192: ='Reservoir extents'!P190 -> 0 | T192: ='Reservoir extents'!Q190 -> 0 | U192: 0 | V192: 0 | X192: 0
A193: SEC4-4 | B193: Soho Triangle | C193: 1.717 | D193: ='Flood map for planning'!O191 -> 1 | E193: ='Flood map for planning'!P191 -> 0 | F193: ='Flood map for planning'!Q191 -> 0 | G193: ='Present Day Fluvial'!P191 -> 1 | H193: ='Present Day Fluvial'!S191 -> 0 | I193: ='Present Day Fluvial'!R191 -> 0 | J193: ='Present Day Fluvial'!Q191 -> 0 | K193: ='Fluvial + CC'!J191 -> 0 | L193: ='Fluvial + CC'!K191 -> 0 | M193: ='Fluvial + CC'!L191 -> 0 | N193: ='Surface Water'!S191 -> 0 | O193: ='Surface Water'!T191 -> 0.0005928607617 | P193: ='Surface Water'!U191 -> 0.01818103481 | Q193: ='Surface Water +CC'!I191 -> 0.004667063127 | R193: ='Surface Water +CC'!J191 -> 0.01947187148 | S193: ='Reservoir extents'!P191 -> 0.01975127744 | T193: ='Reservoir extents'!Q191 -> 0.003830926655 | U193: 0.4605389421 | V193: 0.4715073134 | X193: 0
A194: SEC3-37 | B194: Spinners End Industrial Estate, Cradley Heath | C194: 0.651 | D194: ='Flood map for planning'!O192 -> 1 | E194: ='Flood map for planning'!P192 -> 0 | F194: ='Flood map for planning'!Q192 -> 0 | G194: ='Present Day Fluvial'!P192 -> 1 | H194: ='Present Day Fluvial'!S192 -> 0 | I194: ='Present Day Fluvial'!R192 -> 0 | J194: ='Present Day Fluvial'!Q192 -> 0 | K194: ='Fluvial + CC'!J192 -> 0 | L194: ='Fluvial + CC'!K192 -> 0 | M194: ='Fluvial + CC'!L192 -> 0 | N194: ='Surface Water'!S192 -> 0.02467828216 | O194: ='Surface Water'!T192 -> 0.05045228691 | P194: ='Surface Water'!U192 -> 0.2594732675 | Q194: ='Surface Water +CC'!I192 -> 0.1733630659 | R194: ='Surface Water +CC'!J192 -> 0.3665382926 | S194: ='Reservoir extents'!P192 -> 0 | T194: ='Reservoir extents'!Q192 -> 0 | U194: 0 | V194: 0 | X194: 0
A195: SEC4-12 | B195: Stafford Street/ Albert Street, Wednesbury | C195: 0.737 | D195: ='Flood map for planning'!O193 -> 1 | E195: ='Flood map for planning'!P193 -> 0 | F195: ='Flood map for planning'!Q193 -> 0 | G195: ='Present Day Fluvial'!P193 -> 1 | H195: ='Present Day Fluvial'!S193 -> 0 | I195: ='Present Day Fluvial'!R193 -> 0 | J195: ='Present Day Fluvial'!Q193 -> 0 | K195: ='Fluvial + CC'!J193 -> 0 | L195: ='Fluvial + CC'!K193 -> 0 | M195: ='Fluvial + CC'!L193 -> 0 | N195: ='Surface Water'!S193 -> 0 | O195: ='Surface Water'!T193 -> 4.347217402e-05 | P195: ='Surface Water'!U193 -> 0.0494737372 | Q195: ='Surface Water +CC'!I193 -> 0.0004147653158 | R195: ='Surface Water +CC'!J193 -> 0.04654905301 | S195: ='Reservoir extents'!P193 -> 0 | T195: ='Reservoir extents'!Q193 -> 0 | U195: 0 | V195: 0 | X195: 0
A196: SEC3-44 | B196: Station Road / Avenue Road / Cardale Street Rowley | C196: 3.191 | D196: ='Flood map for planning'!O194 -> 1 | E196: ='Flood map for planning'!P194 -> 0 | F196: ='Flood map for planning'!Q194 -> 0 | G196: ='Present Day Fluvial'!P194 -> 1 | H196: ='Present Day Fluvial'!S194 -> 0 | I196: ='Present Day Fluvial'!R194 -> 0 | J196: ='Present Day Fluvial'!Q194 -> 0 | K196: ='Fluvial + CC'!J194 -> 0 | L196: ='Fluvial + CC'!K194 -> 0 | M196: ='Fluvial + CC'!L194 -> 0 | N196: ='Surface Water'!S194 -> 0.03424612313 | O196: ='Surface Water'!T194 -> 0.07153511735 | P196: ='Surface Water'!U194 -> 0.1919050102 | Q196: ='Surface Water +CC'!I194 -> 0.2132012894 | R196: ='Surface Water +CC'!J194 -> 0.3041622341 | S196: ='Reservoir extents'!P194 -> 0 | T196: ='Reservoir extents'!Q194 -> 0 | U196: 0 | V196: 0.5482593907 | X196: 0
A197: SEC3-49 | B197: Station Road Industrial Est, Rowley Regis | C197: 3.224 | D197: ='Flood map for planning'!O195 -> 1 | E197: ='Flood map for planning'!P195 -> 0 | F197: ='Flood map for planning'!Q195 -> 0 | G197: ='Present Day Fluvial'!P195 -> 1 | H197: ='Present Day Fluvial'!S195 -> 0 | I197: ='Present Day Fluvial'!R195 -> 0 | J197: ='Present Day Fluvial'!Q195 -> 0 | K197: ='Fluvial + CC'!J195 -> 0 | L197: ='Fluvial + CC'!K195 -> 0 | M197: ='Fluvial + CC'!L195 -> 0 | N197: ='Surface Water'!S195 -> 0.03676443507 | O197: ='Surface Water'!T195 -> 0.02360237172 | P197: ='Surface Water'!U195 -> 0.1136301899 | Q197: ='Surface Water +CC'!I195 -> 0.1143823554 | R197: ='Surface Water +CC'!J195 -> 0.1903382158 | S197: ='Reservoir extents'!P195 -> 0 | T197: ='Reservoir extents'!Q195 -> 0 | U197: 0 | V197: 0.6663009953 | X197: 0
A198: SEC3-147 | B198: Station St, Tipton (1448) | C198: 1.37 | D198: ='Flood map for planning'!O196 -> 1 | E198: ='Flood map for planning'!P196 -> 0 | F198: ='Flood map for planning'!Q196 -> 0 | G198: ='Present Day Fluvial'!P196 -> 1 | H198: ='Present Day Fluvial'!S196 -> 0 | I198: ='Present Day Fluvial'!R196 -> 0 | J198: ='Present Day Fluvial'!Q196 -> 0 | K198: ='Fluvial + CC'!J196 -> 0 | L198: ='Fluvial + CC'!K196 -> 0 | M198: ='Fluvial + CC'!L196 -> 0 | N198: ='Surface Water'!S196 -> 0 | O198: ='Surface Water'!T196 -> 0.00396734498 | P198: ='Surface Water'!U196 -> 0.01462543859 | Q198: ='Surface Water +CC'!I196 -> 0.00644974376 | R198: ='Surface Water +CC'!J196 -> 0.01859278285 | S198: ='Reservoir extents'!P196 -> 0 | T198: ='Reservoir extents'!Q196 -> 0 | U198: 0 | V198: 0 | X198: 0
A199: SEC3-35 | B199: Station Street/Graingers Lane, Cradley Heath | C199: 2.281 | D199: ='Flood map for planning'!O197 -> 1 | E199: ='Flood map for planning'!P197 -> 0 | F199: ='Flood map for planning'!Q197 -> 0 | G199: ='Present Day Fluvial'!P197 -> 1 | H199: ='Present Day Fluvial'!S197 -> 0 | I199: ='Present Day Fluvial'!R197 -> 0 | J199: ='Present Day Fluvial'!Q197 -> 0 | K199: ='Fluvial + CC'!J197 -> 0 | L199: ='Fluvial + CC'!K197 -> 0 | M199: ='Fluvial + CC'!L197 -> 0 | N199: ='Surface Water'!S197 -> 0.04861294321 | O199: ='Surface Water'!T197 -> 0.1234273594 | P199: ='Surface Water'!U197 -> 0.2698352787 | Q199: ='Surface Water +CC'!I197 -> 0.2900313648 | R199: ='Surface Water +CC'!J197 -> 0.4623382231 | S199: ='Reservoir extents'!P197 -> 0 | T199: ='Reservoir extents'!Q197 -> 0 | U199: 0 | V199: 0 | X199: 0
A200: SEC4-6 | B200: Summerton Rd, Oldbury (3223) | C200: 0.565 | D200: ='Flood map for planning'!O198 -> 1 | E200: ='Flood map for planning'!P198 -> 0 | F200: ='Flood map for planning'!Q198 -> 0 | G200: ='Present Day Fluvial'!P198 -> 1 | H200: ='Present Day Fluvial'!S198 -> 0 | I200: ='Present Day Fluvial'!R198 -> 0 | J200: ='Present Day Fluvial'!Q198 -> 0 | K200: ='Fluvial + CC'!J198 -> 0 | L200: ='Fluvial + CC'!K198 -> 0 | M200: ='Fluvial + CC'!L198 -> 0 | N200: ='Surface Water'!S198 -> 0 | O200: ='Surface Water'!T198 -> 0.0178070621 | P200: ='Surface Water'!U198 -> 0.08529268721 | Q200: ='Surface Water +CC'!I198 -> 0.04602337968 | R200: ='Surface Water +CC'!J198 -> 0.107261253 | S200: ='Reservoir extents'!P198 -> 0 | T200: ='Reservoir extents'!Q198 -> 0 | U200: 0 | V200: 0 | X200: 0
... 102 more rows

Sheet Raw Areas (hidden)
A1: Site Reference | B1: Site Name | C1: Area (ha) | D1: Proportion of site shown to be at risk (%)
D2: Flood Map for Planning Flood Zones | G2: SFRA Flood Zones | K2: Fluvial and Tidal Flood Risk plus climate change | N2: EA Risk of Flooding from Surface Water | Q2: EA Risk of Flooding from Surface Water plus CC | S2: EA Reservoir Flood Extent | U2: JBA Groundwater Flood Risk Dataset | W2: Groundwater Pathways | X2: Historic Flooding
D3: FZ1 | E3: FZ2 | F3: FZ3 | G3: FZ1 | H3: FZ2 | I3: FZ3a | J3: FZ3b | K3: 1%AEP plus Central | L3: 1%AEP plus Higher Central | M3: 1%AEP plus Upper End | N3: 30 year | O3: 100 year | P3: 1000 year | Q3: 3.3%AEP+35% | R3: 1%AEP +45% | S3: Dry Day | T3: Wet Day | U3: Groundwater levels are either at or very near (within 0.025m of) the ground surface. | V3: Groundwater levels between 0.025m and 0.5m below the ground surface. | W3: JBA Groundwater with Surface Water flow paths | X3: EA Historic Flood Map | Y3: Kent County Council (within 50m of the site)
A4: SEC3-86 | C4: 4.103
A5: SCE4-9 | C5: 0.359
A6: SEC4-2 | B6: 10-60 Dudley Rd East, Oldbury (3224) | C6: 2.059
A7: SEC3-165 | B7: 230 Oldbury Rd (3016) | C7: 1.527
A8: SEC4-3 | B8: 70-74 Crankhall Lane | C8: 1.759
A9: SEC3-106 | B9: Aeroplas and Olympus Distribution, Great Western Way, Great Bridge | C9: 4.784
A10: SEC3-41 | B10: Albion Industrial Estate | C10: 9.05
A11: SEC3-182 | B11: Albion Road | C11: 0.913
A12: SEC3-9 | B12: Alexandra Ind Est, Locarno Rd/ Alexandra Rd, Tipto | C12: 1.875
A13: SEC3-64 | B13: Alexandra Ind Est/Locarno Road, Tipton | C13: 2.568
A14: SEC3-93 | B14: Alma Street, Smethwick | C14: 4.726
A15: SEC3-137 | B15: Alutrade, Tat Bank Road | C15: 2.705
A16: SEC3-30 | B16: Arnold Laver, Dudley Rd East, Oldbury (2944 | C16: 1.005
A17: SEC3-62 | B17: Autobase, Dudley Road, Oldbury | C17: 16.605
A18: SEC3-128 | B18: Barnfield Trading Est Tipton (5450) | C18: 2.269
A19: SEC3-151 | B19: Beakes Road, Bearwood (825) | C19: 0.697
A20: SEC3-152 | B20: Beakes Road, Bearwood (826) | C20: 0.926
A21: SEC3-16 | B21: Bescot Industrial Estate, Wednesbury | C21: 7.922
A22: SEC3-138 | B22: Bevan Motor Bodies, Blakeley Hall Road | C22: 0.912
A23: SEC3-90 | B23: Birchley, Oldbury | C23: 7.03
A24: EMP2-9 | B24: Black Country New Road, Wednesbury (Hallens Drive) | C24: 44.043
A25: EMP2-10 | B25: Black Country New Road/ Pacific Avenue | C25: 23.118
A26: EMP2-13 | B26: Black Country New Road/Golds Hill, Tipton | C26: 15.133
A27: SEC3-130 | B27: Bloomfield Park | C27: 5.147
A28: SEC3-19 | B28: Brades Road, Oldbury (Pearsall Drive) | C28: 7.03
A29: SEC3-113 | B29: Brandon Way (east side) | C29: 0.47
A30: SEC3-154 | B30: Brandon Way / Albion Rd, WB (2385 / WBPr32) | C30: 6.225
A31: SEC1-6 | B31: Brandon Way/ Albion Road, West Bromwich | C31: 3.086
A32: SEC3-71 | B32: Brickhouse Lane | C32: 3.883
A33: SEC3-116 | B33: Bridge Street/ Potters Lane | C33: 3.695
A34: SEC1-2 | B34: British Gas, Land off Dudley Rd, Oldbury (2949) | C34: 1.056
A35: SEC3-177 | B35: Broadcott Industrial Estate, Cradley Heath | C35: 1.361
A36: EMP2-12 | B36: Broadwell Road, Oldbury | C36: 23.771
A37: SEC3-100 | B37: Bromford Road Industrial Estate | C37: 7.881
A38: SEC3-129 | B38: Brook St Bus Centre, Brook St Comm Centre, Tipton | C38: 1.538
A39: SEC3-133 | B39: Brymill Industrial Estate, Brown Lion St, Tipton | C39: 1.783
A40: SEC3-123 | B40: Burnt Tree Industrial Estate | C40: 1.57
A41: SEC3-25 | B41: Cakemore Road, Rowley Regis | C41: 7.509
A42: SEC3-50 | B42: Cakemore Road, Rowley Regis | C42: 0.603
A43: EMP2-4 | B43: Car Craft, Darlaston Rd/ Old Park Rd, Kings Hill | C43: 5.186
A44: SEC3-115 | B44: Carlyle Bus and Coach, Carlyle Business Park | C44: 0.387
A45: SEC4-7 | B45: Castle St, High St Tipton (2942) | C45: 0.705
A46: SEC3-148 | B46: Castle St, Tipton (2938) | C46: 1.494
A47: SEC3-51 | B47: Causeway Green Rd / Wolverhampton Road | C47: 0.848
A48: SEC3-170 | B48: Charles Street, West Bromwich | C48: 9.056
A49: SEC3-109 | B49: Chaters Close, Tipton | C49: 0.578
A50: SEC3-38 | B50: Church Lane / Gladstone Street, WB (2389 / WBPr38) | C50: 2.205
A51: EMP2-18 | B51: Churchbridge, Oldbury | C51: 14.035
A52: SEC3-89 | B52: Churchbridge, Oldbury (opposite Thurston Avenue) | C52: 0.757
A53: SEC4-10 | B53: Clay Lane, Oldbury | C53: 0.227
A54: SEC3-23 | B54: Cleton Street Business Park, Oldbury | C54: 2.013
A55: SEC1-5 | B55: Coneygre Business Park (open land) | C55: 7.234
A56: SEC3-20 | B56: Coneygre Business Park, Tipton | C56: 17.755
A57: SEC3-175 | B57: Coneygre Rd, Burnt Tree, Tipton | C57: 1.02
A58: SEC3-174 | B58: Corner of Bromford Lane / Brandon Way | C58: 3.953
A59: SEC3-85 | B59: Corngreaves Rd (City Estate Hillcrest Ind Est) Pal | C59: 2.808
A60: SEC3-24 | B60: Corngreaves Road, Cradley Heath | C60: 19.74
A61: SEC3-80 | B61: Corngreaves Road, Cradley Heath | C61: 3.651
A62: SEC3-96 | B62: Cornwall Road | C62: 4.025
A63: SEC3-11 | B63: Cornwall Road/Foundary Lane, Smethwick | C63: 0.355
A64: SEC3-97 | B64: Cornwall Road/Foundary Lane, Smethwick | C64: 2.884
A65: SEC3-28 | B65: Cornwall Road/Foundary Lane, Smethwick (north of Anne Road) | C65: 2.332
A66: SEC3-79 | B66: Cradley Business Patrk, Cradley Heath | C66: 3.706
A67: SEC3-52 | B67: Crosswells Road / Hall Street, Oldbury | C67: 0.8
A68: SEC3-166 | B68: Crystal Drive, Smethwick | C68: 14.358
A69: SEC3-102 | B69: Cygnus Way, West Bromwich | C69: 12.579
A70: EMP2-2 | B70: Danks Way, Hill Top, West Bromwich | C70: 7.626
A71: SEC3-178 | B71: Dart Products, Garratts Lane | C71: 7.85
A72: SEC3-183 | B72: Dartmouth Road, Smethwick | C72: 23.758
A73: EMP2-16 | B73: Dartmouth Road/ Piaro Way, Smethwick | C73: 6.96
A74: SEC3-56 | B74: Delta Point, Greets Green Road | C74: 8.183
A75: EMP2-3 | B75: Direct 2, Roway Lane, Oldbury | C75: 8.181
A76: EMP2-6 | B76: Doranda Way | C76: 13.967
A77: SEC3-160 | B77: Doulton Road, Rowley Regis (east of canal) | C77: 3.52
A78: EMP2-11 | B78: DPD, Roebuck Lane | C78: 8.934
A79: SEC3-46 | B79: Droicon Ind Est, Portway Road | C79: 0.872
A80: SEC3-124 | B80: Dudley Rd, 28 Dudley Rd West (2957) | C80: 1.786
A81: SEC3-61 | B81: Dudley Road, Oldbury | C81: 4.915
A82: SEC3-185 | B82: Eel Street, Oldbury | C82: 3.168
A83: SEC3-143 | B83: EMR Oldbury | C83: 7.558
A84: SEC3-14 | B84: Engine Street, Oldbury | C84: 1.643
A85: SEC3-163 | B85: Exchange Works, Kelvin Way, West Bromwich | C85: 1.498
A86: SEC3-155 | B86: Fisher St / Coneygre Rd, Tipton | C86: 1.744
A87: SEC3-149 | B87: Fitzgerald Lighting Ltd, Rood End Rd (2009) | C87: 1.393
A88: SEC3-132 | B88: Former Corus Premises, Bloomfield Rd, Tipton (5972 | C88: 0.576
A89: SEC3-66 | B89: Foundry Lane (south) | C89: 11.765
A90: SEC3-73 | B90: Foundry Lane/ Anne Road | C90: 5.257
A91: SEC3-159 | B91: Fountain Lane | C91: 1.316
A92: SEC3-139 | B92: Garratts Lane/ Powke Lane | C92: 9.384
A93: SEC3-47 | B93: Garretts Lane, Cradley Heath | C93: 0.707
A94: SEC3-68 | B94: George Henry Road | C94: 19.87
A95: SEC3-57 | B95: Great Bridge Ind Est / Harrold Street | C95: 4.592
A96: SEC3-15 | B96: Great Western Street, Wednesbury | C96: 3.832
A97: SEC3-60 | B97: Griffin Ind Est, Penncricket Lane | C97: 3.323
A98: SEC3-122 | B98: Groveland Rd (2963) | C98: 1.183
A99: SEC3-21 | B99: Hainge Road, Oldbury | C99: 14.332
A100: SEC3-22 | B100: Hale Trading Estate, Tipton | C100: 2.74
A101: EMP2-8 | B101: Hales Way, Oldbury | C101: 1.517
A102: SEC3-95 | B102: Halfords Lane | C102: 24.248
A103: SEC3-103 | B103: Hill Top, West Bromwich | C103: 15.187
A104: SEC3-18 | B104: Holloway Bank | C104: 1.034
A105: SEC3-104 | B105: Holloway Bank, Wednesbury | C105: 5.308
A106: SEC3-67 | B106: Holloway Bank/ Bilport Lane | C106: 1.776
A107: SEC3-88 | B107: Houghton Street, Oldbury | C107: 1.439
A108: SEC3-69 | B108: Howard Street | C108: 27.938
A109: SEC3-78 | B109: James Watt Industrial Park | C109: 3.639
A110: SEC3-136 | B110: JAS Ind Park, Titford Lane, Oldbury (3013) | C110: 0.94
A111: SEC3-146 | B111: JerseyTex Ltd, Upper Church Lane, Princes End | C111: 1.582
A112: SEC3-169 | B112: JH Lavender & Co, Crankhall Lane, West Bromwich | C112: 1.314
A113: SEC3-91 | B113: Joseph Street, Oldbury | C113: 2.966
A114: EMP2-15 | B114: Junction 9 (Opus 9) | C114: 2.343
A115: SEC3-12 | B115: Junction One, Oldbury | C115: 4.717
A116: SEC1-3 | B116: Junction Two, Oldbury | C116: 1.128
A117: SEC3-98 | B117: Kelvin Way WBPr35 | C117: 33.9
A118: EMP2-5 | B118: Kings Hill Business Park | C118: 3.268
A119: SEC3-193 | B119: Kitchener Street, Smethwick | C119: 1.394
A120: SEC3-131 | B120: Land & premises Barnfield Rd, Brook St, Bloomfield | C120: 0.835
A121: SEC3-43 | B121: Land at Birmingham Road / Roebuck Lane | C121: 6.806
A122: SEC3-156 | B122: Land at corner of Birmingham Road | C122: 0.48
A123: SEC3-127 | B123: Land at Doulton Way, bt Factory Rd, Bloomfield Rd, Tipton | C123: 2.759
A124: SEC3-42 | B124: Land at Junction 1 / Kenrick Way | C124: 4.146
A125: SEC4-15 | B125: Land at Potters Lane & Stafford St, Weds (5642) | C125: 0.856
A126: SEC3-118 | B126: Land bt Great Bridge St & William St, Tipton (2965 | C126: 1.081
A127: SEC3-117 | B127: Land by Whitehall Road and Walsall Canal | C127: 1.04
A128: SEC3-31 | B128: land off dudley rd, oldbury | C128: 0.981
A129: SEC3-65 | B129: Land off Tipton Road, Oldbury | C129: 0.812
A130: SEC3-17 | B130: Leabrook Road, Tipton | C130: 7.479
A131: SEC1-8 | B131: Legacy 43, Ryder Street, West Bromwich | C131: 0.883
A132: EMP2-14 | B132: Lidl, Junction 9 (Opus 9) | C132: 8.707
A133: SEC3-40 | B133: Newlyn Road, Cradley Heath | C133: 3.411
A134: SEC3-84 | B134: Old Park Trading Estate, Old Park Rd (2922) | C134: 2.642
A135: SEC3-53 | B135: Oldbury Point Ind Est, Rood End Road | C135: 3.232
A136: SEC3-150 | B136: Oldbury Rd Ind Est, Oldbury Rd (2994) | C136: 0.574
A137: SEC3-168 | B137: Oldbury Rd, Oldbury (3014) | C137: 2.416
A138: SEC3-153 | B138: Oldbury Rd, WB (2384 / WBPr31) | C138: 18.938
A139: SEC3-191 | B139: Oldfield Trading Estate, Cradley Heath | C139: 1.766
A140: SEC3-176 | B140: Palmers Timber Site, Station Rd, Old Hill (3043) | C140: 3.149
A141: EMP2-7 | B141: Park Lane Trading Estate, Oldbury | C141: 2.182
A142: SEC4-5 | B142: Park Lane West | C142: 2.953
A143: SEC3-186 | B143: Park Lane, West Bromwich | C143: 10.104
A144: SEC3-187 | B144: Park Lane, West Bromwich | C144: 2.452
A145: SEC3-184 | B145: Parkroase Estate, Rounds Green Road, Oldbury | C145: 2.588
A146: SEC3-105 | B146: Parsonage Street, Oldbury | C146: 10.189
A147: SEC3-173 | B147: Pennington Close | C147: 4.22
A148: SEC4-13 | B148: Ph 9, The Parkway, bt Stafford St/ Victoria st/ Po | C148: 0.942
A149: SEC3-171 | B149: Phoenix St / Belper Ind Est Greets Green Road, Wes | C149: 5.568
A150: SEC3-172 | B150: Phoenix Street (west), West Bromwich | C150: 3.451
A151: SEC3-70 | B151: Pikehelve Street, Hill Top, West Bromwich | C151: 5.93
A152: SEC3-74 | B152: Popes Lane, Oldbury | C152: 10.856
A153: SEC3-75 | B153: Popes Lane, Oldbury | C153: 2.919
A154: SEC3-10 | B154: Portway Rd, Weds (5129) | C154: 3.782
A155: SEC3-81 | B155: Portway Rd, Weds (5129) | C155: 4.526
A156: SEC3-188 | B156: Portway Road | C156: 3.028
A157: SEC3-158 | B157: Portway Road Industrial Estate | C157: 2.128
A158: SEC4-11 | B158: Potters Lane, Wednesbury (actually between Stafford St/ Albert St) | C158: 0.395
A159: SEC3-141 | B159: Powke Lane (east side) | C159: 3.507
A160: SEC3-140 | B160: Powke Lane (west side) | C160: 6.382
A161: SEC3-179 | B161: Powke Lane Industrial Estate, Cradley Heath | C161: 2.181
A162: SEC3-142 | B162: Powke Lane/ Doulton Road | C162: 9.114
A163: SEC-145 | B163: Princes End Garage | C163: 0.191
A164: SEC3-111 | B164: Purity Soft Drinks Limited, Mounts Road | C164: 0.347
A165: SEC3-94 | B165: Rabone Lane, Smethwick (2372) | C165: 4.736
A166: SEC3-72 | B166: Rabone Park | C166: 3.948
A167: SEC3-48 | B167: Reddal Hill Rd/ Newtown St, Cradley Heath | C167: 4.452
A168: EMP2-1 | B168: Richmond Street, West Bromwich | C168: 10.239
A169: SEC3-2 | B169: Ridgacre Road (north) | C169: 0.802
A170: SEC3-3 | B170: Ridgacre Road (south) | C170: 1.052
A171: SEC3-107 | B171: Ridgacre Road Church Lane, West Bromwich (New build) (former Express and Star) | C171: 1.422
A172: SEC3-108 | B172: Ridgacre Road Church Lane, West Bromwich (old part) | C172: 0.924
A173: SEC3-32 | B173: Ridgarce Road, West Bromwich | C173: 1.139
A174: SEC3-33 | B174: Ridgarce Road, West Bromwich | C174: 1.641
A175: SEC3-34 | B175: Ridgarce Road, West Bromwich | C175: 0.756
A176: EMP2-19 | B176: Rounds Green Road/Shidas Lane, Oldbury | C176: 2.788
A177: SEC3-161 | B177: Roway Lane, Oldbury | C177: 6.024
A178: SEC1-4 | B178: Roway Lane, Oldbury (Call for Sites) | C178: 3.663
A179: SEC3-167 | B179: Ryder, Euroway Park | C179: 2.248
A180: SEC3-54 | B180: Ryders Green Rd, Greets Green Ind Est, Greets Green | C180: 2.957
A181: SEC3-164 | B181: Sandwell Business Dev Centre, Oldbury Road | C181: 0.672
A182: SEC3-126 | B182: Sedgley Road West/Hurst Lane, Tipton | C182: 3.073
A183: SEC3-83 | B183: Seven Stars Rd, Oldbury (586) | C183: 2.518
A184: SEC3-45 | B184: Seven Stars Road, Oldbury | C184: 1.472
A185: SEC3-36 | B185: Silverthorne Lane | C185: 1.051
A186: SEC3-135 | B186: Site at Bloomfield Rd, Fountaihn Lane & Bradleys Lane, Tipton | C186: 1.438
A187: SEC4-14 | B187: Site at Great Wester St & Potters Lane, Weds (5641 | C187: 2.147
A188: SEC3-82 | B188: Site bt Charles St & Walsall Canal Great Bridge (2 | C188: 2.183
A189: SEC1-7 | B189: Site off Bilport Lane, Wednesbury | C189: 5.31
A190: SEC3-29 | B190: Site off Richmond St, West Bromwich | C190: 1.109
A191: EMP4-8 | B191: Site on Railway Street, Horseley Heath, Tipton | C191: 0.18
A192: SEC3-6 | B192: Site on Stafford St, Weds (5646) | C192: 1.459
A193: SEC4-4 | B193: Soho Triangle | C193: 1.717
A194: SEC3-37 | B194: Spinners End Industrial Estate, Cradley Heath | C194: 0.651
A195: SEC4-12 | B195: Stafford Street/ Albert Street, Wednesbury | C195: 0.737
A196: SEC3-44 | B196: Station Road / Avenue Road / Cardale Street Rowley | C196: 3.191
A197: SEC3-49 | B197: Station Road Industrial Est, Rowley Regis | C197: 3.224
A198: SEC3-147 | B198: Station St, Tipton (1448) | C198: 1.37
A199: SEC3-35 | B199: Station Street/Graingers Lane, Cradley Heath | C199: 2.281
A200: SEC4-6 | B200: Summerton Rd, Oldbury (3223) | C200: 0.565
... 32 more rows

Sheet Flood map for planning (hidden)
A1: Sandwell_R | B1: SiteNameAd | C1: SiteAreaHa | D1: path | E1: Area_Ha | F1: FZ2_FG_are | G1: FZ2_FG_pc | H1: FZ3_FG_are | I1: FZ3_FG_pc | K1: Site_area | L1: FZ2% | M1: FZ3% | O1: Area_not_Flooded | P1: FZ2_updated | Q1: FZ3_updated | S1: Checks
A2: SEC3-86 | C2: 4.1 | D2: N:/2024/Projects/2024s0196 - Sandwell Metropolitan Borough Council - Sandwell L1 & L2 SFRA/1_WIP/HM/Graphical/Shapefiles/Development_sites/Sandwell EMP3 Allocations_region.shx|layername=Sandwell EMP3 Allocations_region | E2: 4.103 | F2: 0 | G2: 0 | H2: 0 | I2: 0 | K2: 1 | L2: =G2/100 -> 0 | M2: =I2/100 -> 0 | O2: =K2-(P2+Q2) -> 1 | P2: =L2-Q2 -> 0 | Q2: =M2 -> 0 | S2: =SUM(O2+P2+Q2) -> 1
A3: SCE4-9 | C3: 99.99 | D3: N:/2024/Projects/2024s0196 - Sandwell Metropolitan Borough Council - Sandwell L1 & L2 SFRA/1_WIP/HM/Graphical/Shapefiles/Development_sites/Sandwell EMP4 Allocations_region.shx|layername=Sandwell EMP4 Allocations_region | E3: 0.359 | F3: 0 | G3: 0 | H3: 0 | I3: 0 | K3: 1 | L3: =G3/100 -> 0 | M3: =I3/100 -> 0 | O3: =K3-(P3+Q3) -> 1 | P3: =L3-Q3 -> 0 | Q3: =M3 -> 0 | S3: =SUM(O3+P3+Q3) -> 1
A4: SEC4-2 | B4: 10-60 Dudley Rd East, Oldbury (3224) | C4: 2.05 | D4: N:/2024/Projects/2024s0196 - Sandwell Metropolitan Borough Council - Sandwell L1 & L2 SFRA/1_WIP/HM/Graphical/Shapefiles/Development_sites/Sandwell EMP4 Allocations_region.shx|layername=Sandwell EMP4 Allocations_region | E4: 2.059 | F4: 0 | G4: 0 | H4: 0 | I4: 0 | K4: 1 | L4: 0 | M4: 0 | O4: 1 | P4: 0 | Q4: 0 | S4: 1
A5: SEC3-165 | B5: 230 Oldbury Rd (3016) | C5: 1.52 | D5: N:/2024/Projects/2024s0196 - Sandwell Metropolitan Borough Council - Sandwell L1 & L2 SFRA/1_WIP/HM/Graphical/Shapefiles/Development_sites/Sandwell EMP3 Allocations_region.shx|layername=Sandwell EMP3 Allocations_region | E5: 1.527 | F5: 0 | G5: 0 | H5: 0 | I5: 0 | K5: 1 | L5: 0 | M5: 0 | O5: 1 | P5: 0 | Q5: 0 | S5: 1
A6: SEC4-3 | B6: 70-74 Crankhall Lane | C6: 1.78 | D6: N:/2024/Projects/2024s0196 - Sandwell Metropolitan Borough Council - Sandwell L1 & L2 SFRA/1_WIP/HM/Graphical/Shapefiles/Development_sites/Sandwell EMP4 Allocations_region.shx|layername=Sandwell EMP4 Allocations_region | E6: 1.759 | F6: 0 | G6: 0 | H6: 0 | I6: 0 | K6: 1 | L6: 0 | M6: 0 | O6: =K6-(P6+Q6) -> 1 | P6: 0 | Q6: 0 | S6: 1
A7: SEC3-106 | B7: Aeroplas and Olympus Distribution, Great Western Way, Great Bridge | C7: 4.77 | D7: N:/2024/Projects/2024s0196 - Sandwell Metropolitan Borough Council - Sandwell L1 & L2 SFRA/1_WIP/HM/Graphical/Shapefiles/Development_sites/Sandwell EMP3 Allocations_region.shx|layername=Sandwell EMP3 Allocations_region | E7: 4.784 | F7: 12200.31742 | G7: 25.50297494 | H7: 181.4049672 | I7: 0.3792004892 | K7: 1 | L7: 0.2550297494 | M7: 0.003792004892 | O7: 0.7449702506 | P7: 0.2512377446 | Q7: 0.003792004892 | S7: 1
A8: SEC3-41 | B8: Albion Industrial Estate | C8: 9.02 | D8: N:/2024/Projects/2024s0196 - Sandwell Metropolitan Borough Council - Sandwell L1 & L2 SFRA/1_WIP/HM/Graphical/Shapefiles/Development_sites/Sandwell EMP3 Allocations_region.shx|layername=Sandwell EMP3 Allocations_region | E8: 9.05 | F8: 37225.41621 | G8: 41.13363243 | H8: 0 | I8: 0 | K8: 1 | L8: 0.4113363243 | M8: 0 | O8: 0.5886636757 | P8: 0.4113363243 | Q8: 0 | S8: 1
A9: SEC3-182 | B9: Albion Road | C9: 0.91 | D9: N:/2024/Projects/2024s0196 - Sandwell Metropolitan Borough Council - Sandwell L1 & L2 SFRA/1_WIP/HM/Graphical/Shapefiles/Development_sites/Sandwell EMP3 Allocations_region.shx|layername=Sandwell EMP3 Allocations_region | E9: 0.913 | F9: 0 | G9: 0 | H9: 0 | I9: 0 | K9: 1 | L9: 0 | M9: 0 | O9: 1 | P9: 0 | Q9: 0 | S9: 1
A10: SEC3-9 | B10: Alexandra Ind Est, Locarno Rd/ Alexandra Rd, Tipto | C10: 1.87 | D10: N:/2024/Projects/2024s0196 - Sandwell Metropolitan Borough Council - Sandwell L1 & L2 SFRA/1_WIP/HM/Graphical/Shapefiles/Development_sites/Sandwell EMP3 Allocations_region.shx|layername=Sandwell EMP3 Allocations_region | E10: 1.875 | F10: 0 | G10: 0 | H10: 0 | I10: 0 | K10: 1 | L10: 0 | M10: 0 | O10: 1 | P10: 0 | Q10: 0 | S10: 1
A11: SEC3-64 | B11: Alexandra Ind Est/Locarno Road, Tipton | C11: 2.56 | D11: N:/2024/Projects/2024s0196 - Sandwell Metropolitan Borough Council - Sandwell L1 & L2 SFRA/1_WIP/HM/Graphical/Shapefiles/Development_sites/Sandwell EMP3 Allocations_region.shx|layername=Sandwell EMP3 Allocations_region | E11: 2.568 | F11: 0 | G11: 0 | H11: 0 | I11: 0 | K11: 1 | L11: 0 | M11: 0 | O11: 1 | P11: 0 | Q11: 0 | S11: 1
A12: SEC3-93 | B12: Alma Street, Smethwick | C12: 4.71 | D12: N:/2024/Projects/2024s0196 - Sandwell Metropolitan Borough Council - Sandwell L1 & L2 SFRA/1_WIP/HM/Graphical/Shapefiles/Development_sites/Sandwell EMP3 Allocations_region.shx|layername=Sandwell EMP3 Allocations_region | E12: 4.726 | F12: 0 | G12: 0 | H12: 0 | I12: 0 | K12: 1 | L12: 0 | M12: 0 | O12: 1 | P12: 0 | Q12: 0 | S12: 1
A13: SEC3-137 | B13: Alutrade, Tat Bank Road | C13: 2.69 | D13: N:/2024/Projects/2024s0196 - Sandwell Metropolitan Borough Council - Sandwell L1 & L2 SFRA/1_WIP/HM/Graphical/Shapefiles/Development_sites/Sandwell EMP3 Allocations_region.shx|layername=Sandwell EMP3 Allocations_region | E13: 2.705 | F13: 0 | G13: 0 | H13: 0 | I13: 0 | K13: 1 | L13: 0 | M13: 0 | O13: 1 | P13: 0 | Q13: 0 | S13: 1
A14: SEC3-30 | B14: Arnold Laver, Dudley Rd East, Oldbury (2944 | C14: 1 | D14: N:/2024/Projects/2024s0196 - Sandwell Metropolitan Borough Council - Sandwell L1 & L2 SFRA/1_WIP/HM/Graphical/Shapefiles/Development_sites/Sandwell EMP3 Allocations_region.shx|layername=Sandwell EMP3 Allocations_region | E14: 1.005 | F14: 0 | G14: 0 | H14: 0 | I14: 0 | K14: 1 | L14: 0 | M14: 0 | O14: 1 | P14: 0 | Q14: 0 | S14: 1
A15: SEC3-62 | B15: Autobase, Dudley Road, Oldbury | C15: 16.54 | D15: N:/2024/Projects/2024s0196 - Sandwell Metropolitan Borough Council - Sandwell L1 & L2 SFRA/1_WIP/HM/Graphical/Shapefiles/Development_sites/Sandwell EMP3 Allocations_region.shx|layername=Sandwell EMP3 Allocations_region | E15: 16.605 | F15: 0 | G15: 0 | H15: 0 | I15: 0 | K15: 1 | L15: 0 | M15: 0 | O15: 1 | P15: 0 | Q15: 0 | S15: 1
A16: SEC3-128 | B16: Barnfield Trading Est Tipton (5450) | C16: 2.26 | D16: N:/2024/Projects/2024s0196 - Sandwell Metropolitan Borough Council - Sandwell L1 & L2 SFRA/1_WIP/HM/Graphical/Shapefiles/Development_sites/Sandwell EMP3 Allocations_region.shx|layername=Sandwell EMP3 Allocations_region | E16: 2.269 | F16: 18240.02149 | G16: 80.39584092 | H16: 0 | I16: 0 | K16: 1 | L16: =G16/100 -> 0.8039584092 | M16: 0 | O16: =K16-(P16+Q16) -> 0.1960415908 | P16: 0.8039584092 | Q16: 0 | S16: 1
A17: SEC3-151 | B17: Beakes Road, Bearwood (825) | C17: 0.69 | D17: N:/2024/Projects/2024s0196 - Sandwell Metropolitan Borough Council - Sandwell L1 & L2 SFRA/1_WIP/HM/Graphical/Shapefiles/Development_sites/Sandwell EMP3 Allocations_region.shx|layername=Sandwell EMP3 Allocations_region | E17: 0.697 | F17: 0 | G17: 0 | H17: 0 | I17: 0 | K17: 1 | L17: 0 | M17: 0 | O17: 1 | P17: 0 | Q17: 0 | S17: 1
A18: SEC3-152 | B18: Beakes Road, Bearwood (826) | C18: 0.92 | D18: N:/2024/Projects/2024s0196 - Sandwell Metropolitan Borough Council - Sandwell L1 & L2 SFRA/1_WIP/HM/Graphical/Shapefiles/Development_sites/Sandwell EMP3 Allocations_region.shx|layername=Sandwell EMP3 Allocations_region | E18: 0.926 | F18: 0 | G18: 0 | H18: 0 | I18: 0 | K18: 1 | L18: 0 | M18: 0 | O18: 1 | P18: 0 | Q18: 0 | S18: 1
A19: SEC3-16 | B19: Bescot Industrial Estate, Wednesbury | C19: 7.89 | D19: N:/2024/Projects/2024s0196 - Sandwell Metropolitan Borough Council - Sandwell L1 & L2 SFRA/1_WIP/HM/Graphical/Shapefiles/Development_sites/Sandwell EMP3 Allocations_region.shx|layername=Sandwell EMP3 Allocations_region | E19: 7.922 | F19: 0 | G19: 0 | H19: 0 | I19: 0 | K19: 1 | L19: 0 | M19: 0 | O19: 1 | P19: 0 | Q19: 0 | S19: 1
A20: SEC3-138 | B20: Bevan Motor Bodies, Blakeley Hall Road | C20: 0.91 | D20: N:/2024/Projects/2024s0196 - Sandwell Metropolitan Borough Council - Sandwell L1 & L2 SFRA/1_WIP/HM/Graphical/Shapefiles/Development_sites/Sandwell EMP3 Allocations_region.shx|layername=Sandwell EMP3 Allocations_region | E20: 0.912 | F20: 0 | G20: 0 | H20: 0 | I20: 0 | K20: 1 | L20: 0 | M20: 0 | O20: 1 | P20: 0 | Q20: 0 | S20: 1
A21: SEC3-90 | B21: Birchley, Oldbury | C21: 7 | D21: N:/2024/Projects/2024s0196 - Sandwell Metropolitan Borough Council - Sandwell L1 & L2 SFRA/1_WIP/HM/Graphical/Shapefiles/Development_sites/Sandwell EMP3 Allocations_region.shx|layername=Sandwell EMP3 Allocations_region | E21: 7.03 | F21: 37356.29035 | G21: 53.13843842 | H21: 23133.00986 | I21: 32.90615874 | K21: 1 | L21: 0.5313843842 | M21: 0.3290615874 | O21: 0.4686156158 | P21: 0.2023227968 | Q21: 0.3290615874 | S21: 1
A22: EMP2-9 | B22: Black Country New Road, Wednesbury (Hallens Drive) | C22: 43.88 | D22: N:/2024/Projects/2024s0196 - Sandwell Metropolitan Borough Council - Sandwell L1 & L2 SFRA/1_WIP/HM/Graphical/Shapefiles/Development_sites/Sandwell EMP2 Allocations_region.shx|layername=Sandwell EMP2 Allocations_region | E22: 44.043 | F22: 89905.44077 | G22: 20.41294986 | H22: 16159.07546 | I22: 3.66890362 | K22: 1 | L22: 0.2041294986 | M22: 0.0366890362 | O22: 0.7958705014 | P22: 0.1674404624 | Q22: 0.0366890362 | S22: 1
A23: EMP2-10 | B23: Black Country New Road/ Pacific Avenue | C23: 23.03 | D23: N:/2024/Projects/2024s0196 - Sandwell Metropolitan Borough Council - Sandwell L1 & L2 SFRA/1_WIP/HM/Graphical/Shapefiles/Development_sites/Sandwell EMP2 Allocations_region.shx|layername=Sandwell EMP2 Allocations_region | E23: 23.118 | F23: 98110.66677 | G23: 42.43941283 | H23: 63024.2583 | I23: 27.26219895 | K23: 1 | L23: 0.4243941283 | M23: 0.2726219895 | O23: 0.5756058717 | P23: 0.1517721388 | Q23: 0.2726219895 | S23: 1
A24: EMP2-13 | B24: Black Country New Road/Golds Hill, Tipton | C24: 15.08 | D24: N:/2024/Projects/2024s0196 - Sandwell Metropolitan Borough Council - Sandwell L1 & L2 SFRA/1_WIP/HM/Graphical/Shapefiles/Development_sites/Sandwell EMP2 Allocations_region.shx|layername=Sandwell EMP2 Allocations_region | E24: 15.133 | F24: 34923.79553 | G24: 23.07755847 | H24: 9415.538482 | I24: 6.221764748 | K24: 1 | L24: 0.2307755847 | M24: 0.06221764748 | O24: 0.7692244153 | P24: 0.1685579372 | Q24: 0.06221764748 | S24: 1
A25: SEC3-130 | B25: Bloomfield Park | C25: 5.13 | D25: N:/2024/Projects/2024s0196 - Sandwell Metropolitan Borough Council - Sandwell L1 & L2 SFRA/1_WIP/HM/Graphical/Shapefiles/Development_sites/Sandwell EMP3 Allocations_region.shx|layername=Sandwell EMP3 Allocations_region | E25: 5.147 | F25: 79.86158203 | G25: 0.1551612352 | H25: 0 | I25: 0 | K25: 1 | L25: 0.001551612352 | M25: 0 | O25: 0.9984483876 | P25: 0.001551612352 | Q25: 0 | S25: 1
A26: SEC3-19 | B26: Brades Road, Oldbury (Pearsall Drive) | C26: 7 | D26: N:/2024/Projects/2024s0196 - Sandwell Metropolitan Borough Council - Sandwell L1 & L2 SFRA/1_WIP/HM/Graphical/Shapefiles/Development_sites/Sandwell EMP3 Allocations_region.shx|layername=Sandwell EMP3 Allocations_region | E26: 7.03 | F26: 0 | G26: 0 | H26: 0 | I26: 0 | K26: 1 | L26: 0 | M26: 0 | O26: 1 | P26: 0 | Q26: 0 | S26: 1
A27: SEC3-113 | B27: Brandon Way (east side) | C27: 0.47 | D27: N:/2024/Projects/2024s0196 - Sandwell Metropolitan Borough Council - Sandwell L1 & L2 SFRA/1_WIP/HM/Graphical/Shapefiles/Development_sites/Sandwell EMP3 Allocations_region.shx|layername=Sandwell EMP3 Allocations_region | E27: 0.47 | F27: 0 | G27: 0 | H27: 0 | I27: 0 | K27: 1 | L27: 0 | M27: 0 | O27: 1 | P27: 0 | Q27: 0 | S27: 1
A28: SEC3-154 | B28: Brandon Way / Albion Rd, WB (2385 / WBPr32) | C28: 6.2 | D28: N:/2024/Projects/2024s0196 - Sandwell Metropolitan Borough Council - Sandwell L1 & L2 SFRA/1_WIP/HM/Graphical/Shapefiles/Development_sites/Sandwell EMP3 Allocations_region.shx|layername=Sandwell EMP3 Allocations_region | E28: 6.225 | F28: 0 | G28: 0 | H28: 0 | I28: 0 | K28: 1 | L28: 0 | M28: 0 | O28: 1 | P28: 0 | Q28: 0 | S28: 1
A29: SEC1-6 | B29: Brandon Way/ Albion Road, West Bromwich | C29: 3.07 | D29: N:/2024/Projects/2024s0196 - Sandwell Metropolitan Borough Council - Sandwell L1 & L2 SFRA/1_WIP/HM/Graphical/Shapefiles/Development_sites/Sandwell EMP1 Sites_region.shx|layername=Sandwell EMP1 Sites_region | E29: 3.086 | F29: 0 | G29: 0 | H29: 0 | I29: 0 | K29: 1 | L29: 0 | M29: 0 | O29: 1 | P29: 0 | Q29: 0 | S29: 1
A30: SEC3-71 | B30: Brickhouse Lane | C30: 3.87 | D30: N:/2024/Projects/2024s0196 - Sandwell Metropolitan Borough Council - Sandwell L1 & L2 SFRA/1_WIP/HM/Graphical/Shapefiles/Development_sites/Sandwell EMP3 Allocations_region.shx|layername=Sandwell EMP3 Allocations_region | E30: 3.883 | F30: 0 | G30: 0 | H30: 0 | I30: 0 | K30: 1 | L30: 0 | M30: 0 | O30: 1 | P30: 0 | Q30: 0 | S30: 1
A31: SEC3-116 | B31: Bridge Street/ Potters Lane | C31: 3.68 | D31: N:/2024/Projects/2024s0196 - Sandwell Metropolitan Borough Council - Sandwell L1 & L2 SFRA/1_WIP/HM/Graphical/Shapefiles/Development_sites/Sandwell EMP3 Allocations_region.shx|layername=Sandwell EMP3 Allocations_region | E31: 3.695 | F31: 0 | G31: 0 | H31: 0 | I31: 0 | K31: 1 | L31: 0 | M31: 0 | O31: 1 | P31: 0 | Q31: 0 | S31: 1
A32: SEC1-2 | B32: British Gas, Land off Dudley Rd, Oldbury (2949) | C32: 1.05 | D32: N:/2024/Projects/2024s0196 - Sandwell Metropolitan Borough Council - Sandwell L1 & L2 SFRA/1_WIP/HM/Graphical/Shapefiles/Development_sites/Sandwell EMP1 Sites_region.shx|layername=Sandwell EMP1 Sites_region | E32: 1.056 | F32: 0 | G32: 0 | H32: 0 | I32: 0 | K32: 1 | L32: 0 | M32: 0 | O32: 1 | P32: 0 | Q32: 0 | S32: 1
A33: SEC3-177 | B33: Broadcott Industrial Estate, Cradley Heath | C33: 1.36 | D33: N:/2024/Projects/2024s0196 - Sandwell Metropolitan Borough Council - Sandwell L1 & L2 SFRA/1_WIP/HM/Graphical/Shapefiles/Development_sites/Sandwell EMP3 Allocations_region.shx|layername=Sandwell EMP3 Allocations_region | E33: 1.361 | F33: 0 | G33: 0 | H33: 0 | I33: 0 | K33: 1 | L33: 0 | M33: 0 | O33: 1 | P33: 0 | Q33: 0 | S33: 1
A34: EMP2-12 | B34: Broadwell Road, Oldbury | C34: 23.68 | D34: N:/2024/Projects/2024s0196 - Sandwell Metropolitan Borough Council - Sandwell L1 & L2 SFRA/1_WIP/HM/Graphical/Shapefiles/Development_sites/Sandwell EMP2 Allocations_region.shx|layername=Sandwell EMP2 Allocations_region | E34: 23.771 | F34: 96716.06085 | G34: 40.68675571 | H34: 111.2486457 | I34: 0.04680036007 | K34: 1 | L34: 0.4068675571 | M34: 0.0004680036007 | O34: 0.5931324429 | P34: 0.4063995535 | Q34: 0.0004680036007 | S34: 1
A35: SEC3-100 | B35: Bromford Road Industrial Estate | C35: 7.85 | D35: N:/2024/Projects/2024s0196 - Sandwell Metropolitan Borough Council - Sandwell L1 & L2 SFRA/1_WIP/HM/Graphical/Shapefiles/Development_sites/Sandwell EMP3 Allocations_region.shx|layername=Sandwell EMP3 Allocations_region | E35: 7.881 | F35: 21940.66936 | G35: 27.84015832 | H35: 4652.380228 | I35: 5.903329564 | K35: 1 | L35: 0.2784015832 | M35: 0.05903329564 | O35: 0.7215984168 | P35: 0.2193682876 | Q35: 0.05903329564 | S35: 1
A36: SEC3-129 | B36: Brook St Bus Centre, Brook St Comm Centre, Tipton | C36: 1.53 | D36: N:/2024/Projects/2024s0196 - Sandwell Metropolitan Borough Council - Sandwell L1 & L2 SFRA/1_WIP/HM/Graphical/Shapefiles/Development_sites/Sandwell EMP3 Allocations_region.shx|layername=Sandwell EMP3 Allocations_region | E36: 1.538 | F36: 15364.38483 | G36: 99.87217171 | H36: 0 | I36: 0 | K36: 1 | L36: 0.9987217171 | M36: 0 | O36: 0.001278282944 | P36: 0.9987217171 | Q36: 0 | S36: 1
A37: SEC3-133 | B37: Brymill Industrial Estate, Brown Lion St, Tipton | C37: 1.78 | D37: N:/2024/Projects/2024s0196 - Sandwell Metropolitan Borough Council - Sandwell L1 & L2 SFRA/1_WIP/HM/Graphical/Shapefiles/Development_sites/Sandwell EMP3 Allocations_region.shx|layername=Sandwell EMP3 Allocations_region | E37: 1.783 | F37: 0 | G37: 0 | H37: 0 | I37: 0 | K37: 1 | L37: 0 | M37: 0 | O37: 1 | P37: 0 | Q37: 0 | S37: 1
A38: SEC3-123 | B38: Burnt Tree Industrial Estate | C38: 1.56 | D38: N:/2024/Projects/2024s0196 - Sandwell Metropolitan Borough Council - Sandwell L1 & L2 SFRA/1_WIP/HM/Graphical/Shapefiles/Development_sites/Sandwell EMP3 Allocations_region.shx|layername=Sandwell EMP3 Allocations_region | E38: 1.57 | F38: 0 | G38: 0 | H38: 0 | I38: 0 | K38: 1 | L38: 0 | M38: 0 | O38: 1 | P38: 0 | Q38: 0 | S38: 1
A39: SEC3-25 | B39: Cakemore Road, Rowley Regis | C39: 7.48 | D39: N:/2024/Projects/2024s0196 - Sandwell Metropolitan Borough Council - Sandwell L1 & L2 SFRA/1_WIP/HM/Graphical/Shapefiles/Development_sites/Sandwell EMP3 Allocations_region.shx|layername=Sandwell EMP3 Allocations_region | E39: 7.509 | F39: 0 | G39: 0 | H39: 0 | I39: 0 | K39: 1 | L39: 0 | M39: 0 | O39: 1 | P39: 0 | Q39: 0 | S39: 1
A40: SEC3-50 | B40: Cakemore Road, Rowley Regis | C40: 0.6 | D40: N:/2024/Projects/2024s0196 - Sandwell Metropolitan Borough Council - Sandwell L1 & L2 SFRA/1_WIP/HM/Graphical/Shapefiles/Development_sites/Sandwell EMP3 Allocations_region.shx|layername=Sandwell EMP3 Allocations_region | E40: 0.603 | F40: 0 | G40: 0 | H40: 0 | I40: 0 | K40: 1 | L40: 0 | M40: 0 | O40: 1 | P40: 0 | Q40: 0 | S40: 1
A41: EMP2-4 | B41: Car Craft, Darlaston Rd/ Old Park Rd, Kings Hill | C41: 5.17 | D41: N:/2024/Projects/2024s0196 - Sandwell Metropolitan Borough Council - Sandwell L1 & L2 SFRA/1_WIP/HM/Graphical/Shapefiles/Development_sites/Sandwell EMP2 Allocations_region.shx|layername=Sandwell EMP2 Allocations_region | E41: 5.186 | F41: 0 | G41: 0 | H41: 0 | I41: 0 | K41: 1 | L41: 0 | M41: 0 | O41: 1 | P41: 0 | Q41: 0 | S41: 1
A42: SEC3-115 | B42: Carlyle Bus and Coach, Carlyle Business Park | C42: 0.39 | D42: N:/2024/Projects/2024s0196 - Sandwell Metropolitan Borough Council - Sandwell L1 & L2 SFRA/1_WIP/HM/Graphical/Shapefiles/Development_sites/Sandwell EMP3 Allocations_region.shx|layername=Sandwell EMP3 Allocations_region | E42: 0.387 | F42: 0 | G42: 0 | H42: 0 | I42: 0 | K42: 1 | L42: 0 | M42: 0 | O42: 1 | P42: 0 | Q42: 0 | S42: 1
A43: SEC4-7 | B43: Castle St, High St Tipton (2942) | C43: 0.7 | D43: N:/2024/Projects/2024s0196 - Sandwell Metropolitan Borough Council - Sandwell L1 & L2 SFRA/1_WIP/HM/Graphical/Shapefiles/Development_sites/Sandwell EMP4 Allocations_region.shx|layername=Sandwell EMP4 Allocations_region | E43: 0.705 | F43: 0 | G43: 0 | H43: 0 | I43: 0 | K43: 1 | L43: 0 | M43: 0 | O43: 1 | P43: 0 | Q43: 0 | S43: 1
A44: SEC3-148 | B44: Castle St, Tipton (2938) | C44: 1.49 | D44: N:/2024/Projects/2024s0196 - Sandwell Metropolitan Borough Council - Sandwell L1 & L2 SFRA/1_WIP/HM/Graphical/Shapefiles/Development_sites/Sandwell EMP3 Allocations_region.shx|layername=Sandwell EMP3 Allocations_region | E44: 1.494 | F44: 0 | G44: 0 | H44: 0 | I44: 0 | K44: 1 | L44: 0 | M44: 0 | O44: 1 | P44: 0 | Q44: 0 | S44: 1
A45: SEC3-51 | B45: Causeway Green Rd / Wolverhampton Road | C45: 0.84 | D45: N:/2024/Projects/2024s0196 - Sandwell Metropolitan Borough Council - Sandwell L1 & L2 SFRA/1_WIP/HM/Graphical/Shapefiles/Development_sites/Sandwell EMP3 Allocations_region.shx|layername=Sandwell EMP3 Allocations_region | E45: 0.848 | F45: 0 | G45: 0 | H45: 0 | I45: 0 | K45: 1 | L45: 0 | M45: 0 | O45: 1 | P45: 0 | Q45: 0 | S45: 1
A46: SEC3-170 | B46: Charles Street, West Bromwich | C46: 9.02 | D46: N:/2024/Projects/2024s0196 - Sandwell Metropolitan Borough Council - Sandwell L1 & L2 SFRA/1_WIP/HM/Graphical/Shapefiles/Development_sites/Sandwell EMP3 Allocations_region.shx|layername=Sandwell EMP3 Allocations_region | E46: 9.056 | F46: 0 | G46: 0 | H46: 0 | I46: 0 | K46: 1 | L46: 0 | M46: 0 | O46: 1 | P46: 0 | Q46: 0 | S46: 1
A47: SEC3-109 | B47: Chaters Close, Tipton | C47: 0.57 | D47: N:/2024/Projects/2024s0196 - Sandwell Metropolitan Borough Council - Sandwell L1 & L2 SFRA/1_WIP/HM/Graphical/Shapefiles/Development_sites/Sandwell EMP3 Allocations_region.shx|layername=Sandwell EMP3 Allocations_region | E47: 0.578 | F47: 0 | G47: 0 | H47: 0 | I47: 0 | K47: 1 | L47: 0 | M47: 0 | O47: 1 | P47: 0 | Q47: 0 | S47: 1
A48: SEC3-38 | B48: Church Lane / Gladstone Street, WB (2389 / WBPr38) | C48: 2.2 | D48: N:/2024/Projects/2024s0196 - Sandwell Metropolitan Borough Council - Sandwell L1 & L2 SFRA/1_WIP/HM/Graphical/Shapefiles/Development_sites/Sandwell EMP3 Allocations_region.shx|layername=Sandwell EMP3 Allocations_region | E48: 2.205 | F48: 4227.999844 | G48: 19.17865932 | H48: 0 | I48: 0 | K48: 1 | L48: =G48/100 -> 0.1917865932 | M48: 0 | O48: 0.8082134068 | P48: 0.1917865932 | Q48: 0 | S48: 1
A49: EMP2-18 | B49: Churchbridge, Oldbury | C49: 13.98 | D49: N:/2024/Projects/2024s0196 - Sandwell Metropolitan Borough Council - Sandwell L1 & L2 SFRA/1_WIP/HM/Graphical/Shapefiles/Development_sites/Sandwell EMP2 Allocations_region.shx|layername=Sandwell EMP2 Allocations_region | E49: 14.035 | F49: 29763.37759 | G49: 21.20681468 | H49: 15676.1686 | I49: 11.16948509 | K49: 1 | L49: 0.2120681468 | M49: 0.1116948509 | O49: 0.7879318532 | P49: 0.1003732958 | Q49: 0.1116948509 | S49: 1
A50: SEC3-89 | B50: Churchbridge, Oldbury (opposite Thurston Avenue) | C50: 0.75 | D50: N:/2024/Projects/2024s0196 - Sandwell Metropolitan Borough Council - Sandwell L1 & L2 SFRA/1_WIP/HM/Graphical/Shapefiles/Development_sites/Sandwell EMP3 Allocations_region.shx|layername=Sandwell EMP3 Allocations_region | E50: 0.757 | F50: 5587.160432 | G50: 73.81304742 | H50: 4775.115899 | I50: 63.08497144 | K50: 1 | L50: 0.7381304742 | M50: 0.6308497144 | O50: 0.2618695258 | P50: 0.1072807598 | Q50: 0.6308497144 | S50: 1
A51: SEC4-10 | B51: Clay Lane, Oldbury | C51: 0.23 | D51: N:/2024/Projects/2024s0196 - Sandwell Metropolitan Borough Council - Sandwell L1 & L2 SFRA/1_WIP/HM/Graphical/Shapefiles/Development_sites/Sandwell EMP4 Allocations_region.shx|layername=Sandwell EMP4 Allocations_region | E51: 0.227 | F51: 0 | G51: 0 | H51: 0 | I51: 0 | K51: 1 | L51: 0 | M51: 0 | O51: 1 | P51: 0 | Q51: 0 | S51: 1
A52: SEC3-23 | B52: Cleton Street Business Park, Oldbury | C52: 2.01 | D52: N:/2024/Projects/2024s0196 - Sandwell Metropolitan Borough Council - Sandwell L1 & L2 SFRA/1_WIP/HM/Graphical/Shapefiles/Development_sites/Sandwell EMP3 Allocations_region.shx|layername=Sandwell EMP3 Allocations_region | E52: 2.013 | F52: 0 | G52: 0 | H52: 0 | I52: 0 | K52: 1 | L52: 0 | M52: 0 | O52: 1 | P52: 0 | Q52: 0 | S52: 1
A53: SEC1-5 | B53: Coneygre Business Park (open land) | C53: 7.22 | D53: N:/2024/Projects/2024s0196 - Sandwell Metropolitan Borough Council - Sandwell L1 & L2 SFRA/1_WIP/HM/Graphical/Shapefiles/Development_sites/Sandwell EMP1 Sites_region.shx|layername=Sandwell EMP1 Sites_region | E53: 7.234 | F53: 0 | G53: 0 | H53: 0 | I53: 0 | K53: 1 | L53: 0 | M53: 0 | O53: 1 | P53: 0 | Q53: 0 | S53: 1
A54: SEC3-20 | B54: Coneygre Business Park, Tipton | C54: 17.69 | D54: N:/2024/Projects/2024s0196 - Sandwell Metropolitan Borough Council - Sandwell L1 & L2 SFRA/1_WIP/HM/Graphical/Shapefiles/Development_sites/Sandwell EMP3 Allocations_region.shx|layername=Sandwell EMP3 Allocations_region | E54: 17.755 | F54: 0 | G54: 0 | H54: 0 | I54: 0 | K54: 1 | L54: 0 | M54: 0 | O54: 1 | P54: 0 | Q54: 0 | S54: 1
A55: SEC3-175 | B55: Coneygre Rd, Burnt Tree, Tipton | C55: 1.02 | D55: N:/2024/Projects/2024s0196 - Sandwell Metropolitan Borough Council - Sandwell L1 & L2 SFRA/1_WIP/HM/Graphical/Shapefiles/Development_sites/Sandwell EMP3 Allocations_region.shx|layername=Sandwell EMP3 Allocations_region | E55: 1.02 | F55: 0 | G55: 0 | H55: 0 | I55: 0 | K55: 1 | L55: 0 | M55: 0 | O55: 1 | P55: 0 | Q55: 0 | S55: 1
A56: SEC3-174 | B56: Corner of Bromford Lane / Brandon Way | C56: 3.94 | D56: N:/2024/Projects/2024s0196 - Sandwell Metropolitan Borough Council - Sandwell L1 & L2 SFRA/1_WIP/HM/Graphical/Shapefiles/Development_sites/Sandwell EMP3 Allocations_region.shx|layername=Sandwell EMP3 Allocations_region | E56: 3.953 | F56: 0 | G56: 0 | H56: 0 | I56: 0 | K56: 1 | L56: 0 | M56: 0 | O56: 1 | P56: 0 | Q56: 0 | S56: 1
A57: SEC3-85 | B57: Corngreaves Rd (City Estate Hillcrest Ind Est) Pal | C57: 2.8 | D57: N:/2024/Projects/2024s0196 - Sandwell Metropolitan Borough Council - Sandwell L1 & L2 SFRA/1_WIP/HM/Graphical/Shapefiles/Development_sites/Sandwell EMP3 Allocations_region.shx|layername=Sandwell EMP3 Allocations_region | E57: 2.808 | F57: 0 | G57: 0 | H57: 0 | I57: 0 | K57: 1 | L57: 0 | M57: 0 | O57: 1 | P57: 0 | Q57: 0 | S57: 1
A58: SEC3-24 | B58: Corngreaves Road, Cradley Heath | C58: 19.67 | D58: N:/2024/Projects/2024s0196 - Sandwell Metropolitan Borough Council - Sandwell L1 & L2 SFRA/1_WIP/HM/Graphical/Shapefiles/Development_sites/Sandwell EMP3 Allocations_region.shx|layername=Sandwell EMP3 Allocations_region | E58: 19.74 | F58: 1349.262949 | G58: 0.6835153533 | H58: 70.06207549 | I58: 0.03549234366 | K58: 1 | L58: 0.006835153533 | M58: 0.0003549234366 | O58: 0.9931648465 | P58: 0.006480230097 | Q58: 0.0003549234366 | S58: 1
A59: SEC3-80 | B59: Corngreaves Road, Cradley Heath | C59: 3.64 | D59: N:/2024/Projects/2024s0196 - Sandwell Metropolitan Borough Council - Sandwell L1 & L2 SFRA/1_WIP/HM/Graphical/Shapefiles/Development_sites/Sandwell EMP3 Allocations_region.shx|layername=Sandwell EMP3 Allocations_region | E59: 3.651 | F59: 0 | G59: 0 | H59: 0 | I59: 0 | K59: 1 | L59: 0 | M59: 0 | O59: 1 | P59: 0 | Q59: 0 | S59: 1
A60: SEC3-96 | B60: Cornwall Road | C60: 4.02 | D60: N:/2024/Projects/2024s0196 - Sandwell Metropolitan Borough Council - Sandwell L1 & L2 SFRA/1_WIP/HM/Graphical/Shapefiles/Development_sites/Sandwell EMP3 Allocations_region.shx|layername=Sandwell EMP3 Allocations_region | E60: 4.025 | F60: 0 | G60: 0 | H60: 0 | I60: 0 | K60: 1 | L60: 0 | M60: 0 | O60: 1 | P60: 0 | Q60: 0 | S60: 1
A61: SEC3-11 | B61: Cornwall Road/Foundary Lane, Smethwick | C61: 0.35 | D61: N:/2024/Projects/2024s0196 - Sandwell Metropolitan Borough Council - Sandwell L1 & L2 SFRA/1_WIP/HM/Graphical/Shapefiles/Development_sites/Sandwell EMP3 Allocations_region.shx|layername=Sandwell EMP3 Allocations_region | E61: 0.355 | F61: 132.6633628 | G61: 3.732848285 | H61: 111.8258148 | I61: 3.146526606 | K61: 1 | L61: 0.03732848285 | M61: 0.03146526606 | O61: 0.9626715172 | P61: 0.005863216783 | Q61: 0.03146526606 | S61: 1
A62: SEC3-97 | B62: Cornwall Road/Foundary Lane, Smethwick | C62: 99.99 | D62: N:/2024/Projects/2024s0196 - Sandwell Metropolitan Borough Council - Sandwell L1 & L2 SFRA/1_WIP/HM/Graphical/Shapefiles/Development_sites/Sandwell EMP3 Allocations_region.shx|layername=Sandwell EMP3 Allocations_region | E62: 2.884 | F62: 0 | G62: 0 | H62: 0 | I62: 0 | K62: 1 | L62: 0 | M62: 0 | O62: 1 | P62: 0 | Q62: 0 | S62: 1
A63: SEC3-28 | B63: Cornwall Road/Foundary Lane, Smethwick (north of Anne Road) | C63: 2.32 | D63: N:/2024/Projects/2024s0196 - Sandwell Metropolitan Borough Council - Sandwell L1 & L2 SFRA/1_WIP/HM/Graphical/Shapefiles/Development_sites/Sandwell EMP3 Allocations_region.shx|layername=Sandwell EMP3 Allocations_region | E63: 2.332 | F63: 18.97877038 | G63: 0.08136834394 | H63: 0 | I63: 0 | K63: 1 | L63: 0.0008136834394 | M63: 0 | O63: 0.9991863166 | P63: 0.0008136834394 | Q63: 0 | S63: 1
A64: SEC3-79 | B64: Cradley Business Patrk, Cradley Heath | C64: 3.69 | D64: N:/2024/Projects/2024s0196 - Sandwell Metropolitan Borough Council - Sandwell L1 & L2 SFRA/1_WIP/HM/Graphical/Shapefiles/Development_sites/Sandwell EMP3 Allocations_region.shx|layername=Sandwell EMP3 Allocations_region | E64: 3.706 | F64: 0 | G64: 0 | H64: 0 | I64: 0 | K64: 1 | L64: 0 | M64: 0 | O64: 1 | P64: 0 | Q64: 0 | S64: 1
A65: SEC3-52 | B65: Crosswells Road / Hall Street, Oldbury | C65: 0.8 | D65: N:/2024/Projects/2024s0196 - Sandwell Metropolitan Borough Council - Sandwell L1 & L2 SFRA/1_WIP/HM/Graphical/Shapefiles/Development_sites/Sandwell EMP3 Allocations_region.shx|layername=Sandwell EMP3 Allocations_region | E65: 0.8 | F65: 0 | G65: 0 | H65: 0 | I65: 0 | K65: 1 | L65: 0 | M65: 0 | O65: 1 | P65: 0 | Q65: 0 | S65: 1
A66: SEC3-166 | B66: Crystal Drive, Smethwick | C66: 14.3 | D66: N:/2024/Projects/2024s0196 - Sandwell Metropolitan Borough Council - Sandwell L1 & L2 SFRA/1_WIP/HM/Graphical/Shapefiles/Development_sites/Sandwell EMP3 Allocations_region.shx|layername=Sandwell EMP3 Allocations_region | E66: 14.358 | F66: 0 | G66: 0 | H66: 0 | I66: 0 | K66: 1 | L66: 0 | M66: 0 | O66: 1 | P66: 0 | Q66: 0 | S66: 1
A67: SEC3-102 | B67: Cygnus Way, West Bromwich | C67: 12.53 | D67: N:/2024/Projects/2024s0196 - Sandwell Metropolitan Borough Council - Sandwell L1 & L2 SFRA/1_WIP/HM/Graphical/Shapefiles/Development_sites/Sandwell EMP3 Allocations_region.shx|layername=Sandwell EMP3 Allocations_region | E67: 12.579 | F67: 0 | G67: 0 | H67: 0 | I67: 0 | K67: 1 | L67: =G67/100 -> 0 | M67: =I67/100 -> 0 | O67: =K67-(P67+Q67) -> 1 | P67: =L67-Q67 -> 0 | Q67: =M67 -> 0 | S67: =SUM(O67+P67+Q67) -> 1
A68: EMP2-2 | B68: Danks Way, Hill Top, West Bromwich | C68: 7.6 | D68: N:/2024/Projects/2024s0196 - Sandwell Metropolitan Borough Council - Sandwell L1 & L2 SFRA/1_WIP/HM/Graphical/Shapefiles/Development_sites/Sandwell EMP2 Allocations_region.shx|layername=Sandwell EMP2 Allocations_region | E68: 7.626 | F68: 0 | G68: 0 | H68: 0 | I68: 0 | K68: 1 | L68: 0 | M68: 0 | O68: 1 | P68: 0 | Q68: 0 | S68: 1
A69: SEC3-178 | B69: Dart Products, Garratts Lane | C69: 7.82 | D69: N:/2024/Projects/2024s0196 - Sandwell Metropolitan Borough Council - Sandwell L1 & L2 SFRA/1_WIP/HM/Graphical/Shapefiles/Development_sites/Sandwell EMP3 Allocations_region.shx|layername=Sandwell EMP3 Allocations_region | E69: 7.85 | F69: 0 | G69: 0 | H69: 0 | I69: 0 | K69: 1 | L69: 0 | M69: 0 | O69: 1 | P69: 0 | Q69: 0 | S69: 1
A70: SEC3-183 | B70: Dartmouth Road, Smethwick | C70: 23.67 | D70: N:/2024/Projects/2024s0196 - Sandwell Metropolitan Borough Council - Sandwell L1 & L2 SFRA/1_WIP/HM/Graphical/Shapefiles/Development_sites/Sandwell EMP3 Allocations_region.shx|layername=Sandwell EMP3 Allocations_region | E70: 23.758 | F70: 0 | G70: 0 | H70: 0 | I70: 0 | K70: 1 | L70: 0 | M70: 0 | O70: 1 | P70: 0 | Q70: 0 | S70: 1
A71: EMP2-16 | B71: Dartmouth Road/ Piaro Way, Smethwick | C71: 6.93 | D71: N:/2024/Projects/2024s0196 - Sandwell Metropolitan Borough Council - Sandwell L1 & L2 SFRA/1_WIP/HM/Graphical/Shapefiles/Development_sites/Sandwell EMP2 Allocations_region.shx|layername=Sandwell EMP2 Allocations_region | E71: 6.96 | F71: 0 | G71: 0 | H71: 0 | I71: 0 | K71: 1 | L71: 0 | M71: 0 | O71: 1 | P71: 0 | Q71: 0 | S71: 1
A72: SEC3-56 | B72: Delta Point, Greets Green Road | C72: 8.15 | D72: N:/2024/Projects/2024s0196 - Sandwell Metropolitan Borough Council - Sandwell L1 & L2 SFRA/1_WIP/HM/Graphical/Shapefiles/Development_sites/Sandwell EMP3 Allocations_region.shx|layername=Sandwell EMP3 Allocations_region | E72: 8.183 | F72: 0 | G72: 0 | H72: 0 | I72: 0 | K72: 1 | L72: 0 | M72: 0 | O72: 1 | P72: 0 | Q72: 0 | S72: 1
A73: EMP2-3 | B73: Direct 2, Roway Lane, Oldbury | C73: 8.15 | D73: N:/2024/Projects/2024s0196 - Sandwell Metropolitan Borough Council - Sandwell L1 & L2 SFRA/1_WIP/HM/Graphical/Shapefiles/Development_sites/Sandwell EMP2 Allocations_region.shx|layername=Sandwell EMP2 Allocations_region | E73: 8.181 | F73: 14233.23338 | G73: 17.39690619 | H73: 0 | I73: 0 | K73: 1 | L73: 0.1739690619 | M73: 0 | O73: 0.8260309381 | P73: 0.1739690619 | Q73: 0 | S73: 1
A74: EMP2-6 | B74: Doranda Way | C74: 13.91 | D74: N:/2024/Projects/2024s0196 - Sandwell Metropolitan Borough Council - Sandwell L1 & L2 SFRA/1_WIP/HM/Graphical/Shapefiles/Development_sites/Sandwell EMP2 Allocations_region.shx|layername=Sandwell EMP2 Allocations_region | E74: 13.967 | F74: 0 | G74: 0 | H74: 0 | I74: 0 | K74: 1 | L74: 0 | M74: 0 | O74: 1 | P74: 0 | Q74: 0 | S74: 1
A75: SEC3-160 | B75: Doulton Road, Rowley Regis (east of canal) | C75: 3.51 | D75: N:/2024/Projects/2024s0196 - Sandwell Metropolitan Borough Council - Sandwell L1 & L2 SFRA/1_WIP/HM/Graphical/Shapefiles/Development_sites/Sandwell EMP3 Allocations_region.shx|layername=Sandwell EMP3 Allocations_region | E75: 3.52 | F75: 0 | G75: 0 | H75: 0 | I75: 0 | K75: 1 | L75: 0 | M75: 0 | O75: 1 | P75: 0 | Q75: 0 | S75: 1
A76: EMP2-11 | B76: DPD, Roebuck Lane | C76: 8.9 | D76: N:/2024/Projects/2024s0196 - Sandwell Metropolitan Borough Council - Sandwell L1 & L2 SFRA/1_WIP/HM/Graphical/Shapefiles/Development_sites/Sandwell EMP2 Allocations_region.shx|layername=Sandwell EMP2 Allocations_region | E76: 8.934 | F76: 0 | G76: 0 | H76: 0 | I76: 0 | K76: 1 | L76: 0 | M76: 0 | O76: 1 | P76: 0 | Q76: 0 | S76: 1
A77: SEC3-46 | B77: Droicon Ind Est, Portway Road | C77: 0.87 | D77: N:/2024/Projects/2024s0196 - Sandwell Metropolitan Borough Council - Sandwell L1 & L2 SFRA/1_WIP/HM/Graphical/Shapefiles/Development_sites/Sandwell EMP3 Allocations_region.shx|layername=Sandwell EMP3 Allocations_region | E77: 0.872 | F77: 0 | G77: 0 | H77: 0 | I77: 0 | K77: 1 | L77: 0 | M77: 0 | O77: 1 | P77: 0 | Q77: 0 | S77: 1
A78: SEC3-124 | B78: Dudley Rd, 28 Dudley Rd West (2957) | C78: 1.78 | D78: N:/2024/Projects/2024s0196 - Sandwell Metropolitan Borough Council - Sandwell L1 & L2 SFRA/1_WIP/HM/Graphical/Shapefiles/Development_sites/Sandwell EMP3 Allocations_region.shx|layername=Sandwell EMP3 Allocations_region | E78: 1.786 | F78: 0 | G78: 0 | H78: 0 | I78: 0 | K78: 1 | L78: 0 | M78: 0 | O78: 1 | P78: 0 | Q78: 0 | S78: 1
A79: SEC3-61 | B79: Dudley Road, Oldbury | C79: 4.9 | D79: N:/2024/Projects/2024s0196 - Sandwell Metropolitan Borough Council - Sandwell L1 & L2 SFRA/1_WIP/HM/Graphical/Shapefiles/Development_sites/Sandwell EMP3 Allocations_region.shx|layername=Sandwell EMP3 Allocations_region | E79: 4.915 | F79: 0 | G79: 0 | H79: 0 | I79: 0 | K79: 1 | L79: 0 | M79: 0 | O79: 1 | P79: 0 | Q79: 0 | S79: 1
A80: SEC3-185 | B80: Eel Street, Oldbury | C80: 3.16 | D80: N:/2024/Projects/2024s0196 - Sandwell Metropolitan Borough Council - Sandwell L1 & L2 SFRA/1_WIP/HM/Graphical/Shapefiles/Development_sites/Sandwell EMP3 Allocations_region.shx|layername=Sandwell EMP3 Allocations_region | E80: 3.168 | F80: 16844.05162 | G80: 53.17224129 | H80: 15940.25196 | I80: 50.31918344 | K80: 1 | L80: 0.5317224129 | M80: 0.5031918344 | O80: 0.4682775871 | P80: 0.02853057841 | Q80: 0.5031918344 | S80: 1
A81: SEC3-143 | B81: EMR Oldbury | C81: 7.53 | D81: N:/2024/Projects/2024s0196 - Sandwell Metropolitan Borough Council - Sandwell L1 & L2 SFRA/1_WIP/HM/Graphical/Shapefiles/Development_sites/Sandwell EMP3 Allocations_region.shx|layername=Sandwell EMP3 Allocations_region | E81: 7.558 | F81: 0 | G81: 0 | H81: 0 | I81: 0 | K81: 1 | L81: 0 | M81: 0 | O81: 1 | P81: 0 | Q81: 0 | S81: 1
A82: SEC3-14 | B82: Engine Street, Oldbury | C82: 1.64 | D82: N:/2024/Projects/2024s0196 - Sandwell Metropolitan Borough Council - Sandwell L1 & L2 SFRA/1_WIP/HM/Graphical/Shapefiles/Development_sites/Sandwell EMP3 Allocations_region.shx|layername=Sandwell EMP3 Allocations_region | E82: 1.643 | F82: 0 | G82: 0 | H82: 0 | I82: 0 | K82: 1 | L82: 0 | M82: 0 | O82: 1 | P82: 0 | Q82: 0 | S82: 1
A83: SEC3-163 | B83: Exchange Works, Kelvin Way, West Bromwich | C83: 1.49 | D83: N:/2024/Projects/2024s0196 - Sandwell Metropolitan Borough Council - Sandwell L1 & L2 SFRA/1_WIP/HM/Graphical/Shapefiles/Development_sites/Sandwell EMP3 Allocations_region.shx|layername=Sandwell EMP3 Allocations_region | E83: 1.498 | F83: 0 | G83: 0 | H83: 0 | I83: 0 | K83: 1 | L83: 0 | M83: 0 | O83: 1 | P83: 0 | Q83: 0 | S83: 1
A84: SEC3-155 | B84: Fisher St / Coneygre Rd, Tipton | C84: 1.74 | D84: N:/2024/Projects/2024s0196 - Sandwell Metropolitan Borough Council - Sandwell L1 & L2 SFRA/1_WIP/HM/Graphical/Shapefiles/Development_sites/Sandwell EMP3 Allocations_region.shx|layername=Sandwell EMP3 Allocations_region | E84: 1.744 | F84: 0 | G84: 0 | H84: 0 | I84: 0 | K84: 1 | L84: 0 | M84: 0 | O84: 1 | P84: 0 | Q84: 0 | S84: 1
A85: SEC3-149 | B85: Fitzgerald Lighting Ltd, Rood End Rd (2009) | C85: 1.39 | D85: N:/2024/Projects/2024s0196 - Sandwell Metropolitan Borough Council - Sandwell L1 & L2 SFRA/1_WIP/HM/Graphical/Shapefiles/Development_sites/Sandwell EMP3 Allocations_region.shx|layername=Sandwell EMP3 Allocations_region | E85: 1.393 | F85: 0 | G85: 0 | H85: 0 | I85: 0 | K85: 1 | L85: 0 | M85: 0 | O85: 1 | P85: 0 | Q85: 0 | S85: 1
A86: SEC3-132 | B86: Former Corus Premises, Bloomfield Rd, Tipton (5972 | C86: 0.57 | D86: N:/2024/Projects/2024s0196 - Sandwell Metropolitan Borough Council - Sandwell L1 & L2 SFRA/1_WIP/HM/Graphical/Shapefiles/Development_sites/Sandwell EMP3 Allocations_region.shx|layername=Sandwell EMP3 Allocations_region | E86: 0.576 | F86: 2477.637736 | G86: 43.04198346 | H86: 0 | I86: 0 | K86: 1 | L86: 0.4304198346 | M86: 0 | O86: 0.5695801654 | P86: 0.4304198346 | Q86: 0 | S86: 1
A87: SEC3-66 | B87: Foundry Lane (south) | C87: 11.75 | D87: N:/2024/Projects/2024s0196 - Sandwell Metropolitan Borough Council - Sandwell L1 & L2 SFRA/1_WIP/HM/Graphical/Shapefiles/Development_sites/Sandwell EMP3 Allocations_region.shx|layername=Sandwell EMP3 Allocations_region | E87: 11.765 | F87: 2672.431725 | G87: 2.271434688 | H87: 0 | I87: 0 | K87: 1 | L87: 0.02271434688 | M87: 0 | O87: 0.9772856531 | P87: 0.02271434688 | Q87: 0 | S87: 1
A88: SEC3-73 | B88: Foundry Lane/ Anne Road | C88: 5.24 | D88: N:/2024/Projects/2024s0196 - Sandwell Metropolitan Borough Council - Sandwell L1 & L2 SFRA/1_WIP/HM/Graphical/Shapefiles/Development_sites/Sandwell EMP3 Allocations_region.shx|layername=Sandwell EMP3 Allocations_region | E88: 5.257 | F88: 15890.60791 | G88: 30.22974829 | H88: 2648.523978 | I88: 5.038461311 | K88: 1 | L88: 0.3022974829 | M88: 0.05038461311 | O88: 0.6977025171 | P88: 0.2519128697 | Q88: 0.05038461311 | S88: 1
A89: SEC3-159 | B89: Fountain Lane | C89: 1.31 | D89: N:/2024/Projects/2024s0196 - Sandwell Metropolitan Borough Council - Sandwell L1 & L2 SFRA/1_WIP/HM/Graphical/Shapefiles/Development_sites/Sandwell EMP3 Allocations_region.shx|layername=Sandwell EMP3 Allocations_region | E89: 1.316 | F89: 10970.15798 | G89: 83.35438927 | H89: 173.5575142 | I89: 1.318739495 | K89: 1 | L89: 0.8335438927 | M89: 0.01318739495 | O89: 0.1664561073 | P89: 0.8203564978 | Q89: 0.01318739495 | S89: 1
A90: SEC3-139 | B90: Garratts Lane/ Powke Lane | C90: 9.35 | D90: N:/2024/Projects/2024s0196 - Sandwell Metropolitan Borough Council - Sandwell L1 & L2 SFRA/1_WIP/HM/Graphical/Shapefiles/Development_sites/Sandwell EMP3 Allocations_region.shx|layername=Sandwell EMP3 Allocations_region | E90: 9.384 | F90: 0 | G90: 0 | H90: 0 | I90: 0 | K90: 1 | L90: 0 | M90: 0 | O90: 1 | P90: 0 | Q90: 0 | S90: 1
A91: SEC3-47 | B91: Garretts Lane, Cradley Heath | C91: 0.7 | D91: N:/2024/Projects/2024s0196 - Sandwell Metropolitan Borough Council - Sandwell L1 & L2 SFRA/1_WIP/HM/Graphical/Shapefiles/Development_sites/Sandwell EMP3 Allocations_region.shx|layername=Sandwell EMP3 Allocations_region | E91: 0.707 | F91: 0 | G91: 0 | H91: 0 | I91: 0 | K91: 1 | L91: 0 | M91: 0 | O91: 1 | P91: 0 | Q91: 0 | S91: 1
A92: SEC3-68 | B92: George Henry Road | C92: 19.79 | D92: N:/2024/Projects/2024s0196 - Sandwell Metropolitan Borough Council - Sandwell L1 & L2 SFRA/1_WIP/HM/Graphical/Shapefiles/Development_sites/Sandwell EMP3 Allocations_region.shx|layername=Sandwell EMP3 Allocations_region | E92: 19.87 | F92: 15.98554814 | G92: 0.008045191868 | H92: 0 | I92: 0 | K92: 1 | L92: 8.045191868e-05 | M92: 0 | O92: 0.9999195481 | P92: 8.045191868e-05 | Q92: 0 | S92: 1
A93: SEC3-57 | B93: Great Bridge Ind Est / Harrold Street | C93: 4.57 | D93: N:/2024/Projects/2024s0196 - Sandwell Metropolitan Borough Council - Sandwell L1 & L2 SFRA/1_WIP/HM/Graphical/Shapefiles/Development_sites/Sandwell EMP3 Allocations_region.shx|layername=Sandwell EMP3 Allocations_region | E93: 4.592 | F93: 44250.30629 | G93: 96.36862185 | H93: 28281.69014 | I93: 61.59205959 | K93: 1 | L93: 0.9636862185 | M93: 0.6159205959 | O93: 0.03631378151 | P93: 0.3477656226 | Q93: 0.6159205959 | S93: 1
A94: SEC3-15 | B94: Great Western Street, Wednesbury | C94: 3.82 | D94: N:/2024/Projects/2024s0196 - Sandwell Metropolitan Borough Council - Sandwell L1 & L2 SFRA/1_WIP/HM/Graphical/Shapefiles/Development_sites/Sandwell EMP3 Allocations_region.shx|layername=Sandwell EMP3 Allocations_region | E94: 3.832 | F94: 16021.89713 | G94: 41.80545909 | H94: 0.1950609717 | I94: 0.0005089667851 | K94: 1 | L94: 0.4180545909 | M94: 5.089667851e-06 | O94: 0.5819454091 | P94: 0.4180495012 | Q94: 5.089667851e-06 | S94: 1
A95: SEC3-60 | B95: Griffin Ind Est, Penncricket Lane | C95: 3.31 | D95: N:/2024/Projects/2024s0196 - Sandwell Metropolitan Borough Council - Sandwell L1 & L2 SFRA/1_WIP/HM/Graphical/Shapefiles/Development_sites/Sandwell EMP3 Allocations_region.shx|layername=Sandwell EMP3 Allocations_region | E95: 3.323 | F95: 121.9119164 | G95: 0.3668271607 | H95: 82.1018371 | I95: 0.2470405246 | K95: 1 | L95: 0.003668271607 | M95: 0.002470405246 | O95: 0.9963317284 | P95: 0.001197866361 | Q95: 0.002470405246 | S95: 1
A96: SEC3-122 | B96: Groveland Rd (2963) | C96: 1.18 | D96: N:/2024/Projects/2024s0196 - Sandwell Metropolitan Borough Council - Sandwell L1 & L2 SFRA/1_WIP/HM/Graphical/Shapefiles/Development_sites/Sandwell EMP3 Allocations_region.shx|layername=Sandwell EMP3 Allocations_region | E96: 1.183 | F96: 0 | G96: 0 | H96: 0 | I96: 0 | K96: 1 | L96: 0 | M96: 0 | O96: 1 | P96: 0 | Q96: 0 | S96: 1
A97: SEC3-21 | B97: Hainge Road, Oldbury | C97: 14.28 | D97: N:/2024/Projects/2024s0196 - Sandwell Metropolitan Borough Council - Sandwell L1 & L2 SFRA/1_WIP/HM/Graphical/Shapefiles/Development_sites/Sandwell EMP3 Allocations_region.shx|layername=Sandwell EMP3 Allocations_region | E97: 14.332 | F97: 0 | G97: 0 | H97: 0 | I97: 0 | K97: 1 | L97: 0 | M97: 0 | O97: 1 | P97: 0 | Q97: 0 | S97: 1
A98: SEC3-22 | B98: Hale Trading Estate, Tipton | C98: 2.73 | D98: N:/2024/Projects/2024s0196 - Sandwell Metropolitan Borough Council - Sandwell L1 & L2 SFRA/1_WIP/HM/Graphical/Shapefiles/Development_sites/Sandwell EMP3 Allocations_region.shx|layername=Sandwell EMP3 Allocations_region | E98: 2.74 | F98: 0 | G98: 0 | H98: 0 | I98: 0 | K98: 1 | L98: 0 | M98: 0 | O98: 1 | P98: 0 | Q98: 0 | S98: 1
A99: EMP2-8 | B99: Hales Way, Oldbury | C99: 1.51 | D99: N:/2024/Projects/2024s0196 - Sandwell Metropolitan Borough Council - Sandwell L1 & L2 SFRA/1_WIP/HM/Graphical/Shapefiles/Development_sites/Sandwell EMP2 Allocations_region.shx|layername=Sandwell EMP2 Allocations_region | E99: 1.517 | F99: 0 | G99: 0 | H99: 0 | I99: 0 | K99: 1 | L99: 0 | M99: 0 | O99: 1 | P99: 0 | Q99: 0 | S99: 1
A100: SEC3-95 | B100: Halfords Lane | C100: 24.21 | D100: N:/2024/Projects/2024s0196 - Sandwell Metropolitan Borough Council - Sandwell L1 & L2 SFRA/1_WIP/HM/Graphical/Shapefiles/Development_sites/Sandwell EMP3 Allocations_region.shx|layername=Sandwell EMP3 Allocations_region | E100: 24.248 | F100: 13371.64583 | G100: 5.514537337 | H100: 1711.325564 | I100: 0.7057596974 | K100: 1 | L100: 0.05514537337 | M100: 0.007057596974 | O100: 0.9448546266 | P100: 0.0480877764 | Q100: 0.007057596974 | S100: 1
A101: SEC3-103 | B101: Hill Top, West Bromwich | C101: 15.13 | D101: N:/2024/Projects/2024s0196 - Sandwell Metropolitan Borough Council - Sandwell L1 & L2 SFRA/1_WIP/HM/Graphical/Shapefiles/Development_sites/Sandwell EMP3 Allocations_region.shx|layername=Sandwell EMP3 Allocations_region | E101: 15.187 | F101: 82742.59567 | G101: 54.4828879 | H101: 39432.22082 | I101: 25.96463465 | K101: 1 | L101: 0.544828879 | M101: 0.2596463465 | O101: 0.455171121 | P101: 0.2851825325 | Q101: 0.2596463465 | S101: 1
A102: SEC3-18 | B102: Holloway Bank | C102: 1.03 | D102: N:/2024/Projects/2024s0196 - Sandwell Metropolitan Borough Council - Sandwell L1 & L2 SFRA/1_WIP/HM/Graphical/Shapefiles/Development_sites/Sandwell EMP3 Allocations_region.shx|layername=Sandwell EMP3 Allocations_region | E102: 1.034 | F102: 0 | G102: 0 | H102: 0 | I102: 0 | K102: 1 | L102: 0 | M102: 0 | O102: 1 | P102: 0 | Q102: 0 | S102: 1
A103: SEC3-104 | B103: Holloway Bank, Wednesbury | C103: 5.29 | D103: N:/2024/Projects/2024s0196 - Sandwell Metropolitan Borough Council - Sandwell L1 & L2 SFRA/1_WIP/HM/Graphical/Shapefiles/Development_sites/Sandwell EMP3 Allocations_region.shx|layername=Sandwell EMP3 Allocations_region | E103: 5.308 | F103: 2867.784863 | G103: 5.402968236 | H103: 929.493666 | I103: 1.751186017 | K103: 1 | L103: 0.05402968236 | M103: 0.01751186017 | O103: 0.9459703176 | P103: 0.03651782218 | Q103: 0.01751186017 | S103: 1
A104: SEC3-67 | B104: Holloway Bank/ Bilport Lane | C104: 1.77 | D104: N:/2024/Projects/2024s0196 - Sandwell Metropolitan Borough Council - Sandwell L1 & L2 SFRA/1_WIP/HM/Graphical/Shapefiles/Development_sites/Sandwell EMP3 Allocations_region.shx|layername=Sandwell EMP3 Allocations_region | E104: 1.776 | F104: 7132.972249 | G104: 40.161232 | H104: 4234.106472 | I104: 23.83956174 | K104: 1 | L104: 0.40161232 | M104: 0.2383956174 | O104: 0.59838768 | P104: 0.1632167026 | Q104: 0.2383956174 | S104: 1
A105: SEC3-88 | B105: Houghton Street, Oldbury | C105: 1.43 | D105: N:/2024/Projects/2024s0196 - Sandwell Metropolitan Borough Council - Sandwell L1 & L2 SFRA/1_WIP/HM/Graphical/Shapefiles/Development_sites/Sandwell EMP3 Allocations_region.shx|layername=Sandwell EMP3 Allocations_region | E105: 1.439 | F105: 32.96820045 | G105: 0.2290839305 | H105: 2.322725152 | I105: 0.01613976499 | K105: 1 | L105: 0.002290839305 | M105: 0.0001613976499 | O105: 0.9977091607 | P105: 0.002129441655 | Q105: 0.0001613976499 | S105: 1
A106: SEC3-69 | B106: Howard Street | C106: 27.83 | D106: N:/2024/Projects/2024s0196 - Sandwell Metropolitan Borough Council - Sandwell L1 & L2 SFRA/1_WIP/HM/Graphical/Shapefiles/Development_sites/Sandwell EMP3 Allocations_region.shx|layername=Sandwell EMP3 Allocations_region | E106: 27.938 | F106: 0 | G106: 0 | H106: 0 | I106: 0 | K106: 1 | L106: 0 | M106: 0 | O106: 1 | P106: 0 | Q106: 0 | S106: 1
A107: SEC3-78 | B107: James Watt Industrial Park | C107: 3.63 | D107: N:/2024/Projects/2024s0196 - Sandwell Metropolitan Borough Council - Sandwell L1 & L2 SFRA/1_WIP/HM/Graphical/Shapefiles/Development_sites/Sandwell EMP3 Allocations_region.shx|layername=Sandwell EMP3 Allocations_region | E107: 3.639 | F107: 0 | G107: 0 | H107: 0 | I107: 0 | K107: 1 | L107: 0 | M107: 0 | O107: 1 | P107: 0 | Q107: 0 | S107: 1
A108: SEC3-136 | B108: JAS Ind Park, Titford Lane, Oldbury (3013) | C108: 0.94 | D108: N:/2024/Projects/2024s0196 - Sandwell Metropolitan Borough Council - Sandwell L1 & L2 SFRA/1_WIP/HM/Graphical/Shapefiles/Development_sites/Sandwell EMP3 Allocations_region.shx|layername=Sandwell EMP3 Allocations_region | E108: 0.94 | F108: 0 | G108: 0 | H108: 0 | I108: 0 | K108: 1 | L108: 0 | M108: 0 | O108: 1 | P108: 0 | Q108: 0 | S108: 1
A109: SEC3-146 | B109: JerseyTex Ltd, Upper Church Lane, Princes End | C109: 1.58 | D109: N:/2024/Projects/2024s0196 - Sandwell Metropolitan Borough Council - Sandwell L1 & L2 SFRA/1_WIP/HM/Graphical/Shapefiles/Development_sites/Sandwell EMP3 Allocations_region.shx|layername=Sandwell EMP3 Allocations_region | E109: 1.582 | F109: 0 | G109: 0 | H109: 0 | I109: 0 | K109: 1 | L109: 0 | M109: 0 | O109: 1 | P109: 0 | Q109: 0 | S109: 1
A110: SEC3-169 | B110: JH Lavender & Co, Crankhall Lane, West Bromwich | C110: 1.31 | D110: N:/2024/Projects/2024s0196 - Sandwell Metropolitan Borough Council - Sandwell L1 & L2 SFRA/1_WIP/HM/Graphical/Shapefiles/Development_sites/Sandwell EMP3 Allocations_region.shx|layername=Sandwell EMP3 Allocations_region | E110: 1.314 | F110: 0 | G110: 0 | H110: 0 | I110: 0 | K110: 1 | L110: 0 | M110: 0 | O110: 1 | P110: 0 | Q110: 0 | S110: 1
A111: SEC3-91 | B111: Joseph Street, Oldbury | C111: 2.95 | D111: N:/2024/Projects/2024s0196 - Sandwell Metropolitan Borough Council - Sandwell L1 & L2 SFRA/1_WIP/HM/Graphical/Shapefiles/Development_sites/Sandwell EMP3 Allocations_region.shx|layername=Sandwell EMP3 Allocations_region | E111: 2.966 | F111: 14811.04346 | G111: 49.93282369 | H111: 13097.93954 | I111: 44.15739562 | K111: 1 | L111: 0.4993282369 | M111: 0.4415739562 | O111: 0.5006717631 | P111: 0.05775428065 | Q111: 0.4415739562 | S111: 1
A112: EMP2-15 | B112: Junction 9 (Opus 9) | C112: 2.33 | D112: N:/2024/Projects/2024s0196 - Sandwell Metropolitan Borough Council - Sandwell L1 & L2 SFRA/1_WIP/HM/Graphical/Shapefiles/Development_sites/Sandwell EMP2 Allocations_region.shx|layername=Sandwell EMP2 Allocations_region | E112: 2.343 | F112: 15751.05874 | G112: 67.2340291 | H112: 13611.57034 | I112: 58.10153663 | K112: 1 | L112: 0.672340291 | M112: 0.5810153663 | O112: 0.327659709 | P112: 0.09132492468 | Q112: 0.5810153663 | S112: 1
A113: SEC3-12 | B113: Junction One, Oldbury | C113: 4.7 | D113: N:/2024/Projects/2024s0196 - Sandwell Metropolitan Borough Council - Sandwell L1 & L2 SFRA/1_WIP/HM/Graphical/Shapefiles/Development_sites/Sandwell EMP3 Allocations_region.shx|layername=Sandwell EMP3 Allocations_region | E113: 4.717 | F113: 0 | G113: 0 | H113: 0 | I113: 0 | K113: 1 | L113: 0 | M113: 0 | O113: 1 | P113: 0 | Q113: 0 | S113: 1
A114: SEC1-3 | B114: Junction Two, Oldbury | C114: 1.12 | D114: N:/2024/Projects/2024s0196 - Sandwell Metropolitan Borough Council - Sandwell L1 & L2 SFRA/1_WIP/HM/Graphical/Shapefiles/Development_sites/Sandwell EMP1 Sites_region.shx|layername=Sandwell EMP1 Sites_region | E114: 1.128 | F114: 0 | G114: 0 | H114: 0 | I114: 0 | K114: 1 | L114: 0 | M114: 0 | O114: 1 | P114: 0 | Q114: 0 | S114: 1
A115: SEC3-98 | B115: Kelvin Way WBPr35 | C115: 33.77 | D115: N:/2024/Projects/2024s0196 - Sandwell Metropolitan Borough Council - Sandwell L1 & L2 SFRA/1_WIP/HM/Graphical/Shapefiles/Development_sites/Sandwell EMP3 Allocations_region.shx|layername=Sandwell EMP3 Allocations_region | E115: 33.9 | F115: 2950.667698 | G115: 0.8704052673 | H115: 0 | I115: 0 | K115: 1 | L115: 0.008704052673 | M115: 0 | O115: 0.9912959473 | P115: 0.008704052673 | Q115: 0 | S115: 1
A116: EMP2-5 | B116: Kings Hill Business Park | C116: 3.26 | D116: N:/2024/Projects/2024s0196 - Sandwell Metropolitan Borough Council - Sandwell L1 & L2 SFRA/1_WIP/HM/Graphical/Shapefiles/Development_sites/Sandwell EMP2 Allocations_region.shx|layername=Sandwell EMP2 Allocations_region | E116: 3.268 | F116: 0 | G116: 0 | H116: 0 | I116: 0 | K116: 1 | L116: 0 | M116: 0 | O116: 1 | P116: 0 | Q116: 0 | S116: 1
A117: SEC3-193 | B117: Kitchener Street, Smethwick | C117: 1.39 | D117: N:/2024/Projects/2024s0196 - Sandwell Metropolitan Borough Council - Sandwell L1 & L2 SFRA/1_WIP/HM/Graphical/Shapefiles/Development_sites/Sandwell EMP3 Allocations_region.shx|layername=Sandwell EMP3 Allocations_region | E117: 1.394 | F117: 0 | G117: 0 | H117: 0 | I117: 0 | K117: 1 | L117: 0 | M117: 0 | O117: 1 | P117: 0 | Q117: 0 | S117: 1
A118: SEC3-131 | B118: Land & premises Barnfield Rd, Brook St, Bloomfield | C118: 0.83 | D118: N:/2024/Projects/2024s0196 - Sandwell Metropolitan Borough Council - Sandwell L1 & L2 SFRA/1_WIP/HM/Graphical/Shapefiles/Development_sites/Sandwell EMP3 Allocations_region.shx|layername=Sandwell EMP3 Allocations_region | E118: 0.835 | F118: 8352.684684 | G118: 100 | H118: 0 | I118: 0 | K118: 1 | L118: 1 | M118: 0 | O118: 0 | P118: 1 | Q118: 0 | S118: 1
A119: SEC3-43 | B119: Land at Birmingham Road / Roebuck Lane | C119: 6.78 | D119: N:/2024/Projects/2024s0196 - Sandwell Metropolitan Borough Council - Sandwell L1 & L2 SFRA/1_WIP/HM/Graphical/Shapefiles/Development_sites/Sandwell EMP3 Allocations_region.shx|layername=Sandwell EMP3 Allocations_region | E119: 6.806 | F119: 0 | G119: 0 | H119: 0 | I119: 0 | K119: 1 | L119: 0 | M119: 0 | O119: 1 | P119: 0 | Q119: 0 | S119: 1
A120: SEC3-156 | B120: Land at corner of Birmingham Road | C120: 0.48 | D120: N:/2024/Projects/2024s0196 - Sandwell Metropolitan Borough Council - Sandwell L1 & L2 SFRA/1_WIP/HM/Graphical/Shapefiles/Development_sites/Sandwell EMP3 Allocations_region.shx|layername=Sandwell EMP3 Allocations_region | E120: 0.48 | F120: 0 | G120: 0 | H120: 0 | I120: 0 | K120: 1 | L120: 0 | M120: 0 | O120: 1 | P120: 0 | Q120: 0 | S120: 1
A121: SEC3-127 | B121: Land at Doulton Way, bt Factory Rd, Bloomfield Rd, Tipton | C121: 2.75 | D121: N:/2024/Projects/2024s0196 - Sandwell Metropolitan Borough Council - Sandwell L1 & L2 SFRA/1_WIP/HM/Graphical/Shapefiles/Development_sites/Sandwell EMP3 Allocations_region.shx|layername=Sandwell EMP3 Allocations_region | E121: 2.759 | F121: 1785.219388 | G121: 6.469963108 | H121: 0 | I121: 0 | K121: 1 | L121: 0.06469963108 | M121: 0 | O121: 0.9353003689 | P121: 0.06469963108 | Q121: 0 | S121: 1
A122: SEC3-42 | B122: Land at Junction 1 / Kenrick Way | C122: 4.13 | D122: N:/2024/Projects/2024s0196 - Sandwell Metropolitan Borough Council - Sandwell L1 & L2 SFRA/1_WIP/HM/Graphical/Shapefiles/Development_sites/Sandwell EMP3 Allocations_region.shx|layername=Sandwell EMP3 Allocations_region | E122: 4.146 | F122: 0 | G122: 0 | H122: 0 | I122: 0 | K122: 1 | L122: 0 | M122: 0 | O122: 1 | P122: 0 | Q122: 0 | S122: 1
A123: SEC4-15 | B123: Land at Potters Lane & Stafford St, Weds (5642) | C123: 0.85 | D123: N:/2024/Projects/2024s0196 - Sandwell Metropolitan Borough Council - Sandwell L1 & L2 SFRA/1_WIP/HM/Graphical/Shapefiles/Development_sites/Sandwell EMP4 Allocations_region.shx|layername=Sandwell EMP4 Allocations_region | E123: 0.856 | F123: 0 | G123: 0 | H123: 0 | I123: 0 | K123: 1 | L123: 0 | M123: 0 | O123: 1 | P123: 0 | Q123: 0 | S123: 1
A124: SEC3-118 | B124: Land bt Great Bridge St & William St, Tipton (2965 | C124: 1.06 | D124: N:/2024/Projects/2024s0196 - Sandwell Metropolitan Borough Council - Sandwell L1 & L2 SFRA/1_WIP/HM/Graphical/Shapefiles/Development_sites/Sandwell EMP3 Allocations_region.shx|layername=Sandwell EMP3 Allocations_region | E124: 1.081 | F124: 0 | G124: 0 | H124: 0 | I124: 0 | K124: 1 | L124: 0 | M124: 0 | O124: 1 | P124: 0 | Q124: 0 | S124: 1
A125: SEC3-117 | B125: Land by Whitehall Road and Walsall Canal | C125: 1.04 | D125: N:/2024/Projects/2024s0196 - Sandwell Metropolitan Borough Council - Sandwell L1 & L2 SFRA/1_WIP/HM/Graphical/Shapefiles/Development_sites/Sandwell EMP3 Allocations_region.shx|layername=Sandwell EMP3 Allocations_region | E125: 1.04 | F125: 0 | G125: 0 | H125: 0 | I125: 0 | K125: 1 | L125: 0 | M125: 0 | O125: 1 | P125: 0 | Q125: 0 | S125: 1
A126: SEC3-31 | B126: land off dudley rd, oldbury | C126: 0.98 | D126: N:/2024/Projects/2024s0196 - Sandwell Metropolitan Borough Council - Sandwell L1 & L2 SFRA/1_WIP/HM/Graphical/Shapefiles/Development_sites/Sandwell EMP3 Allocations_region.shx|layername=Sandwell EMP3 Allocations_region | E126: 0.981 | F126: 0 | G126: 0 | H126: 0 | I126: 0 | K126: 1 | L126: 0 | M126: 0 | O126: 1 | P126: 0 | Q126: 0 | S126: 1
A127: SEC3-65 | B127: Land off Tipton Road, Oldbury | C127: 0.81 | D127: N:/2024/Projects/2024s0196 - Sandwell Metropolitan Borough Council - Sandwell L1 & L2 SFRA/1_WIP/HM/Graphical/Shapefiles/Development_sites/Sandwell EMP3 Allocations_region.shx|layername=Sandwell EMP3 Allocations_region | E127: 0.812 | F127: 0 | G127: 0 | H127: 0 | I127: 0 | K127: 1 | L127: 0 | M127: 0 | O127: 1 | P127: 0 | Q127: 0 | S127: 1
A128: SEC3-17 | B128: Leabrook Road, Tipton | C128: 7.45 | D128: N:/2024/Projects/2024s0196 - Sandwell Metropolitan Borough Council - Sandwell L1 & L2 SFRA/1_WIP/HM/Graphical/Shapefiles/Development_sites/Sandwell EMP3 Allocations_region.shx|layername=Sandwell EMP3 Allocations_region | E128: 7.479 | F128: 0 | G128: 0 | H128: 0 | I128: 0 | K128: 1 | L128: 0 | M128: 0 | O128: 1 | P128: 0 | Q128: 0 | S128: 1
A129: SEC1-8 | B129: Legacy 43, Ryder Street, West Bromwich | C129: 0.88 | D129: N:/2024/Projects/2024s0196 - Sandwell Metropolitan Borough Council - Sandwell L1 & L2 SFRA/1_WIP/HM/Graphical/Shapefiles/Development_sites/Sandwell EMP1 Sites_region.shx|layername=Sandwell EMP1 Sites_region | E129: 0.883 | F129: 0 | G129: 0 | H129: 0 | I129: 0 | K129: 1 | L129: 0 | M129: 0 | O129: 1 | P129: 0 | Q129: 0 | S129: 1
A130: EMP2-14 | B130: Lidl, Junction 9 (Opus 9) | C130: 8.67 | D130: N:/2024/Projects/2024s0196 - Sandwell Metropolitan Borough Council - Sandwell L1 & L2 SFRA/1_WIP/HM/Graphical/Shapefiles/Development_sites/Sandwell EMP2 Allocations_region.shx|layername=Sandwell EMP2 Allocations_region | E130: 8.707 | F130: 60387.7513 | G130: 69.35201056 | H130: 45304.81249 | I130: 52.03008502 | K130: 1 | L130: 0.6935201056 | M130: 0.5203008502 | O130: 0.3064798944 | P130: 0.1732192555 | Q130: 0.5203008502 | S130: 1
A131: SEC3-40 | B131: Newlyn Road, Cradley Heath | C131: 3.4 | D131: N:/2024/Projects/2024s0196 - Sandwell Metropolitan Borough Council - Sandwell L1 & L2 SFRA/1_WIP/HM/Graphical/Shapefiles/Development_sites/Sandwell EMP3 Allocations_region.shx|layername=Sandwell EMP3 Allocations_region | E131: 3.411 | F131: 0 | G131: 0 | H131: 0 | I131: 0 | K131: 1 | L131: =G131/100 -> 0 | M131: =I131/100 -> 0 | O131: =K131-(P131+Q131) -> 1 | P131: =L131-Q131 -> 0 | Q131: =M131 -> 0 | S131: =SUM(O131+P131+Q131) -> 1
A132: SEC3-84 | B132: Old Park Trading Estate, Old Park Rd (2922) | C132: 2.63 | D132: N:/2024/Projects/2024s0196 - Sandwell Metropolitan Borough Council - Sandwell L1 & L2 SFRA/1_WIP/HM/Graphical/Shapefiles/Development_sites/Sandwell EMP3 Allocations_region.shx|layername=Sandwell EMP3 Allocations_region | E132: 2.642 | F132: 0 | G132: 0 | H132: 0 | I132: 0 | K132: 1 | L132: 0 | M132: 0 | O132: =K132-(P132+Q132) -> 1 | P132: 0 | Q132: 0 | S132: 1
A133: SEC3-53 | B133: Oldbury Point Ind Est, Rood End Road | C133: 3.22 | D133: N:/2024/Projects/2024s0196 - Sandwell Metropolitan Borough Council - Sandwell L1 & L2 SFRA/1_WIP/HM/Graphical/Shapefiles/Development_sites/Sandwell EMP3 Allocations_region.shx|layername=Sandwell EMP3 Allocations_region | E133: 3.232 | F133: 0 | G133: 0 | H133: 0 | I133: 0 | K133: 1 | L133: 0 | M133: 0 | O133: 1 | P133: 0 | Q133: 0 | S133: 1
A134: SEC3-150 | B134: Oldbury Rd Ind Est, Oldbury Rd (2994) | C134: 0.57 | D134: N:/2024/Projects/2024s0196 - Sandwell Metropolitan Borough Council - Sandwell L1 & L2 SFRA/1_WIP/HM/Graphical/Shapefiles/Development_sites/Sandwell EMP3 Allocations_region.shx|layername=Sandwell EMP3 Allocations_region | E134: 0.574 | F134: 0 | G134: 0 | H134: 0 | I134: 0 | K134: 1 | L134: 0 | M134: 0 | O134: 1 | P134: 0 | Q134: 0 | S134: 1
A135: SEC3-168 | B135: Oldbury Rd, Oldbury (3014) | C135: 2.41 | D135: N:/2024/Projects/2024s0196 - Sandwell Metropolitan Borough Council - Sandwell L1 & L2 SFRA/1_WIP/HM/Graphical/Shapefiles/Development_sites/Sandwell EMP3 Allocations_region.shx|layername=Sandwell EMP3 Allocations_region | E135: 2.416 | F135: 0 | G135: 0 | H135: 0 | I135: 0 | K135: 1 | L135: 0 | M135: 0 | O135: 1 | P135: 0 | Q135: 0 | S135: 1
A136: SEC3-153 | B136: Oldbury Rd, WB (2384 / WBPr31) | C136: 18.87 | D136: N:/2024/Projects/2024s0196 - Sandwell Metropolitan Borough Council - Sandwell L1 & L2 SFRA/1_WIP/HM/Graphical/Shapefiles/Development_sites/Sandwell EMP3 Allocations_region.shx|layername=Sandwell EMP3 Allocations_region | E136: 18.938 | F136: 0 | G136: 0 | H136: 0 | I136: 0 | K136: 1 | L136: 0 | M136: 0 | O136: 1 | P136: 0 | Q136: 0 | S136: 1
A137: SEC3-191 | B137: Oldfield Trading Estate, Cradley Heath | C137: 1.76 | D137: N:/2024/Projects/2024s0196 - Sandwell Metropolitan Borough Council - Sandwell L1 & L2 SFRA/1_WIP/HM/Graphical/Shapefiles/Development_sites/Sandwell EMP3 Allocations_region.shx|layername=Sandwell EMP3 Allocations_region | E137: 1.766 | F137: 0 | G137: 0 | H137: 0 | I137: 0 | K137: 1 | L137: 0 | M137: 0 | O137: 1 | P137: 0 | Q137: 0 | S137: 1
A138: SEC3-176 | B138: Palmers Timber Site, Station Rd, Old Hill (3043) | C138: 3.14 | D138: N:/2024/Projects/2024s0196 - Sandwell Metropolitan Borough Council - Sandwell L1 & L2 SFRA/1_WIP/HM/Graphical/Shapefiles/Development_sites/Sandwell EMP3 Allocations_region.shx|layername=Sandwell EMP3 Allocations_region | E138: 3.149 | F138: 0 | G138: 0 | H138: 0 | I138: 0 | K138: 1 | L138: 0 | M138: 0 | O138: 1 | P138: 0 | Q138: 0 | S138: 1
A139: EMP2-7 | B139: Park Lane Trading Estate, Oldbury | C139: 2.17 | D139: N:/2024/Projects/2024s0196 - Sandwell Metropolitan Borough Council - Sandwell L1 & L2 SFRA/1_WIP/HM/Graphical/Shapefiles/Development_sites/Sandwell EMP2 Allocations_region.shx|layername=Sandwell EMP2 Allocations_region | E139: 2.182 | F139: 62.33612294 | G139: 0.2856585781 | H139: 2.137102466 | I139: 0.009793385008 | K139: 1 | L139: 0.002856585781 | M139: 9.793385008e-05 | O139: 0.9971434142 | P139: 0.002758651931 | Q139: 9.793385008e-05 | S139: 1
A140: SEC4-5 | B140: Park Lane West | C140: 2.94 | D140: N:/2024/Projects/2024s0196 - Sandwell Metropolitan Borough Council - Sandwell L1 & L2 SFRA/1_WIP/HM/Graphical/Shapefiles/Development_sites/Sandwell EMP4 Allocations_region.shx|layername=Sandwell EMP4 Allocations_region | E140: 2.953 | F140: 0 | G140: 0 | H140: 0 | I140: 0 | K140: 1 | L140: 0 | M140: 0 | O140: 1 | P140: 0 | Q140: 0 | S140: 1
A141: SEC3-186 | B141: Park Lane, West Bromwich | C141: 10.22 | D141: N:/2024/Projects/2024s0196 - Sandwell Metropolitan Borough Council - Sandwell L1 & L2 SFRA/1_WIP/HM/Graphical/Shapefiles/Development_sites/Sandwell EMP3 Allocations_region.shx|layername=Sandwell EMP3 Allocations_region | E141: 10.104 | F141: 0 | G141: 0 | H141: 0 | I141: 0 | K141: 1 | L141: 0 | M141: 0 | O141: 1 | P141: 0 | Q141: 0 | S141: 1
A142: SEC3-187 | B142: Park Lane, West Bromwich | C142: 2.45 | D142: N:/2024/Projects/2024s0196 - Sandwell Metropolitan Borough Council - Sandwell L1 & L2 SFRA/1_WIP/HM/Graphical/Shapefiles/Development_sites/Sandwell EMP3 Allocations_region.shx|layername=Sandwell EMP3 Allocations_region | E142: 2.452 | F142: 0 | G142: 0 | H142: 0 | I142: 0 | K142: 1 | L142: 0 | M142: 0 | O142: 1 | P142: 0 | Q142: 0 | S142: 1
A143: SEC3-184 | B143: Parkroase Estate, Rounds Green Road, Oldbury | C143: 2.58 | D143: N:/2024/Projects/2024s0196 - Sandwell Metropolitan Borough Council - Sandwell L1 & L2 SFRA/1_WIP/HM/Graphical/Shapefiles/Development_sites/Sandwell EMP3 Allocations_region.shx|layername=Sandwell EMP3 Allocations_region | E143: 2.588 | F143: 0 | G143: 0 | H143: 0 | I143: 0 | K143: 1 | L143: 0 | M143: 0 | O143: 1 | P143: 0 | Q143: 0 | S143: 1
A144: SEC3-105 | B144: Parsonage Street, Oldbury | C144: 10.15 | D144: N:/2024/Projects/2024s0196 - Sandwell Metropolitan Borough Council - Sandwell L1 & L2 SFRA/1_WIP/HM/Graphical/Shapefiles/Development_sites/Sandwell EMP3 Allocations_region.shx|layername=Sandwell EMP3 Allocations_region | E144: 10.189 | F144: 0 | G144: 0 | H144: 0 | I144: 0 | K144: 1 | L144: 0 | M144: 0 | O144: 1 | P144: 0 | Q144: 0 | S144: 1
A145: SEC3-173 | B145: Pennington Close | C145: 4.2 | D145: N:/2024/Projects/2024s0196 - Sandwell Metropolitan Borough Council - Sandwell L1 & L2 SFRA/1_WIP/HM/Graphical/Shapefiles/Development_sites/Sandwell EMP3 Allocations_region.shx|layername=Sandwell EMP3 Allocations_region | E145: 4.22 | F145: 0 | G145: 0 | H145: 0 | I145: 0 | K145: 1 | L145: 0 | M145: 0 | O145: 1 | P145: 0 | Q145: 0 | S145: 1
A146: SEC4-13 | B146: Ph 9, The Parkway, bt Stafford St/ Victoria st/ Po | C146: 0.94 | D146: N:/2024/Projects/2024s0196 - Sandwell Metropolitan Borough Council - Sandwell L1 & L2 SFRA/1_WIP/HM/Graphical/Shapefiles/Development_sites/Sandwell EMP4 Allocations_region.shx|layername=Sandwell EMP4 Allocations_region | E146: 0.942 | F146: 0 | G146: 0 | H146: 0 | I146: 0 | K146: 1 | L146: 0 | M146: 0 | O146: 1 | P146: 0 | Q146: 0 | S146: 1
A147: SEC3-171 | B147: Phoenix St / Belper Ind Est Greets Green Road, Wes | C147: 5.55 | D147: N:/2024/Projects/2024s0196 - Sandwell Metropolitan Borough Council - Sandwell L1 & L2 SFRA/1_WIP/HM/Graphical/Shapefiles/Development_sites/Sandwell EMP3 Allocations_region.shx|layername=Sandwell EMP3 Allocations_region | E147: 5.568 | F147: 0 | G147: 0 | H147: 0 | I147: 0 | K147: 1 | L147: 0 | M147: 0 | O147: 1 | P147: 0 | Q147: 0 | S147: 1
A148: SEC3-172 | B148: Phoenix Street (west), West Bromwich | C148: 3.44 | D148: N:/2024/Projects/2024s0196 - Sandwell Metropolitan Borough Council - Sandwell L1 & L2 SFRA/1_WIP/HM/Graphical/Shapefiles/Development_sites/Sandwell EMP3 Allocations_region.shx|layername=Sandwell EMP3 Allocations_region | E148: 3.451 | F148: 0 | G148: 0 | H148: 0 | I148: 0 | K148: 1 | L148: 0 | M148: 0 | O148: 1 | P148: 0 | Q148: 0 | S148: 1
A149: SEC3-70 | B149: Pikehelve Street, Hill Top, West Bromwich | C149: 5.91 | D149: N:/2024/Projects/2024s0196 - Sandwell Metropolitan Borough Council - Sandwell L1 & L2 SFRA/1_WIP/HM/Graphical/Shapefiles/Development_sites/Sandwell EMP3 Allocations_region.shx|layername=Sandwell EMP3 Allocations_region | E149: 5.93 | F149: 0 | G149: 0 | H149: 0 | I149: 0 | K149: 1 | L149: 0 | M149: 0 | O149: 1 | P149: 0 | Q149: 0 | S149: 1
A150: SEC3-74 | B150: Popes Lane, Oldbury | C150: 10.81 | D150: N:/2024/Projects/2024s0196 - Sandwell Metropolitan Borough Council - Sandwell L1 & L2 SFRA/1_WIP/HM/Graphical/Shapefiles/Development_sites/Sandwell EMP3 Allocations_region.shx|layername=Sandwell EMP3 Allocations_region | E150: 10.856 | F150: 0 | G150: 0 | H150: 0 | I150: 0 | K150: 1 | L150: 0 | M150: 0 | O150: 1 | P150: 0 | Q150: 0 | S150: 1
A151: SEC3-75 | B151: Popes Lane, Oldbury | C151: 2.91 | D151: N:/2024/Projects/2024s0196 - Sandwell Metropolitan Borough Council - Sandwell L1 & L2 SFRA/1_WIP/HM/Graphical/Shapefiles/Development_sites/Sandwell EMP3 Allocations_region.shx|layername=Sandwell EMP3 Allocations_region | E151: 2.919 | F151: 0 | G151: 0 | H151: 0 | I151: 0 | K151: 1 | L151: 0 | M151: 0 | O151: 1 | P151: 0 | Q151: 0 | S151: 1
A152: SEC3-10 | B152: Portway Rd, Weds (5129) | C152: 3.78 | D152: N:/2024/Projects/2024s0196 - Sandwell Metropolitan Borough Council - Sandwell L1 & L2 SFRA/1_WIP/HM/Graphical/Shapefiles/Development_sites/Sandwell EMP3 Allocations_region.shx|layername=Sandwell EMP3 Allocations_region | E152: 3.782 | F152: 0 | G152: 0 | H152: 0 | I152: 0 | K152: 1 | L152: 0 | M152: 0 | O152: 1 | P152: 0 | Q152: 0 | S152: 1
A153: SEC3-81 | B153: Portway Rd, Weds (5129) | C153: 4.51 | D153: N:/2024/Projects/2024s0196 - Sandwell Metropolitan Borough Council - Sandwell L1 & L2 SFRA/1_WIP/HM/Graphical/Shapefiles/Development_sites/Sandwell EMP3 Allocations_region.shx|layername=Sandwell EMP3 Allocations_region | E153: 4.526 | F153: 0 | G153: 0 | H153: 0 | I153: 0 | K153: 1 | L153: 0 | M153: 0 | O153: 1 | P153: 0 | Q153: 0 | S153: 1
A154: SEC3-188 | B154: Portway Road | C154: 3.02 | D154: N:/2024/Projects/2024s0196 - Sandwell Metropolitan Borough Council - Sandwell L1 & L2 SFRA/1_WIP/HM/Graphical/Shapefiles/Development_sites/Sandwell EMP3 Allocations_region.shx|layername=Sandwell EMP3 Allocations_region | E154: 3.028 | F154: 24.53074063 | G154: 0.08100570096 | H154: 7.146188132 | I154: 0.02359822672 | K154: 1 | L154: 0.0008100570096 | M154: 0.0002359822672 | O154: 0.999189943 | P154: 0.0005740747424 | Q154: 0.0002359822672 | S154: 1
A155: SEC3-158 | B155: Portway Road Industrial Estate | C155: 2.12 | D155: N:/2024/Projects/2024s0196 - Sandwell Metropolitan Borough Council - Sandwell L1 & L2 SFRA/1_WIP/HM/Graphical/Shapefiles/Development_sites/Sandwell EMP3 Allocations_region.shx|layername=Sandwell EMP3 Allocations_region | E155: 2.128 | F155: 0 | G155: 0 | H155: 0 | I155: 0 | K155: 1 | L155: 0 | M155: 0 | O155: 1 | P155: 0 | Q155: 0 | S155: 1
A156: SEC4-11 | B156: Potters Lane, Wednesbury (actually between Stafford St/ Albert St) | C156: 0.39 | D156: N:/2024/Projects/2024s0196 - Sandwell Metropolitan Borough Council - Sandwell L1 & L2 SFRA/1_WIP/HM/Graphical/Shapefiles/Development_sites/Sandwell EMP4 Allocations_region.shx|layername=Sandwell EMP4 Allocations_region | E156: 0.395 | F156: 0 | G156: 0 | H156: 0 | I156: 0 | K156: 1 | L156: 0 | M156: 0 | O156: 1 | P156: 0 | Q156: 0 | S156: 1
A157: SEC3-141 | B157: Powke Lane (east side) | C157: 3.49 | D157: N:/2024/Projects/2024s0196 - Sandwell Metropolitan Borough Council - Sandwell L1 & L2 SFRA/1_WIP/HM/Graphical/Shapefiles/Development_sites/Sandwell EMP3 Allocations_region.shx|layername=Sandwell EMP3 Allocations_region | E157: 3.507 | F157: 0 | G157: 0 | H157: 0 | I157: 0 | K157: 1 | L157: 0 | M157: 0 | O157: 1 | P157: 0 | Q157: 0 | S157: 1
A158: SEC3-140 | B158: Powke Lane (west side) | C158: 6.36 | D158: N:/2024/Projects/2024s0196 - Sandwell Metropolitan Borough Council - Sandwell L1 & L2 SFRA/1_WIP/HM/Graphical/Shapefiles/Development_sites/Sandwell EMP3 Allocations_region.shx|layername=Sandwell EMP3 Allocations_region | E158: 6.382 | F158: 0 | G158: 0 | H158: 0 | I158: 0 | K158: 1 | L158: 0 | M158: 0 | O158: 1 | P158: 0 | Q158: 0 | S158: 1
A159: SEC3-179 | B159: Powke Lane Industrial Estate, Cradley Heath | C159: 2.17 | D159: N:/2024/Projects/2024s0196 - Sandwell Metropolitan Borough Council - Sandwell L1 & L2 SFRA/1_WIP/HM/Graphical/Shapefiles/Development_sites/Sandwell EMP3 Allocations_region.shx|layername=Sandwell EMP3 Allocations_region | E159: 2.181 | F159: 0 | G159: 0 | H159: 0 | I159: 0 | K159: 1 | L159: 0 | M159: 0 | O159: 1 | P159: 0 | Q159: 0 | S159: 1
A160: SEC3-142 | B160: Powke Lane/ Doulton Road | C160: 9.08 | D160: N:/2024/Projects/2024s0196 - Sandwell Metropolitan Borough Council - Sandwell L1 & L2 SFRA/1_WIP/HM/Graphical/Shapefiles/Development_sites/Sandwell EMP3 Allocations_region.shx|layername=Sandwell EMP3 Allocations_region | E160: 9.114 | F160: 0 | G160: 0 | H160: 0 | I160: 0 | K160: 1 | L160: 0 | M160: 0 | O160: 1 | P160: 0 | Q160: 0 | S160: 1
A161: SEC-145 | B161: Princes End Garage | C161: 0.19 | D161: N:/2024/Projects/2024s0196 - Sandwell Metropolitan Borough Council - Sandwell L1 & L2 SFRA/1_WIP/HM/Graphical/Shapefiles/Development_sites/Sandwell EMP3 Allocations_region.shx|layername=Sandwell EMP3 Allocations_region | E161: 0.191 | F161: 0 | G161: 0 | H161: 0 | I161: 0 | K161: 1 | L161: 0 | M161: 0 | O161: 1 | P161: 0 | Q161: 0 | S161: 1
A162: SEC3-111 | B162: Purity Soft Drinks Limited, Mounts Road | C162: 0.35 | D162: N:/2024/Projects/2024s0196 - Sandwell Metropolitan Borough Council - Sandwell L1 & L2 SFRA/1_WIP/HM/Graphical/Shapefiles/Development_sites/Sandwell EMP3 Allocations_region.shx|layername=Sandwell EMP3 Allocations_region | E162: 0.347 | F162: 0 | G162: 0 | H162: 0 | I162: 0 | K162: 1 | L162: 0 | M162: 0 | O162: 1 | P162: 0 | Q162: 0 | S162: 1
A163: SEC3-94 | B163: Rabone Lane, Smethwick (2372) | C163: 4.72 | D163: N:/2024/Projects/2024s0196 - Sandwell Metropolitan Borough Council - Sandwell L1 & L2 SFRA/1_WIP/HM/Graphical/Shapefiles/Development_sites/Sandwell EMP3 Allocations_region.shx|layername=Sandwell EMP3 Allocations_region | E163: 4.736 | F163: 0 | G163: 0 | H163: 0 | I163: 0 | K163: 1 | L163: 0 | M163: 0 | O163: 1 | P163: 0 | Q163: 0 | S163: 1
A164: SEC3-72 | B164: Rabone Park | C164: 3.93 | D164: N:/2024/Projects/2024s0196 - Sandwell Metropolitan Borough Council - Sandwell L1 & L2 SFRA/1_WIP/HM/Graphical/Shapefiles/Development_sites/Sandwell EMP3 Allocations_region.shx|layername=Sandwell EMP3 Allocations_region | E164: 3.948 | F164: 0 | G164: 0 | H164: 0 | I164: 0 | K164: 1 | L164: 0 | M164: 0 | O164: 1 | P164: 0 | Q164: 0 | S164: 1
A165: SEC3-48 | B165: Reddal Hill Rd/ Newtown St, Cradley Heath | C165: 4.44 | D165: N:/2024/Projects/2024s0196 - Sandwell Metropolitan Borough Council - Sandwell L1 & L2 SFRA/1_WIP/HM/Graphical/Shapefiles/Development_sites/Sandwell EMP3 Allocations_region.shx|layername=Sandwell EMP3 Allocations_region | E165: 4.452 | F165: 375.6010071 | G165: 0.8435922693 | H165: 247.0996216 | I165: 0.5549807552 | K165: 1 | L165: 0.008435922693 | M165: 0.005549807552 | O165: 0.9915640773 | P165: 0.002886115141 | Q165: 0.005549807552 | S165: 1
A166: EMP2-1 | B166: Richmond Street, West Bromwich | C166: 10.2 | D166: N:/2024/Projects/2024s0196 - Sandwell Metropolitan Borough Council - Sandwell L1 & L2 SFRA/1_WIP/HM/Graphical/Shapefiles/Development_sites/Sandwell EMP2 Allocations_region.shx|layername=Sandwell EMP2 Allocations_region | E166: 10.239 | F166: 0 | G166: 0 | H166: 0 | I166: 0 | K166: 1 | L166: 0 | M166: 0 | O166: 1 | P166: 0 | Q166: 0 | S166: 1
A167: SEC3-2 | B167: Ridgacre Road (north) | C167: 0.8 | D167: N:/2024/Projects/2024s0196 - Sandwell Metropolitan Borough Council - Sandwell L1 & L2 SFRA/1_WIP/HM/Graphical/Shapefiles/Development_sites/Sandwell EMP3 Allocations_region.shx|layername=Sandwell EMP3 Allocations_region | E167: 0.802 | F167: 0 | G167: 0 | H167: 0 | I167: 0 | K167: 1 | L167: 0 | M167: 0 | O167: 1 | P167: 0 | Q167: 0 | S167: 1
A168: SEC3-3 | B168: Ridgacre Road (south) | C168: 1.05 | D168: N:/2024/Projects/2024s0196 - Sandwell Metropolitan Borough Council - Sandwell L1 & L2 SFRA/1_WIP/HM/Graphical/Shapefiles/Development_sites/Sandwell EMP3 Allocations_region.shx|layername=Sandwell EMP3 Allocations_region | E168: 1.052 | F168: 0 | G168: 0 | H168: 0 | I168: 0 | K168: 1 | L168: 0 | M168: 0 | O168: 1 | P168: 0 | Q168: 0 | S168: 1
A169: SEC3-107 | B169: Ridgacre Road Church Lane, West Bromwich (New build) (former Express and Star) | C169: 1.42 | D169: N:/2024/Projects/2024s0196 - Sandwell Metropolitan Borough Council - Sandwell L1 & L2 SFRA/1_WIP/HM/Graphical/Shapefiles/Development_sites/Sandwell EMP3 Allocations_region.shx|layername=Sandwell EMP3 Allocations_region | E169: 1.422 | F169: 0 | G169: 0 | H169: 0 | I169: 0 | K169: 1 | L169: 0 | M169: 0 | O169: 1 | P169: 0 | Q169: 0 | S169: 1
A170: SEC3-108 | B170: Ridgacre Road Church Lane, West Bromwich (old part) | C170: 0.92 | D170: N:/2024/Projects/2024s0196 - Sandwell Metropolitan Borough Council - Sandwell L1 & L2 SFRA/1_WIP/HM/Graphical/Shapefiles/Development_sites/Sandwell EMP3 Allocations_region.shx|layername=Sandwell EMP3 Allocations_region | E170: 0.924 | F170: 0 | G170: 0 | H170: 0 | I170: 0 | K170: 1 | L170: 0 | M170: 0 | O170: 1 | P170: 0 | Q170: 0 | S170: 1
A171: SEC3-32 | B171: Ridgarce Road, West Bromwich | C171: 1.14 | D171: N:/2024/Projects/2024s0196 - Sandwell Metropolitan Borough Council - Sandwell L1 & L2 SFRA/1_WIP/HM/Graphical/Shapefiles/Development_sites/Sandwell EMP3 Allocations_region.shx|layername=Sandwell EMP3 Allocations_region | E171: 1.139 | F171: 0 | G171: 0 | H171: 0 | I171: 0 | K171: 1 | L171: 0 | M171: 0 | O171: 1 | P171: 0 | Q171: 0 | S171: 1
A172: SEC3-33 | B172: Ridgarce Road, West Bromwich | C172: 1.64 | D172: N:/2024/Projects/2024s0196 - Sandwell Metropolitan Borough Council - Sandwell L1 & L2 SFRA/1_WIP/HM/Graphical/Shapefiles/Development_sites/Sandwell EMP3 Allocations_region.shx|layername=Sandwell EMP3 Allocations_region | E172: 1.641 | F172: 0 | G172: 0 | H172: 0 | I172: 0 | K172: 1 | L172: 0 | M172: 0 | O172: 1 | P172: 0 | Q172: 0 | S172: 1
A173: SEC3-34 | B173: Ridgarce Road, West Bromwich | C173: 0.75 | D173: N:/2024/Projects/2024s0196 - Sandwell Metropolitan Borough Council - Sandwell L1 & L2 SFRA/1_WIP/HM/Graphical/Shapefiles/Development_sites/Sandwell EMP3 Allocations_region.shx|layername=Sandwell EMP3 Allocations_region | E173: 0.756 | F173: 0 | G173: 0 | H173: 0 | I173: 0 | K173: 1 | L173: 0 | M173: 0 | O173: 1 | P173: 0 | Q173: 0 | S173: 1
A174: EMP2-19 | B174: Rounds Green Road/Shidas Lane, Oldbury | C174: 2.78 | D174: N:/2024/Projects/2024s0196 - Sandwell Metropolitan Borough Council - Sandwell L1 & L2 SFRA/1_WIP/HM/Graphical/Shapefiles/Development_sites/Sandwell EMP2 Allocations_region.shx|layername=Sandwell EMP2 Allocations_region | E174: 2.788 | F174: 0 | G174: 0 | H174: 0 | I174: 0 | K174: 1 | L174: 0 | M174: 0 | O174: 1 | P174: 0 | Q174: 0 | S174: 1
A175: SEC3-161 | B175: Roway Lane, Oldbury | C175: 6 | D175: N:/2024/Projects/2024s0196 - Sandwell Metropolitan Borough Council - Sandwell L1 & L2 SFRA/1_WIP/HM/Graphical/Shapefiles/Development_sites/Sandwell EMP3 Allocations_region.shx|layername=Sandwell EMP3 Allocations_region | E175: 6.024 | F175: 339.9735081 | G175: 0.5643811461 | H175: 0 | I175: 0 | K175: 1 | L175: 0.005643811461 | M175: 0 | O175: 0.9943561885 | P175: 0.005643811461 | Q175: 0 | S175: 1
A176: SEC1-4 | B176: Roway Lane, Oldbury (Call for Sites) | C176: 3.65 | D176: N:/2024/Projects/2024s0196 - Sandwell Metropolitan Borough Council - Sandwell L1 & L2 SFRA/1_WIP/HM/Graphical/Shapefiles/Development_sites/Sandwell EMP1 Sites_region.shx|layername=Sandwell EMP1 Sites_region | E176: 3.663 | F176: 0 | G176: 0 | H176: 0 | I176: 0 | K176: 1 | L176: 0 | M176: 0 | O176: 1 | P176: 0 | Q176: 0 | S176: 1
A177: SEC3-167 | B177: Ryder, Euroway Park | C177: 2.24 | D177: N:/2024/Projects/2024s0196 - Sandwell Metropolitan Borough Council - Sandwell L1 & L2 SFRA/1_WIP/HM/Graphical/Shapefiles/Development_sites/Sandwell EMP3 Allocations_region.shx|layername=Sandwell EMP3 Allocations_region | E177: 2.248 | F177: 0 | G177: 0 | H177: 0 | I177: 0 | K177: 1 | L177: 0 | M177: 0 | O177: 1 | P177: 0 | Q177: 0 | S177: 1
A178: SEC3-54 | B178: Ryders Green Rd, Greets Green Ind Est, Greets Green | C178: 2.95 | D178: N:/2024/Projects/2024s0196 - Sandwell Metropolitan Borough Council - Sandwell L1 & L2 SFRA/1_WIP/HM/Graphical/Shapefiles/Development_sites/Sandwell EMP3 Allocations_region.shx|layername=Sandwell EMP3 Allocations_region | E178: 2.957 | F178: 0 | G178: 0 | H178: 0 | I178: 0 | K178: 1 | L178: 0 | M178: 0 | O178: 1 | P178: 0 | Q178: 0 | S178: 1
A179: SEC3-164 | B179: Sandwell Business Dev Centre, Oldbury Road | C179: 0.67 | D179: N:/2024/Projects/2024s0196 - Sandwell Metropolitan Borough Council - Sandwell L1 & L2 SFRA/1_WIP/HM/Graphical/Shapefiles/Development_sites/Sandwell EMP3 Allocations_region.shx|layername=Sandwell EMP3 Allocations_region | E179: 0.672 | F179: 0 | G179: 0 | H179: 0 | I179: 0 | K179: 1 | L179: 0 | M179: 0 | O179: 1 | P179: 0 | Q179: 0 | S179: 1
A180: SEC3-126 | B180: Sedgley Road West/Hurst Lane, Tipton | C180: 3.06 | D180: N:/2024/Projects/2024s0196 - Sandwell Metropolitan Borough Council - Sandwell L1 & L2 SFRA/1_WIP/HM/Graphical/Shapefiles/Development_sites/Sandwell EMP3 Allocations_region.shx|layername=Sandwell EMP3 Allocations_region | E180: 3.073 | F180: 0 | G180: 0 | H180: 0 | I180: 0 | K180: 1 | L180: 0 | M180: 0 | O180: 1 | P180: 0 | Q180: 0 | S180: 1
A181: SEC3-83 | B181: Seven Stars Rd, Oldbury (586) | C181: 2.51 | D181: N:/2024/Projects/2024s0196 - Sandwell Metropolitan Borough Council - Sandwell L1 & L2 SFRA/1_WIP/HM/Graphical/Shapefiles/Development_sites/Sandwell EMP3 Allocations_region.shx|layername=Sandwell EMP3 Allocations_region | E181: 2.518 | F181: 0 | G181: 0 | H181: 0 | I181: 0 | K181: 1 | L181: 0 | M181: 0 | O181: 1 | P181: 0 | Q181: 0 | S181: 1
A182: SEC3-45 | B182: Seven Stars Road, Oldbury | C182: 1.47 | D182: N:/2024/Projects/2024s0196 - Sandwell Metropolitan Borough Council - Sandwell L1 & L2 SFRA/1_WIP/HM/Graphical/Shapefiles/Development_sites/Sandwell EMP3 Allocations_region.shx|layername=Sandwell EMP3 Allocations_region | E182: 1.472 | F182: 380.3963492 | G182: 2.584104006 | H182: 55.63882144 | I182: 0.3779649875 | K182: 1 | L182: 0.02584104006 | M182: 0.003779649875 | O182: 0.9741589599 | P182: 0.02206139018 | Q182: 0.003779649875 | S182: 1
A183: SEC3-36 | B183: Silverthorne Lane | C183: 1.05 | D183: N:/2024/Projects/2024s0196 - Sandwell Metropolitan Borough Council - Sandwell L1 & L2 SFRA/1_WIP/HM/Graphical/Shapefiles/Development_sites/Sandwell EMP3 Allocations_region.shx|layername=Sandwell EMP3 Allocations_region | E183: 1.051 | F183: 0 | G183: 0 | H183: 0 | I183: 0 | K183: 1 | L183: 0 | M183: 0 | O183: 1 | P183: 0 | Q183: 0 | S183: 1
A184: SEC3-135 | B184: Site at Bloomfield Rd, Fountaihn Lane & Bradleys Lane, Tipton | C184: 1.43 | D184: N:/2024/Projects/2024s0196 - Sandwell Metropolitan Borough Council - Sandwell L1 & L2 SFRA/1_WIP/HM/Graphical/Shapefiles/Development_sites/Sandwell EMP3 Allocations_region.shx|layername=Sandwell EMP3 Allocations_region | E184: 1.438 | F184: 0 | G184: 0 | H184: 0 | I184: 0 | K184: 1 | L184: 0 | M184: 0 | O184: 1 | P184: 0 | Q184: 0 | S184: 1
A185: SEC4-14 | B185: Site at Great Wester St & Potters Lane, Weds (5641 | C185: 2.14 | D185: N:/2024/Projects/2024s0196 - Sandwell Metropolitan Borough Council - Sandwell L1 & L2 SFRA/1_WIP/HM/Graphical/Shapefiles/Development_sites/Sandwell EMP4 Allocations_region.shx|layername=Sandwell EMP4 Allocations_region | E185: 2.147 | F185: 0 | G185: 0 | H185: 0 | I185: 0 | K185: 1 | L185: 0 | M185: 0 | O185: 1 | P185: 0 | Q185: 0 | S185: 1
A186: SEC3-82 | B186: Site bt Charles St & Walsall Canal Great Bridge (2 | C186: 2.17 | D186: N:/2024/Projects/2024s0196 - Sandwell Metropolitan Borough Council - Sandwell L1 & L2 SFRA/1_WIP/HM/Graphical/Shapefiles/Development_sites/Sandwell EMP3 Allocations_region.shx|layername=Sandwell EMP3 Allocations_region | E186: 2.183 | F186: 0 | G186: 0 | H186: 0 | I186: 0 | K186: 1 | L186: 0 | M186: 0 | O186: 1 | P186: 0 | Q186: 0 | S186: 1
A187: SEC1-7 | B187: Site off Bilport Lane, Wednesbury | C187: 5.29 | D187: N:/2024/Projects/2024s0196 - Sandwell Metropolitan Borough Council - Sandwell L1 & L2 SFRA/1_WIP/HM/Graphical/Shapefiles/Development_sites/Sandwell EMP1 Sites_region.shx|layername=Sandwell EMP1 Sites_region | E187: 5.31 | F187: 13442.67814 | G187: 25.31720318 | H187: 693.1234006 | I187: 1.305390621 | K187: 1 | L187: 0.2531720318 | M187: 0.01305390621 | O187: 0.7468279682 | P187: 0.2401181256 | Q187: 0.01305390621 | S187: 1
A188: SEC3-29 | B188: Site off Richmond St, West Bromwich | C188: 1.1 | D188: N:/2024/Projects/2024s0196 - Sandwell Metropolitan Borough Council - Sandwell L1 & L2 SFRA/1_WIP/HM/Graphical/Shapefiles/Development_sites/Sandwell EMP3 Allocations_region.shx|layername=Sandwell EMP3 Allocations_region | E188: 1.109 | F188: 0 | G188: 0 | H188: 0 | I188: 0 | K188: 1 | L188: 0 | M188: 0 | O188: 1 | P188: 0 | Q188: 0 | S188: 1
A189: EMP4-8 | B189: Site on Railway Street, Horseley Heath, Tipton | C189: 0.18 | D189: N:/2024/Projects/2024s0196 - Sandwell Metropolitan Borough Council - Sandwell L1 & L2 SFRA/1_WIP/HM/Graphical/Shapefiles/Development_sites/Sandwell EMP4 Allocations_region.shx|layername=Sandwell EMP4 Allocations_region | E189: 0.18 | F189: 0 | G189: 0 | H189: 0 | I189: 0 | K189: 1 | L189: 0 | M189: 0 | O189: 1 | P189: 0 | Q189: 0 | S189: 1
A190: SEC3-6 | B190: Site on Stafford St, Weds (5646) | C190: 1.45 | D190: N:/2024/Projects/2024s0196 - Sandwell Metropolitan Borough Council - Sandwell L1 & L2 SFRA/1_WIP/HM/Graphical/Shapefiles/Development_sites/Sandwell EMP3 Allocations_region.shx|layername=Sandwell EMP3 Allocations_region | E190: 1.459 | F190: 0 | G190: 0 | H190: 0 | I190: 0 | K190: 1 | L190: 0 | M190: 0 | O190: 1 | P190: 0 | Q190: 0 | S190: 1
A191: SEC4-4 | B191: Soho Triangle | C191: 1.71 | D191: N:/2024/Projects/2024s0196 - Sandwell Metropolitan Borough Council - Sandwell L1 & L2 SFRA/1_WIP/HM/Graphical/Shapefiles/Development_sites/Sandwell EMP4 Allocations_region.shx|layername=Sandwell EMP4 Allocations_region | E191: 1.717 | F191: 0 | G191: 0 | H191: 0 | I191: 0 | K191: 1 | L191: 0 | M191: 0 | O191: 1 | P191: 0 | Q191: 0 | S191: 1
A192: SEC3-37 | B192: Spinners End Industrial Estate, Cradley Heath | C192: 0.65 | D192: N:/2024/Projects/2024s0196 - Sandwell Metropolitan Borough Council - Sandwell L1 & L2 SFRA/1_WIP/HM/Graphical/Shapefiles/Development_sites/Sandwell EMP3 Allocations_region.shx|layername=Sandwell EMP3 Allocations_region | E192: 0.651 | F192: 0 | G192: 0 | H192: 0 | I192: 0 | K192: 1 | L192: 0 | M192: 0 | O192: 1 | P192: 0 | Q192: 0 | S192: 1
A193: SEC4-12 | B193: Stafford Street/ Albert Street, Wednesbury | C193: 0.73 | D193: N:/2024/Projects/2024s0196 - Sandwell Metropolitan Borough Council - Sandwell L1 & L2 SFRA/1_WIP/HM/Graphical/Shapefiles/Development_sites/Sandwell EMP4 Allocations_region.shx|layername=Sandwell EMP4 Allocations_region | E193: 0.737 | F193: 0 | G193: 0 | H193: 0 | I193: 0 | K193: 1 | L193: 0 | M193: 0 | O193: 1 | P193: 0 | Q193: 0 | S193: 1
A194: SEC3-44 | B194: Station Road / Avenue Road / Cardale Street Rowley | C194: 3.18 | D194: N:/2024/Projects/2024s0196 - Sandwell Metropolitan Borough Council - Sandwell L1 & L2 SFRA/1_WIP/HM/Graphical/Shapefiles/Development_sites/Sandwell EMP3 Allocations_region.shx|layername=Sandwell EMP3 Allocations_region | E194: 3.191 | F194: 0 | G194: 0 | H194: 0 | I194: 0 | K194: 1 | L194: 0 | M194: 0 | O194: 1 | P194: 0 | Q194: 0 | S194: 1
A195: SEC3-49 | B195: Station Road Industrial Est, Rowley Regis | C195: 3.21 | D195: N:/2024/Projects/2024s0196 - Sandwell Metropolitan Borough Council - Sandwell L1 & L2 SFRA/1_WIP/HM/Graphical/Shapefiles/Development_sites/Sandwell EMP3 Allocations_region.shx|layername=Sandwell EMP3 Allocations_region | E195: 3.224 | F195: 0 | G195: 0 | H195: 0 | I195: 0 | K195: 1 | L195: =G195/100 -> 0 | M195: =I195/100 -> 0 | O195: =K195-(P195+Q195) -> 1 | P195: =L195-Q195 -> 0 | Q195: =M195 -> 0 | S195: =SUM(O195+P195+Q195) -> 1
A196: SEC3-147 | B196: Station St, Tipton (1448) | C196: 1.36 | D196: N:/2024/Projects/2024s0196 - Sandwell Metropolitan Borough Council - Sandwell L1 & L2 SFRA/1_WIP/HM/Graphical/Shapefiles/Development_sites/Sandwell EMP3 Allocations_region.shx|layername=Sandwell EMP3 Allocations_region | E196: 1.37 | F196: 0 | G196: 0 | H196: 0 | I196: 0 | K196: 1 | L196: 0 | M196: 0 | O196: 1 | P196: 0 | Q196: 0 | S196: 1
A197: SEC3-35 | B197: Station Street/Graingers Lane, Cradley Heath | C197: 2.27 | D197: N:/2024/Projects/2024s0196 - Sandwell Metropolitan Borough Council - Sandwell L1 & L2 SFRA/1_WIP/HM/Graphical/Shapefiles/Development_sites/Sandwell EMP3 Allocations_region.shx|layername=Sandwell EMP3 Allocations_region | E197: 2.281 | F197: 0 | G197: 0 | H197: 0 | I197: 0 | K197: 1 | L197: 0 | M197: 0 | O197: 1 | P197: 0 | Q197: 0 | S197: 1
A198: SEC4-6 | B198: Summerton Rd, Oldbury (3223) | C198: 0.52 | D198: N:/2024/Projects/2024s0196 - Sandwell Metropolitan Borough Council - Sandwell L1 & L2 SFRA/1_WIP/HM/Graphical/Shapefiles/Development_sites/Sandwell EMP4 Allocations_region.shx|layername=Sandwell EMP4 Allocations_region | E198: 0.565 | F198: 0 | G198: 0 | H198: 0 | I198: 0 | K198: 1 | L198: 0 | M198: 0 | O198: 1 | P198: 0 | Q198: 0 | S198: 1
A199: SEC3-63 | B199: Summit Crescent, Smethwick (east) | C199: 4.01 | D199: N:/2024/Projects/2024s0196 - Sandwell Metropolitan Borough Council - Sandwell L1 & L2 SFRA/1_WIP/HM/Graphical/Shapefiles/Development_sites/Sandwell EMP3 Allocations_region.shx|layername=Sandwell EMP3 Allocations_region | E199: 4.03 | F199: 0 | G199: 0 | H199: 0 | I199: 0 | K199: 1 | L199: 0 | M199: 0 | O199: 1 | P199: 0 | Q199: 0 | S199: 1
A200: SEC3-27 | B200: Summit Crescent, Smethwick (west) | C200: 5.96 | D200: N:/2024/Projects/2024s0196 - Sandwell Metropolitan Borough Council - Sandwell L1 & L2 SFRA/1_WIP/HM/Graphical/Shapefiles/Development_sites/Sandwell EMP3 Allocations_region.shx|layername=Sandwell EMP3 Allocations_region | E200: 5.98 | F200: 0 | G200: 0 | H200: 0 | I200: 0 | K200: 1 | L200: 0 | M200: 0 | O200: 1 | P200: 0 | Q200: 0 | S200: 1
... 101 more rows

Sheet Present Day Fluvial (hidden)
A1: SiteNameAd | B1: Area_Ha | C1: FZ3b area | D1: FZ3b % | E1: FZ3a area | F1: FZ3a % | G1: FZ2 area | H1: FZ2 % | J1: Site area | K1: FZ3b | L1: FZ3a | M1: FZ2 | N1: sum | P1: Area not flooded | Q1: FZ3b sliver | R1: FZ3a sliver | S1: FZ2 sliver | U1: checks (total) | V1: FZ3b | W1: FZ3a | X1: FZ2
B2: 4.103 | C2: 0 | D2: 0 | E2: 0 | F2: 0 | G2: 0 | H2: 0 | J2: 1 | K2: =D2/100 -> 0 | L2: =F2/100 -> 0 | M2: =H2/100 -> 0 | N2: =SUM(K2:M2) -> 0 | P2: =J2-SUM(Q2:S2) -> 1 | Q2: =K2 -> 0 | R2: =L2-K2 -> 0 | S2: =M2-(Q2+R2) -> 0 | U2: =SUM(P2:S2) -> 1 | V2: =Q2-K2 -> 0 | W2: =SUM(Q2:R2)-L2 -> 0 | X2: =SUM(Q2:S2)-M2 -> 0
B3: 0.359 | C3: 0 | D3: 0 | E3: 0 | F3: 0 | G3: 0 | H3: 0 | J3: 1 | K3: 0 | L3: =F3/100 -> 0 | M3: 0 | N3: =SUM(K3:M3) -> 0 | P3: =J3-SUM(Q3:S3) -> 1 | Q3: =K3 -> 0 | R3: =L3-K3 -> 0 | S3: =M3-(Q3+R3) -> 0 | U3: =SUM(P3:S3) -> 1 | V3: =Q3-K3 -> 0 | W3: =SUM(Q3:R3)-L3 -> 0 | X3: =SUM(Q3:S3)-M3 -> 0
A4: 10-60 Dudley Rd East, Oldbury (3224) | B4: 2.059 | C4: 0 | D4: 0 | E4: 0 | F4: 0 | G4: 0 | H4: 0 | J4: 1 | K4: 0 | L4: 0 | M4: 0 | N4: 0 | P4: =J4-SUM(Q4:S4) -> 1 | Q4: 0 | R4: 0 | S4: 0 | U4: 1 | V4: 0 | W4: 0 | X4: 0
A5: 230 Oldbury Rd (3016) | B5: 1.527 | C5: 0 | D5: 0 | E5: 0 | F5: 0 | G5: 0 | H5: 0 | J5: 1 | K5: 0 | L5: 0 | M5: 0 | N5: 0 | P5: 1 | Q5: 0 | R5: 0 | S5: 0 | U5: 1 | V5: 0 | W5: 0 | X5: 0
A6: 70-74 Crankhall Lane | B6: 1.759 | C6: 0 | D6: 0 | E6: 0 | F6: 0 | G6: 0 | H6: 0 | J6: 1 | K6: 0 | L6: 0 | M6: 0 | N6: 0 | P6: 1 | Q6: 0 | R6: 0 | S6: 0 | U6: 1 | V6: 0 | W6: 0 | X6: 0
A7: Aeroplas and Olympus Distribution, Great Western Way, Great Bridge | B7: 4.784 | C7: 146.3560559 | D7: 0.3059358785 | E7: 181.420288 | F7: 0.3792325151 | G7: 12200.12393 | H7: 25.50257049 | J7: 1 | K7: 0.003059358785 | L7: 0.003792325151 | M7: 0.2550257049 | N7: 0.2618773888 | P7: 0.7449742951 | Q7: 0.003059358785 | R7: 0.0007329663666 | S7: 0.2512333797 | U7: 1 | V7: 0 | W7: 0 | X7: 0
A8: Albion Industrial Estate | B8: 9.05 | C8: 0 | D8: 0 | E8: 0 | F8: 0 | G8: 5154.976064 | H8: 5.69618589 | J8: 1 | K8: 0 | L8: 0 | M8: 0.0569618589 | N8: 0.0569618589 | P8: 0.9430381411 | Q8: 0 | R8: 0 | S8: 0.0569618589 | U8: 1 | V8: 0 | W8: 0 | X8: 0
A9: Albion Road | B9: 0.913 | C9: 0 | D9: 0 | E9: 0 | F9: 0 | G9: 0 | H9: 0 | J9: 1 | K9: =D9/100 -> 0 | L9: 0 | M9: 0 | N9: 0 | P9: 1 | Q9: 0 | R9: 0 | S9: 0 | U9: 1 | V9: 0 | W9: 0 | X9: 0
A10: Alexandra Ind Est, Locarno Rd/ Alexandra Rd, Tipto | B10: 1.875 | C10: 0 | D10: 0 | E10: 0 | F10: 0 | G10: 0 | H10: 0 | J10: 1 | K10: 0 | L10: 0 | M10: 0 | N10: 0 | P10: 1 | Q10: 0 | R10: 0 | S10: 0 | U10: 1 | V10: 0 | W10: 0 | X10: 0
A11: Alexandra Ind Est/Locarno Road, Tipton | B11: 2.568 | C11: 0 | D11: 0 | E11: 0 | F11: 0 | G11: 0 | H11: 0 | J11: 1 | K11: 0 | L11: 0 | M11: 0 | N11: 0 | P11: =J11-SUM(Q11:S11) -> 1 | Q11: =K11 -> 0 | R11: =L11-K11 -> 0 | S11: =M11-(Q11+R11) -> 0 | U11: 1 | V11: 0 | W11: 0 | X11: 0
A12: Alma Street, Smethwick | B12: 4.726 | C12: 0 | D12: 0 | E12: 0 | F12: 0 | G12: 0 | H12: 0 | J12: 1 | K12: 0 | L12: 0 | M12: 0 | N12: 0 | P12: 1 | Q12: 0 | R12: 0 | S12: 0 | U12: 1 | V12: 0 | W12: 0 | X12: 0
A13: Alutrade, Tat Bank Road | B13: 2.705 | C13: 0 | D13: 0 | E13: 0 | F13: 0 | G13: 0 | H13: 0 | J13: 1 | K13: 0 | L13: 0 | M13: 0 | N13: 0 | P13: 1 | Q13: 0 | R13: 0 | S13: 0 | U13: 1 | V13: 0 | W13: 0 | X13: 0
A14: Arnold Laver, Dudley Rd East, Oldbury (2944 | B14: 1.005 | C14: 0 | D14: 0 | E14: 0 | F14: 0 | G14: 0 | H14: 0 | J14: 1 | K14: 0 | L14: 0 | M14: 0 | N14: 0 | P14: 1 | Q14: 0 | R14: 0 | S14: 0 | U14: 1 | V14: 0 | W14: 0 | X14: 0
A15: Autobase, Dudley Road, Oldbury | B15: 16.605 | C15: 0 | D15: 0 | E15: 0 | F15: 0 | G15: 0 | H15: 0 | J15: 1 | K15: 0 | L15: 0 | M15: 0 | N15: 0 | P15: 1 | Q15: 0 | R15: 0 | S15: 0 | U15: 1 | V15: 0 | W15: 0 | X15: 0
A16: Barnfield Trading Est Tipton (5450) | B16: 2.269 | C16: 0 | D16: 0 | E16: 0 | F16: 0 | G16: 18237.03324 | H16: 80.38266971 | J16: 1 | K16: 0 | L16: 0 | M16: 0.8038266971 | N16: 0.8038266971 | P16: 0.1961733029 | Q16: 0 | R16: 0 | S16: 0.8038266971 | U16: 1 | V16: 0 | W16: 0 | X16: 0
A17: Beakes Road, Bearwood (825) | B17: 0.697 | C17: 0 | D17: 0 | E17: 0 | F17: 0 | G17: 0 | H17: 0 | J17: 1 | K17: 0 | L17: 0 | M17: 0 | N17: 0 | P17: 1 | Q17: 0 | R17: =L17-K17 -> 0 | S17: 0 | U17: 1 | V17: 0 | W17: 0 | X17: 0
A18: Beakes Road, Bearwood (826) | B18: 0.926 | C18: 0 | D18: 0 | E18: 0 | F18: 0 | G18: 0 | H18: 0 | J18: 1 | K18: 0 | L18: 0 | M18: 0 | N18: 0 | P18: 1 | Q18: 0 | R18: 0 | S18: 0 | U18: 1 | V18: 0 | W18: 0 | X18: 0
A19: Bescot Industrial Estate, Wednesbury | B19: 7.922 | C19: 0 | D19: 0 | E19: 0 | F19: 0 | G19: 0 | H19: 0 | J19: 1 | K19: 0 | L19: 0 | M19: 0 | N19: 0 | P19: 1 | Q19: 0 | R19: 0 | S19: 0 | U19: 1 | V19: 0 | W19: 0 | X19: 0
A20: Bevan Motor Bodies, Blakeley Hall Road | B20: 0.912 | C20: 0 | D20: 0 | E20: 0 | F20: 0 | G20: 0 | H20: 0 | J20: 1 | K20: 0 | L20: 0 | M20: 0 | N20: 0 | P20: 1 | Q20: 0 | R20: 0 | S20: 0 | U20: 1 | V20: 0 | W20: 0 | X20: 0
A21: Birchley, Oldbury | B21: 7.03 | C21: 16618.32667 | D21: 23.63917616 | E21: 21937.29675 | F21: 31.20528514 | G21: 36090.56203 | H21: 51.33796985 | J21: 1 | K21: 0.2363917616 | L21: 0.3120528514 | M21: 0.5133796985 | N21: 1.061824312 | P21: 0.4866203015 | Q21: 0.2363917616 | R21: 0.07566108981 | S21: 0.2013268471 | U21: 1 | V21: 0 | W21: 0 | X21: 0
A22: Black Country New Road, Wednesbury (Hallens Drive) | B22: 44.043 | C22: 0 | D22: 0 | E22: 0 | F22: 0 | G22: 0 | H22: 0 | J22: 1 | K22: 0 | L22: 0 | M22: 0 | N22: 0 | P22: 1 | Q22: 0 | R22: 0 | S22: 0 | U22: 1 | V22: 0 | W22: 0 | X22: 0
A23: Black Country New Road/ Pacific Avenue | B23: 23.118 | C23: 696.2290179 | D23: 0.3011655276 | E23: 947.0432206 | F23: 0.4096594136 | G23: 23560.67374 | H23: 10.1915642 | J23: 1 | K23: 0.003011655276 | L23: 0.004096594136 | M23: 0.101915642 | N23: 0.1090238914 | P23: 0.898084358 | Q23: 0.003011655276 | R23: 0.00108493886 | S23: 0.09781904789 | U23: 1 | V23: 0 | W23: 0 | X23: 0
A24: Black Country New Road/Golds Hill, Tipton | B24: 15.133 | C24: 8489.832201 | D24: 5.610060306 | E24: 9416.203532 | F24: 6.222204211 | G24: 34821.00397 | H24: 23.00963407 | J24: 1 | K24: 0.05610060306 | L24: 0.06222204211 | M24: 0.2300963407 | N24: 0.3484189858 | P24: 0.7699036593 | Q24: 0.05610060306 | R24: 0.006121439043 | S24: 0.1678742985 | U24: 1 | V24: 0 | W24: 0 | X24: 0
A25: Bloomfield Park | B25: 5.147 | C25: 0 | D25: 0 | E25: 0 | F25: 0 | G25: 79.63717124 | H25: 0.1547252326 | J25: 1 | K25: 0 | L25: 0 | M25: 0.001547252326 | N25: 0.001547252326 | P25: 0.9984527477 | Q25: 0 | R25: 0 | S25: 0.001547252326 | U25: 1 | V25: 0 | W25: 0 | X25: 0
A26: Brades Road, Oldbury (Pearsall Drive) | B26: 7.03 | C26: 0 | D26: 0 | E26: 0 | F26: 0 | G26: 0 | H26: 0 | J26: 1 | K26: 0 | L26: 0 | M26: 0 | N26: 0 | P26: 1 | Q26: 0 | R26: 0 | S26: 0 | U26: 1 | V26: 0 | W26: 0 | X26: 0
A27: Brandon Way (east side) | B27: 0.47 | C27: 0 | D27: 0 | E27: 0 | F27: 0 | G27: 0 | H27: 0 | J27: 1 | K27: 0 | L27: 0 | M27: 0 | N27: 0 | P27: 1 | Q27: 0 | R27: 0 | S27: 0 | U27: 1 | V27: 0 | W27: 0 | X27: 0
A28: Brandon Way / Albion Rd, WB (2385 / WBPr32) | B28: 6.225 | C28: 0 | D28: 0 | E28: 0 | F28: 0 | G28: 0 | H28: 0 | J28: 1 | K28: 0 | L28: 0 | M28: 0 | N28: 0 | P28: 1 | Q28: 0 | R28: 0 | S28: 0 | U28: 1 | V28: 0 | W28: 0 | X28: 0
A29: Brandon Way/ Albion Road, West Bromwich | B29: 3.086 | C29: 0 | D29: 0 | E29: 0 | F29: 0 | G29: 0 | H29: 0 | J29: 1 | K29: 0 | L29: 0 | M29: 0 | N29: 0 | P29: 1 | Q29: 0 | R29: 0 | S29: 0 | U29: 1 | V29: 0 | W29: 0 | X29: 0
A30: Brickhouse Lane | B30: 3.883 | C30: 0 | D30: 0 | E30: 0 | F30: 0 | G30: 0 | H30: 0 | J30: 1 | K30: 0 | L30: 0 | M30: 0 | N30: 0 | P30: 1 | Q30: 0 | R30: 0 | S30: 0 | U30: 1 | V30: 0 | W30: 0 | X30: 0
A31: Bridge Street/ Potters Lane | B31: 3.695 | C31: 0 | D31: 0 | E31: 0 | F31: 0 | G31: 0 | H31: 0 | J31: 1 | K31: 0 | L31: 0 | M31: 0 | N31: 0 | P31: 1 | Q31: 0 | R31: 0 | S31: 0 | U31: 1 | V31: 0 | W31: 0 | X31: 0
A32: British Gas, Land off Dudley Rd, Oldbury (2949) | B32: 1.056 | C32: 0 | D32: 0 | E32: 0 | F32: 0 | G32: 0 | H32: 0 | J32: 1 | K32: 0 | L32: 0 | M32: 0 | N32: 0 | P32: 1 | Q32: 0 | R32: 0 | S32: 0 | U32: 1 | V32: 0 | W32: 0 | X32: 0
A33: Broadcott Industrial Estate, Cradley Heath | B33: 1.361 | C33: 0 | D33: 0 | E33: 0 | F33: 0 | G33: 0 | H33: 0 | J33: 1 | K33: 0 | L33: 0 | M33: 0 | N33: 0 | P33: 1 | Q33: 0 | R33: 0 | S33: 0 | U33: 1 | V33: 0 | W33: 0 | X33: 0
A34: Broadwell Road, Oldbury | B34: 23.771 | C34: 31.02113299 | D34: 0.01305004824 | E34: 95.34651153 | F34: 0.04011061026 | G34: 95836.96919 | H34: 40.31693722 | J34: 1 | K34: 0.0001305004824 | L34: 0.0004011061026 | M34: 0.4031693722 | N34: 0.4037009788 | P34: 0.5968306278 | Q34: 0.0001305004824 | R34: 0.0002706056202 | S34: 0.4027682661 | U34: 1 | V34: 0 | W34: 0 | X34: 0
A35: Bromford Road Industrial Estate | B35: 7.881 | C35: 47.0444276 | D35: 0.05969390864 | E35: 4546.139256 | F35: 5.768522123 | G35: 10868.6208 | H35: 13.79101607 | J35: 1 | K35: 0.0005969390864 | L35: 0.05768522123 | M35: 0.1379101607 | N35: 0.196192321 | P35: 0.8620898393 | Q35: 0.0005969390864 | R35: 0.05708828215 | S35: 0.08022493949 | U35: 1 | V35: 0 | W35: 0 | X35: 0
A36: Brook St Bus Centre, Brook St Comm Centre, Tipton | B36: 1.538 | C36: 0 | D36: 0 | E36: 0 | F36: 0 | G36: 15364.14969 | H36: 99.8706432 | J36: 1 | K36: 0 | L36: 0 | M36: 0.998706432 | N36: 0.998706432 | P36: 0.001293568022 | Q36: 0 | R36: 0 | S36: 0.998706432 | U36: 1 | V36: 0 | W36: 0 | X36: 0
A37: Brymill Industrial Estate, Brown Lion St, Tipton | B37: 1.783 | C37: 0 | D37: 0 | E37: 0 | F37: 0 | G37: 0 | H37: 0 | J37: 1 | K37: 0 | L37: 0 | M37: 0 | N37: 0 | P37: 1 | Q37: 0 | R37: 0 | S37: 0 | U37: 1 | V37: 0 | W37: 0 | X37: 0
A38: Burnt Tree Industrial Estate | B38: 1.57 | C38: 0 | D38: 0 | E38: 0 | F38: 0 | G38: 0 | H38: 0 | J38: 1 | K38: 0 | L38: 0 | M38: 0 | N38: 0 | P38: 1 | Q38: 0 | R38: 0 | S38: 0 | U38: 1 | V38: 0 | W38: 0 | X38: 0
A39: Cakemore Road, Rowley Regis | B39: 7.509 | C39: 0 | D39: 0 | E39: 0 | F39: 0 | G39: 0 | H39: 0 | J39: 1 | K39: 0 | L39: 0 | M39: 0 | N39: 0 | P39: 1 | Q39: 0 | R39: 0 | S39: 0 | U39: 1 | V39: 0 | W39: 0 | X39: 0
A40: Cakemore Road, Rowley Regis | B40: 0.603 | C40: 0 | D40: 0 | E40: 0 | F40: 0 | G40: 0 | H40: 0 | J40: 1 | K40: 0 | L40: 0 | M40: 0 | N40: 0 | P40: 1 | Q40: 0 | R40: 0 | S40: 0 | U40: 1 | V40: 0 | W40: 0 | X40: 0
A41: Car Craft, Darlaston Rd/ Old Park Rd, Kings Hill | B41: 5.186 | C41: 0 | D41: 0 | E41: 0 | F41: 0 | G41: 0 | H41: 0 | J41: 1 | K41: 0 | L41: 0 | M41: 0 | N41: 0 | P41: 1 | Q41: 0 | R41: 0 | S41: 0 | U41: 1 | V41: 0 | W41: 0 | X41: 0
A42: Carlyle Bus and Coach, Carlyle Business Park | B42: 0.387 | C42: 0 | D42: 0 | E42: 0 | F42: 0 | G42: 0 | H42: 0 | J42: 1 | K42: 0 | L42: 0 | M42: 0 | N42: 0 | P42: 1 | Q42: 0 | R42: 0 | S42: 0 | U42: 1 | V42: 0 | W42: 0 | X42: 0
A43: Castle St, High St Tipton (2942) | B43: 0.705 | C43: 0 | D43: 0 | E43: 0 | F43: 0 | G43: 0 | H43: 0 | J43: 1 | K43: 0 | L43: 0 | M43: 0 | N43: 0 | P43: 1 | Q43: 0 | R43: 0 | S43: 0 | U43: 1 | V43: 0 | W43: 0 | X43: 0
A44: Castle St, Tipton (2938) | B44: 1.494 | C44: 0 | D44: 0 | E44: 0 | F44: 0 | G44: 0 | H44: 0 | J44: 1 | K44: 0 | L44: 0 | M44: 0 | N44: 0 | P44: 1 | Q44: 0 | R44: 0 | S44: 0 | U44: 1 | V44: 0 | W44: 0 | X44: 0
A45: Causeway Green Rd / Wolverhampton Road | B45: 0.848 | C45: 0 | D45: 0 | E45: 0 | F45: 0 | G45: 0 | H45: 0 | J45: 1 | K45: 0 | L45: 0 | M45: 0 | N45: 0 | P45: 1 | Q45: 0 | R45: =L45-K45 -> 0 | S45: 0 | U45: 1 | V45: 0 | W45: 0 | X45: 0
A46: Charles Street, West Bromwich | B46: 9.056 | C46: 0 | D46: 0 | E46: 0 | F46: 0 | G46: 0 | H46: 0 | J46: 1 | K46: 0 | L46: 0 | M46: 0 | N46: 0 | P46: 1 | Q46: 0 | R46: 0 | S46: 0 | U46: 1 | V46: 0 | W46: 0 | X46: 0
A47: Chaters Close, Tipton | B47: 0.578 | C47: 0 | D47: 0 | E47: 0 | F47: 0 | G47: 0 | H47: 0 | J47: 1 | K47: 0 | L47: 0 | M47: 0 | N47: 0 | P47: 1 | Q47: 0 | R47: 0 | S47: 0 | U47: 1 | V47: 0 | W47: 0 | X47: 0
A48: Church Lane / Gladstone Street, WB (2389 / WBPr38) | B48: 2.205 | C48: 0 | D48: 0 | E48: 0 | F48: 0 | G48: 4219.301019 | H48: 19.13920051 | J48: 1 | K48: 0 | L48: 0 | M48: 0.1913920051 | N48: 0.1913920051 | P48: 0.8086079949 | Q48: 0 | R48: 0 | S48: 0.1913920051 | U48: 1 | V48: 0 | W48: 0 | X48: 0
A49: Churchbridge, Oldbury | B49: 14.035 | C49: 12959.39058 | D49: 9.233743499 | E49: 15251.29802 | F49: 10.86675898 | G49: 28821.44707 | H49: 20.53567626 | J49: 1 | K49: 0.09233743499 | L49: 0.1086675898 | M49: 0.2053567626 | N49: 0.4063617874 | P49: 0.7946432374 | Q49: 0.09233743499 | R49: 0.01633015481 | S49: 0.09668917278 | U49: 1 | V49: 0 | W49: 0 | X49: 0
A50: Churchbridge, Oldbury (opposite Thurston Avenue) | B50: 0.757 | C50: 4328.828662 | D50: 57.18898521 | E50: 4751.841061 | F50: 62.7774831 | G50: 5570.175879 | H50: 73.58866123 | J50: 1 | K50: 0.5718898521 | L50: 0.627774831 | M50: 0.7358866123 | N50: 1.935551295 | P50: 0.2641133877 | Q50: 0.5718898521 | R50: 0.05588497885 | S50: 0.1081117814 | U50: 1 | V50: 0 | W50: 0 | X50: 0
A51: Clay Lane, Oldbury | B51: 0.227 | C51: 0 | D51: 0 | E51: 0 | F51: 0 | G51: 0 | H51: 0 | J51: 1 | K51: 0 | L51: 0 | M51: 0 | N51: 0 | P51: 1 | Q51: 0 | R51: 0 | S51: 0 | U51: 1 | V51: 0 | W51: 0 | X51: 0
A52: Cleton Street Business Park, Oldbury | B52: 2.013 | C52: 0 | D52: 0 | E52: 0 | F52: 0 | G52: 0 | H52: 0 | J52: 1 | K52: 0 | L52: 0 | M52: 0 | N52: 0 | P52: 1 | Q52: 0 | R52: 0 | S52: 0 | U52: 1 | V52: 0 | W52: 0 | X52: 0
A53: Coneygre Business Park (open land) | B53: 7.234 | C53: 0 | D53: 0 | E53: 0 | F53: 0 | G53: 0 | H53: 0 | J53: 1 | K53: 0 | L53: 0 | M53: 0 | N53: 0 | P53: 1 | Q53: 0 | R53: 0 | S53: 0 | U53: 1 | V53: 0 | W53: 0 | X53: 0
A54: Coneygre Business Park, Tipton | B54: 17.755 | C54: 0 | D54: 0 | E54: 0 | F54: 0 | G54: 0 | H54: 0 | J54: 1 | K54: 0 | L54: 0 | M54: 0 | N54: 0 | P54: 1 | Q54: 0 | R54: 0 | S54: 0 | U54: 1 | V54: 0 | W54: 0 | X54: 0
A55: Coneygre Rd, Burnt Tree, Tipton | B55: 1.02 | C55: 0 | D55: 0 | E55: 0 | F55: 0 | G55: 0 | H55: 0 | J55: 1 | K55: 0 | L55: 0 | M55: 0 | N55: 0 | P55: 1 | Q55: 0 | R55: 0 | S55: 0 | U55: 1 | V55: 0 | W55: 0 | X55: 0
A56: Corner of Bromford Lane / Brandon Way | B56: 3.953 | C56: 0 | D56: 0 | E56: 0 | F56: 0 | G56: 0 | H56: 0 | J56: 1 | K56: 0 | L56: 0 | M56: 0 | N56: 0 | P56: 1 | Q56: 0 | R56: 0 | S56: 0 | U56: 1 | V56: 0 | W56: 0 | X56: 0
A57: Corngreaves Rd (City Estate Hillcrest Ind Est) Pal | B57: 2.808 | C57: 0 | D57: 0 | E57: 0 | F57: 0 | G57: 0 | H57: 0 | J57: 1 | K57: 0 | L57: 0 | M57: 0 | N57: 0 | P57: 1 | Q57: 0 | R57: 0 | S57: 0 | U57: 1 | V57: 0 | W57: 0 | X57: 0
A58: Corngreaves Road, Cradley Heath | B58: 19.74 | C58: 46.23901863 | D58: 0.02342395837 | E58: 68.79266385 | F58: 0.03484927972 | G58: 1349.425943 | H58: 0.6835979232 | J58: 1 | K58: 0.0002342395837 | L58: 0.0003484927972 | M58: 0.006835979232 | N58: 0.007418711613 | P58: 0.9931640208 | Q58: 0.0002342395837 | R58: 0.0001142532135 | S58: 0.006487486435 | U58: 1 | V58: 0 | W58: 0 | X58: 0
A59: Corngreaves Road, Cradley Heath | B59: 3.651 | C59: 0 | D59: 0 | E59: 0 | F59: 0 | G59: 0 | H59: 0 | J59: 1 | K59: 0 | L59: 0 | M59: 0 | N59: 0 | P59: 1 | Q59: 0 | R59: 0 | S59: 0 | U59: 1 | V59: 0 | W59: 0 | X59: 0
A60: Cornwall Road | B60: 4.025 | C60: 0 | D60: 0 | E60: 0 | F60: 0 | G60: 0 | H60: 0 | J60: 1 | K60: 0 | L60: 0 | M60: 0 | N60: 0 | P60: 1 | Q60: 0 | R60: 0 | S60: 0 | U60: 1 | V60: 0 | W60: 0 | X60: 0
A61: Cornwall Road/Foundary Lane, Smethwick | B61: 0.355 | C61: 0 | D61: 0 | E61: 0 | F61: 0 | G61: 0 | H61: 0 | J61: 1 | K61: 0 | L61: 0 | M61: 0 | N61: 0 | P61: 1 | Q61: 0 | R61: 0 | S61: 0 | U61: 1 | V61: 0 | W61: 0 | X61: 0
A62: Cornwall Road/Foundary Lane, Smethwick | B62: 2.884 | C62: 0 | D62: 0 | E62: 0 | F62: 0 | G62: 0 | H62: 0 | J62: 1 | K62: 0 | L62: 0 | M62: 0 | N62: 0 | P62: 1 | Q62: 0 | R62: 0 | S62: 0 | U62: 1 | V62: 0 | W62: 0 | X62: 0
A63: Cornwall Road/Foundary Lane, Smethwick (north of Anne Road) | B63: 2.332 | C63: 0 | D63: 0 | E63: 0 | F63: 0 | G63: 0 | H63: 0 | J63: 1 | K63: 0 | L63: 0 | M63: 0 | N63: 0 | P63: 1 | Q63: 0 | R63: 0 | S63: 0 | U63: 1 | V63: 0 | W63: 0 | X63: 0
A64: Cradley Business Patrk, Cradley Heath | B64: 3.706 | C64: 0 | D64: 0 | E64: 0 | F64: 0 | G64: 0 | H64: 0 | J64: 1 | K64: 0 | L64: 0 | M64: 0 | N64: 0 | P64: 1 | Q64: 0 | R64: 0 | S64: 0 | U64: 1 | V64: 0 | W64: 0 | X64: 0
A65: Crosswells Road / Hall Street, Oldbury | B65: 0.8 | C65: 0 | D65: 0 | E65: 0 | F65: 0 | G65: 0 | H65: 0 | J65: 1 | K65: 0 | L65: 0 | M65: 0 | N65: 0 | P65: 1 | Q65: 0 | R65: 0 | S65: 0 | U65: 1 | V65: 0 | W65: 0 | X65: 0
A66: Crystal Drive, Smethwick | B66: 14.358 | C66: 0 | D66: 0 | E66: 0 | F66: 0 | G66: 0 | H66: 0 | J66: 1 | K66: =D66/100 -> 0 | L66: 0 | M66: =H66/100 -> 0 | N66: 0 | P66: 1 | Q66: 0 | R66: 0 | S66: 0 | U66: 1 | V66: 0 | W66: 0 | X66: 0
A67: Cygnus Way, West Bromwich | B67: 12.579 | C67: 0 | D67: 0 | E67: 0 | F67: 0 | G67: 0 | H67: 0 | J67: 1 | K67: 0 | L67: =F67/100 -> 0 | M67: 0 | N67: =SUM(K67:M67) -> 0 | P67: =J67-SUM(Q67:S67) -> 1 | Q67: =K67 -> 0 | R67: =L67-K67 -> 0 | S67: =M67-(Q67+R67) -> 0 | U67: =SUM(P67:S67) -> 1 | V67: =Q67-K67 -> 0 | W67: =SUM(Q67:R67)-L67 -> 0 | X67: =SUM(Q67:S67)-M67 -> 0
A68: Danks Way, Hill Top, West Bromwich | B68: 7.626 | C68: 0 | D68: 0 | E68: 0 | F68: 0 | G68: 0 | H68: 0 | J68: 1 | K68: 0 | L68: 0 | M68: 0 | N68: 0 | P68: 1 | Q68: 0 | R68: 0 | S68: 0 | U68: 1 | V68: 0 | W68: 0 | X68: 0
A69: Dart Products, Garratts Lane | B69: 7.85 | C69: 0 | D69: 0 | E69: 0 | F69: 0 | G69: 0 | H69: 0 | J69: 1 | K69: 0 | L69: 0 | M69: 0 | N69: 0 | P69: 1 | Q69: 0 | R69: 0 | S69: 0 | U69: 1 | V69: 0 | W69: 0 | X69: 0
A70: Dartmouth Road, Smethwick | B70: 23.758 | C70: 0 | D70: 0 | E70: 0 | F70: 0 | G70: 0 | H70: 0 | J70: 1 | K70: 0 | L70: 0 | M70: 0 | N70: 0 | P70: 1 | Q70: 0 | R70: 0 | S70: 0 | U70: 1 | V70: 0 | W70: 0 | X70: 0
A71: Dartmouth Road/ Piaro Way, Smethwick | B71: 6.96 | C71: 0 | D71: 0 | E71: 0 | F71: 0 | G71: 0 | H71: 0 | J71: 1 | K71: 0 | L71: 0 | M71: 0 | N71: 0 | P71: 1 | Q71: 0 | R71: 0 | S71: 0 | U71: 1 | V71: 0 | W71: 0 | X71: 0
A72: Delta Point, Greets Green Road | B72: 8.183 | C72: 0 | D72: 0 | E72: 0 | F72: 0 | G72: 0 | H72: 0 | J72: 1 | K72: 0 | L72: 0 | M72: 0 | N72: 0 | P72: 1 | Q72: 0 | R72: 0 | S72: 0 | U72: 1 | V72: 0 | W72: 0 | X72: 0
A73: Direct 2, Roway Lane, Oldbury | B73: 8.181 | C73: 0 | D73: 0 | E73: 0 | F73: 0 | G73: 0 | H73: 0 | J73: 1 | K73: 0 | L73: 0 | M73: 0 | N73: 0 | P73: 1 | Q73: 0 | R73: 0 | S73: 0 | U73: 1 | V73: 0 | W73: 0 | X73: 0
A74: Doranda Way | B74: 13.967 | C74: 0 | D74: 0 | E74: 0 | F74: 0 | G74: 0 | H74: 0 | J74: 1 | K74: 0 | L74: 0 | M74: 0 | N74: 0 | P74: 1 | Q74: 0 | R74: 0 | S74: 0 | U74: 1 | V74: 0 | W74: 0 | X74: 0
A75: Doulton Road, Rowley Regis (east of canal) | B75: 3.52 | C75: 0 | D75: 0 | E75: 0 | F75: 0 | G75: 0 | H75: 0 | J75: 1 | K75: 0 | L75: 0 | M75: 0 | N75: 0 | P75: 1 | Q75: 0 | R75: 0 | S75: 0 | U75: 1 | V75: 0 | W75: 0 | X75: 0
A76: DPD, Roebuck Lane | B76: 8.934 | C76: 0 | D76: 0 | E76: 0 | F76: 0 | G76: 0 | H76: 0 | J76: 1 | K76: 0 | L76: 0 | M76: 0 | N76: 0 | P76: 1 | Q76: 0 | R76: 0 | S76: 0 | U76: 1 | V76: 0 | W76: 0 | X76: 0
A77: Droicon Ind Est, Portway Road | B77: 0.872 | C77: 0 | D77: 0 | E77: 0 | F77: 0 | G77: 0 | H77: 0 | J77: 1 | K77: 0 | L77: 0 | M77: 0 | N77: 0 | P77: 1 | Q77: 0 | R77: 0 | S77: 0 | U77: 1 | V77: 0 | W77: 0 | X77: 0
A78: Dudley Rd, 28 Dudley Rd West (2957) | B78: 1.786 | C78: 0 | D78: 0 | E78: 0 | F78: 0 | G78: 0 | H78: 0 | J78: 1 | K78: 0 | L78: 0 | M78: 0 | N78: 0 | P78: 1 | Q78: 0 | R78: 0 | S78: 0 | U78: 1 | V78: 0 | W78: 0 | X78: 0
A79: Dudley Road, Oldbury | B79: 4.915 | C79: 0 | D79: 0 | E79: 0 | F79: 0 | G79: 0 | H79: 0 | J79: 1 | K79: 0 | L79: 0 | M79: 0 | N79: 0 | P79: 1 | Q79: 0 | R79: 0 | S79: 0 | U79: 1 | V79: 0 | W79: 0 | X79: 0
A80: Eel Street, Oldbury | B80: 3.168 | C80: 15699.31218 | D80: 49.55859993 | E80: 15936.74659 | F80: 50.30811791 | G80: 16831.95306 | H80: 53.13404933 | J80: 1 | K80: 0.4955859993 | L80: 0.5030811791 | M80: 0.5313404933 | N80: 1.530007672 | P80: 0.4686595067 | Q80: 0.4955859993 | R80: 0.007495179877 | S80: 0.02825931413 | U80: 1 | V80: 0 | W80: 0 | X80: 0
A81: EMR Oldbury | B81: 7.558 | C81: 0 | D81: 0 | E81: 0 | F81: 0 | G81: 0 | H81: 0 | J81: 1 | K81: 0 | L81: 0 | M81: 0 | N81: 0 | P81: 1 | Q81: 0 | R81: 0 | S81: 0 | U81: 1 | V81: 0 | W81: 0 | X81: 0
A82: Engine Street, Oldbury | B82: 1.643 | C82: 0 | D82: 0 | E82: 0 | F82: 0 | G82: 0 | H82: 0 | J82: 1 | K82: 0 | L82: 0 | M82: 0 | N82: 0 | P82: 1 | Q82: 0 | R82: 0 | S82: 0 | U82: 1 | V82: 0 | W82: 0 | X82: 0
A83: Exchange Works, Kelvin Way, West Bromwich | B83: 1.498 | C83: 0 | D83: 0 | E83: 0 | F83: 0 | G83: 0 | H83: 0 | J83: 1 | K83: 0 | L83: 0 | M83: 0 | N83: 0 | P83: 1 | Q83: 0 | R83: 0 | S83: 0 | U83: 1 | V83: 0 | W83: 0 | X83: 0
A84: Fisher St / Coneygre Rd, Tipton | B84: 1.744 | C84: 0 | D84: 0 | E84: 0 | F84: 0 | G84: 0 | H84: 0 | J84: 1 | K84: 0 | L84: 0 | M84: 0 | N84: 0 | P84: 1 | Q84: 0 | R84: 0 | S84: 0 | U84: 1 | V84: 0 | W84: 0 | X84: 0
A85: Fitzgerald Lighting Ltd, Rood End Rd (2009) | B85: 1.393 | C85: 0 | D85: 0 | E85: 0 | F85: 0 | G85: 0 | H85: 0 | J85: 1 | K85: 0 | L85: 0 | M85: 0 | N85: 0 | P85: 1 | Q85: 0 | R85: 0 | S85: 0 | U85: 1 | V85: 0 | W85: 0 | X85: 0
A86: Former Corus Premises, Bloomfield Rd, Tipton (5972 | B86: 0.576 | C86: 0 | D86: 0 | E86: 0 | F86: 0 | G86: 2272.014421 | H86: 39.46985699 | J86: 1 | K86: 0 | L86: 0 | M86: 0.3946985699 | N86: 0.3946985699 | P86: 0.6053014301 | Q86: 0 | R86: 0 | S86: 0.3946985699 | U86: 1 | V86: 0 | W86: 0 | X86: 0
A87: Foundry Lane (south) | B87: 11.765 | C87: 0 | D87: 0 | E87: 0 | F87: 0 | G87: 0 | H87: 0 | J87: 1 | K87: 0 | L87: 0 | M87: 0 | N87: 0 | P87: 1 | Q87: 0 | R87: 0 | S87: 0 | U87: 1 | V87: 0 | W87: 0 | X87: 0
A88: Foundry Lane/ Anne Road | B88: 5.257 | C88: 0 | D88: 0 | E88: 0 | F88: 0 | G88: 0 | H88: 0 | J88: 1 | K88: 0 | L88: 0 | M88: 0 | N88: 0 | P88: 1 | Q88: 0 | R88: 0 | S88: 0 | U88: 1 | V88: 0 | W88: 0 | X88: 0
A89: Fountain Lane | B89: 1.316 | C89: 0 | D89: 0 | E89: 127.8541273 | F89: 0.9714721261 | G89: 10833.55597 | H89: 82.31644823 | J89: 1 | K89: 0 | L89: 0.009714721261 | M89: 0.8231644823 | N89: 0.8328792036 | P89: 0.1768355177 | Q89: 0 | R89: 0.009714721261 | S89: 0.813449761 | U89: 1 | V89: 0 | W89: 0 | X89: 0
A90: Garratts Lane/ Powke Lane | B90: 9.384 | C90: 0 | D90: 0 | E90: 0 | F90: 0 | G90: 0 | H90: 0 | J90: 1 | K90: 0 | L90: 0 | M90: 0 | N90: 0 | P90: 1 | Q90: 0 | R90: 0 | S90: 0 | U90: 1 | V90: 0 | W90: 0 | X90: 0
A91: Garretts Lane, Cradley Heath | B91: 0.707 | C91: 0 | D91: 0 | E91: 0 | F91: 0 | G91: 0 | H91: 0 | J91: 1 | K91: 0 | L91: 0 | M91: 0 | N91: 0 | P91: 1 | Q91: 0 | R91: 0 | S91: 0 | U91: 1 | V91: 0 | W91: 0 | X91: 0
A92: George Henry Road | B92: 19.87 | C92: 0 | D92: 0 | E92: 0 | F92: 0 | G92: 15.96894916 | H92: 0.008036837951 | J92: 1 | K92: 0 | L92: 0 | M92: 8.036837951e-05 | N92: 8.036837951e-05 | P92: 0.9999196316 | Q92: 0 | R92: 0 | S92: 8.036837951e-05 | U92: 1 | V92: 0 | W92: 0 | X92: 0
A93: Great Bridge Ind Est / Harrold Street | B93: 4.592 | C93: 0 | D93: 0 | E93: 28285.4873 | F93: 61.60032907 | G93: 43891.42372 | H93: 95.58704491 | J93: 1 | K93: 0 | L93: 0.6160032907 | M93: 0.9558704491 | N93: 1.57187374 | P93: 0.04412955085 | Q93: 0 | R93: 0.6160032907 | S93: 0.3398671584 | U93: 1 | V93: 0 | W93: 0 | X93: 0
A94: Great Western Street, Wednesbury | B94: 3.832 | C94: 0 | D94: 0 | E94: 0.1950920739 | F94: 0.000509047939 | G94: 15914.5288 | H94: 41.52530611 | J94: 1 | K94: 0 | L94: 5.09047939e-06 | M94: 0.4152530611 | N94: 0.4152581516 | P94: 0.5847469389 | Q94: 0 | R94: 5.09047939e-06 | S94: 0.4152479706 | U94: 1 | V94: 0 | W94: 0 | X94: 0
A95: Griffin Ind Est, Penncricket Lane | B95: 3.323 | C95: 101.3650182 | D95: 0.3050025207 | E95: 101.3650483 | F95: 0.3050026114 | G95: 9430.533275 | H95: 28.37602629 | J95: 1 | K95: 0.003050025207 | L95: 0.003050026114 | M95: 0.2837602629 | N95: 0.2898603142 | P95: 0.7162397371 | Q95: 0.003050025207 | R95: 9.069941504e-10 | S95: 0.2807102368 | U95: 1 | V95: 0 | W95: 0 | X95: 0
A96: Groveland Rd (2963) | B96: 1.183 | C96: 0 | D96: 0 | E96: 0 | F96: 0 | G96: 0 | H96: 0 | J96: 1 | K96: 0 | L96: 0 | M96: 0 | N96: 0 | P96: 1 | Q96: 0 | R96: 0 | S96: 0 | U96: 1 | V96: 0 | W96: 0 | X96: 0
A97: Hainge Road, Oldbury | B97: 14.332 | C97: 0 | D97: 0 | E97: 0 | F97: 0 | G97: 0 | H97: 0 | J97: 1 | K97: 0 | L97: 0 | M97: 0 | N97: 0 | P97: 1 | Q97: 0 | R97: 0 | S97: 0 | U97: 1 | V97: 0 | W97: 0 | X97: 0
A98: Hale Trading Estate, Tipton | B98: 2.74 | C98: 0 | D98: 0 | E98: 0 | F98: 0 | G98: 0 | H98: 0 | J98: 1 | K98: 0 | L98: 0 | M98: 0 | N98: 0 | P98: 1 | Q98: 0 | R98: 0 | S98: 0 | U98: 1 | V98: 0 | W98: 0 | X98: 0
A99: Hales Way, Oldbury | B99: 1.517 | C99: 0 | D99: 0 | E99: 0 | F99: 0 | G99: 0 | H99: 0 | J99: 1 | K99: 0 | L99: 0 | M99: 0 | N99: 0 | P99: 1 | Q99: 0 | R99: 0 | S99: 0 | U99: 1 | V99: 0 | W99: 0 | X99: 0
A100: Halfords Lane | B100: 24.248 | C100: 0 | D100: 0 | E100: 0 | F100: 0 | G100: 0 | H100: 0 | J100: 1 | K100: 0 | L100: 0 | M100: 0 | N100: 0 | P100: 1 | Q100: 0 | R100: 0 | S100: 0 | U100: 1 | V100: 0 | W100: 0 | X100: 0
A101: Hill Top, West Bromwich | B101: 15.187 | C101: 36787.25555 | D101: 24.22302448 | E101: 39430.01643 | F101: 25.96318315 | G101: 82697.88068 | H101: 54.45344476 | J101: 1 | K101: 0.2422302448 | L101: 0.2596318315 | M101: 0.5445344476 | N101: 1.046396524 | P101: 0.4554655524 | Q101: 0.2422302448 | R101: 0.01740158665 | S101: 0.2849026162 | U101: 1 | V101: 0 | W101: 0 | X101: 0
A102: Holloway Bank | B102: 1.034 | C102: 0 | D102: 0 | E102: 0 | F102: 0 | G102: 0 | H102: 0 | J102: 1 | K102: 0 | L102: 0 | M102: 0 | N102: 0 | P102: 1 | Q102: 0 | R102: 0 | S102: 0 | U102: 1 | V102: 0 | W102: 0 | X102: 0
A103: Holloway Bank, Wednesbury | B103: 5.308 | C103: 823.9584343 | D103: 1.552355376 | E103: 929.4092144 | F103: 1.751026909 | G103: 2701.394046 | H103: 5.089484366 | J103: 1 | K103: 0.01552355376 | L103: 0.01751026909 | M103: 0.05089484366 | N103: 0.0839286665 | P103: 0.9491051563 | Q103: 0.01552355376 | R103: 0.001986715331 | S103: 0.03338457457 | U103: 1 | V103: 0 | W103: 0 | X103: 0
A104: Holloway Bank/ Bilport Lane | B104: 1.776 | C104: 3062.629025 | D104: 17.24371699 | E104: 4234.194607 | F104: 23.84005797 | G104: 6997.678366 | H104: 39.39947815 | J104: 1 | K104: 0.1724371699 | L104: 0.2384005797 | M104: 0.3939947815 | N104: 0.8048325312 | P104: 0.6060052185 | Q104: 0.1724371699 | R104: 0.0659634098 | S104: 0.1555942018 | U104: 1 | V104: 0 | W104: 0 | X104: 0
A105: Houghton Street, Oldbury | B105: 1.439 | C105: 0 | D105: 0 | E105: 2.268138646 | F105: 0.01576046338 | G105: 32.57238601 | H105: 0.2263335612 | J105: 1 | K105: 0 | L105: 0.0001576046338 | M105: 0.002263335612 | N105: 0.002420940246 | P105: 0.9977366644 | Q105: 0 | R105: 0.0001576046338 | S105: 0.002105730978 | U105: 1 | V105: 0 | W105: 0 | X105: 0
A106: Howard Street | B106: 27.938 | C106: 0 | D106: 0 | E106: 0 | F106: 0 | G106: 0 | H106: 0 | J106: 1 | K106: 0 | L106: 0 | M106: 0 | N106: 0 | P106: 1 | Q106: 0 | R106: 0 | S106: 0 | U106: 1 | V106: 0 | W106: 0 | X106: 0
A107: James Watt Industrial Park | B107: 3.639 | C107: 0 | D107: 0 | E107: 0 | F107: 0 | G107: 0 | H107: 0 | J107: 1 | K107: 0 | L107: 0 | M107: 0 | N107: 0 | P107: 1 | Q107: 0 | R107: 0 | S107: 0 | U107: 1 | V107: 0 | W107: 0 | X107: 0
A108: JAS Ind Park, Titford Lane, Oldbury (3013) | B108: 0.94 | C108: 0 | D108: 0 | E108: 0 | F108: 0 | G108: 8.358022419 | H108: 0.08893744013 | J108: 1 | K108: 0 | L108: 0 | M108: 0.0008893744013 | N108: 0.0008893744013 | P108: 0.9991106256 | Q108: 0 | R108: 0 | S108: 0.0008893744013 | U108: 1 | V108: 0 | W108: 0 | X108: 0
A109: JerseyTex Ltd, Upper Church Lane, Princes End | B109: 1.582 | C109: 0 | D109: 0 | E109: 0 | F109: 0 | G109: 0 | H109: 0 | J109: 1 | K109: 0 | L109: 0 | M109: 0 | N109: 0 | P109: 1 | Q109: 0 | R109: 0 | S109: 0 | U109: 1 | V109: 0 | W109: 0 | X109: 0
A110: JH Lavender & Co, Crankhall Lane, West Bromwich | B110: 1.314 | C110: 0 | D110: 0 | E110: 0 | F110: 0 | G110: 0 | H110: 0 | J110: 1 | K110: 0 | L110: 0 | M110: 0 | N110: 0 | P110: 1 | Q110: 0 | R110: 0 | S110: 0 | U110: 1 | V110: 0 | W110: 0 | X110: 0
A111: Joseph Street, Oldbury | B111: 2.966 | C111: 11721.72048 | D111: 39.51771552 | E111: 12677.30505 | F111: 42.73930057 | G111: 14582.95397 | H111: 49.16386017 | J111: 1 | K111: 0.3951771552 | L111: 0.4273930057 | M111: 0.4916386017 | N111: 1.314208763 | P111: 0.5083613983 | Q111: 0.3951771552 | R111: 0.03221585049 | S111: 0.06424559604 | U111: 1 | V111: 0 | W111: 0 | X111: 0
A112: Junction 9 (Opus 9) | B112: 2.343 | C112: 12658.97721 | D112: 54.03535446 | E112: 13545.55604 | F112: 57.81975194 | G112: 15749.65328 | H112: 67.22802983 | J112: 1 | K112: 0.5403535446 | L112: 0.5781975194 | M112: 0.6722802983 | N112: 1.790831362 | P112: 0.3277197017 | Q112: 0.5403535446 | R112: 0.03784397478 | S112: 0.09408277886 | U112: 1 | V112: 0 | W112: 0 | X112: 0
A113: Junction One, Oldbury | B113: 4.717 | C113: 0 | D113: 0 | E113: 0 | F113: 0 | G113: 0 | H113: 0 | J113: 1 | K113: 0 | L113: 0 | M113: 0 | N113: 0 | P113: 1 | Q113: 0 | R113: 0 | S113: 0 | U113: 1 | V113: 0 | W113: 0 | X113: 0
A114: Junction Two, Oldbury | B114: 1.128 | C114: 0 | D114: 0 | E114: 0 | F114: 0 | G114: 0 | H114: 0 | J114: 1 | K114: 0 | L114: 0 | M114: 0 | N114: 0 | P114: 1 | Q114: 0 | R114: 0 | S114: 0 | U114: 1 | V114: 0 | W114: 0 | X114: 0
A115: Kelvin Way WBPr35 | B115: 33.9 | C115: 0 | D115: 0 | E115: 0 | F115: 0 | G115: 0 | H115: 0 | J115: 1 | K115: 0 | L115: 0 | M115: 0 | N115: 0 | P115: 1 | Q115: 0 | R115: 0 | S115: 0 | U115: 1 | V115: 0 | W115: 0 | X115: 0
A116: Kings Hill Business Park | B116: 3.268 | C116: 0 | D116: 0 | E116: 0 | F116: 0 | G116: 0 | H116: 0 | J116: 1 | K116: 0 | L116: 0 | M116: 0 | N116: 0 | P116: 1 | Q116: 0 | R116: 0 | S116: 0 | U116: 1 | V116: 0 | W116: 0 | X116: 0
A117: Kitchener Street, Smethwick | B117: 1.394 | C117: 0 | D117: 0 | E117: 0 | F117: 0 | G117: 0 | H117: 0 | J117: 1 | K117: 0 | L117: 0 | M117: 0 | N117: 0 | P117: 1 | Q117: 0 | R117: 0 | S117: 0 | U117: 1 | V117: 0 | W117: 0 | X117: 0
A118: Land & premises Barnfield Rd, Brook St, Bloomfield | B118: 0.835 | C118: 0 | D118: 0 | E118: 0 | F118: 0 | G118: 8352.684684 | H118: 100 | J118: 1 | K118: 0 | L118: 0 | M118: 1 | N118: 1 | P118: 0 | Q118: 0 | R118: 0 | S118: 1 | U118: 1 | V118: 0 | W118: 0 | X118: 0
A119: Land at Birmingham Road / Roebuck Lane | B119: 6.806 | C119: 0 | D119: 0 | E119: 0 | F119: 0 | G119: 0 | H119: 0 | J119: 1 | K119: 0 | L119: 0 | M119: 0 | N119: 0 | P119: 1 | Q119: 0 | R119: 0 | S119: 0 | U119: 1 | V119: 0 | W119: 0 | X119: 0
A120: Land at corner of Birmingham Road | B120: 0.48 | C120: 0 | D120: 0 | E120: 0 | F120: 0 | G120: 0 | H120: 0 | J120: 1 | K120: 0 | L120: 0 | M120: 0 | N120: 0 | P120: 1 | Q120: 0 | R120: 0 | S120: 0 | U120: 1 | V120: 0 | W120: 0 | X120: 0
A121: Land at Doulton Way, bt Factory Rd, Bloomfield Rd, Tipton | B121: 2.759 | C121: 0 | D121: 0 | E121: 0 | F121: 0 | G121: 1775.289423 | H121: 6.433975091 | J121: 1 | K121: 0 | L121: 0 | M121: 0.06433975091 | N121: 0.06433975091 | P121: 0.9356602491 | Q121: 0 | R121: 0 | S121: 0.06433975091 | U121: 1 | V121: 0 | W121: 0 | X121: 0
A122: Land at Junction 1 / Kenrick Way | B122: 4.146 | C122: 0 | D122: 0 | E122: 0 | F122: 0 | G122: 0 | H122: 0 | J122: 1 | K122: 0 | L122: 0 | M122: 0 | N122: 0 | P122: 1 | Q122: 0 | R122: 0 | S122: 0 | U122: 1 | V122: 0 | W122: 0 | X122: 0
A123: Land at Potters Lane & Stafford St, Weds (5642) | B123: 0.856 | C123: 0 | D123: 0 | E123: 0 | F123: 0 | G123: 0 | H123: 0 | J123: 1 | K123: 0 | L123: 0 | M123: 0 | N123: 0 | P123: 1 | Q123: 0 | R123: 0 | S123: 0 | U123: 1 | V123: 0 | W123: 0 | X123: 0
A124: Land bt Great Bridge St & William St, Tipton (2965 | B124: 1.081 | C124: 0 | D124: 0 | E124: 0 | F124: 0 | G124: 0 | H124: 0 | J124: 1 | K124: 0 | L124: 0 | M124: 0 | N124: 0 | P124: 1 | Q124: 0 | R124: 0 | S124: 0 | U124: 1 | V124: 0 | W124: 0 | X124: 0
A125: Land by Whitehall Road and Walsall Canal | B125: 1.04 | C125: 0 | D125: 0 | E125: 0 | F125: 0 | G125: 0 | H125: 0 | J125: 1 | K125: 0 | L125: 0 | M125: 0 | N125: 0 | P125: 1 | Q125: 0 | R125: 0 | S125: 0 | U125: 1 | V125: 0 | W125: 0 | X125: 0
A126: land off dudley rd, oldbury | B126: 0.981 | C126: 0 | D126: 0 | E126: 0 | F126: 0 | G126: 0 | H126: 0 | J126: 1 | K126: 0 | L126: 0 | M126: 0 | N126: 0 | P126: 1 | Q126: 0 | R126: 0 | S126: 0 | U126: 1 | V126: 0 | W126: 0 | X126: 0
A127: Land off Tipton Road, Oldbury | B127: 0.812 | C127: 0 | D127: 0 | E127: 0 | F127: 0 | G127: 0 | H127: 0 | J127: 1 | K127: 0 | L127: 0 | M127: 0 | N127: 0 | P127: 1 | Q127: 0 | R127: 0 | S127: 0 | U127: 1 | V127: 0 | W127: 0 | X127: 0
A128: Leabrook Road, Tipton | B128: 7.479 | C128: 0 | D128: 0 | E128: 0 | F128: 0 | G128: 0 | H128: 0 | J128: 1 | K128: 0 | L128: 0 | M128: 0 | N128: 0 | P128: 1 | Q128: 0 | R128: 0 | S128: 0 | U128: 1 | V128: 0 | W128: 0 | X128: 0
A129: Legacy 43, Ryder Street, West Bromwich | B129: 0.883 | C129: 0 | D129: 0 | E129: 0 | F129: 0 | G129: 0 | H129: 0 | J129: 1 | K129: 0 | L129: 0 | M129: 0 | N129: 0 | P129: 1 | Q129: 0 | R129: 0 | S129: 0 | U129: 1 | V129: 0 | W129: 0 | X129: 0
A130: Lidl, Junction 9 (Opus 9) | B130: 8.707 | C130: 39196.82699 | D130: 45.01539966 | E130: 44491.76722 | F130: 51.09634726 | G130: 59452.94642 | H130: 68.27843858 | J130: 1 | K130: =D130/100 -> 0.4501539966 | L130: 0.5109634726 | M130: =H130/100 -> 0.6827843858 | N130: 1.643901855 | P130: 0.3172156142 | Q130: 0.4501539966 | R130: 0.06080947595 | S130: 0.1718209132 | U130: 1 | V130: 0 | W130: 0 | X130: 0
A131: Newlyn Road, Cradley Heath | B131: 3.411 | C131: 0 | D131: 0 | E131: 0 | F131: 0 | G131: 0 | H131: 0 | J131: 1 | K131: 0 | L131: =F131/100 -> 0 | M131: 0 | N131: =SUM(K131:M131) -> 0 | P131: =J131-SUM(Q131:S131) -> 1 | Q131: =K131 -> 0 | R131: =L131-K131 -> 0 | S131: =M131-(Q131+R131) -> 0 | U131: =SUM(P131:S131) -> 1 | V131: =Q131-K131 -> 0 | W131: =SUM(Q131:R131)-L131 -> 0 | X131: =SUM(Q131:S131)-M131 -> 0
A132: Old Park Trading Estate, Old Park Rd (2922) | B132: 2.642 | C132: 0 | D132: 0 | E132: 0 | F132: 0 | G132: 0 | H132: 0 | J132: 1 | K132: 0 | L132: 0 | M132: 0 | N132: 0 | P132: 1 | Q132: 0 | R132: 0 | S132: 0 | U132: 1 | V132: 0 | W132: 0 | X132: 0
A133: Oldbury Point Ind Est, Rood End Road | B133: 3.232 | C133: 0 | D133: 0 | E133: 0 | F133: 0 | G133: 0 | H133: 0 | J133: 1 | K133: 0 | L133: 0 | M133: 0 | N133: 0 | P133: 1 | Q133: 0 | R133: 0 | S133: 0 | U133: 1 | V133: 0 | W133: 0 | X133: 0
A134: Oldbury Rd Ind Est, Oldbury Rd (2994) | B134: 0.574 | C134: 0 | D134: 0 | E134: 0 | F134: 0 | G134: 0 | H134: 0 | J134: 1 | K134: 0 | L134: 0 | M134: 0 | N134: 0 | P134: 1 | Q134: 0 | R134: 0 | S134: 0 | U134: 1 | V134: 0 | W134: 0 | X134: 0
A135: Oldbury Rd, Oldbury (3014) | B135: 2.416 | C135: 0 | D135: 0 | E135: 0 | F135: 0 | G135: 0 | H135: 0 | J135: 1 | K135: 0 | L135: 0 | M135: 0 | N135: 0 | P135: 1 | Q135: 0 | R135: 0 | S135: 0 | U135: 1 | V135: 0 | W135: 0 | X135: 0
A136: Oldbury Rd, WB (2384 / WBPr31) | B136: 18.938 | C136: 0 | D136: 0 | E136: 0 | F136: 0 | G136: 0 | H136: 0 | J136: 1 | K136: 0 | L136: 0 | M136: 0 | N136: 0 | P136: 1 | Q136: 0 | R136: 0 | S136: 0 | U136: 1 | V136: 0 | W136: 0 | X136: 0
A137: Oldfield Trading Estate, Cradley Heath | B137: 1.766 | C137: 0 | D137: 0 | E137: 0 | F137: 0 | G137: 0 | H137: 0 | J137: 1 | K137: 0 | L137: 0 | M137: 0 | N137: 0 | P137: 1 | Q137: 0 | R137: 0 | S137: 0 | U137: 1 | V137: 0 | W137: 0 | X137: 0
A138: Palmers Timber Site, Station Rd, Old Hill (3043) | B138: 3.149 | C138: 0 | D138: 0 | E138: 0 | F138: 0 | G138: 0 | H138: 0 | J138: 1 | K138: 0 | L138: 0 | M138: 0 | N138: 0 | P138: 1 | Q138: 0 | R138: 0 | S138: 0 | U138: 1 | V138: 0 | W138: 0 | X138: 0
